Workbook

Sheet Intro
B3: LATPAXL | E3: Ver 1.0
B6: Laterally loaded pile analysis tool
B12: Circular pile
B18: Developed by Yoon Seok Choi
B19: Advisor: Prof. Monica Prezzi

Sheet MAIN
B1: Pile geometry | E1: Soil properties | J1: Outputs
B2: Pile diameter Br (m) | C2: 0.5 | E2: Layer i | F2: Thickness (m) | G2: Young's modulus of the soil Esi (MPa) | H2: Poisson's ratio of the soil nsi | J2: Deflection at pile head (mm) | K2: =Sheet1!B2 -> 9.28
B3: Pile length Lp (m) | C3: 20 | E3: 1 | F3: 6.0 | G3: 20 | H3: 0.25 | J3: Maximum moment (kN-m) | K3: =Sheet1!D1003 -> 191.9
B4: Young's modulus of the pile Ep (GPa) | C4: 25 | E4: 2 | F4: 7.0 | G4: 25 | H4: 0.30 | J4: gr | K4: ='Initial Parameter'!M2 -> 0.19
E5: 3 | F5: 9.0 | G5: 30 | H5: 0.28
B6: Load | E6: 4 | F6: 1.0 | G6: 35 | H6: 0.20
B7: Fa (kN) | C7: 300
B8: Ma (kN-m) | C8: 100
B10: Boundary Condition
B11: Top | C11: 2
B12: Bottom | C12: 2
B13: Boundary condition = 1 | C13: Fixed pile head or base
B14: Boundary condition = 2 | C14: Free pile head or base

Sheet Graphs

Sheet Initial Parameter (hidden)
A1: Lp | B1: 20
A2: rp | B2: 0.25 | D2: Layer | E2: Thickness | F2: Es | G2: usi | H2: l | I2: Gs | J2: Gs (modifiled) | L2: Assumed g | M2: 0.1850600368
A3: Ep | B3: 2.5E+07 | D3: 1 | E3: 6 | F3: 20000 | G3: 0.25 | H3: 0 | I3: =F3/2/(1+G3) -> 8000 | J3: =0.75*I3*(1+0.75*G3) -> 7125 | L3: Assumed g | M3: =Depth_z_1!NJ1006 -> 0.1850541604
A4: Fa | B4: 300 | D4: 2 | E4: 7 | F4: 25000 | G4: 0.3 | H4: 0 | I4: =F4/2/(1+G4) -> 9615.384615 | J4: =0.75*I4*(1+0.75*G4) -> 8834.134615
A5: Ma | B5: 100 | D5: 3 | E5: 9 | F5: 30000 | G5: 0.28 | H5: 0 | I5: =F5/2/(1+G5) -> 11718.75 | J5: =0.75*I5*(1+0.75*G5) -> 10634.76562
A6: Fa | B6: =B4*B1^2/(B3*B9) -> 1.6 | D6: 4 | E6: 1 | F6: 35000 | G6: 0.2 | H6: 0 | I6: =F6/2/(1+G6) -> 14583.33333 | J6: =0.75*I6*(1+0.75*G6) -> 12578.125
A7: Ma | B7: =B5*B1/(B3*B9) -> 0.0
A8: ψ | B8: =B1/B2 -> 80
A9: Ip | B9: =PI()*B2^4/4 -> 0.003067961576
A10: Top | B10: 2
A11: Bottom | B11: 2
M14: =K16-M16 -> 84013.87
A15: Layer | B15: H(m) | C15: z (m) | D15: Es | E15: usi | F15: g | G15: BESSELK0 | H15: BESSELK1 | I15: h | J15: x | K15: ki | L15: ti | M15: ti2 | N15: a | O15: b | P15: ai*Hi | Q15: bi*Hi | R15: Check Long | S15: Frac | T15: pp(1) | U15: pp(2) | V15: pp(3) | W15: pp(4) | X15: Frac | Y15: ph(1) | Z15: ph(2) | AA15: ph(3) | AB15: ph(4)
A16: 1 | B16: =E3 -> 6 | C16: 0.00 | D16: =$F$3 -> 2.0E+04 | E16: =$G$3 -> 0.25 | F16: =$M$2 -> 0.1850600368 | G16: =BESSELK($F$17,0) -> 1.827065879 | H16: =BESSELK($F$17,1) -> 5.189343272 | I16: =0.5*((((BESSELK($F$17,1)+$F$17*BESSELK($F$17,0))^2)-(F16^2+1)*((BESSELK($F$17,1))^2))/((BESSELK($F$17,0))^2)) -> 0.4046048164 | J16: =0.5*(((BESSELK($F$17,1))^2-(BESSELK($F$17,0))^2)/((BESSELK($F$17,0))^2)) -> 3.533540203 | K16: =(2*I16)*(3-4*E16)*D16*($B$8^4)/($B$3*(1+E16)*(1-2*E16)) -> 84851.78 | L16: =(2*J16)*D16*($B$8^2)/($B$3*(1+E16)) -> 28.95 | M16: =L16^2 -> 837.91 | N16: =IF(K16>M16,((K16^0.5+L16)/2)^0.5,SQRT(L16+SQRT(L16^2-K16))) -> 12.65385416 | O16: =IF(K16>M16,((K16^0.5-L16)/2)^0.5,SQRT(L16-SQRT(L16^2-K16))) -> 11.4530897 | R16: =IF(OR(P17>7,Q17>7),1,(IF(OR(P19>2,Q19>2),2,IF(OR(P21>2,Q21>2),3,IF(OR(P22>2,Q22>2),4,0))))) -> 2 | S16: 0 | T16: =IF(OR(R16=4,R16=3,R16=2,R16=0),(IF(K16>M16,SINH(N16*S16)*COS(O16*S16),SINH(N16*S16))),(IF(K16>M16,EXP(-N16*S16)*COS(O16*S16),EXP(-N16*S16)))) -> 0 | U16: =IF(OR(R16=4,R16=3,R16=2,R16=0),IF(K16>M16,COSH(N16*S16)*COS(O16*S16),COSH(N16*S16)),(IF(K16>M16,EXP(-N16*S16)*SIN(O16*S16),EXP(-O16*S16)))) -> 1 | V16: =IF(OR(R16=4,R16=3,R16=2,R16=0),(IF(K16>M16,COSH(N16*S16)*SIN(O16*S16),SINH(O16*S16))),0) -> 0 | W16: =IF(OR(R16=4,R16=3,R16=2,R16=0),IF(K16>M16,SINH(N16*S16)*SIN(O16*S16),COSH(O16*S16)),0) -> 0 | X16: 0 | Y16: =IF(R17=1,(IF(K17>M17,EXP(-N17*X16)*COS(O17*X16),EXP(-N17*X16))),0) -> 0 | Z16: =IF(R17=1,(IF(K17>M17,EXP(-N17*X16)*SIN(O17*X16),EXP(-O17*X16))),0) -> 0 | AA16: 0 | AB16: 0
A17: 1 | B17: =E3 -> 6 | C17: =B17/$B$1 -> 0.30 | D17: =$F$3 -> 2.0E+04 | E17: =$G$3 -> 0.25 | F17: 0.1850600368 | G17: 1.827065879 | H17: 5.189343272 | I17: 0.4046048164 | J17: 3.533540203 | K17: =(2*I17)*(3-4*E17)*D17*($B$8^4)/($B$3*(1+E17)*(1-2*E17)) -> 84851.78 | L17: 28.95 | M17: 837.91 | N17: =IF(K17>M17,((K17^0.5+L17)/2)^0.5,SQRT(L17+SQRT(L17^2-K17))) -> 12.65385416 | O17: =IF(K17>M17,((K17^0.5-L17)/2)^0.5,SQRT(L17-SQRT(L17^2-K17))) -> 11.4530897 | P17: =N17*C17 -> 3.796156247 | Q17: =O17*C17 -> 3.43592691 | R17: =IF(OR(P17>7,Q17>7),1,(IF(OR(P19>2,Q19>2),2,IF(OR(P21>2,Q21>2),3,IF(OR(P22>2,Q22>2),4,0))))) -> 2 | S17: 0 | T17: =IF(OR(R17=4,R17=3,R17=2,R17=0),(IF(K17>M17,SINH(N17*S17)*COS(O17*S17),SINH(N17*S17))),(IF(K17>M17,EXP(-N17*S17)*COS(O17*S17),EXP(-N17*S17)))) -> 0 | U17: =IF(OR(R17=4,R17=3,R17=2,R17=0),IF(K17>M17,COSH(N17*S17)*COS(O17*S17),COSH(N17*S17)),(IF(K17>M17,EXP(-N17*S17)*SIN(O17*S17),EXP(-O17*S17)))) -> 1 | V17: =IF(OR(R17=4,R17=3,R17=2,R17=0),(IF(K17>M17,COSH(N17*S17)*SIN(O17*S17),SINH(O17*S17))),0) -> 0 | W17: =IF(OR(R17=4,R17=3,R17=2,R17=0),IF(K17>M17,SINH(N17*S17)*SIN(O17*S17),COSH(O17*S17)),0) -> 0 | X17: =S18 -> 0.3 | Y17: =IF(R17=1,(IF(K17>M17,EXP(-N17*X17)*COS(O17*X17),EXP(-N17*X17))),(IF(K17>M17,SINH(N17*X17)*COS(O17*X17),SINH(N17*X17)))) -> -21.29661253 | Z17: =IF(R17=1,(IF(K17>M17,EXP(-N17*X17)*SIN(O17*X17),EXP(-O17*X17))),IF(K17>M17,COSH(N17*X17)*COS(O17*X17),COSH(N17*X17))) -> -21.3181037 | AA17: =IF(R17=1,0,(IF(K17>M17,COSH(N17*X17)*SIN(O17*X17),SINH(O17*X17)))) -> -6.462351869 | AB17: =IF(R17=1,0,(IF(K17>M17,SINH(N17*X17)*SIN(O17*X17)))) -> -6.455837052
A18: 2 | B18: =E4+E3 -> 13 | C18: =B17/$B$1 -> 0.3 | D18: =$F$4 -> 2.5E+04 | E18: =$G$4 -> 0.3 | F18: 0.1850600368 | G18: 1.827065879 | H18: 5.189343272 | I18: 0.4046048164 | J18: 3.533540203 | K18: =(2*I18)*(3-4*E18)*D18*($B$8^4)/($B$3*(1+E18)*(1-2*E18)) -> 114733.48 | L18: =(2*J18)*D18*($B$8^2)/($B$3*(1+E18)) -> 34.79 | M18: 1210.47 | N18: 13.66592632 | O18: =IF(K18>M18,((K18^0.5-L18)/2)^0.5,SQRT(L18-SQRT(L18^2-K18))) -> 12.32743938 | R18: =IF(OR(P17>7,Q17>7),1,(IF(OR(P19>2,Q19>2),2,IF(OR(P21>2,Q21>2),3,IF(OR(P22>2,Q22>2),4,0))))) -> 2 | S18: =C17 -> 0.3 | T18: =IF(OR(R18=4,R18=3,R18=0),(IF(K18>M18,SINH(N18*S18)*COS(O18*S18),SINH(N18*S18))),(IF(K18>M18,EXP(-N18*S18)*COS(O18*S18),EXP(-N18*S18)))) -> -0.01407391617 | U18: =IF(OR(R18=4,R18=3,R18=0),IF(K18>M18,COSH(N18*S18)*COS(O18*S18),COSH(N18*S18)),(IF(K18>M18,EXP(-N18*S18)*SIN(O18*S18),EXP(-O18*S18)))) -> -0.008757881257 | V18: =IF(OR(R18=4,R18=3,R18=0),(IF(K18>M18,COSH(N18*S18)*SIN(O18*S18),SINH(O18*S18))),0) -> 0 | W18: =IF(OR(R18=4,R18=3,R18=0),IF(K18>M18,SINH(N18*S18)*SIN(O18*S18),COSH(O18*S18)),0) -> 0 | X18: =S18 -> 0.3 | Y18: =IF(OR(R18=4,R18=3,R18=0),(IF(K18>M18,SINH(N18*X18)*COS(O18*X18),SINH(N18*X18))),(IF(K18>M18,EXP(-N18*X18)*COS(O18*X18),EXP(-N18*X18)))) -> -0.01407391617 | Z18: =IF(OR(R18=4,R18=3,R18=0),IF(K18>M18,COSH(N18*X18)*COS(O18*X18),COSH(N18*X18)),(IF(K18>M18,EXP(-N18*X18)*SIN(O18*X18),EXP(-O18*X18)))) -> -0.008757881257 | AA18: =IF(OR(R18=4,R18=3,R18=0),(IF(K18>M18,COSH(N18*X18)*SIN(O18*X18),SINH(O18*X18))),0) -> 0 | AB18: =IF(OR(R18=4,R18=3,R18=0),IF(K18>M18,SINH(N18*X18)*SIN(O18*X18),COSH(O18*X18)),0) -> 0
A19: 2 | C19: =B18/$B$1 -> 0.65 | D19: =$F$4 -> 2.5E+04 | E19: =$G$4 -> 0.3 | F19: 0.1850600368 | G19: 1.827065879 | H19: 5.189343272 | I19: 0.4046048164 | J19: 3.533540203 | K19: 114733.48 | L19: 34.79 | M19: 1210.47 | N19: 13.66592632 | O19: 12.32743938 | P19: =N19*C18 -> 4.099777896 | Q19: =O19*C18 -> 3.698231814 | R19: =IF(OR(P17>7,Q17>7),1,(IF(OR(P19>2,Q19>2),2,IF(OR(P21>2,Q21>2),3,IF(OR(P22>2,Q22>2),4,0))))) -> 2 | S19: =C18 -> 0.3 | T19: =IF(OR(R19=4,R19=3,R19=0),(IF(K19>M19,SINH(N19*S19)*COS(O19*S19),SINH(N19*S19))),(IF(K19>M19,EXP(-N19*S19)*COS(O19*S19),EXP(-N19*S19)))) -> -0.01407391617 | U19: =IF(OR(R19=4,R19=3,R19=0),IF(K19>M19,COSH(N19*S19)*COS(O19*S19),COSH(N19*S19)),(IF(K19>M19,EXP(-N19*S19)*SIN(O19*S19),EXP(-O19*S19)))) -> -0.008757881257 | V19: =IF(OR(R19=4,R19=3,R19=0),(IF(K19>M19,COSH(N19*S19)*SIN(O19*S19),SINH(O19*S19))),0) -> 0 | W19: =IF(OR(R19=4,R19=3,R19=0),IF(K19>M19,SINH(N19*S19)*SIN(O19*S19),COSH(O19*S19)),0) -> 0 | X19: =S20 -> 0.65 | Y19: =IF(OR(R19=4,R19=3,R19=0),(IF(K19>M19,SINH(N19*X19)*COS(O19*X19),SINH(N19*X19))),(IF(K19>M19,EXP(-N19*X19)*COS(O19*X19),EXP(-N19*X19)))) -> -2.194806932e-05 | Z19: =IF(OR(R19=4,R19=3,R19=0),IF(K19>M19,COSH(N19*X19)*COS(O19*X19),COSH(N19*X19)),(IF(K19>M19,EXP(-N19*X19)*SIN(O19*X19),EXP(-O19*X19)))) -> 0.0001370009328 | AA19: =IF(OR(R19=4,R19=3,R19=0),(IF(K19>M19,COSH(N19*X19)*SIN(O19*X19),SINH(O19*X19))),0) -> 0 | AB19: =IF(OR(R19=4,R19=3,R19=0),IF(K19>M19,SINH(N19*X19)*SIN(O19*X19),COSH(O19*X19)),0) -> 0
A20: 3 | B20: =E3+E4+E5 -> 22 | C20: =B18/$B$1 -> 0.65 | D20: =$F$5 -> 3.0E+04 | E20: =$G$5 -> 0.28 | F20: 0.1850600368 | G20: 1.827065879 | H20: 5.189343272 | I20: 0.4046048164 | J20: 3.533540203 | K20: =(2*I20)*(3-4*E20)*D20*($B$8^4)/($B$3*(1+E20)*(1-2*E20)) -> 132769.23 | L20: =(2*J20)*D20*($B$8^2)/($B$3*(1+E20)) -> 42.40 | M20: 1797.97 | N20: 14.26144465 | O20: =IF(K20>M20,((K20^0.5-L20)/2)^0.5,SQRT(L20-SQRT(L20^2-K20))) -> 12.6880385 | R20: =IF(OR(P17>7,Q17>7),1,(IF(OR(P19>2,Q19>2),2,IF(OR(P21>2,Q21>2),3,IF(OR(P22>2,Q22>2),4,0))))) -> 2 | S20: =C19 -> 0.65 | T20: =IF(OR(R20=4,R20=0),(IF(K20>M20,SINH(N20*S20)*COS(O20*S20),SINH(N20*S20))),(IF(K20>M20,EXP(-N20*S20)*COS(O20*S20),EXP(-N20*S20)))) -> -3.610160884e-05 | U20: =IF(OR(R20=4,R20=0),IF(K20>M20,COSH(N20*S20)*COS(O20*S20),COSH(N20*S20)),(IF(K20>M20,EXP(-N20*S20)*SIN(O20*S20),EXP(-O20*S20)))) -> 8.702298758e-05 | V20: =IF(OR(R20=4,R20=0),(IF(K20>M20,COSH(N20*S20)*SIN(O20*S20),SINH(O20*S20))),0) -> 0 | W20: =IF(OR(R20=4,R20=0),IF(K20>M20,SINH(N20*S20)*SIN(O20*S20),COSH(O20*S20)),0) -> 0 | X20: =S20 -> 0.65 | Y20: =IF(OR(R20=4,R20=0),(IF(K20>M20,SINH(N20*X20)*COS(O20*X20),SINH(N20*X20))),(IF(K20>M20,EXP(-N20*X20)*COS(O20*X20),EXP(-N20*X20)))) -> -3.610160884e-05 | Z20: =IF(OR(R20=4,R20=0),IF(K20>M20,COSH(N20*X20)*COS(O20*X20),COSH(N20*X20)),(IF(K20>M20,EXP(-N20*X20)*SIN(O20*X20),EXP(-O20*X20)))) -> 8.702298758e-05 | AA20: =IF(OR(R20=4,R20=0),(IF(K20>M20,COSH(N20*X20)*SIN(O20*X20),SINH(O20*X20))),0) -> 0 | AB20: =IF(OR(R20=4,R20=0),IF(K20>M20,SINH(N20*X20)*SIN(O20*X20),COSH(O20*X20)),0) -> 0
A21: 3 | C21: =B20/$B$1 -> 1.1 | D21: =$F$5 -> 3.0E+04 | E21: =$G$5 -> 0.28 | F21: 0.1850600368 | G21: 1.827065879 | H21: 5.189343272 | I21: 0.4046048164 | J21: 3.533540203 | K21: 132769.23 | L21: 42.40 | M21: 1797.97 | N21: 14.26144465 | O21: 12.6880385 | P21: =N21*C20 -> 9.269939022 | Q21: =O21*C20 -> 8.247225027 | R21: =IF(OR(P17>7,Q17>7),1,(IF(OR(P19>2,Q19>2),2,IF(OR(P21>2,Q21>2),3,IF(OR(P22>2,Q22>2),4,0))))) -> 2 | S21: =C20 -> 0.65 | T21: =IF(OR(R21=4,R21=0),(IF(K21>M21,SINH(N21*S21)*COS(O21*S21),SINH(N21*S21))),(IF(K21>M21,EXP(-N21*S21)*COS(O21*S21),EXP(-N21*S21)))) -> -3.610160884e-05 | U21: =IF(OR(R21=4,R21=0),IF(K21>M21,COSH(N21*S21)*COS(O21*S21),COSH(N21*S21)),(IF(K21>M21,EXP(-N21*S21)*SIN(O21*S21),EXP(-O21*S21)))) -> 8.702298758e-05 | V21: =IF(OR(R21=4,R21=0),(IF(K21>M21,COSH(N21*S21)*SIN(O21*S21),SINH(O21*S21))),0) -> 0 | W21: =IF(OR(R21=4,R21=0),IF(K21>M21,SINH(N21*S21)*SIN(O21*S21),COSH(O21*S21)),0) -> 0 | X21: =S22 -> 1.1 | Y21: =IF(OR(R21=4,R21=0),(IF(K21>M21,SINH(N21*X21)*COS(O21*X21),SINH(N21*X21))),(IF(K21>M21,EXP(-N21*X21)*COS(O21*X21),EXP(-N21*X21)))) -> 2.75845147e-08 | Z21: =IF(OR(R21=4,R21=0),IF(K21>M21,COSH(N21*X21)*COS(O21*X21),COSH(N21*X21)),(IF(K21>M21,EXP(-N21*X21)*SIN(O21*X21),EXP(-O21*X21)))) -> 1.513097953e-07 | AA21: =IF(OR(R21=4,R21=0),(IF(K21>M21,COSH(N21*X21)*SIN(O21*X21),SINH(O21*X21))),0) -> 0 | AB21: =IF(OR(R21=4,R21=0),IF(K21>M21,SINH(N21*X21)*SIN(O21*X21),COSH(O21*X21)),0) -> 0
A22: 4 | C22: 1 | D22: =$F$6 -> 3.5E+04 | E22: =$G$6 -> 0.2 | F22: 0.1850600368 | G22: =BESSELK(F22,0) -> 1.827065879 | H22: =BESSELK(F22,1) -> 5.189343272 | I22: 0.4046048164 | J22: 3.533540203 | K22: 141787.91 | L22: 52.77 | M22: 2784.41 | N22: 14.65119266 | O22: 12.72359669 | P22: =N22*C21 -> 16.11631193 | Q22: =O22*C21 -> 13.99595636 | R22: =IF(OR(P17>7,Q17>7),1,(IF(OR(P19>2,Q19>2),2,IF(OR(P21>2,Q21>2),3,IF(OR(P22>2,Q22>2),4,0))))) -> 2 | S22: =C21 -> 1.1 | T22: =IF(OR(R22=0),(IF(K22>M22,SINH(N22*S22)*COS(O22*S22),SINH(N22*S22))),(IF(K22>M22,EXP(-N22*S22)*COS(O22*S22),EXP(-N22*S22)))) -> 1.409930199e-08 | U22: =IF(OR(R22=0),IF(K22>M22,COSH(N22*S22)*COS(O22*S22),COSH(N22*S22)),(IF(K22>M22,EXP(-N22*S22)*SIN(O22*S22),EXP(-O22*S22)))) -> 9.918138874e-08 | V22: =IF(OR(R22=0),(IF(K22>M22,COSH(N22*S22)*SIN(O22*S22),SINH(O22*S22))),0) -> 0 | W22: =IF(OR(R22=0),IF(K22>M22,SINH(N22*S22)*SIN(O22*S22),COSH(O22*S22)),0) -> 0 | X22: =S22 -> 1.1 | Y22: =IF(OR(R22=0),(IF(K22>M22,SINH(N22*X22)*COS(O22*X22),SINH(N22*X22))),(IF(K22>M22,EXP(-N22*X22)*COS(O22*X22),EXP(-N22*X22)))) -> 1.409930199e-08 | Z22: =IF(OR(R22=0),IF(K22>M22,COSH(N22*X22)*COS(O22*X22),COSH(N22*X22)),(IF(K22>M22,EXP(-N22*X22)*SIN(O22*X22),EXP(-O22*X22)))) -> 9.918138874e-08 | AA22: =IF(OR(R22=0),(IF(K22>M22,COSH(N22*X22)*SIN(O22*X22),SINH(O22*X22))),0) -> 0 | AB22: =IF(OR(R22=0),IF(K22>M22,SINH(N22*X22)*SIN(O22*X22),COSH(O22*X22)),0) -> 0
A23: 4 | C23: 1 | D23: =$F$6 -> 3.5E+04 | E23: =$G$6 -> 0.2 | F23: 0.1850600368 | G23: =BESSELK(F23,0) -> 1.827065879 | H23: =BESSELK(F23,1) -> 5.189343272 | I23: 0.4046048164 | J23: 3.533540203 | K23: =(2*I23)*(3-4*E23)*D23*($B$8^4)/($B$3*(1+E23)*(1-2*E23)) -> 141787.91 | L23: =(2*J23)*D23*($B$8^2)/($B$3*(1+E23)) -> 52.77 | M23: =L23^2 -> 2784.41 | N23: =IF(K23>M23,((K23^0.5+L23)/2)^0.5,SQRT(L23+SQRT(L23^2-K23))) -> 14.65119266 | O23: =IF(K23>M23,((K23^0.5-L23)/2)^0.5,SQRT(L23-SQRT(L23^2-K23))) -> 12.72359669 | S23: 1 | T23: =IF(OR(R22=0),(IF(K23>M23,SINH(N23*S23)*COS(O23*S23),SINH(N23*S23))),(IF(K23>M23,EXP(-N23*S23)*COS(O23*S23),EXP(-N23*S23)))) -> 4.282306256e-07 | U23: =IF(OR(R22=0),IF(K23>M23,COSH(N23*S23)*COS(O23*S23),COSH(N23*S23)),(IF(K23>M23,EXP(-N23*S23)*SIN(O23*S23),EXP(-O23*S23)))) -> 6.788935334e-08 | V23: =IF(OR(R23=0),(IF(K23>M23,COSH(N23*S23)*SIN(O23*S23),SINH(O23*S23))),0) -> 180565.9795 | W23: =IF(OR(R23=0),IF(K23>M23,SINH(N23*S23)*SIN(O23*S23),COSH(O23*S23)),0) -> 180565.9795 | X23: 1

Sheet K value (hidden)
A1: a | B1: b | C1: F1 | D1: F2 | E1: F3 | F1: F4 | G1: f1 | H1: f2 | I1: f3 | J1: f4 | K1: t | L1: k | M1: Fa | N1: Ma
A2: ='Initial Parameter'!N16 -> 12.65385416 | B2: ='Initial Parameter'!O16 -> 11.4530897 | C2: ='Initial Parameter'!Y16 -> 0 | D2: ='Initial Parameter'!Z16 -> 0 | E2: ='Initial Parameter'!AA16 -> 0 | F2: ='Initial Parameter'!AB16 -> 0 | G2: ='Initial Parameter'!T16 -> 0 | H2: ='Initial Parameter'!U16 -> 1 | I2: ='Initial Parameter'!V16 -> 0 | J2: ='Initial Parameter'!W16 -> 0 | K2: ='Initial Parameter'!L16 -> 28.94676134 | L2: ='Initial Parameter'!K16 -> 84851.78 | M2: ='Initial Parameter'!$B$6 -> 1.5645567526E+00 | N2: ='Initial Parameter'!$B$7 -> 2.6E-02
A3: ='Initial Parameter'!N17 -> 12.65385416 | B3: ='Initial Parameter'!O17 -> 11.4530897 | C3: ='Initial Parameter'!Y17 -> -21.29661253 | D3: ='Initial Parameter'!Z17 -> -21.3181037 | E3: ='Initial Parameter'!AA17 -> -6.462351869 | F3: ='Initial Parameter'!AB17 -> -6.455837052 | G3: ='Initial Parameter'!T17 -> 0 | H3: ='Initial Parameter'!U17 -> 1 | I3: ='Initial Parameter'!V17 -> 0 | J3: ='Initial Parameter'!W17 -> 0 | K3: ='Initial Parameter'!L17 -> 28.94676134 | L3: ='Initial Parameter'!K17 -> 84851.78 | M3: ='Initial Parameter'!$B$6 -> 1.5645567526E+00 | N3: ='Initial Parameter'!$B$7 -> 2.6E-02
A4: ='Initial Parameter'!N18 -> 13.66592632 | B4: ='Initial Parameter'!O18 -> 12.32743938 | C4: ='Initial Parameter'!Y18 -> -0.01407391617 | D4: ='Initial Parameter'!Z18 -> -0.008757881257 | E4: ='Initial Parameter'!AA18 -> 0 | F4: ='Initial Parameter'!AB18 -> 0 | G4: ='Initial Parameter'!T18 -> -0.01407391617 | H4: ='Initial Parameter'!U18 -> -0.008757881257 | I4: ='Initial Parameter'!V18 -> 0 | J4: ='Initial Parameter'!W18 -> 0 | K4: ='Initial Parameter'!L18 -> 34.79178046 | L4: ='Initial Parameter'!K18 -> 114733.4766 | M4: ='Initial Parameter'!$B$6 -> 1.5645567526E+00 | N4: ='Initial Parameter'!$B$7 -> 2.6E-02
A5: ='Initial Parameter'!N19 -> 13.66592632 | B5: ='Initial Parameter'!O19 -> 12.32743938 | C5: ='Initial Parameter'!Y19 -> -2.194806932e-05 | D5: ='Initial Parameter'!Z19 -> 0.0001370009328 | E5: ='Initial Parameter'!AA19 -> 0 | F5: ='Initial Parameter'!AB19 -> 0 | G5: ='Initial Parameter'!T19 -> -0.01407391617 | H5: ='Initial Parameter'!U19 -> -0.008757881257 | I5: ='Initial Parameter'!V19 -> 0 | J5: ='Initial Parameter'!W19 -> 0 | K5: ='Initial Parameter'!L19 -> 34.79178046 | L5: ='Initial Parameter'!K19 -> 114733.4766 | M5: ='Initial Parameter'!$B$6 -> 1.5645567526E+00 | N5: ='Initial Parameter'!$B$7 -> 2.6E-02
A6: ='Initial Parameter'!N20 -> 14.26144465 | B6: ='Initial Parameter'!O20 -> 12.6880385 | C6: ='Initial Parameter'!Y20 -> -3.610160884e-05 | D6: ='Initial Parameter'!Z20 -> 8.702298758e-05 | E6: ='Initial Parameter'!AA20 -> 0 | F6: ='Initial Parameter'!AB20 -> 0 | G6: ='Initial Parameter'!T20 -> -3.610160884e-05 | H6: ='Initial Parameter'!U20 -> 8.702298758e-05 | I6: ='Initial Parameter'!V20 -> 0 | J6: ='Initial Parameter'!W20 -> 0 | K6: ='Initial Parameter'!L20 -> 42.40248243 | L6: ='Initial Parameter'!K20 -> 132769.2314 | M6: ='Initial Parameter'!$B$6 -> 1.5645567526E+00 | N6: ='Initial Parameter'!$B$7 -> 2.6E-02
A7: ='Initial Parameter'!N21 -> 14.26144465 | B7: ='Initial Parameter'!O21 -> 12.6880385 | C7: ='Initial Parameter'!Y21 -> 2.75845147e-08 | D7: ='Initial Parameter'!Z21 -> 1.513097953e-07 | E7: ='Initial Parameter'!AA21 -> 0 | F7: ='Initial Parameter'!AB21 -> 0 | G7: ='Initial Parameter'!T21 -> -3.610160884e-05 | H7: ='Initial Parameter'!U21 -> 8.702298758e-05 | I7: ='Initial Parameter'!V21 -> 0 | J7: ='Initial Parameter'!W21 -> 0 | K7: ='Initial Parameter'!L21 -> 42.40248243 | L7: ='Initial Parameter'!K21 -> 132769.2314 | M7: ='Initial Parameter'!$B$6 -> 1.5645567526E+00 | N7: ='Initial Parameter'!$B$7 -> 2.6E-02
A8: ='Initial Parameter'!N22 -> 14.65119266 | B8: ='Initial Parameter'!O22 -> 12.72359669 | C8: ='Initial Parameter'!Y22 -> 1.409930199e-08 | D8: ='Initial Parameter'!Z22 -> 9.918138874e-08 | E8: ='Initial Parameter'!AA22 -> 0 | F8: ='Initial Parameter'!AB22 -> 0 | G8: ='Initial Parameter'!T22 -> 1.409930199e-08 | H8: ='Initial Parameter'!U22 -> 9.918138874e-08 | I8: ='Initial Parameter'!V22 -> 0 | J8: ='Initial Parameter'!W22 -> 0 | K8: ='Initial Parameter'!L22 -> 52.76753369 | L8: ='Initial Parameter'!K22 -> 141787.9136 | M8: ='Initial Parameter'!$B$6 -> 1.5645567526E+00 | N8: ='Initial Parameter'!$B$7 -> 2.6E-02
A9: ='Initial Parameter'!N22 -> 14.65119266 | B9: ='Initial Parameter'!O22 -> 12.72359669 | C9: ='Initial Parameter'!Y22 -> 1.409930199e-08 | D9: ='Initial Parameter'!Z22 -> 9.918138874e-08 | E9: ='Initial Parameter'!AA22 -> 0 | F9: ='Initial Parameter'!AB22 -> 0 | G9: ='Initial Parameter'!T23 -> 4.282306256e-07 | H9: ='Initial Parameter'!U23 -> 6.788935334e-08 | I9: ='Initial Parameter'!V23 -> 180565.9795 | J9: ='Initial Parameter'!W23 -> 180565.9795 | K9: ='Initial Parameter'!L22 -> 52.76753369 | L9: ='Initial Parameter'!K22 -> 141787.9136 | M9: ='Initial Parameter'!$B$6 -> 1.5645567526E+00 | N9: ='Initial Parameter'!$B$7 -> 2.6E-02
X11: w01 | Y11: th01
D12: Kww | E12: Kwq | F12: KwM | G12: KwS | H12: Kqw | I12: Kqq | J12: KqM | K12: KqS | L12: KMw | M12: KMq | N12: KMM | O12: KMS | P12: KSw | Q12: KSq | R12: KSM | S12: KSS | U12: a | V12: bctop.eq.1 | X12: =$M$2/P13 ->  | Y12: 0
B13: K1calca1long | D13: =(C2*B2+A2*D2)/(B2) -> 0 | E13: 0 | F13: 0 | G13: 0 | H13: =-D2*(B2^2+A2^2)/B2 -> 0 | I13: 0 | J13: 0 | K13: 0 | L13: =(-C2*B2*A2^2-C2*B2^3+A2*B2^2*D2+A2^3*D2)/B2 -> 0 | M13: 0 | N13: 0 | O13: 0 | P13: =-(-2*B2*A2^3*C2-2*B2^3*A2*C2-B2^4*D2+A2^4*D2-2*K2*D2*B2^2-2*K2*D2*A2^2)/B2 -> 0 | Q13: 0 | R13: 0 | S13: 0 | V13: bctop.eq.2 | X13: =-(-Q14*$N$2+$M$2*M14)/(-P14*M14+L14*Q14) ->  | Y13: =($M$2*L14-$N$2*P14)/(L14*Q14-P14*M14) -> 
B14: K1calca2long | D14: =(C2*B2+A2*D2)/B2 -> 0 | E14: =D2/B2 -> 0 | F14: 0 | G14: 0 | H14: =-D2*(B2^2+A2^2)/B2 -> 0 | I14: =-(A2*D2-C2*B2)/B2 -> 0 | J14: 0 | K14: 0 | L14: =(-C2*B2*A2^2-C2*B2^3+A2*B2^2*D2+A2^3*D2)/B2 -> 0 | M14: =(A2^2*D2-B2^2*D2-2*A2*C2*B2)/B2 -> 0 | N14: 0 | O14: 0 | P14: =-(-2*A2^3*C2*B2-2*A2*C2*B2^3-B2^4*D2+A2^4*D2-2*K2*D2*B2^2-2*K2*D2*A2^2)/B2 -> 0 | Q14: =-(A2^3*D2-3*A2*B2^2*D2+C2*B2^3-3*C2*B2*A2^2-2*K2*A2*D2+2*K2*C2*B2)/B2 -> 0 | R14: 0 | S14: 0 | U14: b | V14: bctop.eq.1 | X14: =$M$2/P15 ->  | Y14: 0
B15: K1calcb1long | D15: =(-B2*C2+A2*D2)/(A2-B2) -> 0 | E15: 0 | F15: 0 | G15: 0 | H15: =B2*A2*(C2-D2)/(A2-B2) -> 0 | I15: 0 | J15: 0 | K15: 0 | L15: =-B2*A2*(A2*C2-B2*D2)/(A2-B2) -> 0 | M15: 0 | N15: 0 | O15: 0 | P15: =B2*A2*(A2^2*C2-B2^2*D2-2*K2*C2+2*K2*D2)/(A2-B2) -> 0 | Q15: 0 | R15: 0 | S15: 0 | V15: bctop.eq.2 | X15: =-(-Q16*$N$2+$M$2*M16)/(-P16*M16+L16*Q16) ->  | Y15: =($M$2*L16-$N$2*P16)/(L16*Q16-P16*M16) -> 
B16: K1calcb2long | D16: =(-B2*C2+A2*D2)/(A2-B2) -> 0 | E16: =-(C2-D2)/(A2-B2) -> 0 | F16: 0 | G16: 0 | H16: =A2*B2*(C2-D2)/(A2-B2) -> 0 | I16: =(A2*C2-B2*D2)/(A2-B2) -> 0 | J16: 0 | K16: 0 | L16: =-A2*B2*(A2*C2-B2*D2)/(A2-B2) -> 0 | M16: =-(A2^2*C2-B2^2*D2)/(A2-B2) -> 0 | N16: 0 | O16: 0 | P16: =A2*B2*(A2^2*C2-B2^2*D2-2*K2*C2+2*K2*D2)/(A2-B2) -> 0 | Q16: =(A2^3*C2-B2^3*D2-2*K2*A2*C2+2*K2*B2*D2)/(A2-B2) -> 0 | R16: 0 | S16: 0 | X16: =IF('Initial Parameter'!K16>'Initial Parameter'!M16,IF('Initial Parameter'!B10=1,'K value'!X12,'K value'!X13),IF('Initial Parameter'!B10=1,'K value'!X14,'K value'!X15)) ->  | Y16: =IF('Initial Parameter'!K16>'Initial Parameter'!M16,IF('Initial Parameter'!B10=1,'K value'!Y12,'K value'!Y13),IF('Initial Parameter'!B10=1,'K value'!Y14,'K value'!Y15)) -> 
B18: K1calca1 | D18: =D3-0.5/A3/B3*(A3^2-1*B3^2)*F3 -> -20.67337492 | E18: 0 | F18: =0.5/A3/B3*F3 -> -0.02227291593 | G18: =-0.5/A3/(B3^2+A3^2)*C3+0.5/B3/(B3^2+A3^2)*E3 -> 0.001920347405 | H18: =A3*C3-B3*E3-0.5/A3/B3*(A3^2-1*B3^2)*(A3*E3+B3*C3) -> -162.9448955 | I18: 0 | J18: =0.5/A3/B3*(A3*E3+B3*C3) -> -1.123629597 | K18: =-0.5/A3/(B3^2+A3^2)*(A3*D3-B3*F3)+0.5/B3/(B3^2+A3^2)*(A3*F3+B3*D3) -> -0.02227291593 | L18: =(A3^2-B3^2)*D3-2*A3*B3*F3-0.5/A3/B3*(A3^2-1*B3^2)*((A3^2-B3^2)*F3+2*A3*B3*D3) -> 1889.896562 | M18: 0 | N18: =0.5/A3/B3*((A3^2-B3^2)*F3+2*A3*B3*D3) -> -21.96283248 | O18: =-0.5/A3/(B3^2+A3^2)*((A3^2-B3^2)*C3-2*A3*B3*E3)+0.5/B3/(B3^2+A3^2)*((A3^2-B3^2)*E3+2*A3*B3*C3) -> -1.123629597 | P18: =A3*(A3^2-3*B3^2)*C3+B3*(B3^2-3*A3^2)*E3-0.5/A3/B3*(A3^2-1*B3^2)*(A3*(A3^2-3*B3^2)*E3-B3*(B3^2-3*A3^2)*C3) -> 95341.97133 | Q18: 0 | R18: =0.5/A3/B3*(A3*(A3^2-3*B3^2)*E3-B3*(B3^2-3*A3^2)*C3) -> -227.995771 | S18: =-0.5/A3/(B3^2+A3^2)*(A3*(A3^2-3*B3^2)*D3+B3*(B3^2-3*A3^2)*F3)+0.5/B3/(B3^2+A3^2)*(A3*(A3^2-3*B3^2)*F3-B3*(B3^2-3*A3^2)*D3) -> -21.96283248
B19: K1calca2 | D19: =D3-0.5*(A3^2-B3^2)*F3/(A3*B3) -> -20.67337492 | E19: =0.5*(-(B3^2)-2*K3+3*A3^2)*C3/(A3*(B3^2+A3^2))-0.5*(A3^2-3*B3^2-2*K3)*E3/(B3*(B3^2+A3^2)) -> -1.123629597 | F19: =0.5/(A3*B3)*F3 -> -0.02227291593 | G19: =-0.5/A3/(B3^2+A3^2)*C3+0.5/B3/(B3^2+A3^2)*E3 -> 0.001920347405 | H19: =A3*C3-B3*E3-0.5/A3/B3*(A3^2-1*B3^2)*(A3*E3+B3*C3) -> -162.9448955 | I19: =0.5*(-1*B3^2-2*K3+3*A3^2)/A3/(B3^2+A3^2)*(A3*D3-B3*F3)-0.5*(-3*B3^2-2*K3+A3^2)/(B3*(B3^2+A3^2))*(A3*F3+B3*D3) -> -21.96283248 | J19: =0.5*(A3*E3+B3*C3)/(A3*B3) -> -1.123629597 | K19: =-0.5/A3/(B3^2+A3^2)*(A3*D3-B3*F3)+0.5/B3/(B3^2+A3^2)*(A3*F3+B3*D3) -> -0.02227291593 | L19: =(A3^2-B3^2)*D3-2*A3*B3*F3-0.5/A3/B3*(A3^2-1*B3^2)*((A3^2-B3^2)*F3+2*A3*B3*D3) -> 1889.896562 | M19: =0.5*(-1*B3^2-2*K3+3*A3^2)/A3/(B3^2+A3^2)*((A3^2-B3^2)*C3-2*A3*B3*E3)-0.5*(-3*B3^2-2*K3+A3^2)/B3/(B3^2+A3^2)*((A3^2-B3^2)*E3+2*A3*B3*C3) -> -227.995771 | N19: =0.5/(A3*B3)*((A3^2-B3^2)*F3+2*A3*B3*D3) -> -21.96283248 | O19: =-0.5/A3/(B3^2+A3^2)*((A3^2-B3^2)*C3-2*A3*B3*E3)+0.5/B3/(B3^2+A3^2)*((A3^2-B3^2)*E3+2*A3*B3*C3) -> -1.123629597 | P19: =A3*(A3^2-3*B3^2)*C3+B3*(B3^2-3*A3^2)*E3-0.5/A3/B3*(A3^2-1*B3^2)*(A3*(A3^2-3*B3^2)*E3-B3*(B3^2-3*A3^2)*C3)-2*K3*(A3*C3-B3*E3)+1/(A3*B3)*(A3^2-1*B3^2)*K3*(A3*E3+B3*C3) -> 104775.4253 | Q19: =0.5*(-1*B3^2-2*K3+3*A3^2)/A3/(B3^2+A3^2)*(A3*(A3^2-3*B3^2)*D3+B3*(B3^2-3*A3^2)*F3)-0.5*(-3*B3^2-2*K3+A3^2)/B3/(B3^2+A3^2)*(A3*(A3^2-3*B3^2)*F3-B3*(B3^2-3*A3^2)*D3)-1*(-1*B3^2-2*K3+3*A3^2)/(A3*(B3^2+A3^2))*K3*(A3*D3-B3*F3)+1*(-3*B3^2-2*K3+A3^2)/B3/(B3^2+A3^2)*K3*(A3*F3+B3*D3) -> 1889.896562 | R19: =0.5/A3/B3*(A3*(A3^2-3*B3^2)*E3-B3*(B3^2-3*A3^2)*C3)-1/(A3*B3)*K3*(A3*E3+B3*C3) -> -162.9448955 | S19: =-0.5/A3/(B3^2+A3^2)*(A3*(A3^2-3*B3^2)*D3+B3*(B3^2-3*A3^2)*F3)+0.5/B3/(B3^2+A3^2)*(A3*(A3^2-3*B3^2)*F3-B3*(B3^2-3*A3^2)*D3)+1/A3/(B3^2+A3^2)*K3*(A3*D3-B3*F3)-1/(B3*(B3^2+A3^2))*K3*(A3*F3+B3*D3) -> -20.67337492
B20: K1calcb1 | D20: =(-1*B3^2*D3+A3^2*F3)/(A3^2-1*B3^2) -> 60.89304522 | E20: 0 | F20: =(D3-1*F3)/(A3^2-1*B3^2) -> -0.5134345247 | G20: =-1*(-1*C3*B3+E3*A3)/A3/(A3^2-1*B3^2)/B3 -> -0.03864918111 | H20: =B3*A3*(-1*C3*B3+E3*A3)/(A3^2-1*B3^2) -> 811.7667712 | I20: 0 | J20: =(A3*C3-1*B3*E3)/(A3^2-1*B3^2) -> -6.752753131 | K20: =(D3-1*F3)/(A3^2-1*B3^2) -> -0.5134345247 | L20: =-1*B3^2*A3^2*(D3-1*F3)/(A3^2-1*B3^2) -> 10783.90471 | M20: 0 | N20: =(A3^2*D3-1*B3^2*F3)/(A3^2-1*B3^2) -> -88.66698597 | O20: =(A3*C3-1*B3*E3)/(A3^2-1*B3^2) -> -6.752753131 | P20: =-1*B3^2*A3^2*(A3*C3-1*B3*E3)/(A3^2-1*B3^2) -> 141831.2225 | Q20: 0 | R20: =(A3^3*C3-1*B3^3*E3)/(A3^2-1*B3^2) -> -1155.264896 | S20: =(A3^2*D3-1*B3^2*F3)/(A3^2-1*B3^2) -> -88.66698597
B21: K1calcb2 | D21: =(-1*B3^2*D3+A3^2*F3)/(A3^2-1*B3^2) -> 60.89304522 | E21: =(2*C3*B3*K3-1*C3*B3^3+E3*A3^3-2*E3*A3*K3)/A3/(A3^2-1*B3^2)/B3 -> 2.267956695 | F21: =(D3-1*F3)/(A3^2-1*B3^2) -> -0.5134345247 | G21: =-1*(-1*C3*B3+E3*A3)/A3/(A3^2-1*B3^2)/B3 -> -0.03864918111 | H21: =B3*A3*(-1*C3*B3+E3*A3)/(A3^2-1*B3^2) -> 811.7667712 | I21: =(2*D3*K3-1*B3^2*D3+A3^2*F3-2*F3*K3)/(A3^2-1*B3^2) -> 31.16851192 | J21: =(A3*C3-1*B3*E3)/(A3^2-1*B3^2) -> -6.752753131 | K21: =(D3-1*F3)/(A3^2-1*B3^2) -> -0.5134345247 | L21: =-1*B3^2*A3^2*(D3-1*F3)/(A3^2-1*B3^2) -> 10783.90471 | M21: =(2*A3*C3*K3-1*B3^2*A3*C3+A3^2*B3*E3-2*B3*E3*K3)/(A3^2-1*B3^2) -> 420.8261046 | N21: =(A3^2*D3-1*F3*B3^2)/(A3^2-1*B3^2) -> -88.66698597 | O21: =(A3*C3-1*B3*E3)/(A3^2-1*B3^2) -> -6.752753131 | P21: =-1*B3*A3*(B3*A3^2*C3-1*A3*B3^2*E3-2*C3*B3*K3+2*E3*A3*K3)/(A3^2-1*B3^2) -> 94835.18452 | Q21: =-1*(-2*A3^2*D3*K3+B3^2*A3^2*D3-1*A3^2*B3^2*F3+2*F3*B3^2*K3+4*D3*K3^2-2*D3*K3*B3^2+2*F3*K3*A3^2-4*F3*K3^2)/(A3^2-1*B3^2) -> 3846.205597 | R21: =(A3^3*C3-1*B3^3*E3-2*A3*C3*K3+2*B3*E3*K3)/(A3^2-1*B3^2) -> -764.3242291 | S21: =(A3^2*D3-1*F3*B3^2-2*D3*K3+2*F3*K3)/(A3^2-1*B3^2) -> -58.94245267 | X21: w02 | Y21: th02
B22: K1calca1long | D22: =(C3*B3+A3*D3)/(B3) -> -44.84974816 | E22: 0 | F22: 0 | G22: 0 | H22: =-D3*(B3^2+A3^2)/B3 -> 542.1960971 | I22: 0 | J22: 0 | K22: 0 | L22: =(-C3*B3*A3^2-C3*B3^3+A3*B3^2*D3+A3^3*D3)/B3 -> -657.3100373 | M22: 0 | N22: 0 | O22: 0 | P22: =-(-2*B3*A3^3*C3-2*B3^3*A3*C3-B3^4*D3+A3^4*D3-2*K3*D3*B3^2-2*K3*D3*A3^2)/B3 -> -172692.7156 | Q22: 0 | R22: 0 | S22: 0 | X22: =X12*D22 ->  | Y22: =X12*H22 -> 
B23: K1calca2long | D23: =(C3*B3+A3*D3)/B3 -> -44.84974816 | E23: =D3/B3 -> -1.861340849 | F23: 0 | G23: 0 | H23: =-D3*(B3^2+A3^2)/B3 -> 542.1960971 | I23: =-(A3*D3-C3*B3)/B3 -> 2.256523109 | J23: 0 | K23: 0 | L23: =(-C3*B3*A3^2-C3*B3^3+A3*B3^2*D3+A3^3*D3)/B3 -> -657.3100373 | M23: =(A3^2*D3-B3^2*D3-2*A3*C3*B3)/B3 -> 485.0886685 | N23: 0 | O23: 0 | P23: =-(-2*A3^3*C3*B3-2*A3*C3*B3^3-B3^4*D3+A3^4*D3-2*K3*D3*B3^2-2*K3*D3*A3^2)/B3 -> -172692.7156 | Q23: =-(A3^3*D3-3*A3*B3^2*D3+C3*B3^3-3*C3*B3*A3^2-2*K3*A3*D3+2*K3*C3*B3)/B3 -> -13064.43064 | R23: 0 | S23: 0 | X23: =X13*D23+Y13*E23 ->  | Y23: =X13*H23+Y13*I23 -> 
B24: K1calcb1long | D24: =(-B3*C3+A3*D3)/(A3-B3) -> -21.52309009 | E24: 0 | F24: 0 | G24: 0 | H24: =B3*A3*(C3-D3)/(A3-B3) -> 2.593867829 | I24: 0 | J24: 0 | K24: 0 | L24: =-B3*A3*(A3*C3-B3*D3)/(A3-B3) -> 3056.719245 | M24: 0 | N24: 0 | O24: 0 | P24: =B3*A3*(A3^2*C3-B3^2*D3-2*K3*C3+2*K3*D3)/(A3-B3) -> -74214.24554 | Q24: 0 | R24: 0 | S24: 0 | X24: =X14*D24 ->  | Y24: =X14*H24 -> 
B25: K1calcb2long | D25: =(-B3*C3+A3*D3)/(A3-B3) -> -21.52309009 | E25: =-(C3-D3)/(A3-B3) -> -0.01789791149 | F25: 0 | G25: 0 | H25: =A3*B3*(C3-D3)/(A3-B3) -> 2.593867829 | I25: =(A3*C3-B3*D3)/(A3-B3) -> -21.09162614 | J25: 0 | K25: 0 | L25: =-A3*B3*(A3*C3-B3*D3)/(A3-B3) -> 3056.719245 | M25: =-(A3^2*C3-B3^2*D3)/(A3-B3) -> 511.048515 | N25: 0 | O25: 0 | P25: =A3*B3*(A3^2*C3-B3^2*D3-2*K3*C3+2*K3*D3)/(A3-B3) -> -74214.24554 | Q25: =(A3^3*C3-B3^3*D3-2*K3*A3*C3+2*K3*B3*D3)/(A3-B3) -> -8042.030076 | R25: 0 | S25: 0 | X25: =X15*D25+Y15*E25 ->  | Y25: =X15*H25+Y15*I25 -> 
X26: =IF('Initial Parameter'!K16>'Initial Parameter'!M16,IF('Initial Parameter'!B10=1,'K value'!X22,'K value'!X23),IF('Initial Parameter'!B10=1,'K value'!X24,'K value'!X25)) ->  | Y26: =IF('Initial Parameter'!K16>'Initial Parameter'!M16,IF('Initial Parameter'!B10=1,'K value'!Y22,'K value'!Y23),IF('Initial Parameter'!B10=1,'K value'!Y24,'K value'!Y25)) -> 
B27: K2calca | D27: =-0.5*(A4^2*F4*I4^2*H4+B4^2*D4*J4^3-1*A4^2*D4*J4^3+A4^2*C4*I4*J4^2-2*A4*E4*B4*I4^3+2*A4*F4*B4*I4^2*J4+2*A4*E4*J4^2*B4*I4-1*B4^2*F4*H4^3+B4^2*C4*I4^3-1*A4^2*C4*I4^3+B4^2*D4*J4*H4^2+A4^2*F4*H4^3+2*B4^2*E4*J4*I4*H4+B4^2*C4*I4*H4^2-1*B4^2*F4*J4^2*H4-1*B4^2*F4*I4^2*H4-2*A4*F4*B4*J4*H4^2-2*A4*D4*B4*I4^2*H4-2*A4*E4*I4*H4^2*B4-2*A4*D4*H4^3*B4-2*A4*D4*J4^2*B4*H4-2*A4^2*E4*J4*I4*H4-1*A4^2*D4*J4*H4^2-1*A4^2*C4*I4*H4^2+A4^2*F4*J4^2*H4-1*B4^2*E4*G4^3+4*A4*C4*B4*J4*I4*H4+B4^2*D4*G4^2*J4+B4^2*C4*I4*G4^2+B4^2*F4*G4^2*H4-2*B4^2*C4*H4*G4*J4+2*B4^2*F4*G4*I4*J4-1*B4^2*E4*G4*I4^2-1*B4^2*E4*G4*J4^2+B4^2*E4*G4*H4^2-2*B4^2*D4*G4*I4*H4+4*A4*D4*G4*B4*I4*J4-2*A4^2*F4*G4*I4*J4+4*A4*F4*G4*B4*I4*H4-1*A4^2*D4*G4^2*J4-1*A4^2*C4*I4*G4^2-1*A4^2*F4*G4^2*H4+2*A4^2*C4*H4*G4*J4+A4^2*E4*G4*I4^2+A4^2*E4*G4*J4^2-1*A4^2*E4*G4*H4^2+A4^2*E4*G4^3+2*A4^2*D4*G4*I4*H4-2*A4*C4*B4*G4^3-2*A4*F4*G4^2*B4*J4+2*A4*C4*B4*G4*H4^2-2*A4*E4*G4^2*B4*I4-2*A4*C4*B4*G4*J4^2-2*A4*C4*B4*G4*I4^2+2*A4*D4*G4^2*B4*H4+4*A4*E4*G4*J4*B4*H4-2*A4*F4*B4*J4^3-1*B4^2*D4*I4^2*J4-1*B4^2*C4*I4*J4^2+A4^2*D4*I4^2*J4)/(2*G4^2*J4^2+2*I4^2*H4^2-2*G4^2*H4^2+G4^4+I4^4+H4^4+2*G4^2*I4^2-8*G4*J4*I4*H4+J4^4+2*J4^2*H4^2-2*I4^2*J4^2)/A4/B4 -> 1 | E27: =-0.5*(F4*G4^2*I4*B4^3-3*D4*G4^3*A4^2*B4-1*C4*A4^3*H4^2*J4-3*C4*A4^2*H4^3*B4-1*C4*J4*G4^2*A4^3+C4*B4^3*H4^3+2*C4*H4^3*B4*K4+3*C4*J4*G4^2*A4*B4^2+6*C4*I4*G4*A4^2*J4*B4-3*C4*H4*A4^2*B4*I4^2+2*C4*J4*G4^2*A4*K4-4*C4*H4*G4*A4*I4*K4+2*C4*A4*J4^3*K4+C4*H4*B4^3*J4^2+3*C4*A4*B4^2*J4^3+2*C4*H4*I4^2*B4*K4+2*C4*H4*J4^2*B4*K4-6*C4*H4*G4*A4*B4^2*I4-2*C4*A4*J4*I4^2*K4-3*C4*A4*I4^2*J4*B4^2-1*C4*H4*G4^2*B4^3+C4*A4^3*I4^2*J4+3*C4*A4*B4^2*H4^2*J4+2*C4*A4*J4*H4^2*K4-2*C4*H4*G4^2*B4*K4+3*C4*H4*G4^2*A4^2*B4+2*C4*H4*G4*A4^3*I4-1*C4*A4^3*J4^3+C4*H4*B4^3*I4^2-3*C4*H4*A4^2*B4*J4^2-4*D4*J4*I4*H4*B4*K4+2*D4*G4*A4^3*H4*J4+2*D4*G4*J4^2*B4*K4-2*D4*B4^3*H4*I4*J4+D4*G4^3*B4^3-1*D4*A4^3*I4^3+D4*A4^3*J4^2*I4-2*C4*I4*G4*J4*B4^3-4*C4*I4*G4*B4*J4*K4-3*D4*A4*J4^2*B4^2*I4+3*D4*A4*B4^2*I4^3+2*D4*A4*H4^2*I4*K4+2*D4*G4^2*A4*I4*K4+2*D4*A4*I4^3*K4+3*D4*G4^2*A4*B4^2*I4-1*D4*G4*B4^3*H4^2-3*D4*G4*A4^2*B4*I4^2-1*D4*G4^2*A4^3*I4-2*D4*G4*H4^2*B4*K4+2*D4*G4*I4^2*B4*K4-2*D4*A4*J4^2*I4*K4+D4*G4*B4^3*I4^2+3*D4*A4*H4^2*I4*B4^2-1*D4*A4^3*H4^2*I4+2*E4*J4^3*B4*K4+E4*J4^2*A4^3*H4-3*E4*J4*A4^2*H4^2*B4+2*E4*J4*H4^2*B4*K4-2*E4*J4^2*A4*H4*K4+E4*J4^3*B4^3+E4*H4^3*A4^3-4*D4*G4*A4*J4*H4*K4-3*D4*G4*A4^2*B4*J4^2+3*D4*G4*A4^2*H4^2*B4+6*D4*A4^2*H4*I4*J4*B4-6*D4*G4*A4*B4^2*H4*J4+2*D4*G4^3*B4*K4-3*E4*J4^3*A4^2*B4+D4*G4*B4^3*J4^2+3*E4*I4^2*A4^2*J4*B4-3*E4*H4^3*A4*B4^2+F4*B4^3*H4^2*I4-3*E4*J4^2*A4*B4^2*H4-2*E4*H4^3*A4*K4+E4*I4^2*H4*A4^3-1*E4*I4^2*J4*B4^3-1*E4*G4^2*H4*A4^3+E4*G4^2*J4*B4^3-2*E4*I4^2*H4*A4*K4-2*E4*I4^2*B4*J4*K4+2*E4*G4^2*B4*J4*K4-3*E4*I4^2*H4*A4*B4^2-3*E4*G4^2*A4^2*J4*B4+2*E4*G4^2*H4*A4*K4+6*E4*G4*A4*I4*J4*B4^2+3*E4*G4^2*H4*A4*B4^2+E4*J4*B4^3*H4^2-2*E4*G4*A4^3*I4*J4+F4*G4^3*A4^3+F4*B4^3*I4^3-4*E4*G4*I4*H4*B4*K4+6*E4*G4*I4*H4*A4^2*B4+4*E4*G4*A4*J4*I4*K4-2*E4*G4*I4*H4*B4^3+4*F4*A4*J4*I4*H4*K4-1*F4*G4*A4^3*H4^2+F4*G4*A4^3*I4^2+2*F4*G4^2*B4*I4*K4-3*F4*G4*A4*B4^2*I4^2-3*F4*G4^2*A4^2*I4*B4-2*F4*B4*J4^2*I4*K4+2*F4*B4*H4^2*I4*K4-3*F4*A4^2*B4*H4^2*I4-2*F4*A4^3*H4*I4*J4+3*F4*A4^2*B4*J4^2*I4+F4*G4*A4^3*J4^2+2*F4*G4*A4*H4^2*K4-2*F4*G4*A4*J4^2*K4-2*F4*G4*A4*I4^2*K4-2*F4*G4*H4*J4*B4^3+3*F4*G4*A4*B4^2*H4^2-3*F4*G4*A4*B4^2*J4^2+6*F4*G4*A4^2*H4*J4*B4-4*F4*G4*B4*J4*H4*K4+2*F4*B4*I4^3*K4-1*F4*B4^3*J4^2*I4+6*F4*A4*H4*I4*J4*B4^2-3*F4*G4^3*A4*B4^2-2*F4*G4^3*A4*K4-3*F4*A4^2*B4*I4^3)/A4/B4/(2*G4^2*A4^2*J4^2+G4^4*A4^2+A4^2*J4^4+A4^2*H4^4+2*G4^2*B4^2*I4^2-8*G4*A4^2*J4*I4*H4+2*G4^2*B4^2*J4^2+B4^2*H4^4+B4^2*I4^4-8*G4*B4^2*J4*I4*H4+2*A4^2*I4^2*H4^2+G4^4*B4^2-2*G4^2*A4^2*H4^2+2*G4^2*A4^2*I4^2+A4^2*I4^4+2*B4^2*J4^2*H4^2-2*B4^2*I4^2*J4^2-2*G4^2*B4^2*H4^2+2*B4^2*I4^2*H4^2+B4^2*J4^4+2*A4^2*J4^2*H4^2-2*A4^2*I4^2*J4^2) -> 1.209117947e-17 | F27: =0.5*(-1*D4*J4*H4^2-1*C4*I4^3+E4*G4^3-1*C4*I4*H4^2+C4*I4*J4^2-1*D4*J4^3+D4*I4^2*J4+2*D4*G4*I4*H4-2*E4*J4*I4*H4-1*E4*G4*H4^2+E4*G4*J4^2+E4*G4*I4^2-2*F4*G4*I4*J4+2*C4*H4*G4*J4+F4*H4^3-1*F4*G4^2*H4-1*C4*I4*G4^2-1*D4*G4^2*J4+F4*J4^2*H4+F4*I4^2*H4)/(2*G4^2*J4^2+2*I4^2*H4^2-2*G4^2*H4^2+G4^4+I4^4+H4^4+2*G4^2*I4^2-8*G4*J4*I4*H4+J4^4+2*J4^2*H4^2-2*I4^2*J4^2)/A4/B4 -> 0 | G27: =0.5*(-1*F4*G4^2*B4*I4-1*C4*H4^3*B4-1*D4*G4^2*A4*I4+2*D4*G4*A4*J4*H4-1*D4*A4*H4^2*I4-1*D4*A4*I4^3+2*C4*I4*G4*B4*J4+C4*H4*G4^2*B4-1*E4*J4^3*B4-1*D4*G4*J4^2*B4+C4*A4*J4*I4^2-1*C4*A4*J4*H4^2-1*C4*H4*J4^2*B4+E4*H4^3*A4-1*C4*H4*I4^2*B4+2*D4*J4*I4*H4*B4+2*C4*H4*G4*A4*I4-1*C4*A4*J4^3-1*C4*J4*G4^2*A4-1*D4*G4^3*B4+E4*J4^2*A4*H4+D4*A4*J4^2*I4-1*E4*J4*H4^2*B4+D4*G4*H4^2*B4-1*D4*G4*I4^2*B4+F4*B4*J4^2*I4-1*F4*B4*H4^2*I4-2*F4*A4*J4*I4*H4-1*F4*B4*I4^3-2*E4*G4*A4*J4*I4+2*E4*G4*I4*H4*B4-1*E4*G4^2*B4*J4-1*E4*G4^2*H4*A4+E4*I4^2*H4*A4+E4*I4^2*B4*J4+F4*G4^3*A4+F4*G4*A4*I4^2+2*F4*G4*B4*J4*H4-1*F4*G4*A4*H4^2+F4*G4*A4*J4^2)/A4/B4/(2*G4^2*A4^2*J4^2+G4^4*A4^2+A4^2*J4^4+A4^2*H4^4+2*G4^2*B4^2*I4^2-8*G4*A4^2*J4*I4*H4+2*G4^2*B4^2*J4^2+B4^2*H4^4+B4^2*I4^4-8*G4*B4^2*J4*I4*H4+2*A4^2*I4^2*H4^2+G4^4*B4^2-2*G4^2*A4^2*H4^2+2*G4^2*A4^2*I4^2+A4^2*I4^4+2*B4^2*J4^2*H4^2-2*B4^2*I4^2*J4^2-2*G4^2*B4^2*H4^2+2*B4^2*I4^2*H4^2+B4^2*J4^4+2*A4^2*J4^2*H4^2-2*A4^2*I4^2*J4^2) -> 1.574372326e-20 | H27: =-0.5*(-1*F4*G4^2*I4*B4^3-1*D4*G4^3*A4^2*B4-1*C4*A4^3*H4^2*J4-1*C4*A4^2*H4^3*B4-1*C4*J4*G4^2*A4^3-1*C4*B4^3*H4^3-1*C4*J4*G4^2*A4*B4^2+2*C4*I4*G4*A4^2*J4*B4-1*C4*H4*A4^2*B4*I4^2-1*C4*H4*B4^3*J4^2-1*C4*A4*B4^2*J4^3+2*C4*H4*G4*A4*B4^2*I4+C4*A4*I4^2*J4*B4^2+C4*H4*G4^2*B4^3+C4*A4^3*I4^2*J4-1*C4*A4*B4^2*H4^2*J4+C4*H4*G4^2*A4^2*B4+2*C4*H4*G4*A4^3*I4-1*C4*A4^3*J4^3-1*C4*H4*B4^3*I4^2-1*C4*H4*A4^2*B4*J4^2+2*D4*G4*A4^3*H4*J4+2*D4*B4^3*H4*I4*J4-1*D4*G4^3*B4^3-1*D4*A4^3*I4^3+D4*A4^3*J4^2*I4+2*C4*I4*G4*J4*B4^3+D4*A4*J4^2*B4^2*I4-1*D4*A4*B4^2*I4^3-1*D4*G4^2*A4*B4^2*I4+D4*G4*B4^3*H4^2-1*D4*G4*A4^2*B4*I4^2-1*D4*G4^2*A4^3*I4-1*D4*G4*B4^3*I4^2-1*D4*A4*H4^2*I4*B4^2-1*D4*A4^3*H4^2*I4+E4*J4^2*A4^3*H4-1*E4*J4*A4^2*H4^2*B4-1*E4*J4^3*B4^3+E4*H4^3*A4^3-1*D4*G4*A4^2*B4*J4^2+D4*G4*A4^2*H4^2*B4+2*D4*A4^2*H4*I4*J4*B4+2*D4*G4*A4*B4^2*H4*J4-1*E4*J4^3*A4^2*B4-1*D4*G4*B4^3*J4^2+E4*I4^2*A4^2*J4*B4+E4*H4^3*A4*B4^2-1*F4*B4^3*H4^2*I4+E4*J4^2*A4*B4^2*H4+E4*I4^2*H4*A4^3+E4*I4^2*J4*B4^3-1*E4*G4^2*H4*A4^3-1*E4*G4^2*J4*B4^3+E4*I4^2*H4*A4*B4^2-1*E4*G4^2*A4^2*J4*B4-2*E4*G4*A4*I4*J4*B4^2-1*E4*G4^2*H4*A4*B4^2-1*E4*J4*B4^3*H4^2-2*E4*G4*A4^3*I4*J4+F4*G4^3*A4^3-1*F4*B4^3*I4^3+2*E4*G4*I4*H4*A4^2*B4+2*E4*G4*I4*H4*B4^3-1*F4*G4*A4^3*H4^2+F4*G4*A4^3*I4^2+F4*G4*A4*B4^2*I4^2-1*F4*G4^2*A4^2*I4*B4-1*F4*A4^2*B4*H4^2*I4-2*F4*A4^3*H4*I4*J4+F4*A4^2*B4*J4^2*I4+F4*G4*A4^3*J4^2+2*F4*G4*H4*J4*B4^3-1*F4*G4*A4*B4^2*H4^2+F4*G4*A4*B4^2*J4^2+2*F4*G4*A4^2*H4*J4*B4+F4*B4^3*J4^2*I4-2*F4*A4*H4*I4*J4*B4^2+F4*G4^3*A4*B4^2-1*F4*A4^2*B4*I4^3)/(2*G4^2*J4^2+2*I4^2*H4^2-2*G4^2*H4^2+G4^4+I4^4+H4^4+2*G4^2*I4^2-8*G4*J4*I4*H4+J4^4+2*J4^2*H4^2-2*I4^2*J4^2)/A4/B4 -> 2.047782128e-15 | I27: =-0.5*(A4^2*F4*I4^2*H4+B4^2*D4*J4^3-1*A4^2*D4*J4^3+A4^2*C4*I4*J4^2-2*A4*E4*B4*I4^3+2*A4*F4*B4*I4^2*J4+2*A4*E4*J4^2*B4*I4+2*J4^3*K4*D4-2*G4^3*K4*E4-2*H4^3*K4*F4+2*H4^2*I4*K4*C4+2*G4^2*I4*K4*C4-2*J4^2*I4*K4*C4+2*J4*H4^2*K4*D4+2*J4*G4^2*K4*D4+2*G4*H4^2*K4*E4-2*G4*J4^2*K4*E4-2*G4*I4^2*K4*E4-2*J4^2*H4*K4*F4-2*I4^2*H4*K4*F4+2*G4^2*H4*K4*F4-2*J4*I4^2*K4*D4-4*H4*G4*I4*K4*D4+4*G4*J4*I4*K4*F4+4*J4*I4*H4*K4*E4-4*G4*J4*H4*K4*C4-1*B4^2*F4*H4^3+B4^2*C4*I4^3-1*A4^2*C4*I4^3+B4^2*D4*J4*H4^2+A4^2*F4*H4^3+2*B4^2*E4*J4*I4*H4+B4^2*C4*I4*H4^2-1*B4^2*F4*J4^2*H4-1*B4^2*F4*I4^2*H4-2*A4*F4*B4*J4*H4^2-2*A4*D4*B4*I4^2*H4-2*A4*E4*I4*H4^2*B4-2*A4*D4*H4^3*B4+2*I4^3*K4*C4-2*A4*D4*J4^2*B4*H4-2*A4^2*E4*J4*I4*H4-1*A4^2*D4*J4*H4^2-1*A4^2*C4*I4*H4^2+A4^2*F4*J4^2*H4-1*B4^2*E4*G4^3+4*A4*C4*B4*J4*I4*H4+B4^2*D4*G4^2*J4+B4^2*C4*I4*G4^2+B4^2*F4*G4^2*H4-2*B4^2*C4*H4*G4*J4+2*B4^2*F4*G4*I4*J4-1*B4^2*E4*G4*I4^2-1*B4^2*E4*G4*J4^2+B4^2*E4*G4*H4^2-2*B4^2*D4*G4*I4*H4+4*A4*D4*G4*B4*I4*J4-2*A4^2*F4*G4*I4*J4+4*A4*F4*G4*B4*I4*H4-1*A4^2*D4*G4^2*J4-1*A4^2*C4*I4*G4^2-1*A4^2*F4*G4^2*H4+2*A4^2*C4*H4*G4*J4+A4^2*E4*G4*I4^2+A4^2*E4*G4*J4^2-1*A4^2*E4*G4*H4^2+A4^2*E4*G4^3+2*A4^2*D4*G4*I4*H4-2*A4*C4*B4*G4^3-2*A4*F4*G4^2*B4*J4+2*A4*C4*B4*G4*H4^2-2*A4*E4*G4^2*B4*I4-2*A4*C4*B4*G4*J4^2-2*A4*C4*B4*G4*I4^2+2*A4*D4*G4^2*B4*H4+4*A4*E4*G4*J4*B4*H4-2*A4*F4*B4*J4^3-1*B4^2*D4*I4^2*J4-1*B4^2*C4*I4*J4^2+A4^2*D4*I4^2*J4)/(2*G4^2*J4^2+2*I4^2*H4^2-2*G4^2*H4^2+G4^4+I4^4+H4^4+2*G4^2*I4^2-8*G4*J4*I4*H4+J4^4+2*J4^2*H4^2-2*I4^2*J4^2)/A4/B4 -> 1 | J27: =0.5*(F4*G4^2*B4*I4+C4*H4^3*B4-1*D4*G4^2*A4*I4+2*D4*G4*A4*J4*H4-1*D4*A4*H4^2*I4-1*D4*A4*I4^3-2*C4*I4*G4*B4*J4-1*C4*H4*G4^2*B4+E4*J4^3*B4+D4*G4*J4^2*B4+C4*A4*J4*I4^2-1*C4*A4*J4*H4^2+C4*H4*J4^2*B4+E4*H4^3*A4+C4*H4*I4^2*B4-2*D4*J4*I4*H4*B4+2*C4*H4*G4*A4*I4-1*C4*A4*J4^3-1*C4*J4*G4^2*A4+D4*G4^3*B4+E4*J4^2*A4*H4+D4*A4*J4^2*I4+E4*J4*H4^2*B4-1*D4*G4*H4^2*B4+D4*G4*I4^2*B4-1*F4*B4*J4^2*I4+F4*B4*H4^2*I4-2*F4*A4*J4*I4*H4+F4*B4*I4^3-2*E4*G4*A4*J4*I4-2*E4*G4*I4*H4*B4+E4*G4^2*B4*J4-1*E4*G4^2*H4*A4+E4*I4^2*H4*A4-1*E4*I4^2*B4*J4+F4*G4^3*A4+F4*G4*A4*I4^2-2*F4*G4*B4*J4*H4-1*F4*G4*A4*H4^2+F4*G4*A4*J4^2)/(2*G4^2*J4^2+2*I4^2*H4^2-2*G4^2*H4^2+G4^4+I4^4+H4^4+2*G4^2*I4^2-8*G4*J4*I4*H4+J4^4+2*J4^2*H4^2-2*I4^2*J4^2)/A4/B4 -> -5.332765959e-18 | K27: =0.5*(-1*D4*J4*H4^2-1*C4*I4^3+E4*G4^3-1*C4*I4*H4^2+C4*I4*J4^2-1*D4*J4^3+D4*I4^2*J4+2*D4*G4*I4*H4-2*E4*J4*I4*H4-1*E4*G4*H4^2+E4*G4*J4^2+E4*G4*I4^2-2*F4*G4*I4*J4+2*C4*H4*G4*J4+F4*H4^3-1*F4*G4^2*H4-1*C4*I4*G4^2-1*D4*G4^2*J4+F4*J4^2*H4+F4*I4^2*H4)/(2*G4^2*J4^2+2*I4^2*H4^2-2*G4^2*H4^2+G4^4+I4^4+H4^4+2*G4^2*I4^2-8*G4*J4*I4*H4+J4^4+2*J4^2*H4^2-2*I4^2*J4^2)/A4/B4 -> 0 | L27: =-0.5*(-1*B4^4*I4*H4^2*C4-4*A4^2*B4^2*J4*I4*H4*E4+2*A4^2*B4^2*H4*J4^2*F4+2*A4^2*B4^2*G4*I4^2*E4+2*A4^2*B4^2*H4^3*F4-1*A4^4*C4*I4*G4^2-2*A4^4*F4*G4*I4*J4+A4^4*D4*I4^2*J4-1*A4^4*D4*J4*H4^2-1*A4^4*D4*G4^2*J4+A4^4*F4*H4^3-1*B4^4*J4*H4^2*D4-1*B4^4*G4*H4^2*E4-2*B4^4*J4*I4*H4*E4+B4^4*I4^2*J4*D4+I4*B4^4*J4^2*C4+2*H4*G4*B4^4*J4*C4-1*I4*G4^2*B4^4*C4+B4^4*H4*J4^2*F4+B4^4*G4*I4^2*E4+B4^4*G4*J4^2*E4-2*G4*B4^4*J4*I4*F4+2*G4*B4^4*I4*H4*D4-1*G4^2*B4^4*J4*D4-1*G4^2*B4^4*H4*F4+B4^4*I4^2*H4*F4+A4^4*C4*I4*J4^2+A4^4*E4*G4*I4^2+2*A4^4*D4*G4*I4*H4-1*A4^4*C4*I4^3-1*A4^4*E4*G4*H4^2-1*A4^4*C4*I4*H4^2+A4^4*E4*G4^3-1*A4^4*F4*G4^2*H4+2*A4^4*C4*H4*G4*J4+A4^4*F4*J4^2*H4+A4^4*F4*I4^2*H4+A4^4*E4*G4*J4^2+2*A4^2*B4^2*I4^2*H4*F4-2*A4^2*B4^2*I4*H4^2*C4-2*A4^2*B4^2*J4*H4^2*D4-2*A4^4*E4*J4*I4*H4-4*A4^2*G4*B4^2*J4*I4*F4+2*A4^2*B4^2*I4^2*J4*D4-2*A4^2*B4^2*G4*H4^2*E4-2*A4^2*J4^3*B4^2*D4+4*A4^2*H4*G4*B4^2*J4*C4+2*A4^2*B4^2*G4^3*E4-2*A4^2*G4^2*B4^2*J4*D4-2*A4^2*I4*G4^2*B4^2*C4+4*A4^2*G4*B4^2*I4*H4*D4-2*A4^2*B4^2*I4^3*C4+2*A4^2*B4^2*G4*J4^2*E4-2*A4^2*G4^2*B4^2*H4*F4+2*A4^2*I4*B4^2*J4^2*C4-1*A4^4*D4*J4^3+B4^4*H4^3*F4-1*J4^3*B4^4*D4-1*B4^4*I4^3*C4+B4^4*G4^3*E4)/(2*G4^2*J4^2+2*I4^2*H4^2-2*G4^2*H4^2+G4^4+I4^4+H4^4+2*G4^2*I4^2-8*G4*J4*I4*H4+J4^4+2*J4^2*H4^2-2*I4^2*J4^2)/A4/B4 -> 0 | M27: =-0.5*(-1*H4^3*B4*A4^2*C4+H4^3*B4^2*A4*E4-1*B4^3*H4^2*I4*F4-1*H4^3*B4^3*C4-1*A4^3*J4^3*C4-1*A4^3*I4^3*D4-1*G4^3*B4^3*D4-1*B4^3*I4^3*F4+2*A4*I4^3*K4*D4-1*G4^2*A4^2*I4*F4*B4-1*A4^3*H4^2*I4*D4-1*A4*H4^2*I4*B4^2*D4-1*G4^2*A4^3*I4*D4-1*A4*I4^3*B4^2*D4-1*A4^2*I4^3*F4*B4+G4*H4^2*B4*A4^2*D4-1*G4*H4^2*B4^2*A4*F4+A4^2*J4^2*I4*F4*B4-1*G4*J4^2*B4^3*D4+2*G4*A4*J4*H4*B4^2*D4+2*G4*A4^2*J4*H4*F4*B4+2*G4*A4^3*J4*H4*D4+A4*J4^2*I4*B4^2*D4-1*G4*J4^2*B4*A4^2*D4-1*A4^2*H4^2*I4*F4*B4-1*G4^2*A4*I4*B4^2*D4+A4^3*J4^2*I4*D4-1*G4*I4^2*B4*A4^2*D4+G4*I4^2*B4^2*A4*F4-1*G4*I4^2*B4^3*D4+G4*H4^2*B4^3*D4+A4^3*J4*I4^2*C4+A4*J4*I4^2*B4^2*C4+H4^3*A4^3*E4+H4*J4^2*B4^2*A4*E4-1*H4*I4^2*B4^3*C4+2*I4*G4*B4^3*J4*C4-1*H4*J4^2*B4^3*C4+H4*G4^2*B4*A4^2*C4-1*A4^2*J4^3*E4*B4-1*A4*J4^3*B4^2*C4+H4*G4^2*B4^3*C4-1*H4*G4^2*B4^2*A4*E4+2*H4*G4*A4^3*I4*C4+2*H4*G4*A4*I4*B4^2*C4-1*A4*J4*H4^2*B4^2*C4+2*H4*G4*A4^2*I4*E4*B4+G4^3*B4^2*A4*F4-1*A4^3*J4*H4^2*C4-1*H4*I4^2*B4*A4^2*C4+H4*I4^2*B4^2*A4*E4+A4^2*J4*I4^2*E4*B4-1*H4*J4^2*B4*A4^2*C4-1*J4*H4^2*B4^3*E4+2*I4*G4*B4*J4*A4^2*C4-2*I4*G4*B4^2*J4*A4*E4+2*J4*I4*H4*B4*A4^2*D4+2*J4*I4*H4*B4^3*D4-1*J4*G4^2*A4^2*E4*B4-1*J4*G4^2*A4^3*C4-1*G4^3*B4*A4^2*D4-1*J4*G4^2*A4*B4^2*C4-2*J4*I4*H4*B4^2*A4*F4+G4*A4^3*J4^2*F4-2*A4^3*J4*I4*H4*F4+G4*A4^3*I4^2*F4+J4^2*A4^3*H4*E4-2*G4*A4^3*J4*I4*E4+I4^2*B4^3*J4*E4+I4^2*H4*A4^3*E4-1*G4^2*B4^3*J4*E4-1*G4^2*H4*A4^3*E4-1*G4^2*B4^3*I4*F4+2*G4*I4*H4*B4^3*E4+2*G4*B4^3*J4*H4*F4-1*G4*A4^3*H4^2*F4-1*A4^2*J4*H4^2*E4*B4+B4^3*J4^2*I4*F4+G4^3*A4^3*F4-1*J4^3*B4^3*E4+G4*J4^2*B4^2*A4*F4-2*H4^3*B4*K4*C4+4*J4*I4*H4*B4*K4*D4-2*J4*G4^2*K4*E4*B4-2*G4^3*B4*K4*D4-2*I4^3*K4*F4*B4-2*G4^2*I4*K4*F4*B4-2*H4^2*I4*K4*F4*B4-2*G4*J4^2*B4*K4*D4+2*G4*H4^2*B4*K4*D4+2*J4^2*I4*K4*F4*B4+4*G4*J4*H4*K4*F4*B4-2*G4*I4^2*B4*K4*D4+2*J4*I4^2*K4*E4*B4-2*H4*J4^2*B4*K4*C4-2*H4*I4^2*B4*K4*C4+4*I4*G4*B4*J4*K4*C4-2*J4^3*K4*E4*B4+4*H4*G4*I4*K4*E4*B4+2*H4*G4^2*B4*K4*C4-2*G4*I4^2*K4*A4*F4-4*G4*A4*J4*H4*K4*D4-2*A4*J4*I4^2*K4*C4-2*H4*I4^2*K4*A4*E4-2*H4*J4^2*K4*A4*E4-2*G4^3*K4*A4*F4+2*A4*J4*H4^2*K4*C4-4*H4*G4*A4*I4*K4*C4-2*J4*H4^2*K4*E4*B4+4*I4*G4*J4*K4*A4*E4+2*A4*J4^3*K4*C4+2*H4*G4^2*K4*A4*E4+2*J4*G4^2*A4*K4*C4+4*J4*I4*H4*K4*A4*F4-2*H4^3*K4*A4*E4+2*G4^2*A4*I4*K4*D4+2*A4*H4^2*I4*K4*D4-2*A4*J4^2*I4*K4*D4-2*G4*J4^2*K4*A4*F4+2*G4*H4^2*K4*A4*F4)/(2*G4^2*J4^2+2*I4^2*H4^2-2*G4^2*H4^2+G4^4+I4^4+H4^4+2*G4^2*I4^2-8*G4*J4*I4*H4+J4^4+2*J4^2*H4^2-2*I4^2*J4^2)/A4/B4 -> 3.412970213e-15 | N27: =0.5*(-1*A4^2*C4*I4*H4^2+B4^2*I4*H4^2*C4-1*A4^2*C4*I4^3+A4^2*C4*I4*J4^2+B4^2*J4*H4^2*D4+A4^2*D4*I4^2*J4-2*A4*J4*I4^2*F4*B4+2*A4*G4^3*C4*B4+A4^2*F4*I4^2*H4-2*A4^2*E4*J4*I4*H4+2*A4*H4^2*I4*E4*B4+2*A4*J4*H4^2*F4*B4+2*A4*I4^2*H4*D4*B4+2*A4*J4^2*H4*D4*B4-4*A4*J4*I4*H4*C4*B4+2*A4*H4^3*D4*B4-2*A4*I4*J4^2*E4*B4-1*B4^2*H4*J4^2*F4-1*A4^2*D4*G4^2*J4+A4^2*E4*G4*I4^2+2*A4*J4^3*F4*B4+2*A4*I4^3*E4*B4-4*A4*H4*G4*J4*E4*B4+2*A4*I4*G4^2*E4*B4-2*A4*G4^2*H4*D4*B4-4*A4*G4*H4*I4*F4*B4-4*A4*G4*J4*I4*D4*B4-2*A4*G4*H4^2*C4*B4+2*A4*G4^2*J4*F4*B4+2*A4*G4*I4^2*C4*B4+2*A4*G4*J4^2*C4*B4-1*B4^2*I4^2*H4*F4+2*B4^2*J4*I4*H4*E4+A4^2*F4*J4^2*H4-1*A4^2*D4*J4*H4^2-1*B4^2*G4*I4^2*E4-1*B4^2*G4*J4^2*E4+2*G4*B4^2*J4*I4*F4-2*G4*B4^2*I4*H4*D4+G4^2*B4^2*H4*F4+G4^2*B4^2*J4*D4-2*H4*G4*B4^2*J4*C4+B4^2*I4^3*C4+I4*G4^2*B4^2*C4+B4^2*G4*H4^2*E4-1*A4^2*D4*J4^3-1*A4^2*C4*I4*G4^2-2*A4^2*F4*G4*I4*J4+2*A4^2*D4*G4*I4*H4-1*A4^2*F4*G4^2*H4-1*A4^2*E4*G4*H4^2+2*A4^2*C4*H4*G4*J4+A4^2*E4*G4*J4^2-1*B4^2*H4^3*F4+A4^2*F4*H4^3+J4^3*B4^2*D4-1*B4^2*G4^3*E4-1*B4^2*I4^2*J4*D4+A4^2*E4*G4^3-1*I4*B4^2*J4^2*C4)/(2*G4^2*J4^2+2*I4^2*H4^2-2*G4^2*H4^2+G4^4+I4^4+H4^4+2*G4^2*I4^2-8*G4*J4*I4*H4+J4^4+2*J4^2*H4^2-2*I4^2*J4^2)/A4/B4 -> 1 | O27: =0.5*(-1*A4*H4^2*I4*D4+A4*J4^2*I4*D4-1*H4*G4^2*B4*C4+J4^3*E4*B4+H4^2*J4*E4*B4+I4^3*F4*B4+H4^3*B4*C4-2*H4*I4*J4*B4*D4+H4^2*I4*F4*B4-1*J4^2*I4*F4*B4+G4^3*B4*D4+G4^2*I4*F4*B4+G4*B4*J4^2*D4+J4*G4^2*E4*B4-2*H4*G4*I4*E4*B4+H4*B4*I4^2*C4-1*I4^2*J4*E4*B4+H4*B4*J4^2*C4-2*I4*G4*J4*B4*C4+2*G4*A4*H4*J4*D4-1*G4^2*A4*I4*D4-1*G4*H4^2*A4*F4+G4*I4^2*A4*F4+G4*J4^2*A4*F4-1*H4*G4^2*A4*E4-2*I4*G4*J4*A4*E4+2*H4*G4*A4*I4*C4+H4^3*A4*E4+H4*J4^2*A4*E4-1*A4*H4^2*J4*C4+A4*I4^2*J4*C4+H4*I4^2*A4*E4-2*H4*I4*J4*A4*F4-1*J4*G4^2*A4*C4-1*A4*J4^3*C4+G4^3*A4*F4-1*A4*I4^3*D4-2*G4*H4*J4*F4*B4+G4*B4*I4^2*D4-1*G4*H4^2*B4*D4)/(2*G4^2*J4^2+2*I4^2*H4^2-2*G4^2*H4^2+G4^4+I4^4+H4^4+2*G4^2*I4^2-8*G4*J4*I4*H4+J4^4+2*J4^2*H4^2-2*I4^2*J4^2)/A4/B4 -> -5.332765959e-18 | P27: =-0.5*(-2*G4^3*B4^2*K4*A4*F4+G4^3*B4^5*D4+B4^5*I4^3*F4+A4*I4^2*J4*B4^4*C4-2*A4^2*I4^2*J4*B4^3*E4+2*B4^3*H4^3*A4^2*C4+B4^4*H4^3*A4*E4+B4^5*H4^3*C4-1*A4^5*J4^3*C4-2*H4*G4^2*B4^3*K4*C4+2*H4*G4^2*B4^2*K4*A4*E4-4*H4*G4*A4^3*I4*K4*C4-4*H4*G4*A4*I4*K4*B4^2*C4-4*H4*G4*A4^2*I4*K4*E4*B4+2*A4^3*J4*H4^2*K4*C4+2*A4*J4*H4^2*K4*B4^2*C4+H4*B4^4*I4^2*A4*E4-2*A4^3*B4^2*H4^2*J4*C4-1*A4*B4^4*H4^2*J4*C4+2*A4^2*B4^3*H4^2*J4*E4-1*H4*G4^2*A4^4*B4*C4-2*H4*G4^2*A4^3*B4^2*E4-2*H4*G4^2*B4*K4*A4^2*C4+H4*B4^4*J4^2*A4*E4+2*H4*G4*A4^5*I4*C4-2*H4*G4*A4^4*I4*E4*B4-4*H4*G4*A4^2*B4^3*I4*E4-2*I4*G4*A4^4*J4*B4*C4+2*H4*A4^2*B4^3*I4^2*C4+2*H4*A4^3*B4^2*I4^2*E4+4*H4*G4*A4^3*B4^2*I4*C4+2*A4^2*J4^3*K4*E4*B4+H4*A4^4*B4*J4^2*C4+2*H4*A4^2*B4^3*J4^2*C4+2*H4*A4^3*B4^2*J4^2*E4+2*A4*J4^3*K4*B4^2*C4+H4*A4^4*B4*I4^2*C4+2*H4*G4*A4*B4^4*I4*C4-4*I4*G4*A4^3*J4*B4^2*E4+H4*B4^5*J4^2*C4-1*A4^5*H4^2*J4*C4+2*H4^3*B4^3*K4*C4+H4*B4^5*I4^2*C4+2*H4*J4^2*B4^3*K4*C4-2*H4*J4^2*B4^2*K4*A4*E4-1*A4^4*I4^2*J4*E4*B4+2*H4*I4^2*B4*K4*A4^2*C4+2*H4*I4^2*B4^3*K4*C4-2*H4*I4^2*B4^2*K4*A4*E4+2*A4^3*J4^3*K4*C4-2*I4*G4*J4*B4^5*C4-2*I4*G4*J4*B4^4*A4*E4-4*I4*G4*B4*J4*K4*A4^2*C4-4*I4*G4*B4^3*J4*K4*C4-4*I4*G4*J4*B4^3*A4^2*C4+4*I4*G4*B4^2*J4*K4*A4*E4-2*A4^3*J4*I4^2*K4*C4-2*A4*J4*I4^2*K4*B4^2*C4-2*A4^2*J4*I4^2*K4*E4*B4+2*H4*J4^2*B4*K4*A4^2*C4-2*H4*G4^2*B4^3*A4^2*C4-1*H4*G4^2*B4^4*A4*E4-2*J4*G4^2*A4^3*B4^2*C4+J4*G4^2*A4^4*E4*B4-2*A4^3*J4^3*B4^2*C4+A4^4*J4^3*E4*B4-1*H4*G4^2*B4^5*C4-1*J4*G4^2*A4^5*C4-1*A4*B4^4*J4^3*C4+2*A4^2*B4^3*J4^3*E4+A4^5*I4^2*J4*C4+2*A4^3*I4^2*J4*B4^2*C4+G4*B4^4*J4^2*A4*F4+2*J4*H4^2*B4^3*K4*E4-2*G4*A4^5*I4*J4*E4+G4*B4^5*J4^2*D4+G4^2*J4*B4^5*E4-1*G4^2*H4*A4^5*E4-2*H4^3*A4^3*K4*E4-1*I4^2*J4*B4^5*E4+I4^2*H4*A4^5*E4-2*G4*A4^4*H4*J4*F4*B4+G4^2*A4^4*I4*F4*B4-1*G4*B4^4*H4^2*A4*F4+G4*B4^4*I4^2*A4*F4-2*G4*A4^3*H4^2*B4^2*F4+G4*A4^4*B4*J4^2*D4+2*G4*A4^2*B4^3*J4^2*D4+2*G4*A4^3*B4^2*J4^2*F4-2*G4^2*A4^3*B4^2*I4*D4-1*G4^2*A4*B4^4*I4*D4+2*G4^2*A4^2*B4^3*I4*F4+2*G4*A4^5*H4*J4*D4+H4^3*A4^5*E4+G4*A4^4*B4*I4^2*D4+2*G4*A4^2*B4^3*I4^2*D4+2*G4*A4^3*B4^2*I4^2*F4-4*G4*A4^3*J4*H4*K4*D4-4*G4*A4*J4*H4*K4*B4^2*D4-4*G4*A4^2*J4*H4*K4*F4*B4-1*G4*A4^4*H4^2*B4*D4-2*G4*A4^2*H4^2*B4^3*D4+2*G4*I4^2*B4*K4*A4^2*D4-2*G4*I4^2*B4^2*K4*A4*F4+J4^3*B4^5*E4+2*G4*A4*B4^4*H4*J4*D4-4*G4*A4^2*B4^3*H4*J4*F4+2*G4*I4^2*B4^3*K4*D4-2*G4*H4^2*B4*K4*A4^2*D4-2*G4*H4^2*B4^3*K4*D4+2*G4*H4^2*B4^2*K4*A4*F4-2*A4^2*J4^2*I4*K4*F4*B4-1*A4*H4^2*I4*B4^4*D4-2*A4*J4^2*I4*K4*B4^2*D4+2*A4^2*H4^2*I4*B4^3*F4+2*G4*J4^2*B4*K4*A4^2*D4+2*G4*J4^2*B4^3*K4*D4-2*G4*J4^2*B4^2*K4*A4*F4+4*G4*A4^3*B4^2*H4*J4*D4+2*A4^2*H4^2*I4*K4*F4*B4+2*G4^2*A4*I4*K4*B4^2*D4+2*G4^2*A4^2*I4*K4*F4*B4-2*A4^3*J4^2*I4*K4*D4+2*A4^3*H4^2*I4*K4*D4+2*A4*H4^2*I4*K4*B4^2*D4+2*G4^2*A4^3*I4*K4*D4+A4*J4^2*B4^4*I4*D4-2*A4^2*J4^2*B4^3*I4*F4+2*A4*I4^3*K4*B4^2*D4+2*A4^2*I4^3*K4*F4*B4+G4^3*A4^4*B4*D4+2*G4^3*A4^3*B4^2*F4-1*A4*B4^4*I4^3*D4+2*A4^2*B4^3*I4^3*F4+2*A4^3*I4^3*K4*D4-1*G4^2*A4^5*I4*D4-1*G4*B4^5*H4^2*D4+G4*B4^5*I4^2*D4-2*A4^3*H4^2*I4*B4^2*D4+A4^4*H4^2*I4*F4*B4-2*A4^4*H4*I4*J4*B4*D4-4*A4^3*H4*I4*J4*B4^2*F4-1*A4^4*J4^2*I4*F4*B4-4*J4*I4*H4*B4*K4*A4^2*D4-4*J4*I4*H4*B4^3*K4*D4+2*J4*G4^2*A4^2*K4*E4*B4+A4^5*J4^2*I4*D4)/(2*G4^2*J4^2+2*I4^2*H4^2-2*G4^2*H4^2+G4^4+I4^4+H4^4+2*G4^2*I4^2-8*G4*J4*I4*H4+J4^4+2*J4^2*H4^2-2*I4^2*J4^2)/A4/B4-0.5*(-2*A4^3*I4^3*B4^2*D4+A4^4*I4^3*F4*B4+2*G4^3*B4^3*A4^2*D4+G4^3*B4^4*A4*F4-1*A4^5*I4^3*D4-1*J4*G4^2*A4*B4^4*C4+2*J4*G4^2*A4^2*B4^3*E4+2*J4*G4^2*A4^3*K4*C4+2*G4^3*B4*K4*A4^2*D4+A4^4*H4^2*J4*E4*B4+2*H4^3*B4*K4*A4^2*C4-2*H4^3*B4^2*K4*A4*E4+A4^4*H4^3*B4*C4+2*A4^3*H4^3*B4^2*E4+2*G4^3*B4^3*K4*D4+2*A4^2*J4*H4^2*K4*E4*B4+2*J4*G4^2*A4*K4*B4^2*C4+2*A4^3*J4^2*I4*B4^2*D4+4*J4*I4*H4*B4^2*K4*A4*F4-4*B4^3*H4*I4*J4*A4^2*D4-2*B4^5*H4*I4*J4*D4-2*B4^4*H4*I4*J4*A4*F4-1*A4^5*H4^2*I4*D4-2*A4^5*H4*I4*J4*F4+G4^2*I4*B4^5*F4-1*B4^5*J4^2*I4*F4+2*B4^3*H4^2*I4*K4*F4-2*B4^3*J4^2*I4*K4*F4+2*B4^3*I4^3*K4*F4+B4^5*H4^2*I4*F4+G4*A4^5*I4^2*F4-2*G4^3*A4^3*K4*F4-4*G4*I4*H4*B4^3*K4*E4-2*G4*I4*H4*B4^5*E4-2*J4^2*A4^3*H4*K4*E4+4*G4*A4^3*J4*I4*K4*E4+2*J4^3*B4^3*K4*E4+J4^2*A4^5*H4*E4+J4*B4^5*H4^2*E4-1*G4*A4^5*H4^2*F4+G4^3*A4^5*F4-2*I4^2*B4^3*J4*K4*E4-2*I4^2*H4*A4^3*K4*E4+2*G4^2*B4^3*J4*K4*E4+2*G4^2*H4*A4^3*K4*E4-4*G4*B4^3*J4*H4*K4*F4+G4*A4^5*J4^2*F4+4*A4^3*J4*I4*H4*K4*F4+2*G4^2*B4^3*I4*K4*F4-2*G4*A4^3*I4^2*K4*F4+2*G4*A4^3*H4^2*K4*F4-2*G4*H4*J4*B4^5*F4-2*G4*A4^3*J4^2*K4*F4)/(2*G4^2*J4^2+2*I4^2*H4^2-2*G4^2*H4^2+G4^4+I4^4+H4^4+2*G4^2*I4^2-8*G4*J4*I4*H4+J4^4+2*J4^2*H4^2-2*I4^2*J4^2)/A4/B4 -> 0 | Q27: =-0.5*(-4*I4^3*K4^2*C4+4*H4^3*K4^2*F4-4*J4^3*K4^2*D4+4*G4^3*K4^2*E4-1*B4^4*I4*H4^2*C4-4*A4^2*B4^2*J4*I4*H4*E4+2*A4^2*B4^2*H4*J4^2*F4+2*A4^2*B4^2*G4*I4^2*E4+2*A4^2*B4^2*H4^3*F4-1*A4^4*C4*I4*G4^2-2*A4^4*F4*G4*I4*J4+A4^4*D4*I4^2*J4-1*A4^4*D4*J4*H4^2-1*A4^4*D4*G4^2*J4+A4^4*F4*H4^3-4*J4*H4^2*K4^2*D4-4*J4*G4^2*K4^2*D4+4*I4^2*H4*K4^2*F4+4*G4*I4^2*K4^2*E4+4*G4*J4^2*K4^2*E4-4*G4*H4^2*K4^2*E4-4*K4*J4^2*A4^2*H4*F4-4*K4*J4*H4^2*B4^2*D4+4*K4*I4^2*B4^2*J4*D4-4*K4*I4^2*H4*A4^2*F4-4*K4*G4^2*B4^2*J4*D4+4*K4*G4^2*H4*A4^2*F4+4*K4*H4*J4^2*B4^2*F4-8*K4*G4*A4^2*J4*H4*C4+4*K4*H4^3*B4^2*F4+4*K4*A4^2*J4^3*D4+4*K4*G4^3*B4^2*E4+4*K4*A4^2*I4^3*C4-4*K4*J4^3*B4^2*D4-4*K4*H4^3*A4^2*F4-4*K4*G4^3*A4^2*E4-4*K4*B4^2*I4^3*C4-4*K4*G4^2*B4^2*I4*C4-4*K4*G4*A4^2*J4^2*E4+4*K4*G4*A4^2*H4^2*E4-4*K4*G4*A4^2*I4^2*E4+8*K4*A4^2*J4*I4*H4*E4+4*K4*B4^2*J4^2*I4*C4-4*K4*B4^2*H4^2*I4*C4+8*K4*G4*A4^2*J4*I4*F4+8*K4*G4*I4*H4*B4^2*D4+4*K4*G4^2*A4^2*I4*C4+4*K4*G4*I4^2*B4^2*E4+4*K4*G4*J4^2*B4^2*E4-4*K4*G4*H4^2*B4^2*E4-4*K4*A4^2*J4*I4^2*D4-8*K4*I4*G4*B4^2*J4*F4-4*K4*H4*G4^2*B4^2*F4+4*K4*J4*G4^2*A4^2*D4+4*K4*A4^2*J4*H4^2*D4-8*K4*H4*G4*A4^2*I4*D4+4*K4*H4*I4^2*B4^2*F4-8*K4*J4*I4*H4*B4^2*E4+4*K4*A4^2*H4^2*I4*C4-4*K4*A4^2*J4^2*I4*C4-8*G4*J4*I4*K4^2*F4-8*J4*I4*H4*K4^2*E4+8*K4*G4*B4^2*J4*H4*C4+8*H4*G4*I4*K4^2*D4+8*G4*J4*H4*K4^2*C4+4*J4^2*H4*K4^2*F4-4*G4^2*I4*K4^2*C4-4*H4^2*I4*K4^2*C4+4*J4^2*I4*K4^2*C4+4*J4*I4^2*K4^2*D4-4*G4^2*H4*K4^2*F4-1*B4^4*J4*H4^2*D4-1*B4^4*G4*H4^2*E4-2*B4^4*J4*I4*H4*E4+B4^4*I4^2*J4*D4+I4*B4^4*J4^2*C4+2*H4*G4*B4^4*J4*C4-1*I4*G4^2*B4^4*C4+B4^4*H4*J4^2*F4+B4^4*G4*I4^2*E4+B4^4*G4*J4^2*E4-2*G4*B4^4*J4*I4*F4+2*G4*B4^4*I4*H4*D4-1*G4^2*B4^4*J4*D4-1*G4^2*B4^4*H4*F4+B4^4*I4^2*H4*F4+A4^4*C4*I4*J4^2+A4^4*E4*G4*I4^2+2*A4^4*D4*G4*I4*H4-1*A4^4*C4*I4^3-1*A4^4*E4*G4*H4^2-1*A4^4*C4*I4*H4^2+A4^4*E4*G4^3-1*A4^4*F4*G4^2*H4+2*A4^4*C4*H4*G4*J4+A4^4*F4*J4^2*H4+A4^4*F4*I4^2*H4+A4^4*E4*G4*J4^2+2*A4^2*B4^2*I4^2*H4*F4-2*A4^2*B4^2*I4*H4^2*C4-2*A4^2*B4^2*J4*H4^2*D4-2*A4^4*E4*J4*I4*H4-4*A4^2*G4*B4^2*J4*I4*F4+2*A4^2*B4^2*I4^2*J4*D4-2*A4^2*B4^2*G4*H4^2*E4-2*A4^2*J4^3*B4^2*D4+4*A4^2*H4*G4*B4^2*J4*C4+2*A4^2*B4^2*G4^3*E4-2*A4^2*G4^2*B4^2*J4*D4-2*A4^2*I4*G4^2*B4^2*C4+4*A4^2*G4*B4^2*I4*H4*D4-2*A4^2*B4^2*I4^3*C4+2*A4^2*B4^2*G4*J4^2*E4-2*A4^2*G4^2*B4^2*H4*F4+2*A4^2*I4*B4^2*J4^2*C4-1*A4^4*D4*J4^3+B4^4*H4^3*F4-1*J4^3*B4^4*D4-1*B4^4*I4^3*C4+B4^4*G4^3*E4)/(2*G4^2*J4^2+2*I4^2*H4^2-2*G4^2*H4^2+G4^4+I4^4+H4^4+2*G4^2*I4^2-8*G4*J4*I4*H4+J4^4+2*J4^2*H4^2-2*I4^2*J4^2)/B4/A4 -> 0 | R27: =0.5*(-2*G4*I4^2*K4*A4*F4+2*A4*I4^3*K4*D4+3*A4^2*I4^3*F4*B4-1*I4*G4^2*B4^3*F4-1*I4*G4^2*A4^3*D4-1*A4^3*H4^2*I4*D4+3*B4^2*I4^3*A4*D4-1*B4^3*I4^3*F4-1*A4^3*I4^3*D4-1*J4^3*B4^3*E4-1*A4^3*J4^3*C4-1*G4^3*B4^3*D4+G4^3*A4^3*F4+3*A4^2*J4^2*H4*C4*B4-3*G4^2*A4^2*H4*C4*B4+3*G4^2*H4*B4^2*A4*E4-2*G4*A4^3*J4*I4*E4-6*G4*A4^2*J4*I4*C4*B4+6*G4*J4*I4*B4^2*A4*E4+2*G4*J4*I4*B4^3*C4-3*B4^2*I4^2*H4*A4*E4-3*B4^2*J4^2*H4*A4*E4+3*A4^2*I4^2*H4*C4*B4+G4^2*H4*B4^3*C4+3*A4^2*H4^3*C4*B4-1*B4^3*I4^2*H4*C4-1*B4^3*J4^2*H4*C4+A4^3*I4^2*H4*E4+A4^3*J4^2*H4*E4-1*G4^2*A4^3*H4*E4+6*J4*H4*B4^2*I4*A4*F4+2*J4*H4*B4^3*I4*D4+3*G4^3*A4^2*D4*B4+3*G4*A4^2*J4^2*D4*B4-3*G4*H4^2*A4^2*D4*B4-6*J4*A4^2*H4*I4*D4*B4-3*G4*B4^2*I4^2*A4*F4-1*G4*B4^3*I4^2*D4-1*G4*B4^3*J4^2*D4+G4*A4^3*I4^2*F4+G4*A4^3*J4^2*F4-1*G4*H4^2*A4^3*F4-3*B4^2*H4^3*A4*E4-3*G4*B4^2*J4^2*A4*F4+2*G4*H4*B4^3*I4*E4+3*G4*H4^2*B4^2*A4*F4+3*G4*A4^2*I4^2*D4*B4-2*J4*A4^3*H4*I4*F4-1*B4^3*H4^3*C4+A4^3*H4^3*E4-6*G4*A4^2*H4*I4*E4*B4-6*G4*H4*B4^2*I4*A4*C4-3*A4^2*J4*I4^2*E4*B4+3*G4^2*A4^2*J4*E4*B4+3*G4^2*J4*B4^2*A4*C4+3*A4^2*J4*H4^2*E4*B4-1*G4^2*J4*B4^3*E4-3*G4^3*B4^2*A4*F4+G4*H4^2*B4^3*D4+2*G4*A4^3*H4*I4*C4+3*J4*B4^2*H4^2*A4*C4-1*A4^3*J4*H4^2*C4+A4^3*J4*I4^2*C4-1*G4^2*A4^3*J4*C4+3*A4^2*J4^3*E4*B4+J4*B4^3*I4^2*E4-1*J4*B4^3*H4^2*E4-3*J4*B4^2*I4^2*A4*C4-6*H4*G4*A4^2*J4*F4*B4 -6*H4*G4*J4*B4^2*A4*D4+I4*A4^3*J4^2*D4+3*I4*G4^2*A4^2*F4*B4+3*A4^2*H4^2*I4*F4*B4+3*H4^2*B4^2*I4*A4*D4-1*H4^2*B4^3*I4*F4+I4*B4^3*J4^2*F4+3*I4*G4^2*B4^2*A4*D4+2*H4*G4*A4^3*J4*D4+2*H4*G4*J4*B4^3*F4-3*I4*B4^2*J4^2*A4*D4-3*I4*A4^2*J4^2*F4*B4+3*J4^3*B4^2*A4*C4+4*J4*I4*H4*B4*K4*D4-2*J4*G4^2*K4*E4*B4-2*G4^3*B4*K4*D4-2*H4^3*B4*K4*C4-2*I4^3*K4*F4*B4-2*G4^2*I4*K4*F4*B4-2*H4^2*I4*K4*F4*B4+4*G4*J4*H4*K4*F4*B4-2*G4*I4^2*B4*K4*D4+2*G4*H4^2*B4*K4*D4+2*J4^2*I4*K4*F4*B4-2*G4*J4^2*B4*K4*D4+2*J4*I4^2*K4*E4*B4-2*H4*J4^2*B4*K4*C4-2*H4*I4^2*B4*K4*C4+4*I4*G4*B4*J4*K4*C4-2*J4^3*K4*E4*B4+2*H4*G4^2*B4*K4*C4+4*H4*G4*I4*K4*E4*B4+2*H4*G4^2*K4*A4*E4+2*A4*J4*H4^2*K4*C4-4*H4*G4*A4*I4*K4*C4-2*G4^3*K4*A4*F4-2*J4*H4^2*K4*E4*B4-2*H4*I4^2*K4*A4*E4-2*H4*J4^2*K4*A4*E4+2*J4*G4^2*A4*K4*C4+4*J4*I4*H4*K4*A4*F4-2*H4^3*K4*A4*E4+4*I4*G4*J4*K4*A4*E4-2*A4*J4*I4^2*K4*C4+2*A4*J4^3*K4*C4+2*A4*H4^2*I4*K4*D4+2*G4*H4^2*K4*A4*F4-2*A4*J4^2*I4*K4*D4-2*G4*J4^2*K4*A4*F4+2*G4^2*A4*I4*K4*D4-4*G4*A4*J4*H4*K4*D4)/(2*G4^2*J4^2+2*I4^2*H4^2-2*G4^2*H4^2+G4^4+I4^4+H4^4+2*G4^2*I4^2-8*G4*J4*I4*H4+J4^4+2*J4^2*H4^2-2*I4^2*J4^2)/B4/A4 -> -8.873722555e-15 | S27: =0.5*(2*G4^2*H4*K4*F4+I4^3*B4^2*C4-2*G4^3*K4*E4+2*I4^3*K4*C4-2*H4^3*K4*F4+2*J4^3*K4*D4-1*H4^3*B4^2*F4+A4^2*H4^3*F4-1*I4^3*A4^2*C4+2*H4^3*B4*A4*D4+2*A4*J4^3*F4*B4+2*G4^3*B4*A4*C4+2*A4*I4^3*E4*B4+2*G4*J4^2*B4*A4*C4-2*G4*H4^2*B4*A4*C4+2*H4*J4^2*B4*A4*D4-2*A4*J4*I4^2*F4*B4-4*I4*G4*B4*J4*A4*D4-4*B4*J4*I4*H4*A4*C4+2*A4*H4^2*I4*E4*B4-2*A4*J4^2*I4*E4*B4+2*G4^2*A4*I4*E4*B4-4*G4*A4*J4*H4*E4*B4-2*H4*G4^2*B4*A4*D4+2*J4*G4^2*A4*F4*B4+2*A4*J4*H4^2*F4*B4-4*H4*G4*A4*I4*F4*B4+2*H4*I4^2*B4*A4*D4+2*G4*I4^2*B4*A4*C4-2*G4*J4^2*K4*E4+2*G4*H4^2*K4*E4+2*J4*H4^2*K4*D4-2*I4^2*H4*K4*F4-2*G4*I4^2*K4*E4-2*J4^2*H4*K4*F4+2*G4^2*I4*K4*C4+2*H4^2*I4*K4*C4+4*J4*I4*H4*K4*E4-2*J4^2*I4*K4*C4-4*G4*J4*H4*K4*C4+4*G4*J4*I4*K4*F4-2*J4*I4^2*K4*D4+2*J4*G4^2*K4*D4-4*H4*G4*I4*K4*D4+B4^2*G4*H4^2*E4-2*G4*I4*H4*B4^2*D4-2*H4*G4*J4*B4^2*C4+2*B4^2*J4*I4*H4*E4-1*B4^2*G4*I4^2*E4-1*B4^2*G4^3*E4+I4*G4^2*B4^2*C4-1*B4^2*G4*J4^2*E4+J4^3*B4^2*D4+I4*H4^2*B4^2*C4-1*I4^2*J4*B4^2*D4-1*J4^2*B4^2*H4*F4-1*B4^2*I4^2*H4*F4+J4*H4^2*B4^2*D4-1*I4*J4^2*B4^2*C4+2*G4*B4^2*I4*J4*F4+G4^2*J4*B4^2*D4+G4^2*B4^2*H4*F4+2*H4*G4*J4*A4^2*C4-2*A4^2*J4*I4*H4*E4+A4^2*G4^3*E4+2*G4*I4*H4*A4^2*D4-2*G4*A4^2*J4*I4*F4-1*A4^2*G4*H4^2*E4-1*I4*H4^2*A4^2*C4-1*J4^3*A4^2*D4-1*I4*G4^2*A4^2*C4-1*J4*H4^2*A4^2*D4+I4*J4^2*A4^2*C4+A4^2*G4*J4^2*E4+A4^2*G4*I4^2*E4-1*G4^2*A4^2*H4*F4-1*G4^2*J4*A4^2*D4+A4^2*I4^2*H4*F4+A4^2*H4*J4^2*F4+I4^2*J4*A4^2*D4)/(2*G4^2*J4^2+2*I4^2*H4^2-2*G4^2*H4^2+G4^4+I4^4+H4^4+2*G4^2*I4^2-8*G4*J4*I4*H4+J4^4+2*J4^2*H4^2-2*I4^2*J4^2)/B4/A4 -> 1
D28: =-0.5*(A5^2*F5*I5^2*H5+B5^2*D5*J5^3-1*A5^2*D5*J5^3+A5^2*C5*I5*J5^2-2*A5*E5*B5*I5^3+2*A5*F5*B5*I5^2*J5+2*A5*E5*J5^2*B5*I5-1*B5^2*F5*H5^3+B5^2*C5*I5^3-1*A5^2*C5*I5^3+B5^2*D5*J5*H5^2+A5^2*F5*H5^3+2*B5^2*E5*J5*I5*H5+B5^2*C5*I5*H5^2-1*B5^2*F5*J5^2*H5-1*B5^2*F5*I5^2*H5-2*A5*F5*B5*J5*H5^2-2*A5*D5*B5*I5^2*H5-2*A5*E5*I5*H5^2*B5-2*A5*D5*H5^3*B5-2*A5*D5*J5^2*B5*H5-2*A5^2*E5*J5*I5*H5-1*A5^2*D5*J5*H5^2-1*A5^2*C5*I5*H5^2+A5^2*F5*J5^2*H5-1*B5^2*E5*G5^3+4*A5*C5*B5*J5*I5*H5+B5^2*D5*G5^2*J5+B5^2*C5*I5*G5^2+B5^2*F5*G5^2*H5-2*B5^2*C5*H5*G5*J5+2*B5^2*F5*G5*I5*J5-1*B5^2*E5*G5*I5^2-1*B5^2*E5*G5*J5^2+B5^2*E5*G5*H5^2-2*B5^2*D5*G5*I5*H5+4*A5*D5*G5*B5*I5*J5-2*A5^2*F5*G5*I5*J5+4*A5*F5*G5*B5*I5*H5-1*A5^2*D5*G5^2*J5-1*A5^2*C5*I5*G5^2-1*A5^2*F5*G5^2*H5+2*A5^2*C5*H5*G5*J5+A5^2*E5*G5*I5^2+A5^2*E5*G5*J5^2-1*A5^2*E5*G5*H5^2+A5^2*E5*G5^3+2*A5^2*D5*G5*I5*H5-2*A5*C5*B5*G5^3-2*A5*F5*G5^2*B5*J5+2*A5*C5*B5*G5*H5^2-2*A5*E5*G5^2*B5*I5-2*A5*C5*B5*G5*J5^2-2*A5*C5*B5*G5*I5^2+2*A5*D5*G5^2*B5*H5+4*A5*E5*G5*J5*B5*H5-2*A5*F5*B5*J5^3-1*B5^2*D5*I5^2*J5-1*B5^2*C5*I5*J5^2+A5^2*D5*I5^2*J5)/(2*G5^2*J5^2+2*I5^2*H5^2-2*G5^2*H5^2+G5^4+I5^4+H5^4+2*G5^2*I5^2-8*G5*J5*I5*H5+J5^4+2*J5^2*H5^2-2*I5^2*J5^2)/A5/B5 -> 0.01243038319 | E28: =-0.5*(F5*G5^2*I5*B5^3-3*D5*G5^3*A5^2*B5-1*C5*A5^3*H5^2*J5-3*C5*A5^2*H5^3*B5-1*C5*J5*G5^2*A5^3+C5*B5^3*H5^3+2*C5*H5^3*B5*K5+3*C5*J5*G5^2*A5*B5^2+6*C5*I5*G5*A5^2*J5*B5-3*C5*H5*A5^2*B5*I5^2+2*C5*J5*G5^2*A5*K5-4*C5*H5*G5*A5*I5*K5+2*C5*A5*J5^3*K5+C5*H5*B5^3*J5^2+3*C5*A5*B5^2*J5^3+2*C5*H5*I5^2*B5*K5+2*C5*H5*J5^2*B5*K5-6*C5*H5*G5*A5*B5^2*I5-2*C5*A5*J5*I5^2*K5-3*C5*A5*I5^2*J5*B5^2-1*C5*H5*G5^2*B5^3+C5*A5^3*I5^2*J5+3*C5*A5*B5^2*H5^2*J5+2*C5*A5*J5*H5^2*K5-2*C5*H5*G5^2*B5*K5+3*C5*H5*G5^2*A5^2*B5+2*C5*H5*G5*A5^3*I5-1*C5*A5^3*J5^3+C5*H5*B5^3*I5^2-3*C5*H5*A5^2*B5*J5^2-4*D5*J5*I5*H5*B5*K5+2*D5*G5*A5^3*H5*J5+2*D5*G5*J5^2*B5*K5-2*D5*B5^3*H5*I5*J5+D5*G5^3*B5^3-1*D5*A5^3*I5^3+D5*A5^3*J5^2*I5-2*C5*I5*G5*J5*B5^3-4*C5*I5*G5*B5*J5*K5-3*D5*A5*J5^2*B5^2*I5+3*D5*A5*B5^2*I5^3+2*D5*A5*H5^2*I5*K5+2*D5*G5^2*A5*I5*K5+2*D5*A5*I5^3*K5+3*D5*G5^2*A5*B5^2*I5-1*D5*G5*B5^3*H5^2-3*D5*G5*A5^2*B5*I5^2-1*D5*G5^2*A5^3*I5-2*D5*G5*H5^2*B5*K5+2*D5*G5*I5^2*B5*K5-2*D5*A5*J5^2*I5*K5+D5*G5*B5^3*I5^2+3*D5*A5*H5^2*I5*B5^2-1*D5*A5^3*H5^2*I5+2*E5*J5^3*B5*K5+E5*J5^2*A5^3*H5-3*E5*J5*A5^2*H5^2*B5+2*E5*J5*H5^2*B5*K5-2*E5*J5^2*A5*H5*K5+E5*J5^3*B5^3+E5*H5^3*A5^3-4*D5*G5*A5*J5*H5*K5-3*D5*G5*A5^2*B5*J5^2+3*D5*G5*A5^2*H5^2*B5+6*D5*A5^2*H5*I5*J5*B5-6*D5*G5*A5*B5^2*H5*J5+2*D5*G5^3*B5*K5-3*E5*J5^3*A5^2*B5+D5*G5*B5^3*J5^2+3*E5*I5^2*A5^2*J5*B5-3*E5*H5^3*A5*B5^2+F5*B5^3*H5^2*I5-3*E5*J5^2*A5*B5^2*H5-2*E5*H5^3*A5*K5+E5*I5^2*H5*A5^3-1*E5*I5^2*J5*B5^3-1*E5*G5^2*H5*A5^3+E5*G5^2*J5*B5^3-2*E5*I5^2*H5*A5*K5-2*E5*I5^2*B5*J5*K5+2*E5*G5^2*B5*J5*K5-3*E5*I5^2*H5*A5*B5^2-3*E5*G5^2*A5^2*J5*B5+2*E5*G5^2*H5*A5*K5+6*E5*G5*A5*I5*J5*B5^2+3*E5*G5^2*H5*A5*B5^2+E5*J5*B5^3*H5^2-2*E5*G5*A5^3*I5*J5+F5*G5^3*A5^3+F5*B5^3*I5^3-4*E5*G5*I5*H5*B5*K5+6*E5*G5*I5*H5*A5^2*B5+4*E5*G5*A5*J5*I5*K5-2*E5*G5*I5*H5*B5^3+4*F5*A5*J5*I5*H5*K5-1*F5*G5*A5^3*H5^2+F5*G5*A5^3*I5^2+2*F5*G5^2*B5*I5*K5-3*F5*G5*A5*B5^2*I5^2-3*F5*G5^2*A5^2*I5*B5-2*F5*B5*J5^2*I5*K5+2*F5*B5*H5^2*I5*K5-3*F5*A5^2*B5*H5^2*I5-2*F5*A5^3*H5*I5*J5+3*F5*A5^2*B5*J5^2*I5+F5*G5*A5^3*J5^2+2*F5*G5*A5*H5^2*K5-2*F5*G5*A5*J5^2*K5-2*F5*G5*A5*I5^2*K5-2*F5*G5*H5*J5*B5^3+3*F5*G5*A5*B5^2*H5^2-3*F5*G5*A5*B5^2*J5^2+6*F5*G5*A5^2*H5*J5*B5-4*F5*G5*B5*J5*H5*K5+2*F5*B5*I5^3*K5-1*F5*B5^3*J5^2*I5+6*F5*A5*H5*I5*J5*B5^2-3*F5*G5^3*A5*B5^2-2*F5*G5^3*A5*K5-3*F5*A5^2*B5*I5^3)/A5/B5/(2*G5^2*A5^2*J5^2+G5^4*A5^2+A5^2*J5^4+A5^2*H5^4+2*G5^2*B5^2*I5^2-8*G5*A5^2*J5*I5*H5+2*G5^2*B5^2*J5^2+B5^2*H5^4+B5^2*I5^4-8*G5*B5^2*J5*I5*H5+2*A5^2*I5^2*H5^2+G5^4*B5^2-2*G5^2*A5^2*H5^2+2*G5^2*A5^2*I5^2+A5^2*I5^4+2*B5^2*J5^2*H5^2-2*B5^2*I5^2*J5^2-2*G5^2*B5^2*H5^2+2*B5^2*I5^2*H5^2+B5^2*J5^4+2*A5^2*J5^2*H5^2-2*A5^2*I5^2*J5^2) -> -0.0006391639059 | F28: =0.5*(-1*D5*J5*H5^2-1*C5*I5^3+E5*G5^3-1*C5*I5*H5^2+C5*I5*J5^2-1*D5*J5^3+D5*I5^2*J5+2*D5*G5*I5*H5-2*E5*J5*I5*H5-1*E5*G5*H5^2+E5*G5*J5^2+E5*G5*I5^2-2*F5*G5*I5*J5+2*C5*H5*G5*J5+F5*H5^3-1*F5*G5^2*H5-1*C5*I5*G5^2-1*D5*G5^2*J5+F5*J5^2*H5+F5*I5^2*H5)/(2*G5^2*J5^2+2*I5^2*H5^2-2*G5^2*H5^2+G5^4+I5^4+H5^4+2*G5^2*I5^2-8*G5*J5*I5*H5+J5^4+2*J5^2*H5^2-2*I5^2*J5^2)/A5/B5 -> 0 | G28: =0.5*(-1*F5*G5^2*B5*I5-1*C5*H5^3*B5-1*D5*G5^2*A5*I5+2*D5*G5*A5*J5*H5-1*D5*A5*H5^2*I5-1*D5*A5*I5^3+2*C5*I5*G5*B5*J5+C5*H5*G5^2*B5-1*E5*J5^3*B5-1*D5*G5*J5^2*B5+C5*A5*J5*I5^2-1*C5*A5*J5*H5^2-1*C5*H5*J5^2*B5+E5*H5^3*A5-1*C5*H5*I5^2*B5+2*D5*J5*I5*H5*B5+2*C5*H5*G5*A5*I5-1*C5*A5*J5^3-1*C5*J5*G5^2*A5-1*D5*G5^3*B5+E5*J5^2*A5*H5+D5*A5*J5^2*I5-1*E5*J5*H5^2*B5+D5*G5*H5^2*B5-1*D5*G5*I5^2*B5+F5*B5*J5^2*I5-1*F5*B5*H5^2*I5-2*F5*A5*J5*I5*H5-1*F5*B5*I5^3-2*E5*G5*A5*J5*I5+2*E5*G5*I5*H5*B5-1*E5*G5^2*B5*J5-1*E5*G5^2*H5*A5+E5*I5^2*H5*A5+E5*I5^2*B5*J5+F5*G5^3*A5+F5*G5*A5*I5^2+2*F5*G5*B5*J5*H5-1*F5*G5*A5*H5^2+F5*G5*A5*J5^2)/A5/B5/(2*G5^2*A5^2*J5^2+G5^4*A5^2+A5^2*J5^4+A5^2*H5^4+2*G5^2*B5^2*I5^2-8*G5*A5^2*J5*I5*H5+2*G5^2*B5^2*J5^2+B5^2*H5^4+B5^2*I5^4-8*G5*B5^2*J5*I5*H5+2*A5^2*I5^2*H5^2+G5^4*B5^2-2*G5^2*A5^2*H5^2+2*G5^2*A5^2*I5^2+A5^2*I5^4+2*B5^2*J5^2*H5^2-2*B5^2*I5^2*J5^2-2*G5^2*B5^2*H5^2+2*B5^2*I5^2*H5^2+B5^2*J5^4+2*A5^2*J5^2*H5^2-2*A5^2*I5^2*J5^2) -> 1.886979427e-06 | H28: =-0.5*(-1*F5*G5^2*I5*B5^3-1*D5*G5^3*A5^2*B5-1*C5*A5^3*H5^2*J5-1*C5*A5^2*H5^3*B5-1*C5*J5*G5^2*A5^3-1*C5*B5^3*H5^3-1*C5*J5*G5^2*A5*B5^2+2*C5*I5*G5*A5^2*J5*B5-1*C5*H5*A5^2*B5*I5^2-1*C5*H5*B5^3*J5^2-1*C5*A5*B5^2*J5^3+2*C5*H5*G5*A5*B5^2*I5+C5*A5*I5^2*J5*B5^2+C5*H5*G5^2*B5^3+C5*A5^3*I5^2*J5-1*C5*A5*B5^2*H5^2*J5+C5*H5*G5^2*A5^2*B5+2*C5*H5*G5*A5^3*I5-1*C5*A5^3*J5^3-1*C5*H5*B5^3*I5^2-1*C5*H5*A5^2*B5*J5^2+2*D5*G5*A5^3*H5*J5+2*D5*B5^3*H5*I5*J5-1*D5*G5^3*B5^3-1*D5*A5^3*I5^3+D5*A5^3*J5^2*I5+2*C5*I5*G5*J5*B5^3+D5*A5*J5^2*B5^2*I5-1*D5*A5*B5^2*I5^3-1*D5*G5^2*A5*B5^2*I5+D5*G5*B5^3*H5^2-1*D5*G5*A5^2*B5*I5^2-1*D5*G5^2*A5^3*I5-1*D5*G5*B5^3*I5^2-1*D5*A5*H5^2*I5*B5^2-1*D5*A5^3*H5^2*I5+E5*J5^2*A5^3*H5-1*E5*J5*A5^2*H5^2*B5-1*E5*J5^3*B5^3+E5*H5^3*A5^3-1*D5*G5*A5^2*B5*J5^2+D5*G5*A5^2*H5^2*B5+2*D5*A5^2*H5*I5*J5*B5+2*D5*G5*A5*B5^2*H5*J5-1*E5*J5^3*A5^2*B5-1*D5*G5*B5^3*J5^2+E5*I5^2*A5^2*J5*B5+E5*H5^3*A5*B5^2-1*F5*B5^3*H5^2*I5+E5*J5^2*A5*B5^2*H5+E5*I5^2*H5*A5^3+E5*I5^2*J5*B5^3-1*E5*G5^2*H5*A5^3-1*E5*G5^2*J5*B5^3+E5*I5^2*H5*A5*B5^2-1*E5*G5^2*A5^2*J5*B5-2*E5*G5*A5*I5*J5*B5^2-1*E5*G5^2*H5*A5*B5^2-1*E5*J5*B5^3*H5^2-2*E5*G5*A5^3*I5*J5+F5*G5^3*A5^3-1*F5*B5^3*I5^3+2*E5*G5*I5*H5*A5^2*B5+2*E5*G5*I5*H5*B5^3-1*F5*G5*A5^3*H5^2+F5*G5*A5^3*I5^2+F5*G5*A5*B5^2*I5^2-1*F5*G5^2*A5^2*I5*B5-1*F5*A5^2*B5*H5^2*I5-2*F5*A5^3*H5*I5*J5+F5*A5^2*B5*J5^2*I5+F5*G5*A5^3*J5^2+2*F5*G5*H5*J5*B5^3-1*F5*G5*A5*B5^2*H5^2+F5*G5*A5*B5^2*J5^2+2*F5*G5*A5^2*H5*J5*B5+F5*B5^3*J5^2*I5-2*F5*A5*H5*I5*J5*B5^2+F5*G5^3*A5*B5^2-1*F5*A5^2*B5*I5^3)/(2*G5^2*J5^2+2*I5^2*H5^2-2*G5^2*H5^2+G5^4+I5^4+H5^4+2*G5^2*I5^2-8*G5*J5*I5*H5+J5^4+2*J5^2*H5^2-2*I5^2*J5^2)/A5/B5 -> -0.2164997099 | I28: =-0.5*(A5^2*F5*I5^2*H5+B5^2*D5*J5^3-1*A5^2*D5*J5^3+A5^2*C5*I5*J5^2-2*A5*E5*B5*I5^3+2*A5*F5*B5*I5^2*J5+2*A5*E5*J5^2*B5*I5+2*J5^3*K5*D5-2*G5^3*K5*E5-2*H5^3*K5*F5+2*H5^2*I5*K5*C5+2*G5^2*I5*K5*C5-2*J5^2*I5*K5*C5+2*J5*H5^2*K5*D5+2*J5*G5^2*K5*D5+2*G5*H5^2*K5*E5-2*G5*J5^2*K5*E5-2*G5*I5^2*K5*E5-2*J5^2*H5*K5*F5-2*I5^2*H5*K5*F5+2*G5^2*H5*K5*F5-2*J5*I5^2*K5*D5-4*H5*G5*I5*K5*D5+4*G5*J5*I5*K5*F5+4*J5*I5*H5*K5*E5-4*G5*J5*H5*K5*C5-1*B5^2*F5*H5^3+B5^2*C5*I5^3-1*A5^2*C5*I5^3+B5^2*D5*J5*H5^2+A5^2*F5*H5^3+2*B5^2*E5*J5*I5*H5+B5^2*C5*I5*H5^2-1*B5^2*F5*J5^2*H5-1*B5^2*F5*I5^2*H5-2*A5*F5*B5*J5*H5^2-2*A5*D5*B5*I5^2*H5-2*A5*E5*I5*H5^2*B5-2*A5*D5*H5^3*B5+2*I5^3*K5*C5-2*A5*D5*J5^2*B5*H5-2*A5^2*E5*J5*I5*H5-1*A5^2*D5*J5*H5^2-1*A5^2*C5*I5*H5^2+A5^2*F5*J5^2*H5-1*B5^2*E5*G5^3+4*A5*C5*B5*J5*I5*H5+B5^2*D5*G5^2*J5+B5^2*C5*I5*G5^2+B5^2*F5*G5^2*H5-2*B5^2*C5*H5*G5*J5+2*B5^2*F5*G5*I5*J5-1*B5^2*E5*G5*I5^2-1*B5^2*E5*G5*J5^2+B5^2*E5*G5*H5^2-2*B5^2*D5*G5*I5*H5+4*A5*D5*G5*B5*I5*J5-2*A5^2*F5*G5*I5*J5+4*A5*F5*G5*B5*I5*H5-1*A5^2*D5*G5^2*J5-1*A5^2*C5*I5*G5^2-1*A5^2*F5*G5^2*H5+2*A5^2*C5*H5*G5*J5+A5^2*E5*G5*I5^2+A5^2*E5*G5*J5^2-1*A5^2*E5*G5*H5^2+A5^2*E5*G5^3+2*A5^2*D5*G5*I5*H5-2*A5*C5*B5*G5^3-2*A5*F5*G5^2*B5*J5+2*A5*C5*B5*G5*H5^2-2*A5*E5*G5^2*B5*I5-2*A5*C5*B5*G5*J5^2-2*A5*C5*B5*G5*I5^2+2*A5*D5*G5^2*B5*H5+4*A5*E5*G5*J5*B5*H5-2*A5*F5*B5*J5^3-1*B5^2*D5*I5^2*J5-1*B5^2*C5*I5*J5^2+A5^2*D5*I5^2*J5)/(2*G5^2*J5^2+2*I5^2*H5^2-2*G5^2*H5^2+G5^4+I5^4+H5^4+2*G5^2*I5^2-8*G5*J5*I5*H5+J5^4+2*J5^2*H5^2-2*I5^2*J5^2)/A5/B5 -> 0.01243038319 | J28: =0.5*(F5*G5^2*B5*I5+C5*H5^3*B5-1*D5*G5^2*A5*I5+2*D5*G5*A5*J5*H5-1*D5*A5*H5^2*I5-1*D5*A5*I5^3-2*C5*I5*G5*B5*J5-1*C5*H5*G5^2*B5+E5*J5^3*B5+D5*G5*J5^2*B5+C5*A5*J5*I5^2-1*C5*A5*J5*H5^2+C5*H5*J5^2*B5+E5*H5^3*A5+C5*H5*I5^2*B5-2*D5*J5*I5*H5*B5+2*C5*H5*G5*A5*I5-1*C5*A5*J5^3-1*C5*J5*G5^2*A5+D5*G5^3*B5+E5*J5^2*A5*H5+D5*A5*J5^2*I5+E5*J5*H5^2*B5-1*D5*G5*H5^2*B5+D5*G5*I5^2*B5-1*F5*B5*J5^2*I5+F5*B5*H5^2*I5-2*F5*A5*J5*I5*H5+F5*B5*I5^3-2*E5*G5*A5*J5*I5-2*E5*G5*I5*H5*B5+E5*G5^2*B5*J5-1*E5*G5^2*H5*A5+E5*I5^2*H5*A5-1*E5*I5^2*B5*J5+F5*G5^3*A5+F5*G5*A5*I5^2-2*F5*G5*B5*J5*H5-1*F5*G5*A5*H5^2+F5*G5*A5*J5^2)/(2*G5^2*J5^2+2*I5^2*H5^2-2*G5^2*H5^2+G5^4+I5^4+H5^4+2*G5^2*I5^2-8*G5*J5*I5*H5+J5^4+2*J5^2*H5^2-2*I5^2*J5^2)/A5/B5 -> -0.0006391639059 | K28: =0.5*(-1*D5*J5*H5^2-1*C5*I5^3+E5*G5^3-1*C5*I5*H5^2+C5*I5*J5^2-1*D5*J5^3+D5*I5^2*J5+2*D5*G5*I5*H5-2*E5*J5*I5*H5-1*E5*G5*H5^2+E5*G5*J5^2+E5*G5*I5^2-2*F5*G5*I5*J5+2*C5*H5*G5*J5+F5*H5^3-1*F5*G5^2*H5-1*C5*I5*G5^2-1*D5*G5^2*J5+F5*J5^2*H5+F5*I5^2*H5)/(2*G5^2*J5^2+2*I5^2*H5^2-2*G5^2*H5^2+G5^4+I5^4+H5^4+2*G5^2*I5^2-8*G5*J5*I5*H5+J5^4+2*J5^2*H5^2-2*I5^2*J5^2)/A5/B5 -> 0 | L28: =-0.5*(-1*B5^4*I5*H5^2*C5-4*A5^2*B5^2*J5*I5*H5*E5+2*A5^2*B5^2*H5*J5^2*F5+2*A5^2*B5^2*G5*I5^2*E5+2*A5^2*B5^2*H5^3*F5-1*A5^4*C5*I5*G5^2-2*A5^4*F5*G5*I5*J5+A5^4*D5*I5^2*J5-1*A5^4*D5*J5*H5^2-1*A5^4*D5*G5^2*J5+A5^4*F5*H5^3-1*B5^4*J5*H5^2*D5-1*B5^4*G5*H5^2*E5-2*B5^4*J5*I5*H5*E5+B5^4*I5^2*J5*D5+I5*B5^4*J5^2*C5+2*H5*G5*B5^4*J5*C5-1*I5*G5^2*B5^4*C5+B5^4*H5*J5^2*F5+B5^4*G5*I5^2*E5+B5^4*G5*J5^2*E5-2*G5*B5^4*J5*I5*F5+2*G5*B5^4*I5*H5*D5-1*G5^2*B5^4*J5*D5-1*G5^2*B5^4*H5*F5+B5^4*I5^2*H5*F5+A5^4*C5*I5*J5^2+A5^4*E5*G5*I5^2+2*A5^4*D5*G5*I5*H5-1*A5^4*C5*I5^3-1*A5^4*E5*G5*H5^2-1*A5^4*C5*I5*H5^2+A5^4*E5*G5^3-1*A5^4*F5*G5^2*H5+2*A5^4*C5*H5*G5*J5+A5^4*F5*J5^2*H5+A5^4*F5*I5^2*H5+A5^4*E5*G5*J5^2+2*A5^2*B5^2*I5^2*H5*F5-2*A5^2*B5^2*I5*H5^2*C5-2*A5^2*B5^2*J5*H5^2*D5-2*A5^4*E5*J5*I5*H5-4*A5^2*G5*B5^2*J5*I5*F5+2*A5^2*B5^2*I5^2*J5*D5-2*A5^2*B5^2*G5*H5^2*E5-2*A5^2*J5^3*B5^2*D5+4*A5^2*H5*G5*B5^2*J5*C5+2*A5^2*B5^2*G5^3*E5-2*A5^2*G5^2*B5^2*J5*D5-2*A5^2*I5*G5^2*B5^2*C5+4*A5^2*G5*B5^2*I5*H5*D5-2*A5^2*B5^2*I5^3*C5+2*A5^2*B5^2*G5*J5^2*E5-2*A5^2*G5^2*B5^2*H5*F5+2*A5^2*I5*B5^2*J5^2*C5-1*A5^4*D5*J5^3+B5^4*H5^3*F5-1*J5^3*B5^4*D5-1*B5^4*I5^3*C5+B5^4*G5^3*E5)/(2*G5^2*J5^2+2*I5^2*H5^2-2*G5^2*H5^2+G5^4+I5^4+H5^4+2*G5^2*I5^2-8*G5*J5*I5*H5+J5^4+2*J5^2*H5^2-2*I5^2*J5^2)/A5/B5 -> 0 | M28: =-0.5*(-1*H5^3*B5*A5^2*C5+H5^3*B5^2*A5*E5-1*B5^3*H5^2*I5*F5-1*H5^3*B5^3*C5-1*A5^3*J5^3*C5-1*A5^3*I5^3*D5-1*G5^3*B5^3*D5-1*B5^3*I5^3*F5+2*A5*I5^3*K5*D5-1*G5^2*A5^2*I5*F5*B5-1*A5^3*H5^2*I5*D5-1*A5*H5^2*I5*B5^2*D5-1*G5^2*A5^3*I5*D5-1*A5*I5^3*B5^2*D5-1*A5^2*I5^3*F5*B5+G5*H5^2*B5*A5^2*D5-1*G5*H5^2*B5^2*A5*F5+A5^2*J5^2*I5*F5*B5-1*G5*J5^2*B5^3*D5+2*G5*A5*J5*H5*B5^2*D5+2*G5*A5^2*J5*H5*F5*B5+2*G5*A5^3*J5*H5*D5+A5*J5^2*I5*B5^2*D5-1*G5*J5^2*B5*A5^2*D5-1*A5^2*H5^2*I5*F5*B5-1*G5^2*A5*I5*B5^2*D5+A5^3*J5^2*I5*D5-1*G5*I5^2*B5*A5^2*D5+G5*I5^2*B5^2*A5*F5-1*G5*I5^2*B5^3*D5+G5*H5^2*B5^3*D5+A5^3*J5*I5^2*C5+A5*J5*I5^2*B5^2*C5+H5^3*A5^3*E5+H5*J5^2*B5^2*A5*E5-1*H5*I5^2*B5^3*C5+2*I5*G5*B5^3*J5*C5-1*H5*J5^2*B5^3*C5+H5*G5^2*B5*A5^2*C5-1*A5^2*J5^3*E5*B5-1*A5*J5^3*B5^2*C5+H5*G5^2*B5^3*C5-1*H5*G5^2*B5^2*A5*E5+2*H5*G5*A5^3*I5*C5+2*H5*G5*A5*I5*B5^2*C5-1*A5*J5*H5^2*B5^2*C5+2*H5*G5*A5^2*I5*E5*B5+G5^3*B5^2*A5*F5-1*A5^3*J5*H5^2*C5-1*H5*I5^2*B5*A5^2*C5+H5*I5^2*B5^2*A5*E5+A5^2*J5*I5^2*E5*B5-1*H5*J5^2*B5*A5^2*C5-1*J5*H5^2*B5^3*E5+2*I5*G5*B5*J5*A5^2*C5-2*I5*G5*B5^2*J5*A5*E5+2*J5*I5*H5*B5*A5^2*D5+2*J5*I5*H5*B5^3*D5-1*J5*G5^2*A5^2*E5*B5-1*J5*G5^2*A5^3*C5-1*G5^3*B5*A5^2*D5-1*J5*G5^2*A5*B5^2*C5-2*J5*I5*H5*B5^2*A5*F5+G5*A5^3*J5^2*F5-2*A5^3*J5*I5*H5*F5+G5*A5^3*I5^2*F5+J5^2*A5^3*H5*E5-2*G5*A5^3*J5*I5*E5+I5^2*B5^3*J5*E5+I5^2*H5*A5^3*E5-1*G5^2*B5^3*J5*E5-1*G5^2*H5*A5^3*E5-1*G5^2*B5^3*I5*F5+2*G5*I5*H5*B5^3*E5+2*G5*B5^3*J5*H5*F5-1*G5*A5^3*H5^2*F5-1*A5^2*J5*H5^2*E5*B5+B5^3*J5^2*I5*F5+G5^3*A5^3*F5-1*J5^3*B5^3*E5+G5*J5^2*B5^2*A5*F5-2*H5^3*B5*K5*C5+4*J5*I5*H5*B5*K5*D5-2*J5*G5^2*K5*E5*B5-2*G5^3*B5*K5*D5-2*I5^3*K5*F5*B5-2*G5^2*I5*K5*F5*B5-2*H5^2*I5*K5*F5*B5-2*G5*J5^2*B5*K5*D5+2*G5*H5^2*B5*K5*D5+2*J5^2*I5*K5*F5*B5+4*G5*J5*H5*K5*F5*B5-2*G5*I5^2*B5*K5*D5+2*J5*I5^2*K5*E5*B5-2*H5*J5^2*B5*K5*C5-2*H5*I5^2*B5*K5*C5+4*I5*G5*B5*J5*K5*C5-2*J5^3*K5*E5*B5+4*H5*G5*I5*K5*E5*B5+2*H5*G5^2*B5*K5*C5-2*G5*I5^2*K5*A5*F5-4*G5*A5*J5*H5*K5*D5-2*A5*J5*I5^2*K5*C5-2*H5*I5^2*K5*A5*E5-2*H5*J5^2*K5*A5*E5-2*G5^3*K5*A5*F5+2*A5*J5*H5^2*K5*C5-4*H5*G5*A5*I5*K5*C5-2*J5*H5^2*K5*E5*B5+4*I5*G5*J5*K5*A5*E5+2*A5*J5^3*K5*C5+2*H5*G5^2*K5*A5*E5+2*J5*G5^2*A5*K5*C5+4*J5*I5*H5*K5*A5*F5-2*H5^3*K5*A5*E5+2*G5^2*A5*I5*K5*D5+2*A5*H5^2*I5*K5*D5-2*A5*J5^2*I5*K5*D5-2*G5*J5^2*K5*A5*F5+2*G5*H5^2*K5*A5*F5)/(2*G5^2*J5^2+2*I5^2*H5^2-2*G5^2*H5^2+G5^4+I5^4+H5^4+2*G5^2*I5^2-8*G5*J5*I5*H5+J5^4+2*J5^2*H5^2-2*I5^2*J5^2)/A5/B5 -> -0.2609750105 | N28: =0.5*(-1*A5^2*C5*I5*H5^2+B5^2*I5*H5^2*C5-1*A5^2*C5*I5^3+A5^2*C5*I5*J5^2+B5^2*J5*H5^2*D5+A5^2*D5*I5^2*J5-2*A5*J5*I5^2*F5*B5+2*A5*G5^3*C5*B5+A5^2*F5*I5^2*H5-2*A5^2*E5*J5*I5*H5+2*A5*H5^2*I5*E5*B5+2*A5*J5*H5^2*F5*B5+2*A5*I5^2*H5*D5*B5+2*A5*J5^2*H5*D5*B5-4*A5*J5*I5*H5*C5*B5+2*A5*H5^3*D5*B5-2*A5*I5*J5^2*E5*B5-1*B5^2*H5*J5^2*F5-1*A5^2*D5*G5^2*J5+A5^2*E5*G5*I5^2+2*A5*J5^3*F5*B5+2*A5*I5^3*E5*B5-4*A5*H5*G5*J5*E5*B5+2*A5*I5*G5^2*E5*B5-2*A5*G5^2*H5*D5*B5-4*A5*G5*H5*I5*F5*B5-4*A5*G5*J5*I5*D5*B5-2*A5*G5*H5^2*C5*B5+2*A5*G5^2*J5*F5*B5+2*A5*G5*I5^2*C5*B5+2*A5*G5*J5^2*C5*B5-1*B5^2*I5^2*H5*F5+2*B5^2*J5*I5*H5*E5+A5^2*F5*J5^2*H5-1*A5^2*D5*J5*H5^2-1*B5^2*G5*I5^2*E5-1*B5^2*G5*J5^2*E5+2*G5*B5^2*J5*I5*F5-2*G5*B5^2*I5*H5*D5+G5^2*B5^2*H5*F5+G5^2*B5^2*J5*D5-2*H5*G5*B5^2*J5*C5+B5^2*I5^3*C5+I5*G5^2*B5^2*C5+B5^2*G5*H5^2*E5-1*A5^2*D5*J5^3-1*A5^2*C5*I5*G5^2-2*A5^2*F5*G5*I5*J5+2*A5^2*D5*G5*I5*H5-1*A5^2*F5*G5^2*H5-1*A5^2*E5*G5*H5^2+2*A5^2*C5*H5*G5*J5+A5^2*E5*G5*J5^2-1*B5^2*H5^3*F5+A5^2*F5*H5^3+J5^3*B5^2*D5-1*B5^2*G5^3*E5-1*B5^2*I5^2*J5*D5+A5^2*E5*G5^3-1*I5*B5^2*J5^2*C5)/(2*G5^2*J5^2+2*I5^2*H5^2-2*G5^2*H5^2+G5^4+I5^4+H5^4+2*G5^2*I5^2-8*G5*J5*I5*H5+J5^4+2*J5^2*H5^2-2*I5^2*J5^2)/A5/B5 -> 0.01243038319 | O28: =0.5*(-1*A5*H5^2*I5*D5+A5*J5^2*I5*D5-1*H5*G5^2*B5*C5+J5^3*E5*B5+H5^2*J5*E5*B5+I5^3*F5*B5+H5^3*B5*C5-2*H5*I5*J5*B5*D5+H5^2*I5*F5*B5-1*J5^2*I5*F5*B5+G5^3*B5*D5+G5^2*I5*F5*B5+G5*B5*J5^2*D5+J5*G5^2*E5*B5-2*H5*G5*I5*E5*B5+H5*B5*I5^2*C5-1*I5^2*J5*E5*B5+H5*B5*J5^2*C5-2*I5*G5*J5*B5*C5+2*G5*A5*H5*J5*D5-1*G5^2*A5*I5*D5-1*G5*H5^2*A5*F5+G5*I5^2*A5*F5+G5*J5^2*A5*F5-1*H5*G5^2*A5*E5-2*I5*G5*J5*A5*E5+2*H5*G5*A5*I5*C5+H5^3*A5*E5+H5*J5^2*A5*E5-1*A5*H5^2*J5*C5+A5*I5^2*J5*C5+H5*I5^2*A5*E5-2*H5*I5*J5*A5*F5-1*J5*G5^2*A5*C5-1*A5*J5^3*C5+G5^3*A5*F5-1*A5*I5^3*D5-2*G5*H5*J5*F5*B5+G5*B5*I5^2*D5-1*G5*H5^2*B5*D5)/(2*G5^2*J5^2+2*I5^2*H5^2-2*G5^2*H5^2+G5^4+I5^4+H5^4+2*G5^2*I5^2-8*G5*J5*I5*H5+J5^4+2*J5^2*H5^2-2*I5^2*J5^2)/A5/B5 -> -0.0006391639059 | P28: =-0.5*(-2*G5^3*B5^2*K5*A5*F5+G5^3*B5^5*D5+B5^5*I5^3*F5+A5*I5^2*J5*B5^4*C5-2*A5^2*I5^2*J5*B5^3*E5+2*B5^3*H5^3*A5^2*C5+B5^4*H5^3*A5*E5+B5^5*H5^3*C5-1*A5^5*J5^3*C5-2*H5*G5^2*B5^3*K5*C5+2*H5*G5^2*B5^2*K5*A5*E5-4*H5*G5*A5^3*I5*K5*C5-4*H5*G5*A5*I5*K5*B5^2*C5-4*H5*G5*A5^2*I5*K5*E5*B5+2*A5^3*J5*H5^2*K5*C5+2*A5*J5*H5^2*K5*B5^2*C5+H5*B5^4*I5^2*A5*E5-2*A5^3*B5^2*H5^2*J5*C5-1*A5*B5^4*H5^2*J5*C5+2*A5^2*B5^3*H5^2*J5*E5-1*H5*G5^2*A5^4*B5*C5-2*H5*G5^2*A5^3*B5^2*E5-2*H5*G5^2*B5*K5*A5^2*C5+H5*B5^4*J5^2*A5*E5+2*H5*G5*A5^5*I5*C5-2*H5*G5*A5^4*I5*E5*B5-4*H5*G5*A5^2*B5^3*I5*E5-2*I5*G5*A5^4*J5*B5*C5+2*H5*A5^2*B5^3*I5^2*C5+2*H5*A5^3*B5^2*I5^2*E5+4*H5*G5*A5^3*B5^2*I5*C5+2*A5^2*J5^3*K5*E5*B5+H5*A5^4*B5*J5^2*C5+2*H5*A5^2*B5^3*J5^2*C5+2*H5*A5^3*B5^2*J5^2*E5+2*A5*J5^3*K5*B5^2*C5+H5*A5^4*B5*I5^2*C5+2*H5*G5*A5*B5^4*I5*C5-4*I5*G5*A5^3*J5*B5^2*E5+H5*B5^5*J5^2*C5-1*A5^5*H5^2*J5*C5+2*H5^3*B5^3*K5*C5+H5*B5^5*I5^2*C5+2*H5*J5^2*B5^3*K5*C5-2*H5*J5^2*B5^2*K5*A5*E5-1*A5^4*I5^2*J5*E5*B5+2*H5*I5^2*B5*K5*A5^2*C5+2*H5*I5^2*B5^3*K5*C5-2*H5*I5^2*B5^2*K5*A5*E5+2*A5^3*J5^3*K5*C5-2*I5*G5*J5*B5^5*C5-2*I5*G5*J5*B5^4*A5*E5-4*I5*G5*B5*J5*K5*A5^2*C5-4*I5*G5*B5^3*J5*K5*C5-4*I5*G5*J5*B5^3*A5^2*C5+4*I5*G5*B5^2*J5*K5*A5*E5-2*A5^3*J5*I5^2*K5*C5-2*A5*J5*I5^2*K5*B5^2*C5-2*A5^2*J5*I5^2*K5*E5*B5+2*H5*J5^2*B5*K5*A5^2*C5-2*H5*G5^2*B5^3*A5^2*C5-1*H5*G5^2*B5^4*A5*E5-2*J5*G5^2*A5^3*B5^2*C5+J5*G5^2*A5^4*E5*B5-2*A5^3*J5^3*B5^2*C5+A5^4*J5^3*E5*B5-1*H5*G5^2*B5^5*C5-1*J5*G5^2*A5^5*C5-1*A5*B5^4*J5^3*C5+2*A5^2*B5^3*J5^3*E5+A5^5*I5^2*J5*C5+2*A5^3*I5^2*J5*B5^2*C5+G5*B5^4*J5^2*A5*F5+2*J5*H5^2*B5^3*K5*E5-2*G5*A5^5*I5*J5*E5+G5*B5^5*J5^2*D5+G5^2*J5*B5^5*E5-1*G5^2*H5*A5^5*E5-2*H5^3*A5^3*K5*E5-1*I5^2*J5*B5^5*E5+I5^2*H5*A5^5*E5-2*G5*A5^4*H5*J5*F5*B5+G5^2*A5^4*I5*F5*B5-1*G5*B5^4*H5^2*A5*F5+G5*B5^4*I5^2*A5*F5-2*G5*A5^3*H5^2*B5^2*F5+G5*A5^4*B5*J5^2*D5+2*G5*A5^2*B5^3*J5^2*D5+2*G5*A5^3*B5^2*J5^2*F5-2*G5^2*A5^3*B5^2*I5*D5-1*G5^2*A5*B5^4*I5*D5+2*G5^2*A5^2*B5^3*I5*F5+2*G5*A5^5*H5*J5*D5+H5^3*A5^5*E5+G5*A5^4*B5*I5^2*D5+2*G5*A5^2*B5^3*I5^2*D5+2*G5*A5^3*B5^2*I5^2*F5-4*G5*A5^3*J5*H5*K5*D5-4*G5*A5*J5*H5*K5*B5^2*D5-4*G5*A5^2*J5*H5*K5*F5*B5-1*G5*A5^4*H5^2*B5*D5-2*G5*A5^2*H5^2*B5^3*D5+2*G5*I5^2*B5*K5*A5^2*D5-2*G5*I5^2*B5^2*K5*A5*F5+J5^3*B5^5*E5+2*G5*A5*B5^4*H5*J5*D5-4*G5*A5^2*B5^3*H5*J5*F5+2*G5*I5^2*B5^3*K5*D5-2*G5*H5^2*B5*K5*A5^2*D5-2*G5*H5^2*B5^3*K5*D5+2*G5*H5^2*B5^2*K5*A5*F5-2*A5^2*J5^2*I5*K5*F5*B5-1*A5*H5^2*I5*B5^4*D5-2*A5*J5^2*I5*K5*B5^2*D5+2*A5^2*H5^2*I5*B5^3*F5+2*G5*J5^2*B5*K5*A5^2*D5+2*G5*J5^2*B5^3*K5*D5-2*G5*J5^2*B5^2*K5*A5*F5+4*G5*A5^3*B5^2*H5*J5*D5+2*A5^2*H5^2*I5*K5*F5*B5+2*G5^2*A5*I5*K5*B5^2*D5+2*G5^2*A5^2*I5*K5*F5*B5-2*A5^3*J5^2*I5*K5*D5+2*A5^3*H5^2*I5*K5*D5+2*A5*H5^2*I5*K5*B5^2*D5+2*G5^2*A5^3*I5*K5*D5+A5*J5^2*B5^4*I5*D5-2*A5^2*J5^2*B5^3*I5*F5+2*A5*I5^3*K5*B5^2*D5+2*A5^2*I5^3*K5*F5*B5+G5^3*A5^4*B5*D5+2*G5^3*A5^3*B5^2*F5-1*A5*B5^4*I5^3*D5+2*A5^2*B5^3*I5^3*F5+2*A5^3*I5^3*K5*D5-1*G5^2*A5^5*I5*D5-1*G5*B5^5*H5^2*D5+G5*B5^5*I5^2*D5-2*A5^3*H5^2*I5*B5^2*D5+A5^4*H5^2*I5*F5*B5-2*A5^4*H5*I5*J5*B5*D5-4*A5^3*H5*I5*J5*B5^2*F5-1*A5^4*J5^2*I5*F5*B5-4*J5*I5*H5*B5*K5*A5^2*D5-4*J5*I5*H5*B5^3*K5*D5+2*J5*G5^2*A5^2*K5*E5*B5+A5^5*J5^2*I5*D5)/(2*G5^2*J5^2+2*I5^2*H5^2-2*G5^2*H5^2+G5^4+I5^4+H5^4+2*G5^2*I5^2-8*G5*J5*I5*H5+J5^4+2*J5^2*H5^2-2*I5^2*J5^2)/A5/B5-0.5*(-2*A5^3*I5^3*B5^2*D5+A5^4*I5^3*F5*B5+2*G5^3*B5^3*A5^2*D5+G5^3*B5^4*A5*F5-1*A5^5*I5^3*D5-1*J5*G5^2*A5*B5^4*C5+2*J5*G5^2*A5^2*B5^3*E5+2*J5*G5^2*A5^3*K5*C5+2*G5^3*B5*K5*A5^2*D5+A5^4*H5^2*J5*E5*B5+2*H5^3*B5*K5*A5^2*C5-2*H5^3*B5^2*K5*A5*E5+A5^4*H5^3*B5*C5+2*A5^3*H5^3*B5^2*E5+2*G5^3*B5^3*K5*D5+2*A5^2*J5*H5^2*K5*E5*B5+2*J5*G5^2*A5*K5*B5^2*C5+2*A5^3*J5^2*I5*B5^2*D5+4*J5*I5*H5*B5^2*K5*A5*F5-4*B5^3*H5*I5*J5*A5^2*D5-2*B5^5*H5*I5*J5*D5-2*B5^4*H5*I5*J5*A5*F5-1*A5^5*H5^2*I5*D5-2*A5^5*H5*I5*J5*F5+G5^2*I5*B5^5*F5-1*B5^5*J5^2*I5*F5+2*B5^3*H5^2*I5*K5*F5-2*B5^3*J5^2*I5*K5*F5+2*B5^3*I5^3*K5*F5+B5^5*H5^2*I5*F5+G5*A5^5*I5^2*F5-2*G5^3*A5^3*K5*F5-4*G5*I5*H5*B5^3*K5*E5-2*G5*I5*H5*B5^5*E5-2*J5^2*A5^3*H5*K5*E5+4*G5*A5^3*J5*I5*K5*E5+2*J5^3*B5^3*K5*E5+J5^2*A5^5*H5*E5+J5*B5^5*H5^2*E5-1*G5*A5^5*H5^2*F5+G5^3*A5^5*F5-2*I5^2*B5^3*J5*K5*E5-2*I5^2*H5*A5^3*K5*E5+2*G5^2*B5^3*J5*K5*E5+2*G5^2*H5*A5^3*K5*E5-4*G5*B5^3*J5*H5*K5*F5+G5*A5^5*J5^2*F5+4*A5^3*J5*I5*H5*K5*F5+2*G5^2*B5^3*I5*K5*F5-2*G5*A5^3*I5^2*K5*F5+2*G5*A5^3*H5^2*K5*F5-2*G5*H5*J5*B5^5*F5-2*G5*A5^3*J5^2*K5*F5)/(2*G5^2*J5^2+2*I5^2*H5^2-2*G5^2*H5^2+G5^4+I5^4+H5^4+2*G5^2*I5^2-8*G5*J5*I5*H5+J5^4+2*J5^2*H5^2-2*I5^2*J5^2)/A5/B5 -> 88.39831778 | Q28: =-0.5*(-4*I5^3*K5^2*C5+4*H5^3*K5^2*F5-4*J5^3*K5^2*D5+4*G5^3*K5^2*E5-1*B5^4*I5*H5^2*C5-4*A5^2*B5^2*J5*I5*H5*E5+2*A5^2*B5^2*H5*J5^2*F5+2*A5^2*B5^2*G5*I5^2*E5+2*A5^2*B5^2*H5^3*F5-1*A5^4*C5*I5*G5^2-2*A5^4*F5*G5*I5*J5+A5^4*D5*I5^2*J5-1*A5^4*D5*J5*H5^2-1*A5^4*D5*G5^2*J5+A5^4*F5*H5^3-4*J5*H5^2*K5^2*D5-4*J5*G5^2*K5^2*D5+4*I5^2*H5*K5^2*F5+4*G5*I5^2*K5^2*E5+4*G5*J5^2*K5^2*E5-4*G5*H5^2*K5^2*E5-4*K5*J5^2*A5^2*H5*F5-4*K5*J5*H5^2*B5^2*D5+4*K5*I5^2*B5^2*J5*D5-4*K5*I5^2*H5*A5^2*F5-4*K5*G5^2*B5^2*J5*D5+4*K5*G5^2*H5*A5^2*F5+4*K5*H5*J5^2*B5^2*F5-8*K5*G5*A5^2*J5*H5*C5+4*K5*H5^3*B5^2*F5+4*K5*A5^2*J5^3*D5+4*K5*G5^3*B5^2*E5+4*K5*A5^2*I5^3*C5-4*K5*J5^3*B5^2*D5-4*K5*H5^3*A5^2*F5-4*K5*G5^3*A5^2*E5-4*K5*B5^2*I5^3*C5-4*K5*G5^2*B5^2*I5*C5-4*K5*G5*A5^2*J5^2*E5+4*K5*G5*A5^2*H5^2*E5-4*K5*G5*A5^2*I5^2*E5+8*K5*A5^2*J5*I5*H5*E5+4*K5*B5^2*J5^2*I5*C5-4*K5*B5^2*H5^2*I5*C5+8*K5*G5*A5^2*J5*I5*F5+8*K5*G5*I5*H5*B5^2*D5+4*K5*G5^2*A5^2*I5*C5+4*K5*G5*I5^2*B5^2*E5+4*K5*G5*J5^2*B5^2*E5-4*K5*G5*H5^2*B5^2*E5-4*K5*A5^2*J5*I5^2*D5-8*K5*I5*G5*B5^2*J5*F5-4*K5*H5*G5^2*B5^2*F5+4*K5*J5*G5^2*A5^2*D5+4*K5*A5^2*J5*H5^2*D5-8*K5*H5*G5*A5^2*I5*D5+4*K5*H5*I5^2*B5^2*F5-8*K5*J5*I5*H5*B5^2*E5+4*K5*A5^2*H5^2*I5*C5-4*K5*A5^2*J5^2*I5*C5-8*G5*J5*I5*K5^2*F5-8*J5*I5*H5*K5^2*E5+8*K5*G5*B5^2*J5*H5*C5+8*H5*G5*I5*K5^2*D5+8*G5*J5*H5*K5^2*C5+4*J5^2*H5*K5^2*F5-4*G5^2*I5*K5^2*C5-4*H5^2*I5*K5^2*C5+4*J5^2*I5*K5^2*C5+4*J5*I5^2*K5^2*D5-4*G5^2*H5*K5^2*F5-1*B5^4*J5*H5^2*D5-1*B5^4*G5*H5^2*E5-2*B5^4*J5*I5*H5*E5+B5^4*I5^2*J5*D5+I5*B5^4*J5^2*C5+2*H5*G5*B5^4*J5*C5-1*I5*G5^2*B5^4*C5+B5^4*H5*J5^2*F5+B5^4*G5*I5^2*E5+B5^4*G5*J5^2*E5-2*G5*B5^4*J5*I5*F5+2*G5*B5^4*I5*H5*D5-1*G5^2*B5^4*J5*D5-1*G5^2*B5^4*H5*F5+B5^4*I5^2*H5*F5+A5^4*C5*I5*J5^2+A5^4*E5*G5*I5^2+2*A5^4*D5*G5*I5*H5-1*A5^4*C5*I5^3-1*A5^4*E5*G5*H5^2-1*A5^4*C5*I5*H5^2+A5^4*E5*G5^3-1*A5^4*F5*G5^2*H5+2*A5^4*C5*H5*G5*J5+A5^4*F5*J5^2*H5+A5^4*F5*I5^2*H5+A5^4*E5*G5*J5^2+2*A5^2*B5^2*I5^2*H5*F5-2*A5^2*B5^2*I5*H5^2*C5-2*A5^2*B5^2*J5*H5^2*D5-2*A5^4*E5*J5*I5*H5-4*A5^2*G5*B5^2*J5*I5*F5+2*A5^2*B5^2*I5^2*J5*D5-2*A5^2*B5^2*G5*H5^2*E5-2*A5^2*J5^3*B5^2*D5+4*A5^2*H5*G5*B5^2*J5*C5+2*A5^2*B5^2*G5^3*E5-2*A5^2*G5^2*B5^2*J5*D5-2*A5^2*I5*G5^2*B5^2*C5+4*A5^2*G5*B5^2*I5*H5*D5-2*A5^2*B5^2*I5^3*C5+2*A5^2*B5^2*G5*J5^2*E5-2*A5^2*G5^2*B5^2*H5*F5+2*A5^2*I5*B5^2*J5^2*C5-1*A5^4*D5*J5^3+B5^4*H5^3*F5-1*J5^3*B5^4*D5-1*B5^4*I5^3*C5+B5^4*G5^3*E5)/(2*G5^2*J5^2+2*I5^2*H5^2-2*G5^2*H5^2+G5^4+I5^4+H5^4+2*G5^2*I5^2-8*G5*J5*I5*H5+J5^4+2*J5^2*H5^2-2*I5^2*J5^2)/B5/A5 -> 0 | R28: =0.5*(-2*G5*I5^2*K5*A5*F5+2*A5*I5^3*K5*D5+3*A5^2*I5^3*F5*B5-1*I5*G5^2*B5^3*F5-1*I5*G5^2*A5^3*D5-1*A5^3*H5^2*I5*D5+3*B5^2*I5^3*A5*D5-1*B5^3*I5^3*F5-1*A5^3*I5^3*D5-1*J5^3*B5^3*E5-1*A5^3*J5^3*C5-1*G5^3*B5^3*D5+G5^3*A5^3*F5+3*A5^2*J5^2*H5*C5*B5-3*G5^2*A5^2*H5*C5*B5+3*G5^2*H5*B5^2*A5*E5-2*G5*A5^3*J5*I5*E5-6*G5*A5^2*J5*I5*C5*B5+6*G5*J5*I5*B5^2*A5*E5+2*G5*J5*I5*B5^3*C5-3*B5^2*I5^2*H5*A5*E5-3*B5^2*J5^2*H5*A5*E5+3*A5^2*I5^2*H5*C5*B5+G5^2*H5*B5^3*C5+3*A5^2*H5^3*C5*B5-1*B5^3*I5^2*H5*C5-1*B5^3*J5^2*H5*C5+A5^3*I5^2*H5*E5+A5^3*J5^2*H5*E5-1*G5^2*A5^3*H5*E5+6*J5*H5*B5^2*I5*A5*F5+2*J5*H5*B5^3*I5*D5+3*G5^3*A5^2*D5*B5+3*G5*A5^2*J5^2*D5*B5-3*G5*H5^2*A5^2*D5*B5-6*J5*A5^2*H5*I5*D5*B5-3*G5*B5^2*I5^2*A5*F5-1*G5*B5^3*I5^2*D5-1*G5*B5^3*J5^2*D5+G5*A5^3*I5^2*F5+G5*A5^3*J5^2*F5-1*G5*H5^2*A5^3*F5-3*B5^2*H5^3*A5*E5-3*G5*B5^2*J5^2*A5*F5+2*G5*H5*B5^3*I5*E5+3*G5*H5^2*B5^2*A5*F5+3*G5*A5^2*I5^2*D5*B5-2*J5*A5^3*H5*I5*F5-1*B5^3*H5^3*C5+A5^3*H5^3*E5-6*G5*A5^2*H5*I5*E5*B5-6*G5*H5*B5^2*I5*A5*C5-3*A5^2*J5*I5^2*E5*B5+3*G5^2*A5^2*J5*E5*B5+3*G5^2*J5*B5^2*A5*C5+3*A5^2*J5*H5^2*E5*B5-1*G5^2*J5*B5^3*E5-3*G5^3*B5^2*A5*F5+G5*H5^2*B5^3*D5+2*G5*A5^3*H5*I5*C5+3*J5*B5^2*H5^2*A5*C5-1*A5^3*J5*H5^2*C5+A5^3*J5*I5^2*C5-1*G5^2*A5^3*J5*C5+3*A5^2*J5^3*E5*B5+J5*B5^3*I5^2*E5-1*J5*B5^3*H5^2*E5-3*J5*B5^2*I5^2*A5*C5-6*H5*G5*A5^2*J5*F5*B5 -6*H5*G5*J5*B5^2*A5*D5+I5*A5^3*J5^2*D5+3*I5*G5^2*A5^2*F5*B5+3*A5^2*H5^2*I5*F5*B5+3*H5^2*B5^2*I5*A5*D5-1*H5^2*B5^3*I5*F5+I5*B5^3*J5^2*F5+3*I5*G5^2*B5^2*A5*D5+2*H5*G5*A5^3*J5*D5+2*H5*G5*J5*B5^3*F5-3*I5*B5^2*J5^2*A5*D5-3*I5*A5^2*J5^2*F5*B5+3*J5^3*B5^2*A5*C5+4*J5*I5*H5*B5*K5*D5-2*J5*G5^2*K5*E5*B5-2*G5^3*B5*K5*D5-2*H5^3*B5*K5*C5-2*I5^3*K5*F5*B5-2*G5^2*I5*K5*F5*B5-2*H5^2*I5*K5*F5*B5+4*G5*J5*H5*K5*F5*B5-2*G5*I5^2*B5*K5*D5+2*G5*H5^2*B5*K5*D5+2*J5^2*I5*K5*F5*B5-2*G5*J5^2*B5*K5*D5+2*J5*I5^2*K5*E5*B5-2*H5*J5^2*B5*K5*C5-2*H5*I5^2*B5*K5*C5+4*I5*G5*B5*J5*K5*C5-2*J5^3*K5*E5*B5+2*H5*G5^2*B5*K5*C5+4*H5*G5*I5*K5*E5*B5+2*H5*G5^2*K5*A5*E5+2*A5*J5*H5^2*K5*C5-4*H5*G5*A5*I5*K5*C5-2*G5^3*K5*A5*F5-2*J5*H5^2*K5*E5*B5-2*H5*I5^2*K5*A5*E5-2*H5*J5^2*K5*A5*E5+2*J5*G5^2*A5*K5*C5+4*J5*I5*H5*K5*A5*F5-2*H5^3*K5*A5*E5+4*I5*G5*J5*K5*A5*E5-2*A5*J5*I5^2*K5*C5+2*A5*J5^3*K5*C5+2*A5*H5^2*I5*K5*D5+2*G5*H5^2*K5*A5*F5-2*A5*J5^2*I5*K5*D5-2*G5*J5^2*K5*A5*F5+2*G5^2*A5*I5*K5*D5-4*G5*A5*J5*H5*K5*D5)/(2*G5^2*J5^2+2*I5^2*H5^2-2*G5^2*H5^2+G5^4+I5^4+H5^4+2*G5^2*I5^2-8*G5*J5*I5*H5+J5^4+2*J5^2*H5^2-2*I5^2*J5^2)/B5/A5 -> -0.2164997099 | S28: =0.5*(2*G5^2*H5*K5*F5+I5^3*B5^2*C5-2*G5^3*K5*E5+2*I5^3*K5*C5-2*H5^3*K5*F5+2*J5^3*K5*D5-1*H5^3*B5^2*F5+A5^2*H5^3*F5-1*I5^3*A5^2*C5+2*H5^3*B5*A5*D5+2*A5*J5^3*F5*B5+2*G5^3*B5*A5*C5+2*A5*I5^3*E5*B5+2*G5*J5^2*B5*A5*C5-2*G5*H5^2*B5*A5*C5+2*H5*J5^2*B5*A5*D5-2*A5*J5*I5^2*F5*B5-4*I5*G5*B5*J5*A5*D5-4*B5*J5*I5*H5*A5*C5+2*A5*H5^2*I5*E5*B5-2*A5*J5^2*I5*E5*B5+2*G5^2*A5*I5*E5*B5-4*G5*A5*J5*H5*E5*B5-2*H5*G5^2*B5*A5*D5+2*J5*G5^2*A5*F5*B5+2*A5*J5*H5^2*F5*B5-4*H5*G5*A5*I5*F5*B5+2*H5*I5^2*B5*A5*D5+2*G5*I5^2*B5*A5*C5-2*G5*J5^2*K5*E5+2*G5*H5^2*K5*E5+2*J5*H5^2*K5*D5-2*I5^2*H5*K5*F5-2*G5*I5^2*K5*E5-2*J5^2*H5*K5*F5+2*G5^2*I5*K5*C5+2*H5^2*I5*K5*C5+4*J5*I5*H5*K5*E5-2*J5^2*I5*K5*C5-4*G5*J5*H5*K5*C5+4*G5*J5*I5*K5*F5-2*J5*I5^2*K5*D5+2*J5*G5^2*K5*D5-4*H5*G5*I5*K5*D5+B5^2*G5*H5^2*E5-2*G5*I5*H5*B5^2*D5-2*H5*G5*J5*B5^2*C5+2*B5^2*J5*I5*H5*E5-1*B5^2*G5*I5^2*E5-1*B5^2*G5^3*E5+I5*G5^2*B5^2*C5-1*B5^2*G5*J5^2*E5+J5^3*B5^2*D5+I5*H5^2*B5^2*C5-1*I5^2*J5*B5^2*D5-1*J5^2*B5^2*H5*F5-1*B5^2*I5^2*H5*F5+J5*H5^2*B5^2*D5-1*I5*J5^2*B5^2*C5+2*G5*B5^2*I5*J5*F5+G5^2*J5*B5^2*D5+G5^2*B5^2*H5*F5+2*H5*G5*J5*A5^2*C5-2*A5^2*J5*I5*H5*E5+A5^2*G5^3*E5+2*G5*I5*H5*A5^2*D5-2*G5*A5^2*J5*I5*F5-1*A5^2*G5*H5^2*E5-1*I5*H5^2*A5^2*C5-1*J5^3*A5^2*D5-1*I5*G5^2*A5^2*C5-1*J5*H5^2*A5^2*D5+I5*J5^2*A5^2*C5+A5^2*G5*J5^2*E5+A5^2*G5*I5^2*E5-1*G5^2*A5^2*H5*F5-1*G5^2*J5*A5^2*D5+A5^2*I5^2*H5*F5+A5^2*H5*J5^2*F5+I5^2*J5*A5^2*D5)/(2*G5^2*J5^2+2*I5^2*H5^2-2*G5^2*H5^2+G5^4+I5^4+H5^4+2*G5^2*I5^2-8*G5*J5*I5*H5+J5^4+2*J5^2*H5^2-2*I5^2*J5^2)/B5/A5 -> 0.01243038319
B29: K2calcb | D29: =(A4^2*I4*E4*G4^2-1*A4^2*I4*E4*H4^2-1*A4^2*J4*F4*G4^2+A4^2*J4*F4*H4^2+B4^2*G4*C4*J4^2-1*B4^2*G4*C4*I4^2-1*B4^2*H4*D4*J4^2+B4^2*H4*D4*I4^2)/(-1*A4^2*J4^2+B4^2*J4^2-1*I4^2*B4^2+A4^2*I4^2)/(G4^2-1*H4^2) ->  | E29: =(-1*C4*B4^3*H4*J4^2+C4*B4^3*H4*I4^2-1*E4*A4^3*J4*G4^2+D4*B4^3*G4*J4^2-1*D4*B4^3*G4*I4^2+E4*A4^3*J4*H4^2+F4*A4^3*I4*G4^2-1*F4*A4^3*I4*H4^2+2*C4*B4*H4*K4*J4^2-2*C4*B4*H4*K4*I4^2-2*D4*B4*K4*G4*J4^2+2*D4*B4*K4*G4*I4^2+2*A4*E4*J4*K4*G4^2-2*A4*E4*J4*K4*H4^2-2*A4*F4*K4*I4*G4^2+2*A4*F4*K4*I4*H4^2)/(-1*A4^2*J4^2+B4^2*J4^2-1*I4^2*B4^2+A4^2*I4^2)/B4/A4/(G4^2-1*H4^2) ->  | F29: =-1*(-1*G4*C4*I4^2+H4*D4*I4^2+I4*E4*G4^2-1*I4*E4*H4^2-1*H4*D4*J4^2+G4*C4*J4^2-1*J4*F4*G4^2+J4*F4*H4^2)/(-1*A4^2*J4^2+B4^2*J4^2-1*I4^2*B4^2+A4^2*I4^2)/(G4^2-1*H4^2) ->  | G29: =-1*(-1*A4*F4*I4*H4^2-1*A4*E4*J4*G4^2+A4*E4*J4*H4^2+A4*F4*I4*G4^2+C4*B4*H4*I4^2-1*D4*B4*G4*I4^2+D4*B4*G4*J4^2-1*C4*B4*H4*J4^2)/(-1*A4^2*J4^2+B4^2*J4^2-1*I4^2*B4^2+A4^2*I4^2)/B4/A4/(G4^2-1*H4^2) ->  | H29: =(-1*A4*F4*I4*H4^2-1*A4*E4*J4*G4^2+A4*E4*J4*H4^2+A4*F4*I4*G4^2+C4*B4*H4*I4^2-1*D4*B4*G4*I4^2+D4*B4*G4*J4^2-1*C4*B4*H4*J4^2)*A4*B4/(-1*A4^2*J4^2+B4^2*J4^2-1*I4^2*B4^2+A4^2*I4^2)/(G4^2-1*H4^2) ->  | I29: =(-1*B4^2*H4*D4*J4^2+B4^2*H4*D4*I4^2+B4^2*G4*C4*J4^2-1*B4^2*G4*C4*I4^2-1*A4^2*J4*F4*G4^2+A4^2*I4*E4*G4^2-1*A4^2*I4*E4*H4^2+A4^2*J4*F4*H4^2-2*D4*H4*K4*I4^2+2*D4*H4*K4*J4^2+2*C4*K4*G4*I4^2-2*C4*K4*G4*J4^2+2*F4*J4*K4*G4^2-2*F4*J4*K4*H4^2-2*E4*K4*I4*G4^2+2*E4*K4*I4*H4^2)/(-1*A4^2*J4^2+B4^2*J4^2-1*I4^2*B4^2+A4^2*I4^2)/(G4^2-1*H4^2) ->  | J29: =-1*(-1*A4*D4*I4^2*G4-1*A4*C4*H4*J4^2+A4*C4*H4*I4^2+A4*D4*J4^2*G4-1*F4*B4*I4*H4^2+E4*B4*J4*H4^2+F4*B4*I4*G4^2-1*E4*B4*J4*G4^2)/(-1*A4^2*J4^2+B4^2*J4^2-1*I4^2*B4^2+A4^2*I4^2)/(G4^2-1*H4^2) ->  | K29: =-1*(-1*G4*C4*I4^2+H4*D4*I4^2+I4*E4*G4^2-1*I4*E4*H4^2-1*H4*D4*J4^2+G4*C4*J4^2-1*J4*F4*G4^2+J4*F4*H4^2)/(-1*A4^2*J4^2+B4^2*J4^2-1*I4^2*B4^2+A4^2*I4^2)/(G4^2-1*H4^2) ->  | L29: =(-1*G4*C4*I4^2+H4*D4*I4^2+I4*E4*G4^2-1*I4*E4*H4^2-1*H4*D4*J4^2+G4*C4*J4^2-1*J4*F4*G4^2+J4*F4*H4^2)*B4^2*A4^2/(-1*A4^2*J4^2+B4^2*J4^2-1*I4^2*B4^2+A4^2*I4^2)/(G4^2-1*H4^2) ->  | M29: =(-1*C4*A4*H4*B4^2*J4^2+C4*A4*H4*I4^2*B4^2+D4*J4^2*A4*B4^2*G4-1*D4*I4^2*A4*B4^2*G4-1*E4*A4^2*B4*J4*G4^2+F4*B4*A4^2*I4*G4^2+E4*A4^2*B4*J4*H4^2-1*F4*B4*A4^2*I4*H4^2+2*E4*B4*J4*K4*G4^2-2*E4*B4*J4*K4*H4^2-2*F4*B4*K4*I4*G4^2+2*F4*B4*K4*I4*H4^2+2*A4*C4*H4*K4*J4^2-2*A4*D4*K4*G4*J4^2-2*A4*C4*H4*K4*I4^2+2*A4*D4*K4*G4*I4^2)/(-1*A4^2*J4^2+B4^2*J4^2-1*I4^2*B4^2+A4^2*I4^2)/(G4^2-1*H4^2) ->  | N29: =-1*(G4*C4*A4^2*J4^2-1*H4*D4*A4^2*J4^2-1*G4*C4*A4^2*I4^2+H4*D4*A4^2*I4^2+I4*E4*B4^2*G4^2-1*I4*E4*B4^2*H4^2-1*J4*F4*B4^2*G4^2+J4*F4*B4^2*H4^2)/(-1*A4^2*J4^2+B4^2*J4^2-1*I4^2*B4^2+A4^2*I4^2)/(G4^2-1*H4^2) ->  | O29: =-1*(-1*A4*D4*I4^2*G4-1*A4*C4*H4*J4^2+A4*C4*H4*I4^2+A4*D4*J4^2*G4-1*F4*B4*I4*H4^2+E4*B4*J4*H4^2+F4*B4*I4*G4^2-1*E4*B4*J4*G4^2)/(-1*A4^2*J4^2+B4^2*J4^2-1*I4^2*B4^2+A4^2*I4^2)/(G4^2-1*H4^2) ->  | P29: =-1*A4^3*B4^2*G4/(-1*B4^2+A4^2)/(G4^2-1*H4^2)*D4+1*B4^2*A4^3*H4/(-1*B4^2+A4^2)/(G4^2-1*H4^2)*C4+B4^3*A4^2*I4/(-1*A4^2*J4^2+B4^2*J4^2-1*I4^2*B4^2+A4^2*I4^2)*F4-1*B4^3*J4*A4^2/(-1*A4^2*J4^2+B4^2*J4^2-1*I4^2*B4^2+A4^2*I4^2)*E4+2*A4*B4^2*G4/(-1*B4^2+A4^2)/(G4^2-1*H4^2)*K4*D4-2*B4^2*A4*H4/(-1*B4^2+A4^2)/(G4^2-1*H4^2)*K4*C4-2*B4*A4^2*I4/(-1*A4^2*J4^2+B4^2*J4^2-1*I4^2*B4^2+A4^2*I4^2)*K4*F4+2*B4*J4*A4^2/(-1*A4^2*J4^2+B4^2*J4^2-1*I4^2*B4^2+A4^2*I4^2)*K4*E4 ->  | Q29: =(B4^2*G4*C4*A4^2*J4^2-1*B4^2*G4*C4*A4^2*I4^2-1*B4^2*H4*D4*A4^2*J4^2+B4^2*H4*D4*A4^2*I4^2+A4^2*I4*E4*B4^2*G4^2-1*A4^2*I4*E4*B4^2*H4^2-1*J4*A4^2*F4*B4^2*G4^2+J4*A4^2*F4*B4^2*H4^2+2*D4*H4*K4*A4^2*J4^2+2*D4*H4*B4^2*K4*J4^2-2*D4*H4*B4^2*K4*I4^2-2*D4*H4*K4*A4^2*I4^2-2*C4*K4*G4*B4^2*J4^2-2*C4*K4*G4*A4^2*J4^2+2*C4*K4*G4*I4^2*B4^2+2*C4*K4*G4*A4^2*I4^2+2*F4*J4*K4*A4^2*G4^2-2*F4*J4*K4*A4^2*H4^2+2*F4*J4*K4*B4^2*G4^2-2*F4*J4*K4*B4^2*H4^2-2*E4*K4*A4^2*I4*G4^2+2*E4*K4*A4^2*I4*H4^2-2*E4*K4*B4^2*I4*G4^2+2*E4*K4*B4^2*I4*H4^2+4*K4^2*C4*G4*J4^2+4*F4*K4^2*J4*H4^2+4*K4^2*D4*H4*I4^2-4*F4*K4^2*J4*G4^2-4*K4^2*D4*H4*J4^2-4*K4^2*C4*G4*I4^2+4*E4*K4^2*I4*G4^2-4*E4*K4^2*I4*H4^2)/(-1*A4^2*J4^2+B4^2*J4^2-1*I4^2*B4^2+A4^2*I4^2)/(G4^2-1*H4^2) ->  | R29: =-1*(-1*D4*I4^2*A4^3*G4-1*C4*A4^3*H4*J4^2+C4*A4^3*H4*I4^2+D4*J4^2*A4^3*G4+2*A4*C4*H4*K4*J4^2-2*A4*C4*H4*K4*I4^2-2*A4*D4*K4*G4*J4^2+2*A4*D4*K4*G4*I4^2-1*E4*B4^3*J4*G4^2-1*F4*B4^3*I4*H4^2+E4*B4^3*J4*H4^2+F4*B4^3*I4*G4^2+2*E4*B4*J4*K4*G4^2-2*E4*B4*J4*K4*H4^2+2*F4*B4*K4*I4*H4^2-2*F4*B4*K4*I4*G4^2)/(-1*A4^2*J4^2+B4^2*J4^2-1*I4^2*B4^2+A4^2*I4^2)/(G4^2-1*H4^2) ->  | S29: =-1*(G4*C4*A4^2*J4^2-1*H4*D4*A4^2*J4^2-1*G4*C4*A4^2*I4^2+H4*D4*A4^2*I4^2+J4*F4*B4^2*H4^2+2*D4*H4*K4*J4^2-2*C4*K4*G4*J4^2-2*D4*H4*K4*I4^2+I4*E4*B4^2*G4^2-2*E4*K4*I4*G4^2+2*E4*K4*I4*H4^2-1*J4*F4*B4^2*G4^2+2*C4*K4*G4*I4^2+2*F4*J4*K4*G4^2-2*F4*J4*K4*H4^2-1*I4*E4*B4^2*H4^2)/(-1*A4^2*J4^2+B4^2*J4^2-1*I4^2*B4^2+A4^2*I4^2)/(G4^2-1*H4^2) -> 
D30: =(A5^2*I5*E5*G5^2-1*A5^2*I5*E5*H5^2-1*A5^2*J5*F5*G5^2+A5^2*J5*F5*H5^2+B5^2*G5*C5*J5^2-1*B5^2*G5*C5*I5^2-1*B5^2*H5*D5*J5^2+B5^2*H5*D5*I5^2)/(-1*A5^2*J5^2+B5^2*J5^2-1*I5^2*B5^2+A5^2*I5^2)/(G5^2-1*H5^2) ->  | E30: =(-1*C5*B5^3*H5*J5^2+C5*B5^3*H5*I5^2-1*E5*A5^3*J5*G5^2+D5*B5^3*G5*J5^2-1*D5*B5^3*G5*I5^2+E5*A5^3*J5*H5^2+F5*A5^3*I5*G5^2-1*F5*A5^3*I5*H5^2+2*C5*B5*H5*K5*J5^2-2*C5*B5*H5*K5*I5^2-2*D5*B5*K5*G5*J5^2+2*D5*B5*K5*G5*I5^2+2*A5*E5*J5*K5*G5^2-2*A5*E5*J5*K5*H5^2-2*A5*F5*K5*I5*G5^2+2*A5*F5*K5*I5*H5^2)/(-1*A5^2*J5^2+B5^2*J5^2-1*I5^2*B5^2+A5^2*I5^2)/B5/A5/(G5^2-1*H5^2) ->  | F30: =-1*(-1*G5*C5*I5^2+H5*D5*I5^2+I5*E5*G5^2-1*I5*E5*H5^2-1*H5*D5*J5^2+G5*C5*J5^2-1*J5*F5*G5^2+J5*F5*H5^2)/(-1*A5^2*J5^2+B5^2*J5^2-1*I5^2*B5^2+A5^2*I5^2)/(G5^2-1*H5^2) ->  | G30: =-1*(-1*A5*F5*I5*H5^2-1*A5*E5*J5*G5^2+A5*E5*J5*H5^2+A5*F5*I5*G5^2+C5*B5*H5*I5^2-1*D5*B5*G5*I5^2+D5*B5*G5*J5^2-1*C5*B5*H5*J5^2)/(-1*A5^2*J5^2+B5^2*J5^2-1*I5^2*B5^2+A5^2*I5^2)/B5/A5/(G5^2-1*H5^2) ->  | H30: =(-1*A5*F5*I5*H5^2-1*A5*E5*J5*G5^2+A5*E5*J5*H5^2+A5*F5*I5*G5^2+C5*B5*H5*I5^2-1*D5*B5*G5*I5^2+D5*B5*G5*J5^2-1*C5*B5*H5*J5^2)*A5*B5/(-1*A5^2*J5^2+B5^2*J5^2-1*I5^2*B5^2+A5^2*I5^2)/(G5^2-1*H5^2) ->  | I30: =(-1*B5^2*H5*D5*J5^2+B5^2*H5*D5*I5^2+B5^2*G5*C5*J5^2-1*B5^2*G5*C5*I5^2-1*A5^2*J5*F5*G5^2+A5^2*I5*E5*G5^2-1*A5^2*I5*E5*H5^2+A5^2*J5*F5*H5^2-2*D5*H5*K5*I5^2+2*D5*H5*K5*J5^2+2*C5*K5*G5*I5^2-2*C5*K5*G5*J5^2+2*F5*J5*K5*G5^2-2*F5*J5*K5*H5^2-2*E5*K5*I5*G5^2+2*E5*K5*I5*H5^2)/(-1*A5^2*J5^2+B5^2*J5^2-1*I5^2*B5^2+A5^2*I5^2)/(G5^2-1*H5^2) ->  | J30: =-1*(-1*A5*D5*I5^2*G5-1*A5*C5*H5*J5^2+A5*C5*H5*I5^2+A5*D5*J5^2*G5-1*F5*B5*I5*H5^2+E5*B5*J5*H5^2+F5*B5*I5*G5^2-1*E5*B5*J5*G5^2)/(-1*A5^2*J5^2+B5^2*J5^2-1*I5^2*B5^2+A5^2*I5^2)/(G5^2-1*H5^2) ->  | K30: =-1*(-1*G5*C5*I5^2+H5*D5*I5^2+I5*E5*G5^2-1*I5*E5*H5^2-1*H5*D5*J5^2+G5*C5*J5^2-1*J5*F5*G5^2+J5*F5*H5^2)/(-1*A5^2*J5^2+B5^2*J5^2-1*I5^2*B5^2+A5^2*I5^2)/(G5^2-1*H5^2) ->  | L30: =(-1*G5*C5*I5^2+H5*D5*I5^2+I5*E5*G5^2-1*I5*E5*H5^2-1*H5*D5*J5^2+G5*C5*J5^2-1*J5*F5*G5^2+J5*F5*H5^2)*B5^2*A5^2/(-1*A5^2*J5^2+B5^2*J5^2-1*I5^2*B5^2+A5^2*I5^2)/(G5^2-1*H5^2) ->  | M30: =(-1*C5*A5*H5*B5^2*J5^2+C5*A5*H5*I5^2*B5^2+D5*J5^2*A5*B5^2*G5-1*D5*I5^2*A5*B5^2*G5-1*E5*A5^2*B5*J5*G5^2+F5*B5*A5^2*I5*G5^2+E5*A5^2*B5*J5*H5^2-1*F5*B5*A5^2*I5*H5^2+2*E5*B5*J5*K5*G5^2-2*E5*B5*J5*K5*H5^2-2*F5*B5*K5*I5*G5^2+2*F5*B5*K5*I5*H5^2+2*A5*C5*H5*K5*J5^2-2*A5*D5*K5*G5*J5^2-2*A5*C5*H5*K5*I5^2+2*A5*D5*K5*G5*I5^2)/(-1*A5^2*J5^2+B5^2*J5^2-1*I5^2*B5^2+A5^2*I5^2)/(G5^2-1*H5^2) ->  | N30: =-1*(G5*C5*A5^2*J5^2-1*H5*D5*A5^2*J5^2-1*G5*C5*A5^2*I5^2+H5*D5*A5^2*I5^2+I5*E5*B5^2*G5^2-1*I5*E5*B5^2*H5^2-1*J5*F5*B5^2*G5^2+J5*F5*B5^2*H5^2)/(-1*A5^2*J5^2+B5^2*J5^2-1*I5^2*B5^2+A5^2*I5^2)/(G5^2-1*H5^2) ->  | O30: =-1*(-1*A5*D5*I5^2*G5-1*A5*C5*H5*J5^2+A5*C5*H5*I5^2+A5*D5*J5^2*G5-1*F5*B5*I5*H5^2+E5*B5*J5*H5^2+F5*B5*I5*G5^2-1*E5*B5*J5*G5^2)/(-1*A5^2*J5^2+B5^2*J5^2-1*I5^2*B5^2+A5^2*I5^2)/(G5^2-1*H5^2) ->  | P30: =-1*A5^3*B5^2*G5/(-1*B5^2+A5^2)/(G5^2-1*H5^2)*D5+1*B5^2*A5^3*H5/(-1*B5^2+A5^2)/(G5^2-1*H5^2)*C5+B5^3*A5^2*I5/(-1*A5^2*J5^2+B5^2*J5^2-1*I5^2*B5^2+A5^2*I5^2)*F5-1*B5^3*J5*A5^2/(-1*A5^2*J5^2+B5^2*J5^2-1*I5^2*B5^2+A5^2*I5^2)*E5+2*A5*B5^2*G5/(-1*B5^2+A5^2)/(G5^2-1*H5^2)*K5*D5-2*B5^2*A5*H5/(-1*B5^2+A5^2)/(G5^2-1*H5^2)*K5*C5-2*B5*A5^2*I5/(-1*A5^2*J5^2+B5^2*J5^2-1*I5^2*B5^2+A5^2*I5^2)*K5*F5+2*B5*J5*A5^2/(-1*A5^2*J5^2+B5^2*J5^2-1*I5^2*B5^2+A5^2*I5^2)*K5*E5 ->  | Q30: =(B5^2*G5*C5*A5^2*J5^2-1*B5^2*G5*C5*A5^2*I5^2-1*B5^2*H5*D5*A5^2*J5^2+B5^2*H5*D5*A5^2*I5^2+A5^2*I5*E5*B5^2*G5^2-1*A5^2*I5*E5*B5^2*H5^2-1*J5*A5^2*F5*B5^2*G5^2+J5*A5^2*F5*B5^2*H5^2+2*D5*H5*K5*A5^2*J5^2+2*D5*H5*B5^2*K5*J5^2-2*D5*H5*B5^2*K5*I5^2-2*D5*H5*K5*A5^2*I5^2-2*C5*K5*G5*B5^2*J5^2-2*C5*K5*G5*A5^2*J5^2+2*C5*K5*G5*I5^2*B5^2+2*C5*K5*G5*A5^2*I5^2+2*F5*J5*K5*A5^2*G5^2-2*F5*J5*K5*A5^2*H5^2+2*F5*J5*K5*B5^2*G5^2-2*F5*J5*K5*B5^2*H5^2-2*E5*K5*A5^2*I5*G5^2+2*E5*K5*A5^2*I5*H5^2-2*E5*K5*B5^2*I5*G5^2+2*E5*K5*B5^2*I5*H5^2+4*K5^2*C5*G5*J5^2+4*F5*K5^2*J5*H5^2+4*K5^2*D5*H5*I5^2-4*F5*K5^2*J5*G5^2-4*K5^2*D5*H5*J5^2-4*K5^2*C5*G5*I5^2+4*E5*K5^2*I5*G5^2-4*E5*K5^2*I5*H5^2)/(-1*A5^2*J5^2+B5^2*J5^2-1*I5^2*B5^2+A5^2*I5^2)/(G5^2-1*H5^2) ->  | R30: =-1*(-1*D5*I5^2*A5^3*G5-1*C5*A5^3*H5*J5^2+C5*A5^3*H5*I5^2+D5*J5^2*A5^3*G5+2*A5*C5*H5*K5*J5^2-2*A5*C5*H5*K5*I5^2-2*A5*D5*K5*G5*J5^2+2*A5*D5*K5*G5*I5^2-1*E5*B5^3*J5*G5^2-1*F5*B5^3*I5*H5^2+E5*B5^3*J5*H5^2+F5*B5^3*I5*G5^2+2*E5*B5*J5*K5*G5^2-2*E5*B5*J5*K5*H5^2+2*F5*B5*K5*I5*H5^2-2*F5*B5*K5*I5*G5^2)/(-1*A5^2*J5^2+B5^2*J5^2-1*I5^2*B5^2+A5^2*I5^2)/(G5^2-1*H5^2) ->  | S30: =-1*(G5*C5*A5^2*J5^2-1*H5*D5*A5^2*J5^2-1*G5*C5*A5^2*I5^2+H5*D5*A5^2*I5^2+J5*F5*B5^2*H5^2+2*D5*H5*K5*J5^2-2*C5*K5*G5*J5^2-2*D5*H5*K5*I5^2+I5*E5*B5^2*G5^2-2*E5*K5*I5*G5^2+2*E5*K5*I5*H5^2-1*J5*F5*B5^2*G5^2+2*C5*K5*G5*I5^2+2*F5*J5*K5*G5^2-2*F5*J5*K5*H5^2-1*I5*E5*B5^2*H5^2)/(-1*A5^2*J5^2+B5^2*J5^2-1*I5^2*B5^2+A5^2*I5^2)/(G5^2-1*H5^2) ->  | X30: w03 | Y30: th03
B31: K2calcalong | D31: =(-C4*A4*H4+C4*B4*G4+D4*A4*G4+D4*B4*H4)/(B4*(G4^2+H4^2)) -> 1 | E31: =(-C4*H4+D4*G4)/(B4*(G4^2+H4^2)) -> 0 | F31: =0 -> 0 | G31: =0 -> 0 | H31: =-(-H4*A4^2*C4+B4^2*G4*D4-B4^2*H4*C4+A4^2*G4*D4)/(B4*(G4^2+H4^2)) -> -1.024257635e-15 | I31: =-(-C4*A4*H4-D4*B4*H4+D4*A4*G4-C4*B4*G4)/(B4*(G4^2+H4^2)) -> 1 | J31: 0 | K31: 0 | L31: =(-A4^3*H4*C4-A4*H4*B4^2*C4-A4^2*H4*B4*D4-B4*G4*A4^2*C4-B4^3*G4*C4+B4^2*G4*A4*D4+A4^3*G4*D4-B4^3*H4*D4)/(B4*(G4^2+H4^2)) -> -338.7233038 | M31: =(-H4*A4^2*C4+B4^2*H4*C4-2*A4*H4*D4*B4+A4^2*G4*D4-B4^2*G4*D4-2*B4*G4*C4*A4)/(B4*(G4^2+H4^2)) -> -27.33185264 | N31: 0 | O31: 0 | P31: =-(-(A4^4)*H4*C4-2*A4*H4*B4^3*D4-2*A4^3*H4*B4*D4-2*B4*G4*A4^3*C4-2*B4^3*G4*A4*C4-B4^4*G4*D4+A4^4*G4*D4+B4^4*H4*C4+2*K4*H4*A4^2*C4-2*K4*B4^2*G4*D4+2*K4*B4^2*H4*C4-2*K4*A4^2*G4*D4)/(B4*(G4^2+H4^2)) -> 9257.935425 | Q31: =-(-A4^3*H4*C4+3*A4*H4*B4^2*C4+B4^3*H4*D4-3*A4^2*H4*B4*D4+A4^3*G4*D4-3*B4^2*G4*A4*D4+B4^3*G4*C4-3*B4*G4*A4^2*C4+2*K4*C4*A4*H4+2*K4*D4*B4*H4-2*K4*D4*A4*G4+2*K4*C4*B4*G4)/(B4*(G4^2+H4^2)) -> 338.7233038 | R31: 0 | S31: 0 | X31: =X22*D32+Y22*E32 ->  | Y31: =X22*H32+Y22*I32 -> 
D32: =(-C5*A5*H5+C5*B5*G5+D5*A5*G5+D5*B5*H5)/(B5*(G5^2+H5^2)) -> -0.0117969892 | E32: =(-C5*H5+D5*G5)/(B5*(G5^2+H5^2)) -> -0.0006259767438 | F32: 0 | G32: 0 | H32: =-(-H5*A5^2*C5+B5^2*G5*D5-B5^2*H5*C5+A5^2*G5*D5)/(B5*(G5^2+H5^2)) -> 0.2120329108 | I32: =-(-C5*A5*H5-D5*B5*H5+D5*A5*G5-C5*B5*G5)/(B5*(G5^2+H5^2)) -> 0.005312114913 | J32: 0 | K32: 0 | L32: =(-A5^3*H5*C5-A5*H5*B5^2*C5-A5^2*H5*B5*D5-B5*G5*A5^2*C5-B5^3*G5*C5+B5^2*G5*A5*D5+A5^3*G5*D5-B5^3*H5*D5)/(B5*(G5^2+H5^2)) -> -1.799337114 | M32: =(-H5*A5^2*C5+B5^2*H5*C5-2*A5*H5*D5*B5+A5^2*G5*D5-B5^2*G5*D5-2*B5*G5*C5*A5)/(B5*(G5^2+H5^2)) -> 0.0668429688 | N32: 0 | O32: 0 | P32: =-(-(A5^4)*H5*C5-2*A5*H5*B5^3*D5-2*A5^3*H5*B5*D5-2*B5*G5*A5^3*C5-2*B5^3*G5*A5*C5-B5^4*G5*D5+A5^4*G5*D5+B5^4*H5*C5+2*K5*H5*A5^2*C5-2*K5*B5^2*G5*D5+2*K5*B5^2*H5*C5-2*K5*A5^2*G5*D5)/(B5*(G5^2+H5^2)) -> -37.39527619 | Q32: =-(-A5^3*H5*C5+3*A5*H5*B5^2*C5+B5^3*H5*D5-3*A5^2*H5*B5*D5+A5^3*G5*D5-3*B5^2*G5*A5*D5+B5^3*G5*C5-3*B5*G5*A5^2*C5+2*K5*C5*A5*H5+2*K5*D5*B5*H5-2*K5*D5*A5*G5+2*K5*C5*B5*G5)/(B5*(G5^2+H5^2)) -> -3.995915158 | R32: 0 | S32: 0 | X32: =X23*D32+Y23*E32 ->  | Y32: =X23*H32+Y23*I32 -> 
B33: K2calcblong | D33: =(-B4*C4*H4+A4*D4*G4)/(G4*(-B4+A4)*H4) -> 1 | E33: =(-C4*H4+D4*G4)/(G4*(-B4+A4)*H4) -> 0 | F33: 0 | G33: 0 | H33: =-A4*B4*(-C4*H4+D4*G4)/(G4*(-B4+A4)*H4) -> 0 | I33: =-(-A4*C4*H4+B4*D4*G4)/(G4*(-B4+A4)*H4) -> 1 | J33: 0 | K33: 0 | L33: =A4*B4*(-A4*C4*H4+B4*D4*G4)/(G4*(-B4+A4)*H4) -> -168.4658783 | M33: =(-A4^2*C4*H4+B4^2*D4*G4)/(G4*(-B4+A4)*H4) -> 253.0643328 | N33: 0 | O33: 0 | P33: =-A4*B4*(-A4^2*C4*H4+B4^2*D4*G4+2*K4*C4*H4-2*K4*D4*G4)/(G4*(-B4+A4)*H4) -> -42632.70508 | Q33: =-(-A4^3*C4*H4+B4^3*D4*G4+2*K4*A4*C4*H4-2*K4*B4*D4*G4)/(G4*(-B4+A4)*H4) -> 437.6056212 | R33: 0 | S33: 0 | X33: =X24*D34+Y24*E34 ->  | Y33: =X24*H34+Y24*I34 -> 
D34: =(-B5*C5*H5+A5*D5*G5)/(G5*(-B5+A5)*H5) -> -0.1740791947 | E34: =(-C5*H5+D5*G5)/(G5*(-B5+A5)*H5) -> -0.01285230698 | F34: 0 | G34: 0 | H34: =-A5*B5*(-C5*H5+D5*G5)/(G5*(-B5+A5)*H5) -> 2.165175184 | I34: =-(-A5*C5*H5+B5*D5*G5)/(G5*(-B5+A5)*H5) -> 0.1599955208 | J34: 0 | K34: 0 | L34: =A5*B5*(-A5*C5*H5+B5*D5*G5)/(G5*(-B5+A5)*H5) -> -26.95378593 | M34: =(-A5^2*C5*H5+B5^2*D5*G5)/(G5*(-B5+A5)*H5) -> -1.558460442 | N34: 0 | O34: 0 | P34: =-A5*B5*(-A5^2*C5*H5+B5^2*D5*G5+2*K5*C5*H5-2*K5*D5*G5)/(G5*(-B5+A5)*H5) -> 111.8868079 | Q34: =-(-A5^3*C5*H5+B5^3*D5*G5+2*K5*A5*C5*H5-2*K5*B5*D5*G5)/(G5*(-B5+A5)*H5) -> 13.73474892 | R34: 0 | S34: 0 | X34: =X25*D34+Y25*E34 ->  | Y34: =X25*H34+Y25*I34 -> 
X35: =IF('Initial Parameter'!K16>'Initial Parameter'!M16,IF('Initial Parameter'!B10=1,'K value'!X31,'K value'!X32),IF('Initial Parameter'!B10=1,'K value'!X33,'K value'!X34)) ->  | Y35: =IF('Initial Parameter'!K16>'Initial Parameter'!M16,IF('Initial Parameter'!B10=1,'K value'!Y31,'K value'!Y32),IF('Initial Parameter'!B10=1,'K value'!Y33,'K value'!Y34)) -> 
B36: K3calca | D36: =-0.5*(A6^2*F6*I6^2*H6+B6^2*D6*J6^3-1*A6^2*D6*J6^3+A6^2*C6*I6*J6^2-2*A6*E6*B6*I6^3+2*A6*F6*B6*I6^2*J6+2*A6*E6*J6^2*B6*I6-1*B6^2*F6*H6^3+B6^2*C6*I6^3-1*A6^2*C6*I6^3+B6^2*D6*J6*H6^2+A6^2*F6*H6^3+2*B6^2*E6*J6*I6*H6+B6^2*C6*I6*H6^2-1*B6^2*F6*J6^2*H6-1*B6^2*F6*I6^2*H6-2*A6*F6*B6*J6*H6^2-2*A6*D6*B6*I6^2*H6-2*A6*E6*I6*H6^2*B6-2*A6*D6*H6^3*B6-2*A6*D6*J6^2*B6*H6-2*A6^2*E6*J6*I6*H6-1*A6^2*D6*J6*H6^2-1*A6^2*C6*I6*H6^2+A6^2*F6*J6^2*H6-1*B6^2*E6*G6^3+4*A6*C6*B6*J6*I6*H6+B6^2*D6*G6^2*J6+B6^2*C6*I6*G6^2+B6^2*F6*G6^2*H6-2*B6^2*C6*H6*G6*J6+2*B6^2*F6*G6*I6*J6-1*B6^2*E6*G6*I6^2-1*B6^2*E6*G6*J6^2+B6^2*E6*G6*H6^2-2*B6^2*D6*G6*I6*H6+4*A6*D6*G6*B6*I6*J6-2*A6^2*F6*G6*I6*J6+4*A6*F6*G6*B6*I6*H6-1*A6^2*D6*G6^2*J6-1*A6^2*C6*I6*G6^2-1*A6^2*F6*G6^2*H6+2*A6^2*C6*H6*G6*J6+A6^2*E6*G6*I6^2+A6^2*E6*G6*J6^2-1*A6^2*E6*G6*H6^2+A6^2*E6*G6^3+2*A6^2*D6*G6*I6*H6-2*A6*C6*B6*G6^3-2*A6*F6*G6^2*B6*J6+2*A6*C6*B6*G6*H6^2-2*A6*E6*G6^2*B6*I6-2*A6*C6*B6*G6*J6^2-2*A6*C6*B6*G6*I6^2+2*A6*D6*G6^2*B6*H6+4*A6*E6*G6*J6*B6*H6-2*A6*F6*B6*J6^3-1*B6^2*D6*I6^2*J6-1*B6^2*C6*I6*J6^2+A6^2*D6*I6^2*J6)/(2*G6^2*J6^2+2*I6^2*H6^2-2*G6^2*H6^2+G6^4+I6^4+H6^4+2*G6^2*I6^2-8*G6*J6*I6*H6+J6^4+2*J6^2*H6^2-2*I6^2*J6^2)/A6/B6 -> 1 | E36: =-0.5*(F6*G6^2*I6*B6^3-3*D6*G6^3*A6^2*B6-1*C6*A6^3*H6^2*J6-3*C6*A6^2*H6^3*B6-1*C6*J6*G6^2*A6^3+C6*B6^3*H6^3+2*C6*H6^3*B6*K6+3*C6*J6*G6^2*A6*B6^2+6*C6*I6*G6*A6^2*J6*B6-3*C6*H6*A6^2*B6*I6^2+2*C6*J6*G6^2*A6*K6-4*C6*H6*G6*A6*I6*K6+2*C6*A6*J6^3*K6+C6*H6*B6^3*J6^2+3*C6*A6*B6^2*J6^3+2*C6*H6*I6^2*B6*K6+2*C6*H6*J6^2*B6*K6-6*C6*H6*G6*A6*B6^2*I6-2*C6*A6*J6*I6^2*K6-3*C6*A6*I6^2*J6*B6^2-1*C6*H6*G6^2*B6^3+C6*A6^3*I6^2*J6+3*C6*A6*B6^2*H6^2*J6+2*C6*A6*J6*H6^2*K6-2*C6*H6*G6^2*B6*K6+3*C6*H6*G6^2*A6^2*B6+2*C6*H6*G6*A6^3*I6-1*C6*A6^3*J6^3+C6*H6*B6^3*I6^2-3*C6*H6*A6^2*B6*J6^2-4*D6*J6*I6*H6*B6*K6+2*D6*G6*A6^3*H6*J6+2*D6*G6*J6^2*B6*K6-2*D6*B6^3*H6*I6*J6+D6*G6^3*B6^3-1*D6*A6^3*I6^3+D6*A6^3*J6^2*I6-2*C6*I6*G6*J6*B6^3-4*C6*I6*G6*B6*J6*K6-3*D6*A6*J6^2*B6^2*I6+3*D6*A6*B6^2*I6^3+2*D6*A6*H6^2*I6*K6+2*D6*G6^2*A6*I6*K6+2*D6*A6*I6^3*K6+3*D6*G6^2*A6*B6^2*I6-1*D6*G6*B6^3*H6^2-3*D6*G6*A6^2*B6*I6^2-1*D6*G6^2*A6^3*I6-2*D6*G6*H6^2*B6*K6+2*D6*G6*I6^2*B6*K6-2*D6*A6*J6^2*I6*K6+D6*G6*B6^3*I6^2+3*D6*A6*H6^2*I6*B6^2-1*D6*A6^3*H6^2*I6+2*E6*J6^3*B6*K6+E6*J6^2*A6^3*H6-3*E6*J6*A6^2*H6^2*B6+2*E6*J6*H6^2*B6*K6-2*E6*J6^2*A6*H6*K6+E6*J6^3*B6^3+E6*H6^3*A6^3-4*D6*G6*A6*J6*H6*K6-3*D6*G6*A6^2*B6*J6^2+3*D6*G6*A6^2*H6^2*B6+6*D6*A6^2*H6*I6*J6*B6-6*D6*G6*A6*B6^2*H6*J6+2*D6*G6^3*B6*K6-3*E6*J6^3*A6^2*B6+D6*G6*B6^3*J6^2+3*E6*I6^2*A6^2*J6*B6-3*E6*H6^3*A6*B6^2+F6*B6^3*H6^2*I6-3*E6*J6^2*A6*B6^2*H6-2*E6*H6^3*A6*K6+E6*I6^2*H6*A6^3-1*E6*I6^2*J6*B6^3-1*E6*G6^2*H6*A6^3+E6*G6^2*J6*B6^3-2*E6*I6^2*H6*A6*K6-2*E6*I6^2*B6*J6*K6+2*E6*G6^2*B6*J6*K6-3*E6*I6^2*H6*A6*B6^2-3*E6*G6^2*A6^2*J6*B6+2*E6*G6^2*H6*A6*K6+6*E6*G6*A6*I6*J6*B6^2+3*E6*G6^2*H6*A6*B6^2+E6*J6*B6^3*H6^2-2*E6*G6*A6^3*I6*J6+F6*G6^3*A6^3+F6*B6^3*I6^3-4*E6*G6*I6*H6*B6*K6+6*E6*G6*I6*H6*A6^2*B6+4*E6*G6*A6*J6*I6*K6-2*E6*G6*I6*H6*B6^3+4*F6*A6*J6*I6*H6*K6-1*F6*G6*A6^3*H6^2+F6*G6*A6^3*I6^2+2*F6*G6^2*B6*I6*K6-3*F6*G6*A6*B6^2*I6^2-3*F6*G6^2*A6^2*I6*B6-2*F6*B6*J6^2*I6*K6+2*F6*B6*H6^2*I6*K6-3*F6*A6^2*B6*H6^2*I6-2*F6*A6^3*H6*I6*J6+3*F6*A6^2*B6*J6^2*I6+F6*G6*A6^3*J6^2+2*F6*G6*A6*H6^2*K6-2*F6*G6*A6*J6^2*K6-2*F6*G6*A6*I6^2*K6-2*F6*G6*H6*J6*B6^3+3*F6*G6*A6*B6^2*H6^2-3*F6*G6*A6*B6^2*J6^2+6*F6*G6*A6^2*H6*J6*B6-4*F6*G6*B6*J6*H6*K6+2*F6*B6*I6^3*K6-1*F6*B6^3*J6^2*I6+6*F6*A6*H6*I6*J6*B6^2-3*F6*G6^3*A6*B6^2-2*F6*G6^3*A6*K6-3*F6*A6^2*B6*I6^3)/A6/B6/(2*G6^2*A6^2*J6^2+G6^4*A6^2+A6^2*J6^4+A6^2*H6^4+2*G6^2*B6^2*I6^2-8*G6*A6^2*J6*I6*H6+2*G6^2*B6^2*J6^2+B6^2*H6^4+B6^2*I6^4-8*G6*B6^2*J6*I6*H6+2*A6^2*I6^2*H6^2+G6^4*B6^2-2*G6^2*A6^2*H6^2+2*G6^2*A6^2*I6^2+A6^2*I6^4+2*B6^2*J6^2*H6^2-2*B6^2*I6^2*J6^2-2*G6^2*B6^2*H6^2+2*B6^2*I6^2*H6^2+B6^2*J6^4+2*A6^2*J6^2*H6^2-2*A6^2*I6^2*J6^2) -> -8.52239752e-18 | F36: =0.5*(-1*D6*J6*H6^2-1*C6*I6^3+E6*G6^3-1*C6*I6*H6^2+C6*I6*J6^2-1*D6*J6^3+D6*I6^2*J6+2*D6*G6*I6*H6-2*E6*J6*I6*H6-1*E6*G6*H6^2+E6*G6*J6^2+E6*G6*I6^2-2*F6*G6*I6*J6+2*C6*H6*G6*J6+F6*H6^3-1*F6*G6^2*H6-1*C6*I6*G6^2-1*D6*G6^2*J6+F6*J6^2*H6+F6*I6^2*H6)/(2*G6^2*J6^2+2*I6^2*H6^2-2*G6^2*H6^2+G6^4+I6^4+H6^4+2*G6^2*I6^2-8*G6*J6*I6*H6+J6^4+2*J6^2*H6^2-2*I6^2*J6^2)/A6/B6 -> 0.0000E+00 | G36: =0.5*(-1*F6*G6^2*B6*I6-1*C6*H6^3*B6-1*D6*G6^2*A6*I6+2*D6*G6*A6*J6*H6-1*D6*A6*H6^2*I6-1*D6*A6*I6^3+2*C6*I6*G6*B6*J6+C6*H6*G6^2*B6-1*E6*J6^3*B6-1*D6*G6*J6^2*B6+C6*A6*J6*I6^2-1*C6*A6*J6*H6^2-1*C6*H6*J6^2*B6+E6*H6^3*A6-1*C6*H6*I6^2*B6+2*D6*J6*I6*H6*B6+2*C6*H6*G6*A6*I6-1*C6*A6*J6^3-1*C6*J6*G6^2*A6-1*D6*G6^3*B6+E6*J6^2*A6*H6+D6*A6*J6^2*I6-1*E6*J6*H6^2*B6+D6*G6*H6^2*B6-1*D6*G6*I6^2*B6+F6*B6*J6^2*I6-1*F6*B6*H6^2*I6-2*F6*A6*J6*I6*H6-1*F6*B6*I6^3-2*E6*G6*A6*J6*I6+2*E6*G6*I6*H6*B6-1*E6*G6^2*B6*J6-1*E6*G6^2*H6*A6+E6*I6^2*H6*A6+E6*I6^2*B6*J6+F6*G6^3*A6+F6*G6*A6*I6^2+2*F6*G6*B6*J6*H6-1*F6*G6*A6*H6^2+F6*G6*A6*J6^2)/A6/B6/(2*G6^2*A6^2*J6^2+G6^4*A6^2+A6^2*J6^4+A6^2*H6^4+2*G6^2*B6^2*I6^2-8*G6*A6^2*J6*I6*H6+2*G6^2*B6^2*J6^2+B6^2*H6^4+B6^2*I6^4-8*G6*B6^2*J6*I6*H6+2*A6^2*I6^2*H6^2+G6^4*B6^2-2*G6^2*A6^2*H6^2+2*G6^2*A6^2*I6^2+A6^2*I6^4+2*B6^2*J6^2*H6^2-2*B6^2*I6^2*J6^2-2*G6^2*B6^2*H6^2+2*B6^2*I6^2*H6^2+B6^2*J6^4+2*A6^2*J6^2*H6^2-2*A6^2*I6^2*J6^2) -> 9.511604375e-21 | H36: =-0.5*(-1*F6*G6^2*I6*B6^3-1*D6*G6^3*A6^2*B6-1*C6*A6^3*H6^2*J6-1*C6*A6^2*H6^3*B6-1*C6*J6*G6^2*A6^3-1*C6*B6^3*H6^3-1*C6*J6*G6^2*A6*B6^2+2*C6*I6*G6*A6^2*J6*B6-1*C6*H6*A6^2*B6*I6^2-1*C6*H6*B6^3*J6^2-1*C6*A6*B6^2*J6^3+2*C6*H6*G6*A6*B6^2*I6+C6*A6*I6^2*J6*B6^2+C6*H6*G6^2*B6^3+C6*A6^3*I6^2*J6-1*C6*A6*B6^2*H6^2*J6+C6*H6*G6^2*A6^2*B6+2*C6*H6*G6*A6^3*I6-1*C6*A6^3*J6^3-1*C6*H6*B6^3*I6^2-1*C6*H6*A6^2*B6*J6^2+2*D6*G6*A6^3*H6*J6+2*D6*B6^3*H6*I6*J6-1*D6*G6^3*B6^3-1*D6*A6^3*I6^3+D6*A6^3*J6^2*I6+2*C6*I6*G6*J6*B6^3+D6*A6*J6^2*B6^2*I6-1*D6*A6*B6^2*I6^3-1*D6*G6^2*A6*B6^2*I6+D6*G6*B6^3*H6^2-1*D6*G6*A6^2*B6*I6^2-1*D6*G6^2*A6^3*I6-1*D6*G6*B6^3*I6^2-1*D6*A6*H6^2*I6*B6^2-1*D6*A6^3*H6^2*I6+E6*J6^2*A6^3*H6-1*E6*J6*A6^2*H6^2*B6-1*E6*J6^3*B6^3+E6*H6^3*A6^3-1*D6*G6*A6^2*B6*J6^2+D6*G6*A6^2*H6^2*B6+2*D6*A6^2*H6*I6*J6*B6+2*D6*G6*A6*B6^2*H6*J6-1*E6*J6^3*A6^2*B6-1*D6*G6*B6^3*J6^2+E6*I6^2*A6^2*J6*B6+E6*H6^3*A6*B6^2-1*F6*B6^3*H6^2*I6+E6*J6^2*A6*B6^2*H6+E6*I6^2*H6*A6^3+E6*I6^2*J6*B6^3-1*E6*G6^2*H6*A6^3-1*E6*G6^2*J6*B6^3+E6*I6^2*H6*A6*B6^2-1*E6*G6^2*A6^2*J6*B6-2*E6*G6*A6*I6*J6*B6^2-1*E6*G6^2*H6*A6*B6^2-1*E6*J6*B6^3*H6^2-2*E6*G6*A6^3*I6*J6+F6*G6^3*A6^3-1*F6*B6^3*I6^3+2*E6*G6*I6*H6*A6^2*B6+2*E6*G6*I6*H6*B6^3-1*F6*G6*A6^3*H6^2+F6*G6*A6^3*I6^2+F6*G6*A6*B6^2*I6^2-1*F6*G6^2*A6^2*I6*B6-1*F6*A6^2*B6*H6^2*I6-2*F6*A6^3*H6*I6*J6+F6*A6^2*B6*J6^2*I6+F6*G6*A6^3*J6^2+2*F6*G6*H6*J6*B6^3-1*F6*G6*A6*B6^2*H6^2+F6*G6*A6*B6^2*J6^2+2*F6*G6*A6^2*H6*J6*B6+F6*B6^3*J6^2*I6-2*F6*A6*H6*I6*J6*B6^2+F6*G6^3*A6*B6^2-1*F6*A6^2*B6*I6^3)/(2*G6^2*J6^2+2*I6^2*H6^2-2*G6^2*H6^2+G6^4+I6^4+H6^4+2*G6^2*I6^2-8*G6*J6*I6*H6+J6^4+2*J6^2*H6^2-2*I6^2*J6^2)/A6/B6 -> -8.872427594e-16 | I36: =-0.5*(A6^2*F6*I6^2*H6+B6^2*D6*J6^3-1*A6^2*D6*J6^3+A6^2*C6*I6*J6^2-2*A6*E6*B6*I6^3+2*A6*F6*B6*I6^2*J6+2*A6*E6*J6^2*B6*I6+2*J6^3*K6*D6-2*G6^3*K6*E6-2*H6^3*K6*F6+2*H6^2*I6*K6*C6+2*G6^2*I6*K6*C6-2*J6^2*I6*K6*C6+2*J6*H6^2*K6*D6+2*J6*G6^2*K6*D6+2*G6*H6^2*K6*E6-2*G6*J6^2*K6*E6-2*G6*I6^2*K6*E6-2*J6^2*H6*K6*F6-2*I6^2*H6*K6*F6+2*G6^2*H6*K6*F6-2*J6*I6^2*K6*D6-4*H6*G6*I6*K6*D6+4*G6*J6*I6*K6*F6+4*J6*I6*H6*K6*E6-4*G6*J6*H6*K6*C6-1*B6^2*F6*H6^3+B6^2*C6*I6^3-1*A6^2*C6*I6^3+B6^2*D6*J6*H6^2+A6^2*F6*H6^3+2*B6^2*E6*J6*I6*H6+B6^2*C6*I6*H6^2-1*B6^2*F6*J6^2*H6-1*B6^2*F6*I6^2*H6-2*A6*F6*B6*J6*H6^2-2*A6*D6*B6*I6^2*H6-2*A6*E6*I6*H6^2*B6-2*A6*D6*H6^3*B6+2*I6^3*K6*C6-2*A6*D6*J6^2*B6*H6-2*A6^2*E6*J6*I6*H6-1*A6^2*D6*J6*H6^2-1*A6^2*C6*I6*H6^2+A6^2*F6*J6^2*H6-1*B6^2*E6*G6^3+4*A6*C6*B6*J6*I6*H6+B6^2*D6*G6^2*J6+B6^2*C6*I6*G6^2+B6^2*F6*G6^2*H6-2*B6^2*C6*H6*G6*J6+2*B6^2*F6*G6*I6*J6-1*B6^2*E6*G6*I6^2-1*B6^2*E6*G6*J6^2+B6^2*E6*G6*H6^2-2*B6^2*D6*G6*I6*H6+4*A6*D6*G6*B6*I6*J6-2*A6^2*F6*G6*I6*J6+4*A6*F6*G6*B6*I6*H6-1*A6^2*D6*G6^2*J6-1*A6^2*C6*I6*G6^2-1*A6^2*F6*G6^2*H6+2*A6^2*C6*H6*G6*J6+A6^2*E6*G6*I6^2+A6^2*E6*G6*J6^2-1*A6^2*E6*G6*H6^2+A6^2*E6*G6^3+2*A6^2*D6*G6*I6*H6-2*A6*C6*B6*G6^3-2*A6*F6*G6^2*B6*J6+2*A6*C6*B6*G6*H6^2-2*A6*E6*G6^2*B6*I6-2*A6*C6*B6*G6*J6^2-2*A6*C6*B6*G6*I6^2+2*A6*D6*G6^2*B6*H6+4*A6*E6*G6*J6*B6*H6-2*A6*F6*B6*J6^3-1*B6^2*D6*I6^2*J6-1*B6^2*C6*I6*J6^2+A6^2*D6*I6^2*J6)/(2*G6^2*J6^2+2*I6^2*H6^2-2*G6^2*H6^2+G6^4+I6^4+H6^4+2*G6^2*I6^2-8*G6*J6*I6*H6+J6^4+2*J6^2*H6^2-2*I6^2*J6^2)/A6/B6 -> 1 | J36: =0.5*(F6*G6^2*B6*I6+C6*H6^3*B6-1*D6*G6^2*A6*I6+2*D6*G6*A6*J6*H6-1*D6*A6*H6^2*I6-1*D6*A6*I6^3-2*C6*I6*G6*B6*J6-1*C6*H6*G6^2*B6+E6*J6^3*B6+D6*G6*J6^2*B6+C6*A6*J6*I6^2-1*C6*A6*J6*H6^2+C6*H6*J6^2*B6+E6*H6^3*A6+C6*H6*I6^2*B6-2*D6*J6*I6*H6*B6+2*C6*H6*G6*A6*I6-1*C6*A6*J6^3-1*C6*J6*G6^2*A6+D6*G6^3*B6+E6*J6^2*A6*H6+D6*A6*J6^2*I6+E6*J6*H6^2*B6-1*D6*G6*H6^2*B6+D6*G6*I6^2*B6-1*F6*B6*J6^2*I6+F6*B6*H6^2*I6-2*F6*A6*J6*I6*H6+F6*B6*I6^3-2*E6*G6*A6*J6*I6-2*E6*G6*I6*H6*B6+E6*G6^2*B6*J6-1*E6*G6^2*H6*A6+E6*I6^2*H6*A6-1*E6*I6^2*B6*J6+F6*G6^3*A6+F6*G6*A6*I6^2-2*F6*G6*B6*J6*H6-1*F6*G6*A6*H6^2+F6*G6*A6*J6^2)/(2*G6^2*J6^2+2*I6^2*H6^2-2*G6^2*H6^2+G6^4+I6^4+H6^4+2*G6^2*I6^2-8*G6*J6*I6*H6+J6^4+2*J6^2*H6^2-2*I6^2*J6^2)/A6/B6 -> -3.465792029e-18 | K36: =0.5*(-1*D6*J6*H6^2-1*C6*I6^3+E6*G6^3-1*C6*I6*H6^2+C6*I6*J6^2-1*D6*J6^3+D6*I6^2*J6+2*D6*G6*I6*H6-2*E6*J6*I6*H6-1*E6*G6*H6^2+E6*G6*J6^2+E6*G6*I6^2-2*F6*G6*I6*J6+2*C6*H6*G6*J6+F6*H6^3-1*F6*G6^2*H6-1*C6*I6*G6^2-1*D6*G6^2*J6+F6*J6^2*H6+F6*I6^2*H6)/(2*G6^2*J6^2+2*I6^2*H6^2-2*G6^2*H6^2+G6^4+I6^4+H6^4+2*G6^2*I6^2-8*G6*J6*I6*H6+J6^4+2*J6^2*H6^2-2*I6^2*J6^2)/A6/B6 -> 0 | L36: =-0.5*(-1*B6^4*I6*H6^2*C6-4*A6^2*B6^2*J6*I6*H6*E6+2*A6^2*B6^2*H6*J6^2*F6+2*A6^2*B6^2*G6*I6^2*E6+2*A6^2*B6^2*H6^3*F6-1*A6^4*C6*I6*G6^2-2*A6^4*F6*G6*I6*J6+A6^4*D6*I6^2*J6-1*A6^4*D6*J6*H6^2-1*A6^4*D6*G6^2*J6+A6^4*F6*H6^3-1*B6^4*J6*H6^2*D6-1*B6^4*G6*H6^2*E6-2*B6^4*J6*I6*H6*E6+B6^4*I6^2*J6*D6+I6*B6^4*J6^2*C6+2*H6*G6*B6^4*J6*C6-1*I6*G6^2*B6^4*C6+B6^4*H6*J6^2*F6+B6^4*G6*I6^2*E6+B6^4*G6*J6^2*E6-2*G6*B6^4*J6*I6*F6+2*G6*B6^4*I6*H6*D6-1*G6^2*B6^4*J6*D6-1*G6^2*B6^4*H6*F6+B6^4*I6^2*H6*F6+A6^4*C6*I6*J6^2+A6^4*E6*G6*I6^2+2*A6^4*D6*G6*I6*H6-1*A6^4*C6*I6^3-1*A6^4*E6*G6*H6^2-1*A6^4*C6*I6*H6^2+A6^4*E6*G6^3-1*A6^4*F6*G6^2*H6+2*A6^4*C6*H6*G6*J6+A6^4*F6*J6^2*H6+A6^4*F6*I6^2*H6+A6^4*E6*G6*J6^2+2*A6^2*B6^2*I6^2*H6*F6-2*A6^2*B6^2*I6*H6^2*C6-2*A6^2*B6^2*J6*H6^2*D6-2*A6^4*E6*J6*I6*H6-4*A6^2*G6*B6^2*J6*I6*F6+2*A6^2*B6^2*I6^2*J6*D6-2*A6^2*B6^2*G6*H6^2*E6-2*A6^2*J6^3*B6^2*D6+4*A6^2*H6*G6*B6^2*J6*C6+2*A6^2*B6^2*G6^3*E6-2*A6^2*G6^2*B6^2*J6*D6-2*A6^2*I6*G6^2*B6^2*C6+4*A6^2*G6*B6^2*I6*H6*D6-2*A6^2*B6^2*I6^3*C6+2*A6^2*B6^2*G6*J6^2*E6-2*A6^2*G6^2*B6^2*H6*F6+2*A6^2*I6*B6^2*J6^2*C6-1*A6^4*D6*J6^3+B6^4*H6^3*F6-1*J6^3*B6^4*D6-1*B6^4*I6^3*C6+B6^4*G6^3*E6)/(2*G6^2*J6^2+2*I6^2*H6^2-2*G6^2*H6^2+G6^4+I6^4+H6^4+2*G6^2*I6^2-8*G6*J6*I6*H6+J6^4+2*J6^2*H6^2-2*I6^2*J6^2)/A6/B6 -> 0 | M36: =-0.5*(-1*H6^3*B6*A6^2*C6+H6^3*B6^2*A6*E6-1*B6^3*H6^2*I6*F6-1*H6^3*B6^3*C6-1*A6^3*J6^3*C6-1*A6^3*I6^3*D6-1*G6^3*B6^3*D6-1*B6^3*I6^3*F6+2*A6*I6^3*K6*D6-1*G6^2*A6^2*I6*F6*B6-1*A6^3*H6^2*I6*D6-1*A6*H6^2*I6*B6^2*D6-1*G6^2*A6^3*I6*D6-1*A6*I6^3*B6^2*D6-1*A6^2*I6^3*F6*B6+G6*H6^2*B6*A6^2*D6-1*G6*H6^2*B6^2*A6*F6+A6^2*J6^2*I6*F6*B6-1*G6*J6^2*B6^3*D6+2*G6*A6*J6*H6*B6^2*D6+2*G6*A6^2*J6*H6*F6*B6+2*G6*A6^3*J6*H6*D6+A6*J6^2*I6*B6^2*D6-1*G6*J6^2*B6*A6^2*D6-1*A6^2*H6^2*I6*F6*B6-1*G6^2*A6*I6*B6^2*D6+A6^3*J6^2*I6*D6-1*G6*I6^2*B6*A6^2*D6+G6*I6^2*B6^2*A6*F6-1*G6*I6^2*B6^3*D6+G6*H6^2*B6^3*D6+A6^3*J6*I6^2*C6+A6*J6*I6^2*B6^2*C6+H6^3*A6^3*E6+H6*J6^2*B6^2*A6*E6-1*H6*I6^2*B6^3*C6+2*I6*G6*B6^3*J6*C6-1*H6*J6^2*B6^3*C6+H6*G6^2*B6*A6^2*C6-1*A6^2*J6^3*E6*B6-1*A6*J6^3*B6^2*C6+H6*G6^2*B6^3*C6-1*H6*G6^2*B6^2*A6*E6+2*H6*G6*A6^3*I6*C6+2*H6*G6*A6*I6*B6^2*C6-1*A6*J6*H6^2*B6^2*C6+2*H6*G6*A6^2*I6*E6*B6+G6^3*B6^2*A6*F6-1*A6^3*J6*H6^2*C6-1*H6*I6^2*B6*A6^2*C6+H6*I6^2*B6^2*A6*E6+A6^2*J6*I6^2*E6*B6-1*H6*J6^2*B6*A6^2*C6-1*J6*H6^2*B6^3*E6+2*I6*G6*B6*J6*A6^2*C6-2*I6*G6*B6^2*J6*A6*E6+2*J6*I6*H6*B6*A6^2*D6+2*J6*I6*H6*B6^3*D6-1*J6*G6^2*A6^2*E6*B6-1*J6*G6^2*A6^3*C6-1*G6^3*B6*A6^2*D6-1*J6*G6^2*A6*B6^2*C6-2*J6*I6*H6*B6^2*A6*F6+G6*A6^3*J6^2*F6-2*A6^3*J6*I6*H6*F6+G6*A6^3*I6^2*F6+J6^2*A6^3*H6*E6-2*G6*A6^3*J6*I6*E6+I6^2*B6^3*J6*E6+I6^2*H6*A6^3*E6-1*G6^2*B6^3*J6*E6-1*G6^2*H6*A6^3*E6-1*G6^2*B6^3*I6*F6+2*G6*I6*H6*B6^3*E6+2*G6*B6^3*J6*H6*F6-1*G6*A6^3*H6^2*F6-1*A6^2*J6*H6^2*E6*B6+B6^3*J6^2*I6*F6+G6^3*A6^3*F6-1*J6^3*B6^3*E6+G6*J6^2*B6^2*A6*F6-2*H6^3*B6*K6*C6+4*J6*I6*H6*B6*K6*D6-2*J6*G6^2*K6*E6*B6-2*G6^3*B6*K6*D6-2*I6^3*K6*F6*B6-2*G6^2*I6*K6*F6*B6-2*H6^2*I6*K6*F6*B6-2*G6*J6^2*B6*K6*D6+2*G6*H6^2*B6*K6*D6+2*J6^2*I6*K6*F6*B6+4*G6*J6*H6*K6*F6*B6-2*G6*I6^2*B6*K6*D6+2*J6*I6^2*K6*E6*B6-2*H6*J6^2*B6*K6*C6-2*H6*I6^2*B6*K6*C6+4*I6*G6*B6*J6*K6*C6-2*J6^3*K6*E6*B6+4*H6*G6*I6*K6*E6*B6+2*H6*G6^2*B6*K6*C6-2*G6*I6^2*K6*A6*F6-4*G6*A6*J6*H6*K6*D6-2*A6*J6*I6^2*K6*C6-2*H6*I6^2*K6*A6*E6-2*H6*J6^2*K6*A6*E6-2*G6^3*K6*A6*F6+2*A6*J6*H6^2*K6*C6-4*H6*G6*A6*I6*K6*C6-2*J6*H6^2*K6*E6*B6+4*I6*G6*J6*K6*A6*E6+2*A6*J6^3*K6*C6+2*H6*G6^2*K6*A6*E6+2*J6*G6^2*A6*K6*C6+4*J6*I6*H6*K6*A6*F6-2*H6^3*K6*A6*E6+2*G6^2*A6*I6*K6*D6+2*A6*H6^2*I6*K6*D6-2*A6*J6^2*I6*K6*D6-2*G6*J6^2*K6*A6*F6+2*G6*H6^2*K6*A6*F6)/(2*G6^2*J6^2+2*I6^2*H6^2-2*G6^2*H6^2+G6^4+I6^4+H6^4+2*G6^2*I6^2-8*G6*J6*I6*H6+J6^4+2*J6^2*H6^2-2*I6^2*J6^2)/A6/B6 -> -1.497222157e-15 | N36: =0.5*(-1*A6^2*C6*I6*H6^2+B6^2*I6*H6^2*C6-1*A6^2*C6*I6^3+A6^2*C6*I6*J6^2+B6^2*J6*H6^2*D6+A6^2*D6*I6^2*J6-2*A6*J6*I6^2*F6*B6+2*A6*G6^3*C6*B6+A6^2*F6*I6^2*H6-2*A6^2*E6*J6*I6*H6+2*A6*H6^2*I6*E6*B6+2*A6*J6*H6^2*F6*B6+2*A6*I6^2*H6*D6*B6+2*A6*J6^2*H6*D6*B6-4*A6*J6*I6*H6*C6*B6+2*A6*H6^3*D6*B6-2*A6*I6*J6^2*E6*B6-1*B6^2*H6*J6^2*F6-1*A6^2*D6*G6^2*J6+A6^2*E6*G6*I6^2+2*A6*J6^3*F6*B6+2*A6*I6^3*E6*B6-4*A6*H6*G6*J6*E6*B6+2*A6*I6*G6^2*E6*B6-2*A6*G6^2*H6*D6*B6-4*A6*G6*H6*I6*F6*B6-4*A6*G6*J6*I6*D6*B6-2*A6*G6*H6^2*C6*B6+2*A6*G6^2*J6*F6*B6+2*A6*G6*I6^2*C6*B6+2*A6*G6*J6^2*C6*B6-1*B6^2*I6^2*H6*F6+2*B6^2*J6*I6*H6*E6+A6^2*F6*J6^2*H6-1*A6^2*D6*J6*H6^2-1*B6^2*G6*I6^2*E6-1*B6^2*G6*J6^2*E6+2*G6*B6^2*J6*I6*F6-2*G6*B6^2*I6*H6*D6+G6^2*B6^2*H6*F6+G6^2*B6^2*J6*D6-2*H6*G6*B6^2*J6*C6+B6^2*I6^3*C6+I6*G6^2*B6^2*C6+B6^2*G6*H6^2*E6-1*A6^2*D6*J6^3-1*A6^2*C6*I6*G6^2-2*A6^2*F6*G6*I6*J6+2*A6^2*D6*G6*I6*H6-1*A6^2*F6*G6^2*H6-1*A6^2*E6*G6*H6^2+2*A6^2*C6*H6*G6*J6+A6^2*E6*G6*J6^2-1*B6^2*H6^3*F6+A6^2*F6*H6^3+J6^3*B6^2*D6-1*B6^2*G6^3*E6-1*B6^2*I6^2*J6*D6+A6^2*E6*G6^3-1*I6*B6^2*J6^2*C6)/(2*G6^2*J6^2+2*I6^2*H6^2-2*G6^2*H6^2+G6^4+I6^4+H6^4+2*G6^2*I6^2-8*G6*J6*I6*H6+J6^4+2*J6^2*H6^2-2*I6^2*J6^2)/A6/B6 -> 1 | O36: =0.5*(-1*A6*H6^2*I6*D6+A6*J6^2*I6*D6-1*H6*G6^2*B6*C6+J6^3*E6*B6+H6^2*J6*E6*B6+I6^3*F6*B6+H6^3*B6*C6-2*H6*I6*J6*B6*D6+H6^2*I6*F6*B6-1*J6^2*I6*F6*B6+G6^3*B6*D6+G6^2*I6*F6*B6+G6*B6*J6^2*D6+J6*G6^2*E6*B6-2*H6*G6*I6*E6*B6+H6*B6*I6^2*C6-1*I6^2*J6*E6*B6+H6*B6*J6^2*C6-2*I6*G6*J6*B6*C6+2*G6*A6*H6*J6*D6-1*G6^2*A6*I6*D6-1*G6*H6^2*A6*F6+G6*I6^2*A6*F6+G6*J6^2*A6*F6-1*H6*G6^2*A6*E6-2*I6*G6*J6*A6*E6+2*H6*G6*A6*I6*C6+H6^3*A6*E6+H6*J6^2*A6*E6-1*A6*H6^2*J6*C6+A6*I6^2*J6*C6+H6*I6^2*A6*E6-2*H6*I6*J6*A6*F6-1*J6*G6^2*A6*C6-1*A6*J6^3*C6+G6^3*A6*F6-1*A6*I6^3*D6-2*G6*H6*J6*F6*B6+G6*B6*I6^2*D6-1*G6*H6^2*B6*D6)/(2*G6^2*J6^2+2*I6^2*H6^2-2*G6^2*H6^2+G6^4+I6^4+H6^4+2*G6^2*I6^2-8*G6*J6*I6*H6+J6^4+2*J6^2*H6^2-2*I6^2*J6^2)/A6/B6 -> -3.465792029e-18 | P36: =-0.5*(-2*G6^3*B6^2*K6*A6*F6+G6^3*B6^5*D6+B6^5*I6^3*F6+A6*I6^2*J6*B6^4*C6-2*A6^2*I6^2*J6*B6^3*E6+2*B6^3*H6^3*A6^2*C6+B6^4*H6^3*A6*E6+B6^5*H6^3*C6-1*A6^5*J6^3*C6-2*H6*G6^2*B6^3*K6*C6+2*H6*G6^2*B6^2*K6*A6*E6-4*H6*G6*A6^3*I6*K6*C6-4*H6*G6*A6*I6*K6*B6^2*C6-4*H6*G6*A6^2*I6*K6*E6*B6+2*A6^3*J6*H6^2*K6*C6+2*A6*J6*H6^2*K6*B6^2*C6+H6*B6^4*I6^2*A6*E6-2*A6^3*B6^2*H6^2*J6*C6-1*A6*B6^4*H6^2*J6*C6+2*A6^2*B6^3*H6^2*J6*E6-1*H6*G6^2*A6^4*B6*C6-2*H6*G6^2*A6^3*B6^2*E6-2*H6*G6^2*B6*K6*A6^2*C6+H6*B6^4*J6^2*A6*E6+2*H6*G6*A6^5*I6*C6-2*H6*G6*A6^4*I6*E6*B6-4*H6*G6*A6^2*B6^3*I6*E6-2*I6*G6*A6^4*J6*B6*C6+2*H6*A6^2*B6^3*I6^2*C6+2*H6*A6^3*B6^2*I6^2*E6+4*H6*G6*A6^3*B6^2*I6*C6+2*A6^2*J6^3*K6*E6*B6+H6*A6^4*B6*J6^2*C6+2*H6*A6^2*B6^3*J6^2*C6+2*H6*A6^3*B6^2*J6^2*E6+2*A6*J6^3*K6*B6^2*C6+H6*A6^4*B6*I6^2*C6+2*H6*G6*A6*B6^4*I6*C6-4*I6*G6*A6^3*J6*B6^2*E6+H6*B6^5*J6^2*C6-1*A6^5*H6^2*J6*C6+2*H6^3*B6^3*K6*C6+H6*B6^5*I6^2*C6+2*H6*J6^2*B6^3*K6*C6-2*H6*J6^2*B6^2*K6*A6*E6-1*A6^4*I6^2*J6*E6*B6+2*H6*I6^2*B6*K6*A6^2*C6+2*H6*I6^2*B6^3*K6*C6-2*H6*I6^2*B6^2*K6*A6*E6+2*A6^3*J6^3*K6*C6-2*I6*G6*J6*B6^5*C6-2*I6*G6*J6*B6^4*A6*E6-4*I6*G6*B6*J6*K6*A6^2*C6-4*I6*G6*B6^3*J6*K6*C6-4*I6*G6*J6*B6^3*A6^2*C6+4*I6*G6*B6^2*J6*K6*A6*E6-2*A6^3*J6*I6^2*K6*C6-2*A6*J6*I6^2*K6*B6^2*C6-2*A6^2*J6*I6^2*K6*E6*B6+2*H6*J6^2*B6*K6*A6^2*C6-2*H6*G6^2*B6^3*A6^2*C6-1*H6*G6^2*B6^4*A6*E6-2*J6*G6^2*A6^3*B6^2*C6+J6*G6^2*A6^4*E6*B6-2*A6^3*J6^3*B6^2*C6+A6^4*J6^3*E6*B6-1*H6*G6^2*B6^5*C6-1*J6*G6^2*A6^5*C6-1*A6*B6^4*J6^3*C6+2*A6^2*B6^3*J6^3*E6+A6^5*I6^2*J6*C6+2*A6^3*I6^2*J6*B6^2*C6+G6*B6^4*J6^2*A6*F6+2*J6*H6^2*B6^3*K6*E6-2*G6*A6^5*I6*J6*E6+G6*B6^5*J6^2*D6+G6^2*J6*B6^5*E6-1*G6^2*H6*A6^5*E6-2*H6^3*A6^3*K6*E6-1*I6^2*J6*B6^5*E6+I6^2*H6*A6^5*E6-2*G6*A6^4*H6*J6*F6*B6+G6^2*A6^4*I6*F6*B6-1*G6*B6^4*H6^2*A6*F6+G6*B6^4*I6^2*A6*F6-2*G6*A6^3*H6^2*B6^2*F6+G6*A6^4*B6*J6^2*D6+2*G6*A6^2*B6^3*J6^2*D6+2*G6*A6^3*B6^2*J6^2*F6-2*G6^2*A6^3*B6^2*I6*D6-1*G6^2*A6*B6^4*I6*D6+2*G6^2*A6^2*B6^3*I6*F6+2*G6*A6^5*H6*J6*D6+H6^3*A6^5*E6+G6*A6^4*B6*I6^2*D6+2*G6*A6^2*B6^3*I6^2*D6+2*G6*A6^3*B6^2*I6^2*F6-4*G6*A6^3*J6*H6*K6*D6-4*G6*A6*J6*H6*K6*B6^2*D6-4*G6*A6^2*J6*H6*K6*F6*B6-1*G6*A6^4*H6^2*B6*D6-2*G6*A6^2*H6^2*B6^3*D6+2*G6*I6^2*B6*K6*A6^2*D6-2*G6*I6^2*B6^2*K6*A6*F6+J6^3*B6^5*E6+2*G6*A6*B6^4*H6*J6*D6-4*G6*A6^2*B6^3*H6*J6*F6+2*G6*I6^2*B6^3*K6*D6-2*G6*H6^2*B6*K6*A6^2*D6-2*G6*H6^2*B6^3*K6*D6+2*G6*H6^2*B6^2*K6*A6*F6-2*A6^2*J6^2*I6*K6*F6*B6-1*A6*H6^2*I6*B6^4*D6-2*A6*J6^2*I6*K6*B6^2*D6+2*A6^2*H6^2*I6*B6^3*F6+2*G6*J6^2*B6*K6*A6^2*D6+2*G6*J6^2*B6^3*K6*D6-2*G6*J6^2*B6^2*K6*A6*F6+4*G6*A6^3*B6^2*H6*J6*D6+2*A6^2*H6^2*I6*K6*F6*B6+2*G6^2*A6*I6*K6*B6^2*D6+2*G6^2*A6^2*I6*K6*F6*B6-2*A6^3*J6^2*I6*K6*D6+2*A6^3*H6^2*I6*K6*D6+2*A6*H6^2*I6*K6*B6^2*D6+2*G6^2*A6^3*I6*K6*D6+A6*J6^2*B6^4*I6*D6-2*A6^2*J6^2*B6^3*I6*F6+2*A6*I6^3*K6*B6^2*D6+2*A6^2*I6^3*K6*F6*B6+G6^3*A6^4*B6*D6+2*G6^3*A6^3*B6^2*F6-1*A6*B6^4*I6^3*D6+2*A6^2*B6^3*I6^3*F6+2*A6^3*I6^3*K6*D6-1*G6^2*A6^5*I6*D6-1*G6*B6^5*H6^2*D6+G6*B6^5*I6^2*D6-2*A6^3*H6^2*I6*B6^2*D6+A6^4*H6^2*I6*F6*B6-2*A6^4*H6*I6*J6*B6*D6-4*A6^3*H6*I6*J6*B6^2*F6-1*A6^4*J6^2*I6*F6*B6-4*J6*I6*H6*B6*K6*A6^2*D6-4*J6*I6*H6*B6^3*K6*D6+2*J6*G6^2*A6^2*K6*E6*B6+A6^5*J6^2*I6*D6)/(2*G6^2*J6^2+2*I6^2*H6^2-2*G6^2*H6^2+G6^4+I6^4+H6^4+2*G6^2*I6^2-8*G6*J6*I6*H6+J6^4+2*J6^2*H6^2-2*I6^2*J6^2)/A6/B6-0.5*(-2*A6^3*I6^3*B6^2*D6+A6^4*I6^3*F6*B6+2*G6^3*B6^3*A6^2*D6+G6^3*B6^4*A6*F6-1*A6^5*I6^3*D6-1*J6*G6^2*A6*B6^4*C6+2*J6*G6^2*A6^2*B6^3*E6+2*J6*G6^2*A6^3*K6*C6+2*G6^3*B6*K6*A6^2*D6+A6^4*H6^2*J6*E6*B6+2*H6^3*B6*K6*A6^2*C6-2*H6^3*B6^2*K6*A6*E6+A6^4*H6^3*B6*C6+2*A6^3*H6^3*B6^2*E6+2*G6^3*B6^3*K6*D6+2*A6^2*J6*H6^2*K6*E6*B6+2*J6*G6^2*A6*K6*B6^2*C6+2*A6^3*J6^2*I6*B6^2*D6+4*J6*I6*H6*B6^2*K6*A6*F6-4*B6^3*H6*I6*J6*A6^2*D6-2*B6^5*H6*I6*J6*D6-2*B6^4*H6*I6*J6*A6*F6-1*A6^5*H6^2*I6*D6-2*A6^5*H6*I6*J6*F6+G6^2*I6*B6^5*F6-1*B6^5*J6^2*I6*F6+2*B6^3*H6^2*I6*K6*F6-2*B6^3*J6^2*I6*K6*F6+2*B6^3*I6^3*K6*F6+B6^5*H6^2*I6*F6+G6*A6^5*I6^2*F6-2*G6^3*A6^3*K6*F6-4*G6*I6*H6*B6^3*K6*E6-2*G6*I6*H6*B6^5*E6-2*J6^2*A6^3*H6*K6*E6+4*G6*A6^3*J6*I6*K6*E6+2*J6^3*B6^3*K6*E6+J6^2*A6^5*H6*E6+J6*B6^5*H6^2*E6-1*G6*A6^5*H6^2*F6+G6^3*A6^5*F6-2*I6^2*B6^3*J6*K6*E6-2*I6^2*H6*A6^3*K6*E6+2*G6^2*B6^3*J6*K6*E6+2*G6^2*H6*A6^3*K6*E6-4*G6*B6^3*J6*H6*K6*F6+G6*A6^5*J6^2*F6+4*A6^3*J6*I6*H6*K6*F6+2*G6^2*B6^3*I6*K6*F6-2*G6*A6^3*I6^2*K6*F6+2*G6*A6^3*H6^2*K6*F6-2*G6*H6*J6*B6^5*F6-2*G6*A6^3*J6^2*K6*F6)/(2*G6^2*J6^2+2*I6^2*H6^2-2*G6^2*H6^2+G6^4+I6^4+H6^4+2*G6^2*I6^2-8*G6*J6*I6*H6+J6^4+2*J6^2*H6^2-2*I6^2*J6^2)/A6/B6 -> 0 | Q36: =-0.5*(-4*I6^3*K6^2*C6+4*H6^3*K6^2*F6-4*J6^3*K6^2*D6+4*G6^3*K6^2*E6-1*B6^4*I6*H6^2*C6-4*A6^2*B6^2*J6*I6*H6*E6+2*A6^2*B6^2*H6*J6^2*F6+2*A6^2*B6^2*G6*I6^2*E6+2*A6^2*B6^2*H6^3*F6-1*A6^4*C6*I6*G6^2-2*A6^4*F6*G6*I6*J6+A6^4*D6*I6^2*J6-1*A6^4*D6*J6*H6^2-1*A6^4*D6*G6^2*J6+A6^4*F6*H6^3-4*J6*H6^2*K6^2*D6-4*J6*G6^2*K6^2*D6+4*I6^2*H6*K6^2*F6+4*G6*I6^2*K6^2*E6+4*G6*J6^2*K6^2*E6-4*G6*H6^2*K6^2*E6-4*K6*J6^2*A6^2*H6*F6-4*K6*J6*H6^2*B6^2*D6+4*K6*I6^2*B6^2*J6*D6-4*K6*I6^2*H6*A6^2*F6-4*K6*G6^2*B6^2*J6*D6+4*K6*G6^2*H6*A6^2*F6+4*K6*H6*J6^2*B6^2*F6-8*K6*G6*A6^2*J6*H6*C6+4*K6*H6^3*B6^2*F6+4*K6*A6^2*J6^3*D6+4*K6*G6^3*B6^2*E6+4*K6*A6^2*I6^3*C6-4*K6*J6^3*B6^2*D6-4*K6*H6^3*A6^2*F6-4*K6*G6^3*A6^2*E6-4*K6*B6^2*I6^3*C6-4*K6*G6^2*B6^2*I6*C6-4*K6*G6*A6^2*J6^2*E6+4*K6*G6*A6^2*H6^2*E6-4*K6*G6*A6^2*I6^2*E6+8*K6*A6^2*J6*I6*H6*E6+4*K6*B6^2*J6^2*I6*C6-4*K6*B6^2*H6^2*I6*C6+8*K6*G6*A6^2*J6*I6*F6+8*K6*G6*I6*H6*B6^2*D6+4*K6*G6^2*A6^2*I6*C6+4*K6*G6*I6^2*B6^2*E6+4*K6*G6*J6^2*B6^2*E6-4*K6*G6*H6^2*B6^2*E6-4*K6*A6^2*J6*I6^2*D6-8*K6*I6*G6*B6^2*J6*F6-4*K6*H6*G6^2*B6^2*F6+4*K6*J6*G6^2*A6^2*D6+4*K6*A6^2*J6*H6^2*D6-8*K6*H6*G6*A6^2*I6*D6+4*K6*H6*I6^2*B6^2*F6-8*K6*J6*I6*H6*B6^2*E6+4*K6*A6^2*H6^2*I6*C6-4*K6*A6^2*J6^2*I6*C6-8*G6*J6*I6*K6^2*F6-8*J6*I6*H6*K6^2*E6+8*K6*G6*B6^2*J6*H6*C6+8*H6*G6*I6*K6^2*D6+8*G6*J6*H6*K6^2*C6+4*J6^2*H6*K6^2*F6-4*G6^2*I6*K6^2*C6-4*H6^2*I6*K6^2*C6+4*J6^2*I6*K6^2*C6+4*J6*I6^2*K6^2*D6-4*G6^2*H6*K6^2*F6-1*B6^4*J6*H6^2*D6-1*B6^4*G6*H6^2*E6-2*B6^4*J6*I6*H6*E6+B6^4*I6^2*J6*D6+I6*B6^4*J6^2*C6+2*H6*G6*B6^4*J6*C6-1*I6*G6^2*B6^4*C6+B6^4*H6*J6^2*F6+B6^4*G6*I6^2*E6+B6^4*G6*J6^2*E6-2*G6*B6^4*J6*I6*F6+2*G6*B6^4*I6*H6*D6-1*G6^2*B6^4*J6*D6-1*G6^2*B6^4*H6*F6+B6^4*I6^2*H6*F6+A6^4*C6*I6*J6^2+A6^4*E6*G6*I6^2+2*A6^4*D6*G6*I6*H6-1*A6^4*C6*I6^3-1*A6^4*E6*G6*H6^2-1*A6^4*C6*I6*H6^2+A6^4*E6*G6^3-1*A6^4*F6*G6^2*H6+2*A6^4*C6*H6*G6*J6+A6^4*F6*J6^2*H6+A6^4*F6*I6^2*H6+A6^4*E6*G6*J6^2+2*A6^2*B6^2*I6^2*H6*F6-2*A6^2*B6^2*I6*H6^2*C6-2*A6^2*B6^2*J6*H6^2*D6-2*A6^4*E6*J6*I6*H6-4*A6^2*G6*B6^2*J6*I6*F6+2*A6^2*B6^2*I6^2*J6*D6-2*A6^2*B6^2*G6*H6^2*E6-2*A6^2*J6^3*B6^2*D6+4*A6^2*H6*G6*B6^2*J6*C6+2*A6^2*B6^2*G6^3*E6-2*A6^2*G6^2*B6^2*J6*D6-2*A6^2*I6*G6^2*B6^2*C6+4*A6^2*G6*B6^2*I6*H6*D6-2*A6^2*B6^2*I6^3*C6+2*A6^2*B6^2*G6*J6^2*E6-2*A6^2*G6^2*B6^2*H6*F6+2*A6^2*I6*B6^2*J6^2*C6-1*A6^4*D6*J6^3+B6^4*H6^3*F6-1*J6^3*B6^4*D6-1*B6^4*I6^3*C6+B6^4*G6^3*E6)/(2*G6^2*J6^2+2*I6^2*H6^2-2*G6^2*H6^2+G6^4+I6^4+H6^4+2*G6^2*I6^2-8*G6*J6*I6*H6+J6^4+2*J6^2*H6^2-2*I6^2*J6^2)/B6/A6 -> 0 | R36: =0.5*(-2*G6*I6^2*K6*A6*F6+2*A6*I6^3*K6*D6+3*A6^2*I6^3*F6*B6-1*I6*G6^2*B6^3*F6-1*I6*G6^2*A6^3*D6-1*A6^3*H6^2*I6*D6+3*B6^2*I6^3*A6*D6-1*B6^3*I6^3*F6-1*A6^3*I6^3*D6-1*J6^3*B6^3*E6-1*A6^3*J6^3*C6-1*G6^3*B6^3*D6+G6^3*A6^3*F6+3*A6^2*J6^2*H6*C6*B6-3*G6^2*A6^2*H6*C6*B6+3*G6^2*H6*B6^2*A6*E6-2*G6*A6^3*J6*I6*E6-6*G6*A6^2*J6*I6*C6*B6+6*G6*J6*I6*B6^2*A6*E6+2*G6*J6*I6*B6^3*C6-3*B6^2*I6^2*H6*A6*E6-3*B6^2*J6^2*H6*A6*E6+3*A6^2*I6^2*H6*C6*B6+G6^2*H6*B6^3*C6+3*A6^2*H6^3*C6*B6-1*B6^3*I6^2*H6*C6-1*B6^3*J6^2*H6*C6+A6^3*I6^2*H6*E6+A6^3*J6^2*H6*E6-1*G6^2*A6^3*H6*E6+6*J6*H6*B6^2*I6*A6*F6+2*J6*H6*B6^3*I6*D6+3*G6^3*A6^2*D6*B6+3*G6*A6^2*J6^2*D6*B6-3*G6*H6^2*A6^2*D6*B6-6*J6*A6^2*H6*I6*D6*B6-3*G6*B6^2*I6^2*A6*F6-1*G6*B6^3*I6^2*D6-1*G6*B6^3*J6^2*D6+G6*A6^3*I6^2*F6+G6*A6^3*J6^2*F6-1*G6*H6^2*A6^3*F6-3*B6^2*H6^3*A6*E6-3*G6*B6^2*J6^2*A6*F6+2*G6*H6*B6^3*I6*E6+3*G6*H6^2*B6^2*A6*F6+3*G6*A6^2*I6^2*D6*B6-2*J6*A6^3*H6*I6*F6-1*B6^3*H6^3*C6+A6^3*H6^3*E6-6*G6*A6^2*H6*I6*E6*B6-6*G6*H6*B6^2*I6*A6*C6-3*A6^2*J6*I6^2*E6*B6+3*G6^2*A6^2*J6*E6*B6+3*G6^2*J6*B6^2*A6*C6+3*A6^2*J6*H6^2*E6*B6-1*G6^2*J6*B6^3*E6-3*G6^3*B6^2*A6*F6+G6*H6^2*B6^3*D6+2*G6*A6^3*H6*I6*C6+3*J6*B6^2*H6^2*A6*C6-1*A6^3*J6*H6^2*C6+A6^3*J6*I6^2*C6-1*G6^2*A6^3*J6*C6+3*A6^2*J6^3*E6*B6+J6*B6^3*I6^2*E6-1*J6*B6^3*H6^2*E6-3*J6*B6^2*I6^2*A6*C6-6*H6*G6*A6^2*J6*F6*B6 -6*H6*G6*J6*B6^2*A6*D6+I6*A6^3*J6^2*D6+3*I6*G6^2*A6^2*F6*B6+3*A6^2*H6^2*I6*F6*B6+3*H6^2*B6^2*I6*A6*D6-1*H6^2*B6^3*I6*F6+I6*B6^3*J6^2*F6+3*I6*G6^2*B6^2*A6*D6+2*H6*G6*A6^3*J6*D6+2*H6*G6*J6*B6^3*F6-3*I6*B6^2*J6^2*A6*D6-3*I6*A6^2*J6^2*F6*B6+3*J6^3*B6^2*A6*C6+4*J6*I6*H6*B6*K6*D6-2*J6*G6^2*K6*E6*B6-2*G6^3*B6*K6*D6-2*H6^3*B6*K6*C6-2*I6^3*K6*F6*B6-2*G6^2*I6*K6*F6*B6-2*H6^2*I6*K6*F6*B6+4*G6*J6*H6*K6*F6*B6-2*G6*I6^2*B6*K6*D6+2*G6*H6^2*B6*K6*D6+2*J6^2*I6*K6*F6*B6-2*G6*J6^2*B6*K6*D6+2*J6*I6^2*K6*E6*B6-2*H6*J6^2*B6*K6*C6-2*H6*I6^2*B6*K6*C6+4*I6*G6*B6*J6*K6*C6-2*J6^3*K6*E6*B6+2*H6*G6^2*B6*K6*C6+4*H6*G6*I6*K6*E6*B6+2*H6*G6^2*K6*A6*E6+2*A6*J6*H6^2*K6*C6-4*H6*G6*A6*I6*K6*C6-2*G6^3*K6*A6*F6-2*J6*H6^2*K6*E6*B6-2*H6*I6^2*K6*A6*E6-2*H6*J6^2*K6*A6*E6+2*J6*G6^2*A6*K6*C6+4*J6*I6*H6*K6*A6*F6-2*H6^3*K6*A6*E6+4*I6*G6*J6*K6*A6*E6-2*A6*J6*I6^2*K6*C6+2*A6*J6^3*K6*C6+2*A6*H6^2*I6*K6*D6+2*G6*H6^2*K6*A6*F6-2*A6*J6^2*I6*K6*D6-2*G6*J6^2*K6*A6*F6+2*G6^2*A6*I6*K6*D6-4*G6*A6*J6*H6*K6*D6)/(2*G6^2*J6^2+2*I6^2*H6^2-2*G6^2*H6^2+G6^4+I6^4+H6^4+2*G6^2*I6^2-8*G6*J6*I6*H6+J6^4+2*J6^2*H6^2-2*I6^2*J6^2)/B6/A6 -> -2.772633623e-16 | S36: =0.5*(2*G6^2*H6*K6*F6+I6^3*B6^2*C6-2*G6^3*K6*E6+2*I6^3*K6*C6-2*H6^3*K6*F6+2*J6^3*K6*D6-1*H6^3*B6^2*F6+A6^2*H6^3*F6-1*I6^3*A6^2*C6+2*H6^3*B6*A6*D6+2*A6*J6^3*F6*B6+2*G6^3*B6*A6*C6+2*A6*I6^3*E6*B6+2*G6*J6^2*B6*A6*C6-2*G6*H6^2*B6*A6*C6+2*H6*J6^2*B6*A6*D6-2*A6*J6*I6^2*F6*B6-4*I6*G6*B6*J6*A6*D6-4*B6*J6*I6*H6*A6*C6+2*A6*H6^2*I6*E6*B6-2*A6*J6^2*I6*E6*B6+2*G6^2*A6*I6*E6*B6-4*G6*A6*J6*H6*E6*B6-2*H6*G6^2*B6*A6*D6+2*J6*G6^2*A6*F6*B6+2*A6*J6*H6^2*F6*B6-4*H6*G6*A6*I6*F6*B6+2*H6*I6^2*B6*A6*D6+2*G6*I6^2*B6*A6*C6-2*G6*J6^2*K6*E6+2*G6*H6^2*K6*E6+2*J6*H6^2*K6*D6-2*I6^2*H6*K6*F6-2*G6*I6^2*K6*E6-2*J6^2*H6*K6*F6+2*G6^2*I6*K6*C6+2*H6^2*I6*K6*C6+4*J6*I6*H6*K6*E6-2*J6^2*I6*K6*C6-4*G6*J6*H6*K6*C6+4*G6*J6*I6*K6*F6-2*J6*I6^2*K6*D6+2*J6*G6^2*K6*D6-4*H6*G6*I6*K6*D6+B6^2*G6*H6^2*E6-2*G6*I6*H6*B6^2*D6-2*H6*G6*J6*B6^2*C6+2*B6^2*J6*I6*H6*E6-1*B6^2*G6*I6^2*E6-1*B6^2*G6^3*E6+I6*G6^2*B6^2*C6-1*B6^2*G6*J6^2*E6+J6^3*B6^2*D6+I6*H6^2*B6^2*C6-1*I6^2*J6*B6^2*D6-1*J6^2*B6^2*H6*F6-1*B6^2*I6^2*H6*F6+J6*H6^2*B6^2*D6-1*I6*J6^2*B6^2*C6+2*G6*B6^2*I6*J6*F6+G6^2*J6*B6^2*D6+G6^2*B6^2*H6*F6+2*H6*G6*J6*A6^2*C6-2*A6^2*J6*I6*H6*E6+A6^2*G6^3*E6+2*G6*I6*H6*A6^2*D6-2*G6*A6^2*J6*I6*F6-1*A6^2*G6*H6^2*E6-1*I6*H6^2*A6^2*C6-1*J6^3*A6^2*D6-1*I6*G6^2*A6^2*C6-1*J6*H6^2*A6^2*D6+I6*J6^2*A6^2*C6+A6^2*G6*J6^2*E6+A6^2*G6*I6^2*E6-1*G6^2*A6^2*H6*F6-1*G6^2*J6*A6^2*D6+A6^2*I6^2*H6*F6+A6^2*H6*J6^2*F6+I6^2*J6*A6^2*D6)/(2*G6^2*J6^2+2*I6^2*H6^2-2*G6^2*H6^2+G6^4+I6^4+H6^4+2*G6^2*I6^2-8*G6*J6*I6*H6+J6^4+2*J6^2*H6^2-2*I6^2*J6^2)/B6/A6 -> 1
D37: =-0.5*(A7^2*F7*I7^2*H7+B7^2*D7*J7^3-1*A7^2*D7*J7^3+A7^2*C7*I7*J7^2-2*A7*E7*B7*I7^3+2*A7*F7*B7*I7^2*J7+2*A7*E7*J7^2*B7*I7-1*B7^2*F7*H7^3+B7^2*C7*I7^3-1*A7^2*C7*I7^3+B7^2*D7*J7*H7^2+A7^2*F7*H7^3+2*B7^2*E7*J7*I7*H7+B7^2*C7*I7*H7^2-1*B7^2*F7*J7^2*H7-1*B7^2*F7*I7^2*H7-2*A7*F7*B7*J7*H7^2-2*A7*D7*B7*I7^2*H7-2*A7*E7*I7*H7^2*B7-2*A7*D7*H7^3*B7-2*A7*D7*J7^2*B7*H7-2*A7^2*E7*J7*I7*H7-1*A7^2*D7*J7*H7^2-1*A7^2*C7*I7*H7^2+A7^2*F7*J7^2*H7-1*B7^2*E7*G7^3+4*A7*C7*B7*J7*I7*H7+B7^2*D7*G7^2*J7+B7^2*C7*I7*G7^2+B7^2*F7*G7^2*H7-2*B7^2*C7*H7*G7*J7+2*B7^2*F7*G7*I7*J7-1*B7^2*E7*G7*I7^2-1*B7^2*E7*G7*J7^2+B7^2*E7*G7*H7^2-2*B7^2*D7*G7*I7*H7+4*A7*D7*G7*B7*I7*J7-2*A7^2*F7*G7*I7*J7+4*A7*F7*G7*B7*I7*H7-1*A7^2*D7*G7^2*J7-1*A7^2*C7*I7*G7^2-1*A7^2*F7*G7^2*H7+2*A7^2*C7*H7*G7*J7+A7^2*E7*G7*I7^2+A7^2*E7*G7*J7^2-1*A7^2*E7*G7*H7^2+A7^2*E7*G7^3+2*A7^2*D7*G7*I7*H7-2*A7*C7*B7*G7^3-2*A7*F7*G7^2*B7*J7+2*A7*C7*B7*G7*H7^2-2*A7*E7*G7^2*B7*I7-2*A7*C7*B7*G7*J7^2-2*A7*C7*B7*G7*I7^2+2*A7*D7*G7^2*B7*H7+4*A7*E7*G7*J7*B7*H7-2*A7*F7*B7*J7^3-1*B7^2*D7*I7^2*J7-1*B7^2*C7*I7*J7^2+A7^2*D7*I7^2*J7)/(2*G7^2*J7^2+2*I7^2*H7^2-2*G7^2*H7^2+G7^4+I7^4+H7^4+2*G7^2*I7^2-8*G7*J7*I7*H7+J7^4+2*J7^2*H7^2-2*I7^2*J7^2)/A7/B7 -> 0.002259013041 | E37: =-0.5*(F7*G7^2*I7*B7^3-3*D7*G7^3*A7^2*B7-1*C7*A7^3*H7^2*J7-3*C7*A7^2*H7^3*B7-1*C7*J7*G7^2*A7^3+C7*B7^3*H7^3+2*C7*H7^3*B7*K7+3*C7*J7*G7^2*A7*B7^2+6*C7*I7*G7*A7^2*J7*B7-3*C7*H7*A7^2*B7*I7^2+2*C7*J7*G7^2*A7*K7-4*C7*H7*G7*A7*I7*K7+2*C7*A7*J7^3*K7+C7*H7*B7^3*J7^2+3*C7*A7*B7^2*J7^3+2*C7*H7*I7^2*B7*K7+2*C7*H7*J7^2*B7*K7-6*C7*H7*G7*A7*B7^2*I7-2*C7*A7*J7*I7^2*K7-3*C7*A7*I7^2*J7*B7^2-1*C7*H7*G7^2*B7^3+C7*A7^3*I7^2*J7+3*C7*A7*B7^2*H7^2*J7+2*C7*A7*J7*H7^2*K7-2*C7*H7*G7^2*B7*K7+3*C7*H7*G7^2*A7^2*B7+2*C7*H7*G7*A7^3*I7-1*C7*A7^3*J7^3+C7*H7*B7^3*I7^2-3*C7*H7*A7^2*B7*J7^2-4*D7*J7*I7*H7*B7*K7+2*D7*G7*A7^3*H7*J7+2*D7*G7*J7^2*B7*K7-2*D7*B7^3*H7*I7*J7+D7*G7^3*B7^3-1*D7*A7^3*I7^3+D7*A7^3*J7^2*I7-2*C7*I7*G7*J7*B7^3-4*C7*I7*G7*B7*J7*K7-3*D7*A7*J7^2*B7^2*I7+3*D7*A7*B7^2*I7^3+2*D7*A7*H7^2*I7*K7+2*D7*G7^2*A7*I7*K7+2*D7*A7*I7^3*K7+3*D7*G7^2*A7*B7^2*I7-1*D7*G7*B7^3*H7^2-3*D7*G7*A7^2*B7*I7^2-1*D7*G7^2*A7^3*I7-2*D7*G7*H7^2*B7*K7+2*D7*G7*I7^2*B7*K7-2*D7*A7*J7^2*I7*K7+D7*G7*B7^3*I7^2+3*D7*A7*H7^2*I7*B7^2-1*D7*A7^3*H7^2*I7+2*E7*J7^3*B7*K7+E7*J7^2*A7^3*H7-3*E7*J7*A7^2*H7^2*B7+2*E7*J7*H7^2*B7*K7-2*E7*J7^2*A7*H7*K7+E7*J7^3*B7^3+E7*H7^3*A7^3-4*D7*G7*A7*J7*H7*K7-3*D7*G7*A7^2*B7*J7^2+3*D7*G7*A7^2*H7^2*B7+6*D7*A7^2*H7*I7*J7*B7-6*D7*G7*A7*B7^2*H7*J7+2*D7*G7^3*B7*K7-3*E7*J7^3*A7^2*B7+D7*G7*B7^3*J7^2+3*E7*I7^2*A7^2*J7*B7-3*E7*H7^3*A7*B7^2+F7*B7^3*H7^2*I7-3*E7*J7^2*A7*B7^2*H7-2*E7*H7^3*A7*K7+E7*I7^2*H7*A7^3-1*E7*I7^2*J7*B7^3-1*E7*G7^2*H7*A7^3+E7*G7^2*J7*B7^3-2*E7*I7^2*H7*A7*K7-2*E7*I7^2*B7*J7*K7+2*E7*G7^2*B7*J7*K7-3*E7*I7^2*H7*A7*B7^2-3*E7*G7^2*A7^2*J7*B7+2*E7*G7^2*H7*A7*K7+6*E7*G7*A7*I7*J7*B7^2+3*E7*G7^2*H7*A7*B7^2+E7*J7*B7^3*H7^2-2*E7*G7*A7^3*I7*J7+F7*G7^3*A7^3+F7*B7^3*I7^3-4*E7*G7*I7*H7*B7*K7+6*E7*G7*I7*H7*A7^2*B7+4*E7*G7*A7*J7*I7*K7-2*E7*G7*I7*H7*B7^3+4*F7*A7*J7*I7*H7*K7-1*F7*G7*A7^3*H7^2+F7*G7*A7^3*I7^2+2*F7*G7^2*B7*I7*K7-3*F7*G7*A7*B7^2*I7^2-3*F7*G7^2*A7^2*I7*B7-2*F7*B7*J7^2*I7*K7+2*F7*B7*H7^2*I7*K7-3*F7*A7^2*B7*H7^2*I7-2*F7*A7^3*H7*I7*J7+3*F7*A7^2*B7*J7^2*I7+F7*G7*A7^3*J7^2+2*F7*G7*A7*H7^2*K7-2*F7*G7*A7*J7^2*K7-2*F7*G7*A7*I7^2*K7-2*F7*G7*H7*J7*B7^3+3*F7*G7*A7*B7^2*H7^2-3*F7*G7*A7*B7^2*J7^2+6*F7*G7*A7^2*H7*J7*B7-4*F7*G7*B7*J7*H7*K7+2*F7*B7*I7^3*K7-1*F7*B7^3*J7^2*I7+6*F7*A7*H7*I7*J7*B7^2-3*F7*G7^3*A7*B7^2-2*F7*G7^3*A7*K7-3*F7*A7^2*B7*I7^3)/A7/B7/(2*G7^2*A7^2*J7^2+G7^4*A7^2+A7^2*J7^4+A7^2*H7^4+2*G7^2*B7^2*I7^2-8*G7*A7^2*J7*I7*H7+2*G7^2*B7^2*J7^2+B7^2*H7^4+B7^2*I7^4-8*G7*B7^2*J7*I7*H7+2*A7^2*I7^2*H7^2+G7^4*B7^2-2*G7^2*A7^2*H7^2+2*G7^2*A7^2*I7^2+A7^2*I7^4+2*B7^2*J7^2*H7^2-2*B7^2*I7^2*J7^2-2*G7^2*B7^2*H7^2+2*B7^2*I7^2*H7^2+B7^2*J7^4+2*A7^2*J7^2*H7^2-2*A7^2*I7^2*J7^2) -> 4.39694015e-05 | F37: =0.5*(-1*D7*J7*H7^2-1*C7*I7^3+E7*G7^3-1*C7*I7*H7^2+C7*I7*J7^2-1*D7*J7^3+D7*I7^2*J7+2*D7*G7*I7*H7-2*E7*J7*I7*H7-1*E7*G7*H7^2+E7*G7*J7^2+E7*G7*I7^2-2*F7*G7*I7*J7+2*C7*H7*G7*J7+F7*H7^3-1*F7*G7^2*H7-1*C7*I7*G7^2-1*D7*G7^2*J7+F7*J7^2*H7+F7*I7^2*H7)/(2*G7^2*J7^2+2*I7^2*H7^2-2*G7^2*H7^2+G7^4+I7^4+H7^4+2*G7^2*I7^2-8*G7*J7*I7*H7+J7^4+2*J7^2*H7^2-2*I7^2*J7^2)/A7/B7 -> 0.0000E+00 | G37: =0.5*(-1*F7*G7^2*B7*I7-1*C7*H7^3*B7-1*D7*G7^2*A7*I7+2*D7*G7*A7*J7*H7-1*D7*A7*H7^2*I7-1*D7*A7*I7^3+2*C7*I7*G7*B7*J7+C7*H7*G7^2*B7-1*E7*J7^3*B7-1*D7*G7*J7^2*B7+C7*A7*J7*I7^2-1*C7*A7*J7*H7^2-1*C7*H7*J7^2*B7+E7*H7^3*A7-1*C7*H7*I7^2*B7+2*D7*J7*I7*H7*B7+2*C7*H7*G7*A7*I7-1*C7*A7*J7^3-1*C7*J7*G7^2*A7-1*D7*G7^3*B7+E7*J7^2*A7*H7+D7*A7*J7^2*I7-1*E7*J7*H7^2*B7+D7*G7*H7^2*B7-1*D7*G7*I7^2*B7+F7*B7*J7^2*I7-1*F7*B7*H7^2*I7-2*F7*A7*J7*I7*H7-1*F7*B7*I7^3-2*E7*G7*A7*J7*I7+2*E7*G7*I7*H7*B7-1*E7*G7^2*B7*J7-1*E7*G7^2*H7*A7+E7*I7^2*H7*A7+E7*I7^2*B7*J7+F7*G7^3*A7+F7*G7*A7*I7^2+2*F7*G7*B7*J7*H7-1*F7*G7*A7*H7^2+F7*G7*A7*J7^2)/A7/B7/(2*G7^2*A7^2*J7^2+G7^4*A7^2+A7^2*J7^4+A7^2*H7^4+2*G7^2*B7^2*I7^2-8*G7*A7^2*J7*I7*H7+2*G7^2*B7^2*J7^2+B7^2*H7^4+B7^2*I7^4-8*G7*B7^2*J7*I7*H7+2*A7^2*I7^2*H7^2+G7^4*B7^2-2*G7^2*A7^2*H7^2+2*G7^2*A7^2*I7^2+A7^2*I7^4+2*B7^2*J7^2*H7^2-2*B7^2*I7^2*J7^2-2*G7^2*B7^2*H7^2+2*B7^2*I7^2*H7^2+B7^2*J7^4+2*A7^2*J7^2*H7^2-2*A7^2*I7^2*J7^2) -> -1.206707004e-07 | H37: =-0.5*(-1*F7*G7^2*I7*B7^3-1*D7*G7^3*A7^2*B7-1*C7*A7^3*H7^2*J7-1*C7*A7^2*H7^3*B7-1*C7*J7*G7^2*A7^3-1*C7*B7^3*H7^3-1*C7*J7*G7^2*A7*B7^2+2*C7*I7*G7*A7^2*J7*B7-1*C7*H7*A7^2*B7*I7^2-1*C7*H7*B7^3*J7^2-1*C7*A7*B7^2*J7^3+2*C7*H7*G7*A7*B7^2*I7+C7*A7*I7^2*J7*B7^2+C7*H7*G7^2*B7^3+C7*A7^3*I7^2*J7-1*C7*A7*B7^2*H7^2*J7+C7*H7*G7^2*A7^2*B7+2*C7*H7*G7*A7^3*I7-1*C7*A7^3*J7^3-1*C7*H7*B7^3*I7^2-1*C7*H7*A7^2*B7*J7^2+2*D7*G7*A7^3*H7*J7+2*D7*B7^3*H7*I7*J7-1*D7*G7^3*B7^3-1*D7*A7^3*I7^3+D7*A7^3*J7^2*I7+2*C7*I7*G7*J7*B7^3+D7*A7*J7^2*B7^2*I7-1*D7*A7*B7^2*I7^3-1*D7*G7^2*A7*B7^2*I7+D7*G7*B7^3*H7^2-1*D7*G7*A7^2*B7*I7^2-1*D7*G7^2*A7^3*I7-1*D7*G7*B7^3*I7^2-1*D7*A7*H7^2*I7*B7^2-1*D7*A7^3*H7^2*I7+E7*J7^2*A7^3*H7-1*E7*J7*A7^2*H7^2*B7-1*E7*J7^3*B7^3+E7*H7^3*A7^3-1*D7*G7*A7^2*B7*J7^2+D7*G7*A7^2*H7^2*B7+2*D7*A7^2*H7*I7*J7*B7+2*D7*G7*A7*B7^2*H7*J7-1*E7*J7^3*A7^2*B7-1*D7*G7*B7^3*J7^2+E7*I7^2*A7^2*J7*B7+E7*H7^3*A7*B7^2-1*F7*B7^3*H7^2*I7+E7*J7^2*A7*B7^2*H7+E7*I7^2*H7*A7^3+E7*I7^2*J7*B7^3-1*E7*G7^2*H7*A7^3-1*E7*G7^2*J7*B7^3+E7*I7^2*H7*A7*B7^2-1*E7*G7^2*A7^2*J7*B7-2*E7*G7*A7*I7*J7*B7^2-1*E7*G7^2*H7*A7*B7^2-1*E7*J7*B7^3*H7^2-2*E7*G7*A7^3*I7*J7+F7*G7^3*A7^3-1*F7*B7^3*I7^3+2*E7*G7*I7*H7*A7^2*B7+2*E7*G7*I7*H7*B7^3-1*F7*G7*A7^3*H7^2+F7*G7*A7^3*I7^2+F7*G7*A7*B7^2*I7^2-1*F7*G7^2*A7^2*I7*B7-1*F7*A7^2*B7*H7^2*I7-2*F7*A7^3*H7*I7*J7+F7*A7^2*B7*J7^2*I7+F7*G7*A7^3*J7^2+2*F7*G7*H7*J7*B7^3-1*F7*G7*A7*B7^2*H7^2+F7*G7*A7*B7^2*J7^2+2*F7*G7*A7^2*H7*J7*B7+F7*B7^3*J7^2*I7-2*F7*A7*H7*I7*J7*B7^2+F7*G7^3*A7*B7^2-1*F7*A7^2*B7*I7^3)/(2*G7^2*J7^2+2*I7^2*H7^2-2*G7^2*H7^2+G7^4+I7^4+H7^4+2*G7^2*I7^2-8*G7*J7*I7*H7+J7^4+2*J7^2*H7^2-2*I7^2*J7^2)/A7/B7 -> 0.01602135615 | I37: =-0.5*(A7^2*F7*I7^2*H7+B7^2*D7*J7^3-1*A7^2*D7*J7^3+A7^2*C7*I7*J7^2-2*A7*E7*B7*I7^3+2*A7*F7*B7*I7^2*J7+2*A7*E7*J7^2*B7*I7+2*J7^3*K7*D7-2*G7^3*K7*E7-2*H7^3*K7*F7+2*H7^2*I7*K7*C7+2*G7^2*I7*K7*C7-2*J7^2*I7*K7*C7+2*J7*H7^2*K7*D7+2*J7*G7^2*K7*D7+2*G7*H7^2*K7*E7-2*G7*J7^2*K7*E7-2*G7*I7^2*K7*E7-2*J7^2*H7*K7*F7-2*I7^2*H7*K7*F7+2*G7^2*H7*K7*F7-2*J7*I7^2*K7*D7-4*H7*G7*I7*K7*D7+4*G7*J7*I7*K7*F7+4*J7*I7*H7*K7*E7-4*G7*J7*H7*K7*C7-1*B7^2*F7*H7^3+B7^2*C7*I7^3-1*A7^2*C7*I7^3+B7^2*D7*J7*H7^2+A7^2*F7*H7^3+2*B7^2*E7*J7*I7*H7+B7^2*C7*I7*H7^2-1*B7^2*F7*J7^2*H7-1*B7^2*F7*I7^2*H7-2*A7*F7*B7*J7*H7^2-2*A7*D7*B7*I7^2*H7-2*A7*E7*I7*H7^2*B7-2*A7*D7*H7^3*B7+2*I7^3*K7*C7-2*A7*D7*J7^2*B7*H7-2*A7^2*E7*J7*I7*H7-1*A7^2*D7*J7*H7^2-1*A7^2*C7*I7*H7^2+A7^2*F7*J7^2*H7-1*B7^2*E7*G7^3+4*A7*C7*B7*J7*I7*H7+B7^2*D7*G7^2*J7+B7^2*C7*I7*G7^2+B7^2*F7*G7^2*H7-2*B7^2*C7*H7*G7*J7+2*B7^2*F7*G7*I7*J7-1*B7^2*E7*G7*I7^2-1*B7^2*E7*G7*J7^2+B7^2*E7*G7*H7^2-2*B7^2*D7*G7*I7*H7+4*A7*D7*G7*B7*I7*J7-2*A7^2*F7*G7*I7*J7+4*A7*F7*G7*B7*I7*H7-1*A7^2*D7*G7^2*J7-1*A7^2*C7*I7*G7^2-1*A7^2*F7*G7^2*H7+2*A7^2*C7*H7*G7*J7+A7^2*E7*G7*I7^2+A7^2*E7*G7*J7^2-1*A7^2*E7*G7*H7^2+A7^2*E7*G7^3+2*A7^2*D7*G7*I7*H7-2*A7*C7*B7*G7^3-2*A7*F7*G7^2*B7*J7+2*A7*C7*B7*G7*H7^2-2*A7*E7*G7^2*B7*I7-2*A7*C7*B7*G7*J7^2-2*A7*C7*B7*G7*I7^2+2*A7*D7*G7^2*B7*H7+4*A7*E7*G7*J7*B7*H7-2*A7*F7*B7*J7^3-1*B7^2*D7*I7^2*J7-1*B7^2*C7*I7*J7^2+A7^2*D7*I7^2*J7)/(2*G7^2*J7^2+2*I7^2*H7^2-2*G7^2*H7^2+G7^4+I7^4+H7^4+2*G7^2*I7^2-8*G7*J7*I7*H7+J7^4+2*J7^2*H7^2-2*I7^2*J7^2)/A7/B7 -> 0.002259013041 | J37: =0.5*(F7*G7^2*B7*I7+C7*H7^3*B7-1*D7*G7^2*A7*I7+2*D7*G7*A7*J7*H7-1*D7*A7*H7^2*I7-1*D7*A7*I7^3-2*C7*I7*G7*B7*J7-1*C7*H7*G7^2*B7+E7*J7^3*B7+D7*G7*J7^2*B7+C7*A7*J7*I7^2-1*C7*A7*J7*H7^2+C7*H7*J7^2*B7+E7*H7^3*A7+C7*H7*I7^2*B7-2*D7*J7*I7*H7*B7+2*C7*H7*G7*A7*I7-1*C7*A7*J7^3-1*C7*J7*G7^2*A7+D7*G7^3*B7+E7*J7^2*A7*H7+D7*A7*J7^2*I7+E7*J7*H7^2*B7-1*D7*G7*H7^2*B7+D7*G7*I7^2*B7-1*F7*B7*J7^2*I7+F7*B7*H7^2*I7-2*F7*A7*J7*I7*H7+F7*B7*I7^3-2*E7*G7*A7*J7*I7-2*E7*G7*I7*H7*B7+E7*G7^2*B7*J7-1*E7*G7^2*H7*A7+E7*I7^2*H7*A7-1*E7*I7^2*B7*J7+F7*G7^3*A7+F7*G7*A7*I7^2-2*F7*G7*B7*J7*H7-1*F7*G7*A7*H7^2+F7*G7*A7*J7^2)/(2*G7^2*J7^2+2*I7^2*H7^2-2*G7^2*H7^2+G7^4+I7^4+H7^4+2*G7^2*I7^2-8*G7*J7*I7*H7+J7^4+2*J7^2*H7^2-2*I7^2*J7^2)/A7/B7 -> 4.39694015e-05 | K37: =0.5*(-1*D7*J7*H7^2-1*C7*I7^3+E7*G7^3-1*C7*I7*H7^2+C7*I7*J7^2-1*D7*J7^3+D7*I7^2*J7+2*D7*G7*I7*H7-2*E7*J7*I7*H7-1*E7*G7*H7^2+E7*G7*J7^2+E7*G7*I7^2-2*F7*G7*I7*J7+2*C7*H7*G7*J7+F7*H7^3-1*F7*G7^2*H7-1*C7*I7*G7^2-1*D7*G7^2*J7+F7*J7^2*H7+F7*I7^2*H7)/(2*G7^2*J7^2+2*I7^2*H7^2-2*G7^2*H7^2+G7^4+I7^4+H7^4+2*G7^2*I7^2-8*G7*J7*I7*H7+J7^4+2*J7^2*H7^2-2*I7^2*J7^2)/A7/B7 -> 0 | L37: =-0.5*(-1*B7^4*I7*H7^2*C7-4*A7^2*B7^2*J7*I7*H7*E7+2*A7^2*B7^2*H7*J7^2*F7+2*A7^2*B7^2*G7*I7^2*E7+2*A7^2*B7^2*H7^3*F7-1*A7^4*C7*I7*G7^2-2*A7^4*F7*G7*I7*J7+A7^4*D7*I7^2*J7-1*A7^4*D7*J7*H7^2-1*A7^4*D7*G7^2*J7+A7^4*F7*H7^3-1*B7^4*J7*H7^2*D7-1*B7^4*G7*H7^2*E7-2*B7^4*J7*I7*H7*E7+B7^4*I7^2*J7*D7+I7*B7^4*J7^2*C7+2*H7*G7*B7^4*J7*C7-1*I7*G7^2*B7^4*C7+B7^4*H7*J7^2*F7+B7^4*G7*I7^2*E7+B7^4*G7*J7^2*E7-2*G7*B7^4*J7*I7*F7+2*G7*B7^4*I7*H7*D7-1*G7^2*B7^4*J7*D7-1*G7^2*B7^4*H7*F7+B7^4*I7^2*H7*F7+A7^4*C7*I7*J7^2+A7^4*E7*G7*I7^2+2*A7^4*D7*G7*I7*H7-1*A7^4*C7*I7^3-1*A7^4*E7*G7*H7^2-1*A7^4*C7*I7*H7^2+A7^4*E7*G7^3-1*A7^4*F7*G7^2*H7+2*A7^4*C7*H7*G7*J7+A7^4*F7*J7^2*H7+A7^4*F7*I7^2*H7+A7^4*E7*G7*J7^2+2*A7^2*B7^2*I7^2*H7*F7-2*A7^2*B7^2*I7*H7^2*C7-2*A7^2*B7^2*J7*H7^2*D7-2*A7^4*E7*J7*I7*H7-4*A7^2*G7*B7^2*J7*I7*F7+2*A7^2*B7^2*I7^2*J7*D7-2*A7^2*B7^2*G7*H7^2*E7-2*A7^2*J7^3*B7^2*D7+4*A7^2*H7*G7*B7^2*J7*C7+2*A7^2*B7^2*G7^3*E7-2*A7^2*G7^2*B7^2*J7*D7-2*A7^2*I7*G7^2*B7^2*C7+4*A7^2*G7*B7^2*I7*H7*D7-2*A7^2*B7^2*I7^3*C7+2*A7^2*B7^2*G7*J7^2*E7-2*A7^2*G7^2*B7^2*H7*F7+2*A7^2*I7*B7^2*J7^2*C7-1*A7^4*D7*J7^3+B7^4*H7^3*F7-1*J7^3*B7^4*D7-1*B7^4*I7^3*C7+B7^4*G7^3*E7)/(2*G7^2*J7^2+2*I7^2*H7^2-2*G7^2*H7^2+G7^4+I7^4+H7^4+2*G7^2*I7^2-8*G7*J7*I7*H7+J7^4+2*J7^2*H7^2-2*I7^2*J7^2)/A7/B7 -> 0 | M37: =-0.5*(-1*H7^3*B7*A7^2*C7+H7^3*B7^2*A7*E7-1*B7^3*H7^2*I7*F7-1*H7^3*B7^3*C7-1*A7^3*J7^3*C7-1*A7^3*I7^3*D7-1*G7^3*B7^3*D7-1*B7^3*I7^3*F7+2*A7*I7^3*K7*D7-1*G7^2*A7^2*I7*F7*B7-1*A7^3*H7^2*I7*D7-1*A7*H7^2*I7*B7^2*D7-1*G7^2*A7^3*I7*D7-1*A7*I7^3*B7^2*D7-1*A7^2*I7^3*F7*B7+G7*H7^2*B7*A7^2*D7-1*G7*H7^2*B7^2*A7*F7+A7^2*J7^2*I7*F7*B7-1*G7*J7^2*B7^3*D7+2*G7*A7*J7*H7*B7^2*D7+2*G7*A7^2*J7*H7*F7*B7+2*G7*A7^3*J7*H7*D7+A7*J7^2*I7*B7^2*D7-1*G7*J7^2*B7*A7^2*D7-1*A7^2*H7^2*I7*F7*B7-1*G7^2*A7*I7*B7^2*D7+A7^3*J7^2*I7*D7-1*G7*I7^2*B7*A7^2*D7+G7*I7^2*B7^2*A7*F7-1*G7*I7^2*B7^3*D7+G7*H7^2*B7^3*D7+A7^3*J7*I7^2*C7+A7*J7*I7^2*B7^2*C7+H7^3*A7^3*E7+H7*J7^2*B7^2*A7*E7-1*H7*I7^2*B7^3*C7+2*I7*G7*B7^3*J7*C7-1*H7*J7^2*B7^3*C7+H7*G7^2*B7*A7^2*C7-1*A7^2*J7^3*E7*B7-1*A7*J7^3*B7^2*C7+H7*G7^2*B7^3*C7-1*H7*G7^2*B7^2*A7*E7+2*H7*G7*A7^3*I7*C7+2*H7*G7*A7*I7*B7^2*C7-1*A7*J7*H7^2*B7^2*C7+2*H7*G7*A7^2*I7*E7*B7+G7^3*B7^2*A7*F7-1*A7^3*J7*H7^2*C7-1*H7*I7^2*B7*A7^2*C7+H7*I7^2*B7^2*A7*E7+A7^2*J7*I7^2*E7*B7-1*H7*J7^2*B7*A7^2*C7-1*J7*H7^2*B7^3*E7+2*I7*G7*B7*J7*A7^2*C7-2*I7*G7*B7^2*J7*A7*E7+2*J7*I7*H7*B7*A7^2*D7+2*J7*I7*H7*B7^3*D7-1*J7*G7^2*A7^2*E7*B7-1*J7*G7^2*A7^3*C7-1*G7^3*B7*A7^2*D7-1*J7*G7^2*A7*B7^2*C7-2*J7*I7*H7*B7^2*A7*F7+G7*A7^3*J7^2*F7-2*A7^3*J7*I7*H7*F7+G7*A7^3*I7^2*F7+J7^2*A7^3*H7*E7-2*G7*A7^3*J7*I7*E7+I7^2*B7^3*J7*E7+I7^2*H7*A7^3*E7-1*G7^2*B7^3*J7*E7-1*G7^2*H7*A7^3*E7-1*G7^2*B7^3*I7*F7+2*G7*I7*H7*B7^3*E7+2*G7*B7^3*J7*H7*F7-1*G7*A7^3*H7^2*F7-1*A7^2*J7*H7^2*E7*B7+B7^3*J7^2*I7*F7+G7^3*A7^3*F7-1*J7^3*B7^3*E7+G7*J7^2*B7^2*A7*F7-2*H7^3*B7*K7*C7+4*J7*I7*H7*B7*K7*D7-2*J7*G7^2*K7*E7*B7-2*G7^3*B7*K7*D7-2*I7^3*K7*F7*B7-2*G7^2*I7*K7*F7*B7-2*H7^2*I7*K7*F7*B7-2*G7*J7^2*B7*K7*D7+2*G7*H7^2*B7*K7*D7+2*J7^2*I7*K7*F7*B7+4*G7*J7*H7*K7*F7*B7-2*G7*I7^2*B7*K7*D7+2*J7*I7^2*K7*E7*B7-2*H7*J7^2*B7*K7*C7-2*H7*I7^2*B7*K7*C7+4*I7*G7*B7*J7*K7*C7-2*J7^3*K7*E7*B7+4*H7*G7*I7*K7*E7*B7+2*H7*G7^2*B7*K7*C7-2*G7*I7^2*K7*A7*F7-4*G7*A7*J7*H7*K7*D7-2*A7*J7*I7^2*K7*C7-2*H7*I7^2*K7*A7*E7-2*H7*J7^2*K7*A7*E7-2*G7^3*K7*A7*F7+2*A7*J7*H7^2*K7*C7-4*H7*G7*A7*I7*K7*C7-2*J7*H7^2*K7*E7*B7+4*I7*G7*J7*K7*A7*E7+2*A7*J7^3*K7*C7+2*H7*G7^2*K7*A7*E7+2*J7*G7^2*A7*K7*C7+4*J7*I7*H7*K7*A7*F7-2*H7^3*K7*A7*E7+2*G7^2*A7*I7*K7*D7+2*A7*H7^2*I7*K7*D7-2*A7*J7^2*I7*K7*D7-2*G7*J7^2*K7*A7*F7+2*G7*H7^2*K7*A7*F7)/(2*G7^2*J7^2+2*I7^2*H7^2-2*G7^2*H7^2+G7^4+I7^4+H7^4+2*G7^2*I7^2-8*G7*J7*I7*H7+J7^4+2*J7^2*H7^2-2*I7^2*J7^2)/A7/B7 -> 0.0197501797 | N37: =0.5*(-1*A7^2*C7*I7*H7^2+B7^2*I7*H7^2*C7-1*A7^2*C7*I7^3+A7^2*C7*I7*J7^2+B7^2*J7*H7^2*D7+A7^2*D7*I7^2*J7-2*A7*J7*I7^2*F7*B7+2*A7*G7^3*C7*B7+A7^2*F7*I7^2*H7-2*A7^2*E7*J7*I7*H7+2*A7*H7^2*I7*E7*B7+2*A7*J7*H7^2*F7*B7+2*A7*I7^2*H7*D7*B7+2*A7*J7^2*H7*D7*B7-4*A7*J7*I7*H7*C7*B7+2*A7*H7^3*D7*B7-2*A7*I7*J7^2*E7*B7-1*B7^2*H7*J7^2*F7-1*A7^2*D7*G7^2*J7+A7^2*E7*G7*I7^2+2*A7*J7^3*F7*B7+2*A7*I7^3*E7*B7-4*A7*H7*G7*J7*E7*B7+2*A7*I7*G7^2*E7*B7-2*A7*G7^2*H7*D7*B7-4*A7*G7*H7*I7*F7*B7-4*A7*G7*J7*I7*D7*B7-2*A7*G7*H7^2*C7*B7+2*A7*G7^2*J7*F7*B7+2*A7*G7*I7^2*C7*B7+2*A7*G7*J7^2*C7*B7-1*B7^2*I7^2*H7*F7+2*B7^2*J7*I7*H7*E7+A7^2*F7*J7^2*H7-1*A7^2*D7*J7*H7^2-1*B7^2*G7*I7^2*E7-1*B7^2*G7*J7^2*E7+2*G7*B7^2*J7*I7*F7-2*G7*B7^2*I7*H7*D7+G7^2*B7^2*H7*F7+G7^2*B7^2*J7*D7-2*H7*G7*B7^2*J7*C7+B7^2*I7^3*C7+I7*G7^2*B7^2*C7+B7^2*G7*H7^2*E7-1*A7^2*D7*J7^3-1*A7^2*C7*I7*G7^2-2*A7^2*F7*G7*I7*J7+2*A7^2*D7*G7*I7*H7-1*A7^2*F7*G7^2*H7-1*A7^2*E7*G7*H7^2+2*A7^2*C7*H7*G7*J7+A7^2*E7*G7*J7^2-1*B7^2*H7^3*F7+A7^2*F7*H7^3+J7^3*B7^2*D7-1*B7^2*G7^3*E7-1*B7^2*I7^2*J7*D7+A7^2*E7*G7^3-1*I7*B7^2*J7^2*C7)/(2*G7^2*J7^2+2*I7^2*H7^2-2*G7^2*H7^2+G7^4+I7^4+H7^4+2*G7^2*I7^2-8*G7*J7*I7*H7+J7^4+2*J7^2*H7^2-2*I7^2*J7^2)/A7/B7 -> 0.002259013041 | O37: =0.5*(-1*A7*H7^2*I7*D7+A7*J7^2*I7*D7-1*H7*G7^2*B7*C7+J7^3*E7*B7+H7^2*J7*E7*B7+I7^3*F7*B7+H7^3*B7*C7-2*H7*I7*J7*B7*D7+H7^2*I7*F7*B7-1*J7^2*I7*F7*B7+G7^3*B7*D7+G7^2*I7*F7*B7+G7*B7*J7^2*D7+J7*G7^2*E7*B7-2*H7*G7*I7*E7*B7+H7*B7*I7^2*C7-1*I7^2*J7*E7*B7+H7*B7*J7^2*C7-2*I7*G7*J7*B7*C7+2*G7*A7*H7*J7*D7-1*G7^2*A7*I7*D7-1*G7*H7^2*A7*F7+G7*I7^2*A7*F7+G7*J7^2*A7*F7-1*H7*G7^2*A7*E7-2*I7*G7*J7*A7*E7+2*H7*G7*A7*I7*C7+H7^3*A7*E7+H7*J7^2*A7*E7-1*A7*H7^2*J7*C7+A7*I7^2*J7*C7+H7*I7^2*A7*E7-2*H7*I7*J7*A7*F7-1*J7*G7^2*A7*C7-1*A7*J7^3*C7+G7^3*A7*F7-1*A7*I7^3*D7-2*G7*H7*J7*F7*B7+G7*B7*I7^2*D7-1*G7*H7^2*B7*D7)/(2*G7^2*J7^2+2*I7^2*H7^2-2*G7^2*H7^2+G7^4+I7^4+H7^4+2*G7^2*I7^2-8*G7*J7*I7*H7+J7^4+2*J7^2*H7^2-2*I7^2*J7^2)/A7/B7 -> 4.39694015e-05 | P37: =-0.5*(-2*G7^3*B7^2*K7*A7*F7+G7^3*B7^5*D7+B7^5*I7^3*F7+A7*I7^2*J7*B7^4*C7-2*A7^2*I7^2*J7*B7^3*E7+2*B7^3*H7^3*A7^2*C7+B7^4*H7^3*A7*E7+B7^5*H7^3*C7-1*A7^5*J7^3*C7-2*H7*G7^2*B7^3*K7*C7+2*H7*G7^2*B7^2*K7*A7*E7-4*H7*G7*A7^3*I7*K7*C7-4*H7*G7*A7*I7*K7*B7^2*C7-4*H7*G7*A7^2*I7*K7*E7*B7+2*A7^3*J7*H7^2*K7*C7+2*A7*J7*H7^2*K7*B7^2*C7+H7*B7^4*I7^2*A7*E7-2*A7^3*B7^2*H7^2*J7*C7-1*A7*B7^4*H7^2*J7*C7+2*A7^2*B7^3*H7^2*J7*E7-1*H7*G7^2*A7^4*B7*C7-2*H7*G7^2*A7^3*B7^2*E7-2*H7*G7^2*B7*K7*A7^2*C7+H7*B7^4*J7^2*A7*E7+2*H7*G7*A7^5*I7*C7-2*H7*G7*A7^4*I7*E7*B7-4*H7*G7*A7^2*B7^3*I7*E7-2*I7*G7*A7^4*J7*B7*C7+2*H7*A7^2*B7^3*I7^2*C7+2*H7*A7^3*B7^2*I7^2*E7+4*H7*G7*A7^3*B7^2*I7*C7+2*A7^2*J7^3*K7*E7*B7+H7*A7^4*B7*J7^2*C7+2*H7*A7^2*B7^3*J7^2*C7+2*H7*A7^3*B7^2*J7^2*E7+2*A7*J7^3*K7*B7^2*C7+H7*A7^4*B7*I7^2*C7+2*H7*G7*A7*B7^4*I7*C7-4*I7*G7*A7^3*J7*B7^2*E7+H7*B7^5*J7^2*C7-1*A7^5*H7^2*J7*C7+2*H7^3*B7^3*K7*C7+H7*B7^5*I7^2*C7+2*H7*J7^2*B7^3*K7*C7-2*H7*J7^2*B7^2*K7*A7*E7-1*A7^4*I7^2*J7*E7*B7+2*H7*I7^2*B7*K7*A7^2*C7+2*H7*I7^2*B7^3*K7*C7-2*H7*I7^2*B7^2*K7*A7*E7+2*A7^3*J7^3*K7*C7-2*I7*G7*J7*B7^5*C7-2*I7*G7*J7*B7^4*A7*E7-4*I7*G7*B7*J7*K7*A7^2*C7-4*I7*G7*B7^3*J7*K7*C7-4*I7*G7*J7*B7^3*A7^2*C7+4*I7*G7*B7^2*J7*K7*A7*E7-2*A7^3*J7*I7^2*K7*C7-2*A7*J7*I7^2*K7*B7^2*C7-2*A7^2*J7*I7^2*K7*E7*B7+2*H7*J7^2*B7*K7*A7^2*C7-2*H7*G7^2*B7^3*A7^2*C7-1*H7*G7^2*B7^4*A7*E7-2*J7*G7^2*A7^3*B7^2*C7+J7*G7^2*A7^4*E7*B7-2*A7^3*J7^3*B7^2*C7+A7^4*J7^3*E7*B7-1*H7*G7^2*B7^5*C7-1*J7*G7^2*A7^5*C7-1*A7*B7^4*J7^3*C7+2*A7^2*B7^3*J7^3*E7+A7^5*I7^2*J7*C7+2*A7^3*I7^2*J7*B7^2*C7+G7*B7^4*J7^2*A7*F7+2*J7*H7^2*B7^3*K7*E7-2*G7*A7^5*I7*J7*E7+G7*B7^5*J7^2*D7+G7^2*J7*B7^5*E7-1*G7^2*H7*A7^5*E7-2*H7^3*A7^3*K7*E7-1*I7^2*J7*B7^5*E7+I7^2*H7*A7^5*E7-2*G7*A7^4*H7*J7*F7*B7+G7^2*A7^4*I7*F7*B7-1*G7*B7^4*H7^2*A7*F7+G7*B7^4*I7^2*A7*F7-2*G7*A7^3*H7^2*B7^2*F7+G7*A7^4*B7*J7^2*D7+2*G7*A7^2*B7^3*J7^2*D7+2*G7*A7^3*B7^2*J7^2*F7-2*G7^2*A7^3*B7^2*I7*D7-1*G7^2*A7*B7^4*I7*D7+2*G7^2*A7^2*B7^3*I7*F7+2*G7*A7^5*H7*J7*D7+H7^3*A7^5*E7+G7*A7^4*B7*I7^2*D7+2*G7*A7^2*B7^3*I7^2*D7+2*G7*A7^3*B7^2*I7^2*F7-4*G7*A7^3*J7*H7*K7*D7-4*G7*A7*J7*H7*K7*B7^2*D7-4*G7*A7^2*J7*H7*K7*F7*B7-1*G7*A7^4*H7^2*B7*D7-2*G7*A7^2*H7^2*B7^3*D7+2*G7*I7^2*B7*K7*A7^2*D7-2*G7*I7^2*B7^2*K7*A7*F7+J7^3*B7^5*E7+2*G7*A7*B7^4*H7*J7*D7-4*G7*A7^2*B7^3*H7*J7*F7+2*G7*I7^2*B7^3*K7*D7-2*G7*H7^2*B7*K7*A7^2*D7-2*G7*H7^2*B7^3*K7*D7+2*G7*H7^2*B7^2*K7*A7*F7-2*A7^2*J7^2*I7*K7*F7*B7-1*A7*H7^2*I7*B7^4*D7-2*A7*J7^2*I7*K7*B7^2*D7+2*A7^2*H7^2*I7*B7^3*F7+2*G7*J7^2*B7*K7*A7^2*D7+2*G7*J7^2*B7^3*K7*D7-2*G7*J7^2*B7^2*K7*A7*F7+4*G7*A7^3*B7^2*H7*J7*D7+2*A7^2*H7^2*I7*K7*F7*B7+2*G7^2*A7*I7*K7*B7^2*D7+2*G7^2*A7^2*I7*K7*F7*B7-2*A7^3*J7^2*I7*K7*D7+2*A7^3*H7^2*I7*K7*D7+2*A7*H7^2*I7*K7*B7^2*D7+2*G7^2*A7^3*I7*K7*D7+A7*J7^2*B7^4*I7*D7-2*A7^2*J7^2*B7^3*I7*F7+2*A7*I7^3*K7*B7^2*D7+2*A7^2*I7^3*K7*F7*B7+G7^3*A7^4*B7*D7+2*G7^3*A7^3*B7^2*F7-1*A7*B7^4*I7^3*D7+2*A7^2*B7^3*I7^3*F7+2*A7^3*I7^3*K7*D7-1*G7^2*A7^5*I7*D7-1*G7*B7^5*H7^2*D7+G7*B7^5*I7^2*D7-2*A7^3*H7^2*I7*B7^2*D7+A7^4*H7^2*I7*F7*B7-2*A7^4*H7*I7*J7*B7*D7-4*A7^3*H7*I7*J7*B7^2*F7-1*A7^4*J7^2*I7*F7*B7-4*J7*I7*H7*B7*K7*A7^2*D7-4*J7*I7*H7*B7^3*K7*D7+2*J7*G7^2*A7^2*K7*E7*B7+A7^5*J7^2*I7*D7)/(2*G7^2*J7^2+2*I7^2*H7^2-2*G7^2*H7^2+G7^4+I7^4+H7^4+2*G7^2*I7^2-8*G7*J7*I7*H7+J7^4+2*J7^2*H7^2-2*I7^2*J7^2)/A7/B7-0.5*(-2*A7^3*I7^3*B7^2*D7+A7^4*I7^3*F7*B7+2*G7^3*B7^3*A7^2*D7+G7^3*B7^4*A7*F7-1*A7^5*I7^3*D7-1*J7*G7^2*A7*B7^4*C7+2*J7*G7^2*A7^2*B7^3*E7+2*J7*G7^2*A7^3*K7*C7+2*G7^3*B7*K7*A7^2*D7+A7^4*H7^2*J7*E7*B7+2*H7^3*B7*K7*A7^2*C7-2*H7^3*B7^2*K7*A7*E7+A7^4*H7^3*B7*C7+2*A7^3*H7^3*B7^2*E7+2*G7^3*B7^3*K7*D7+2*A7^2*J7*H7^2*K7*E7*B7+2*J7*G7^2*A7*K7*B7^2*C7+2*A7^3*J7^2*I7*B7^2*D7+4*J7*I7*H7*B7^2*K7*A7*F7-4*B7^3*H7*I7*J7*A7^2*D7-2*B7^5*H7*I7*J7*D7-2*B7^4*H7*I7*J7*A7*F7-1*A7^5*H7^2*I7*D7-2*A7^5*H7*I7*J7*F7+G7^2*I7*B7^5*F7-1*B7^5*J7^2*I7*F7+2*B7^3*H7^2*I7*K7*F7-2*B7^3*J7^2*I7*K7*F7+2*B7^3*I7^3*K7*F7+B7^5*H7^2*I7*F7+G7*A7^5*I7^2*F7-2*G7^3*A7^3*K7*F7-4*G7*I7*H7*B7^3*K7*E7-2*G7*I7*H7*B7^5*E7-2*J7^2*A7^3*H7*K7*E7+4*G7*A7^3*J7*I7*K7*E7+2*J7^3*B7^3*K7*E7+J7^2*A7^5*H7*E7+J7*B7^5*H7^2*E7-1*G7*A7^5*H7^2*F7+G7^3*A7^5*F7-2*I7^2*B7^3*J7*K7*E7-2*I7^2*H7*A7^3*K7*E7+2*G7^2*B7^3*J7*K7*E7+2*G7^2*H7*A7^3*K7*E7-4*G7*B7^3*J7*H7*K7*F7+G7*A7^5*J7^2*F7+4*A7^3*J7*I7*H7*K7*F7+2*G7^2*B7^3*I7*K7*F7-2*G7*A7^3*I7^2*K7*F7+2*G7*A7^3*H7^2*K7*F7-2*G7*H7*J7*B7^5*F7-2*G7*A7^3*J7^2*K7*F7)/(2*G7^2*J7^2+2*I7^2*H7^2-2*G7^2*H7^2+G7^4+I7^4+H7^4+2*G7^2*I7^2-8*G7*J7*I7*H7+J7^4+2*J7^2*H7^2-2*I7^2*J7^2)/A7/B7 -> -7.196474188 | Q37: =-0.5*(-4*I7^3*K7^2*C7+4*H7^3*K7^2*F7-4*J7^3*K7^2*D7+4*G7^3*K7^2*E7-1*B7^4*I7*H7^2*C7-4*A7^2*B7^2*J7*I7*H7*E7+2*A7^2*B7^2*H7*J7^2*F7+2*A7^2*B7^2*G7*I7^2*E7+2*A7^2*B7^2*H7^3*F7-1*A7^4*C7*I7*G7^2-2*A7^4*F7*G7*I7*J7+A7^4*D7*I7^2*J7-1*A7^4*D7*J7*H7^2-1*A7^4*D7*G7^2*J7+A7^4*F7*H7^3-4*J7*H7^2*K7^2*D7-4*J7*G7^2*K7^2*D7+4*I7^2*H7*K7^2*F7+4*G7*I7^2*K7^2*E7+4*G7*J7^2*K7^2*E7-4*G7*H7^2*K7^2*E7-4*K7*J7^2*A7^2*H7*F7-4*K7*J7*H7^2*B7^2*D7+4*K7*I7^2*B7^2*J7*D7-4*K7*I7^2*H7*A7^2*F7-4*K7*G7^2*B7^2*J7*D7+4*K7*G7^2*H7*A7^2*F7+4*K7*H7*J7^2*B7^2*F7-8*K7*G7*A7^2*J7*H7*C7+4*K7*H7^3*B7^2*F7+4*K7*A7^2*J7^3*D7+4*K7*G7^3*B7^2*E7+4*K7*A7^2*I7^3*C7-4*K7*J7^3*B7^2*D7-4*K7*H7^3*A7^2*F7-4*K7*G7^3*A7^2*E7-4*K7*B7^2*I7^3*C7-4*K7*G7^2*B7^2*I7*C7-4*K7*G7*A7^2*J7^2*E7+4*K7*G7*A7^2*H7^2*E7-4*K7*G7*A7^2*I7^2*E7+8*K7*A7^2*J7*I7*H7*E7+4*K7*B7^2*J7^2*I7*C7-4*K7*B7^2*H7^2*I7*C7+8*K7*G7*A7^2*J7*I7*F7+8*K7*G7*I7*H7*B7^2*D7+4*K7*G7^2*A7^2*I7*C7+4*K7*G7*I7^2*B7^2*E7+4*K7*G7*J7^2*B7^2*E7-4*K7*G7*H7^2*B7^2*E7-4*K7*A7^2*J7*I7^2*D7-8*K7*I7*G7*B7^2*J7*F7-4*K7*H7*G7^2*B7^2*F7+4*K7*J7*G7^2*A7^2*D7+4*K7*A7^2*J7*H7^2*D7-8*K7*H7*G7*A7^2*I7*D7+4*K7*H7*I7^2*B7^2*F7-8*K7*J7*I7*H7*B7^2*E7+4*K7*A7^2*H7^2*I7*C7-4*K7*A7^2*J7^2*I7*C7-8*G7*J7*I7*K7^2*F7-8*J7*I7*H7*K7^2*E7+8*K7*G7*B7^2*J7*H7*C7+8*H7*G7*I7*K7^2*D7+8*G7*J7*H7*K7^2*C7+4*J7^2*H7*K7^2*F7-4*G7^2*I7*K7^2*C7-4*H7^2*I7*K7^2*C7+4*J7^2*I7*K7^2*C7+4*J7*I7^2*K7^2*D7-4*G7^2*H7*K7^2*F7-1*B7^4*J7*H7^2*D7-1*B7^4*G7*H7^2*E7-2*B7^4*J7*I7*H7*E7+B7^4*I7^2*J7*D7+I7*B7^4*J7^2*C7+2*H7*G7*B7^4*J7*C7-1*I7*G7^2*B7^4*C7+B7^4*H7*J7^2*F7+B7^4*G7*I7^2*E7+B7^4*G7*J7^2*E7-2*G7*B7^4*J7*I7*F7+2*G7*B7^4*I7*H7*D7-1*G7^2*B7^4*J7*D7-1*G7^2*B7^4*H7*F7+B7^4*I7^2*H7*F7+A7^4*C7*I7*J7^2+A7^4*E7*G7*I7^2+2*A7^4*D7*G7*I7*H7-1*A7^4*C7*I7^3-1*A7^4*E7*G7*H7^2-1*A7^4*C7*I7*H7^2+A7^4*E7*G7^3-1*A7^4*F7*G7^2*H7+2*A7^4*C7*H7*G7*J7+A7^4*F7*J7^2*H7+A7^4*F7*I7^2*H7+A7^4*E7*G7*J7^2+2*A7^2*B7^2*I7^2*H7*F7-2*A7^2*B7^2*I7*H7^2*C7-2*A7^2*B7^2*J7*H7^2*D7-2*A7^4*E7*J7*I7*H7-4*A7^2*G7*B7^2*J7*I7*F7+2*A7^2*B7^2*I7^2*J7*D7-2*A7^2*B7^2*G7*H7^2*E7-2*A7^2*J7^3*B7^2*D7+4*A7^2*H7*G7*B7^2*J7*C7+2*A7^2*B7^2*G7^3*E7-2*A7^2*G7^2*B7^2*J7*D7-2*A7^2*I7*G7^2*B7^2*C7+4*A7^2*G7*B7^2*I7*H7*D7-2*A7^2*B7^2*I7^3*C7+2*A7^2*B7^2*G7*J7^2*E7-2*A7^2*G7^2*B7^2*H7*F7+2*A7^2*I7*B7^2*J7^2*C7-1*A7^4*D7*J7^3+B7^4*H7^3*F7-1*J7^3*B7^4*D7-1*B7^4*I7^3*C7+B7^4*G7^3*E7)/(2*G7^2*J7^2+2*I7^2*H7^2-2*G7^2*H7^2+G7^4+I7^4+H7^4+2*G7^2*I7^2-8*G7*J7*I7*H7+J7^4+2*J7^2*H7^2-2*I7^2*J7^2)/B7/A7 -> 0 | R37: =0.5*(-2*G7*I7^2*K7*A7*F7+2*A7*I7^3*K7*D7+3*A7^2*I7^3*F7*B7-1*I7*G7^2*B7^3*F7-1*I7*G7^2*A7^3*D7-1*A7^3*H7^2*I7*D7+3*B7^2*I7^3*A7*D7-1*B7^3*I7^3*F7-1*A7^3*I7^3*D7-1*J7^3*B7^3*E7-1*A7^3*J7^3*C7-1*G7^3*B7^3*D7+G7^3*A7^3*F7+3*A7^2*J7^2*H7*C7*B7-3*G7^2*A7^2*H7*C7*B7+3*G7^2*H7*B7^2*A7*E7-2*G7*A7^3*J7*I7*E7-6*G7*A7^2*J7*I7*C7*B7+6*G7*J7*I7*B7^2*A7*E7+2*G7*J7*I7*B7^3*C7-3*B7^2*I7^2*H7*A7*E7-3*B7^2*J7^2*H7*A7*E7+3*A7^2*I7^2*H7*C7*B7+G7^2*H7*B7^3*C7+3*A7^2*H7^3*C7*B7-1*B7^3*I7^2*H7*C7-1*B7^3*J7^2*H7*C7+A7^3*I7^2*H7*E7+A7^3*J7^2*H7*E7-1*G7^2*A7^3*H7*E7+6*J7*H7*B7^2*I7*A7*F7+2*J7*H7*B7^3*I7*D7+3*G7^3*A7^2*D7*B7+3*G7*A7^2*J7^2*D7*B7-3*G7*H7^2*A7^2*D7*B7-6*J7*A7^2*H7*I7*D7*B7-3*G7*B7^2*I7^2*A7*F7-1*G7*B7^3*I7^2*D7-1*G7*B7^3*J7^2*D7+G7*A7^3*I7^2*F7+G7*A7^3*J7^2*F7-1*G7*H7^2*A7^3*F7-3*B7^2*H7^3*A7*E7-3*G7*B7^2*J7^2*A7*F7+2*G7*H7*B7^3*I7*E7+3*G7*H7^2*B7^2*A7*F7+3*G7*A7^2*I7^2*D7*B7-2*J7*A7^3*H7*I7*F7-1*B7^3*H7^3*C7+A7^3*H7^3*E7-6*G7*A7^2*H7*I7*E7*B7-6*G7*H7*B7^2*I7*A7*C7-3*A7^2*J7*I7^2*E7*B7+3*G7^2*A7^2*J7*E7*B7+3*G7^2*J7*B7^2*A7*C7+3*A7^2*J7*H7^2*E7*B7-1*G7^2*J7*B7^3*E7-3*G7^3*B7^2*A7*F7+G7*H7^2*B7^3*D7+2*G7*A7^3*H7*I7*C7+3*J7*B7^2*H7^2*A7*C7-1*A7^3*J7*H7^2*C7+A7^3*J7*I7^2*C7-1*G7^2*A7^3*J7*C7+3*A7^2*J7^3*E7*B7+J7*B7^3*I7^2*E7-1*J7*B7^3*H7^2*E7-3*J7*B7^2*I7^2*A7*C7-6*H7*G7*A7^2*J7*F7*B7 -6*H7*G7*J7*B7^2*A7*D7+I7*A7^3*J7^2*D7+3*I7*G7^2*A7^2*F7*B7+3*A7^2*H7^2*I7*F7*B7+3*H7^2*B7^2*I7*A7*D7-1*H7^2*B7^3*I7*F7+I7*B7^3*J7^2*F7+3*I7*G7^2*B7^2*A7*D7+2*H7*G7*A7^3*J7*D7+2*H7*G7*J7*B7^3*F7-3*I7*B7^2*J7^2*A7*D7-3*I7*A7^2*J7^2*F7*B7+3*J7^3*B7^2*A7*C7+4*J7*I7*H7*B7*K7*D7-2*J7*G7^2*K7*E7*B7-2*G7^3*B7*K7*D7-2*H7^3*B7*K7*C7-2*I7^3*K7*F7*B7-2*G7^2*I7*K7*F7*B7-2*H7^2*I7*K7*F7*B7+4*G7*J7*H7*K7*F7*B7-2*G7*I7^2*B7*K7*D7+2*G7*H7^2*B7*K7*D7+2*J7^2*I7*K7*F7*B7-2*G7*J7^2*B7*K7*D7+2*J7*I7^2*K7*E7*B7-2*H7*J7^2*B7*K7*C7-2*H7*I7^2*B7*K7*C7+4*I7*G7*B7*J7*K7*C7-2*J7^3*K7*E7*B7+2*H7*G7^2*B7*K7*C7+4*H7*G7*I7*K7*E7*B7+2*H7*G7^2*K7*A7*E7+2*A7*J7*H7^2*K7*C7-4*H7*G7*A7*I7*K7*C7-2*G7^3*K7*A7*F7-2*J7*H7^2*K7*E7*B7-2*H7*I7^2*K7*A7*E7-2*H7*J7^2*K7*A7*E7+2*J7*G7^2*A7*K7*C7+4*J7*I7*H7*K7*A7*F7-2*H7^3*K7*A7*E7+4*I7*G7*J7*K7*A7*E7-2*A7*J7*I7^2*K7*C7+2*A7*J7^3*K7*C7+2*A7*H7^2*I7*K7*D7+2*G7*H7^2*K7*A7*F7-2*A7*J7^2*I7*K7*D7-2*G7*J7^2*K7*A7*F7+2*G7^2*A7*I7*K7*D7-4*G7*A7*J7*H7*K7*D7)/(2*G7^2*J7^2+2*I7^2*H7^2-2*G7^2*H7^2+G7^4+I7^4+H7^4+2*G7^2*I7^2-8*G7*J7*I7*H7+J7^4+2*J7^2*H7^2-2*I7^2*J7^2)/B7/A7 -> 0.01602135615 | S37: =0.5*(2*G7^2*H7*K7*F7+I7^3*B7^2*C7-2*G7^3*K7*E7+2*I7^3*K7*C7-2*H7^3*K7*F7+2*J7^3*K7*D7-1*H7^3*B7^2*F7+A7^2*H7^3*F7-1*I7^3*A7^2*C7+2*H7^3*B7*A7*D7+2*A7*J7^3*F7*B7+2*G7^3*B7*A7*C7+2*A7*I7^3*E7*B7+2*G7*J7^2*B7*A7*C7-2*G7*H7^2*B7*A7*C7+2*H7*J7^2*B7*A7*D7-2*A7*J7*I7^2*F7*B7-4*I7*G7*B7*J7*A7*D7-4*B7*J7*I7*H7*A7*C7+2*A7*H7^2*I7*E7*B7-2*A7*J7^2*I7*E7*B7+2*G7^2*A7*I7*E7*B7-4*G7*A7*J7*H7*E7*B7-2*H7*G7^2*B7*A7*D7+2*J7*G7^2*A7*F7*B7+2*A7*J7*H7^2*F7*B7-4*H7*G7*A7*I7*F7*B7+2*H7*I7^2*B7*A7*D7+2*G7*I7^2*B7*A7*C7-2*G7*J7^2*K7*E7+2*G7*H7^2*K7*E7+2*J7*H7^2*K7*D7-2*I7^2*H7*K7*F7-2*G7*I7^2*K7*E7-2*J7^2*H7*K7*F7+2*G7^2*I7*K7*C7+2*H7^2*I7*K7*C7+4*J7*I7*H7*K7*E7-2*J7^2*I7*K7*C7-4*G7*J7*H7*K7*C7+4*G7*J7*I7*K7*F7-2*J7*I7^2*K7*D7+2*J7*G7^2*K7*D7-4*H7*G7*I7*K7*D7+B7^2*G7*H7^2*E7-2*G7*I7*H7*B7^2*D7-2*H7*G7*J7*B7^2*C7+2*B7^2*J7*I7*H7*E7-1*B7^2*G7*I7^2*E7-1*B7^2*G7^3*E7+I7*G7^2*B7^2*C7-1*B7^2*G7*J7^2*E7+J7^3*B7^2*D7+I7*H7^2*B7^2*C7-1*I7^2*J7*B7^2*D7-1*J7^2*B7^2*H7*F7-1*B7^2*I7^2*H7*F7+J7*H7^2*B7^2*D7-1*I7*J7^2*B7^2*C7+2*G7*B7^2*I7*J7*F7+G7^2*J7*B7^2*D7+G7^2*B7^2*H7*F7+2*H7*G7*J7*A7^2*C7-2*A7^2*J7*I7*H7*E7+A7^2*G7^3*E7+2*G7*I7*H7*A7^2*D7-2*G7*A7^2*J7*I7*F7-1*A7^2*G7*H7^2*E7-1*I7*H7^2*A7^2*C7-1*J7^3*A7^2*D7-1*I7*G7^2*A7^2*C7-1*J7*H7^2*A7^2*D7+I7*J7^2*A7^2*C7+A7^2*G7*J7^2*E7+A7^2*G7*I7^2*E7-1*G7^2*A7^2*H7*F7-1*G7^2*J7*A7^2*D7+A7^2*I7^2*H7*F7+A7^2*H7*J7^2*F7+I7^2*J7*A7^2*D7)/(2*G7^2*J7^2+2*I7^2*H7^2-2*G7^2*H7^2+G7^4+I7^4+H7^4+2*G7^2*I7^2-8*G7*J7*I7*H7+J7^4+2*J7^2*H7^2-2*I7^2*J7^2)/B7/A7 -> 0.002259013041
B38: K3calcb | D38: =(A6^2*I6*E6*G6^2-1*A6^2*I6*E6*H6^2-1*A6^2*J6*F6*G6^2+A6^2*J6*F6*H6^2+B6^2*G6*C6*J6^2-1*B6^2*G6*C6*I6^2-1*B6^2*H6*D6*J6^2+B6^2*H6*D6*I6^2)/(-1*A6^2*J6^2+B6^2*J6^2-1*I6^2*B6^2+A6^2*I6^2)/(G6^2-1*H6^2) ->  | E38: =(-1*C6*B6^3*H6*J6^2+C6*B6^3*H6*I6^2-1*E6*A6^3*J6*G6^2+D6*B6^3*G6*J6^2-1*D6*B6^3*G6*I6^2+E6*A6^3*J6*H6^2+F6*A6^3*I6*G6^2-1*F6*A6^3*I6*H6^2+2*C6*B6*H6*K6*J6^2-2*C6*B6*H6*K6*I6^2-2*D6*B6*K6*G6*J6^2+2*D6*B6*K6*G6*I6^2+2*A6*E6*J6*K6*G6^2-2*A6*E6*J6*K6*H6^2-2*A6*F6*K6*I6*G6^2+2*A6*F6*K6*I6*H6^2)/(-1*A6^2*J6^2+B6^2*J6^2-1*I6^2*B6^2+A6^2*I6^2)/B6/A6/(G6^2-1*H6^2) ->  | F38: =-1*(-1*G6*C6*I6^2+H6*D6*I6^2+I6*E6*G6^2-1*I6*E6*H6^2-1*H6*D6*J6^2+G6*C6*J6^2-1*J6*F6*G6^2+J6*F6*H6^2)/(-1*A6^2*J6^2+B6^2*J6^2-1*I6^2*B6^2+A6^2*I6^2)/(G6^2-1*H6^2) ->  | G38: =-1*(-1*A6*F6*I6*H6^2-1*A6*E6*J6*G6^2+A6*E6*J6*H6^2+A6*F6*I6*G6^2+C6*B6*H6*I6^2-1*D6*B6*G6*I6^2+D6*B6*G6*J6^2-1*C6*B6*H6*J6^2)/(-1*A6^2*J6^2+B6^2*J6^2-1*I6^2*B6^2+A6^2*I6^2)/B6/A6/(G6^2-1*H6^2) ->  | H38: =(-1*A6*F6*I6*H6^2-1*A6*E6*J6*G6^2+A6*E6*J6*H6^2+A6*F6*I6*G6^2+C6*B6*H6*I6^2-1*D6*B6*G6*I6^2+D6*B6*G6*J6^2-1*C6*B6*H6*J6^2)*A6*B6/(-1*A6^2*J6^2+B6^2*J6^2-1*I6^2*B6^2+A6^2*I6^2)/(G6^2-1*H6^2) ->  | I38: =(-1*B6^2*H6*D6*J6^2+B6^2*H6*D6*I6^2+B6^2*G6*C6*J6^2-1*B6^2*G6*C6*I6^2-1*A6^2*J6*F6*G6^2+A6^2*I6*E6*G6^2-1*A6^2*I6*E6*H6^2+A6^2*J6*F6*H6^2-2*D6*H6*K6*I6^2+2*D6*H6*K6*J6^2+2*C6*K6*G6*I6^2-2*C6*K6*G6*J6^2+2*F6*J6*K6*G6^2-2*F6*J6*K6*H6^2-2*E6*K6*I6*G6^2+2*E6*K6*I6*H6^2)/(-1*A6^2*J6^2+B6^2*J6^2-1*I6^2*B6^2+A6^2*I6^2)/(G6^2-1*H6^2) ->  | J38: =-1*(-1*A6*D6*I6^2*G6-1*A6*C6*H6*J6^2+A6*C6*H6*I6^2+A6*D6*J6^2*G6-1*F6*B6*I6*H6^2+E6*B6*J6*H6^2+F6*B6*I6*G6^2-1*E6*B6*J6*G6^2)/(-1*A6^2*J6^2+B6^2*J6^2-1*I6^2*B6^2+A6^2*I6^2)/(G6^2-1*H6^2) ->  | K38: =-1*(-1*G6*C6*I6^2+H6*D6*I6^2+I6*E6*G6^2-1*I6*E6*H6^2-1*H6*D6*J6^2+G6*C6*J6^2-1*J6*F6*G6^2+J6*F6*H6^2)/(-1*A6^2*J6^2+B6^2*J6^2-1*I6^2*B6^2+A6^2*I6^2)/(G6^2-1*H6^2) ->  | L38: =(-1*G6*C6*I6^2+H6*D6*I6^2+I6*E6*G6^2-1*I6*E6*H6^2-1*H6*D6*J6^2+G6*C6*J6^2-1*J6*F6*G6^2+J6*F6*H6^2)*B6^2*A6^2/(-1*A6^2*J6^2+B6^2*J6^2-1*I6^2*B6^2+A6^2*I6^2)/(G6^2-1*H6^2) ->  | M38: =(-1*C6*A6*H6*B6^2*J6^2+C6*A6*H6*I6^2*B6^2+D6*J6^2*A6*B6^2*G6-1*D6*I6^2*A6*B6^2*G6-1*E6*A6^2*B6*J6*G6^2+F6*B6*A6^2*I6*G6^2+E6*A6^2*B6*J6*H6^2-1*F6*B6*A6^2*I6*H6^2+2*E6*B6*J6*K6*G6^2-2*E6*B6*J6*K6*H6^2-2*F6*B6*K6*I6*G6^2+2*F6*B6*K6*I6*H6^2+2*A6*C6*H6*K6*J6^2-2*A6*D6*K6*G6*J6^2-2*A6*C6*H6*K6*I6^2+2*A6*D6*K6*G6*I6^2)/(-1*A6^2*J6^2+B6^2*J6^2-1*I6^2*B6^2+A6^2*I6^2)/(G6^2-1*H6^2) ->  | N38: =-1*(G6*C6*A6^2*J6^2-1*H6*D6*A6^2*J6^2-1*G6*C6*A6^2*I6^2+H6*D6*A6^2*I6^2+I6*E6*B6^2*G6^2-1*I6*E6*B6^2*H6^2-1*J6*F6*B6^2*G6^2+J6*F6*B6^2*H6^2)/(-1*A6^2*J6^2+B6^2*J6^2-1*I6^2*B6^2+A6^2*I6^2)/(G6^2-1*H6^2) ->  | O38: =-1*(-1*A6*D6*I6^2*G6-1*A6*C6*H6*J6^2+A6*C6*H6*I6^2+A6*D6*J6^2*G6-1*F6*B6*I6*H6^2+E6*B6*J6*H6^2+F6*B6*I6*G6^2-1*E6*B6*J6*G6^2)/(-1*A6^2*J6^2+B6^2*J6^2-1*I6^2*B6^2+A6^2*I6^2)/(G6^2-1*H6^2) ->  | P38: =-1*A6^3*B6^2*G6/(-1*B6^2+A6^2)/(G6^2-1*H6^2)*D6+1*B6^2*A6^3*H6/(-1*B6^2+A6^2)/(G6^2-1*H6^2)*C6+B6^3*A6^2*I6/(-1*A6^2*J6^2+B6^2*J6^2-1*I6^2*B6^2+A6^2*I6^2)*F6-1*B6^3*J6*A6^2/(-1*A6^2*J6^2+B6^2*J6^2-1*I6^2*B6^2+A6^2*I6^2)*E6+2*A6*B6^2*G6/(-1*B6^2+A6^2)/(G6^2-1*H6^2)*K6*D6-2*B6^2*A6*H6/(-1*B6^2+A6^2)/(G6^2-1*H6^2)*K6*C6-2*B6*A6^2*I6/(-1*A6^2*J6^2+B6^2*J6^2-1*I6^2*B6^2+A6^2*I6^2)*K6*F6+2*B6*J6*A6^2/(-1*A6^2*J6^2+B6^2*J6^2-1*I6^2*B6^2+A6^2*I6^2)*K6*E6 ->  | Q38: =(B6^2*G6*C6*A6^2*J6^2-1*B6^2*G6*C6*A6^2*I6^2-1*B6^2*H6*D6*A6^2*J6^2+B6^2*H6*D6*A6^2*I6^2+A6^2*I6*E6*B6^2*G6^2-1*A6^2*I6*E6*B6^2*H6^2-1*J6*A6^2*F6*B6^2*G6^2+J6*A6^2*F6*B6^2*H6^2+2*D6*H6*K6*A6^2*J6^2+2*D6*H6*B6^2*K6*J6^2-2*D6*H6*B6^2*K6*I6^2-2*D6*H6*K6*A6^2*I6^2-2*C6*K6*G6*B6^2*J6^2-2*C6*K6*G6*A6^2*J6^2+2*C6*K6*G6*I6^2*B6^2+2*C6*K6*G6*A6^2*I6^2+2*F6*J6*K6*A6^2*G6^2-2*F6*J6*K6*A6^2*H6^2+2*F6*J6*K6*B6^2*G6^2-2*F6*J6*K6*B6^2*H6^2-2*E6*K6*A6^2*I6*G6^2+2*E6*K6*A6^2*I6*H6^2-2*E6*K6*B6^2*I6*G6^2+2*E6*K6*B6^2*I6*H6^2+4*K6^2*C6*G6*J6^2+4*F6*K6^2*J6*H6^2+4*K6^2*D6*H6*I6^2-4*F6*K6^2*J6*G6^2-4*K6^2*D6*H6*J6^2-4*K6^2*C6*G6*I6^2+4*E6*K6^2*I6*G6^2-4*E6*K6^2*I6*H6^2)/(-1*A6^2*J6^2+B6^2*J6^2-1*I6^2*B6^2+A6^2*I6^2)/(G6^2-1*H6^2) ->  | R38: =-1*(-1*D6*I6^2*A6^3*G6-1*C6*A6^3*H6*J6^2+C6*A6^3*H6*I6^2+D6*J6^2*A6^3*G6+2*A6*C6*H6*K6*J6^2-2*A6*C6*H6*K6*I6^2-2*A6*D6*K6*G6*J6^2+2*A6*D6*K6*G6*I6^2-1*E6*B6^3*J6*G6^2-1*F6*B6^3*I6*H6^2+E6*B6^3*J6*H6^2+F6*B6^3*I6*G6^2+2*E6*B6*J6*K6*G6^2-2*E6*B6*J6*K6*H6^2+2*F6*B6*K6*I6*H6^2-2*F6*B6*K6*I6*G6^2)/(-1*A6^2*J6^2+B6^2*J6^2-1*I6^2*B6^2+A6^2*I6^2)/(G6^2-1*H6^2) ->  | S38: =-1*(G6*C6*A6^2*J6^2-1*H6*D6*A6^2*J6^2-1*G6*C6*A6^2*I6^2+H6*D6*A6^2*I6^2+J6*F6*B6^2*H6^2+2*D6*H6*K6*J6^2-2*C6*K6*G6*J6^2-2*D6*H6*K6*I6^2+I6*E6*B6^2*G6^2-2*E6*K6*I6*G6^2+2*E6*K6*I6*H6^2-1*J6*F6*B6^2*G6^2+2*C6*K6*G6*I6^2+2*F6*J6*K6*G6^2-2*F6*J6*K6*H6^2-1*I6*E6*B6^2*H6^2)/(-1*A6^2*J6^2+B6^2*J6^2-1*I6^2*B6^2+A6^2*I6^2)/(G6^2-1*H6^2) -> 
D39: =(A7^2*I7*E7*G7^2-1*A7^2*I7*E7*H7^2-1*A7^2*J7*F7*G7^2+A7^2*J7*F7*H7^2+B7^2*G7*C7*J7^2-1*B7^2*G7*C7*I7^2-1*B7^2*H7*D7*J7^2+B7^2*H7*D7*I7^2)/(-1*A7^2*J7^2+B7^2*J7^2-1*I7^2*B7^2+A7^2*I7^2)/(G7^2-1*H7^2) ->  | E39: =(-1*C7*B7^3*H7*J7^2+C7*B7^3*H7*I7^2-1*E7*A7^3*J7*G7^2+D7*B7^3*G7*J7^2-1*D7*B7^3*G7*I7^2+E7*A7^3*J7*H7^2+F7*A7^3*I7*G7^2-1*F7*A7^3*I7*H7^2+2*C7*B7*H7*K7*J7^2-2*C7*B7*H7*K7*I7^2-2*D7*B7*K7*G7*J7^2+2*D7*B7*K7*G7*I7^2+2*A7*E7*J7*K7*G7^2-2*A7*E7*J7*K7*H7^2-2*A7*F7*K7*I7*G7^2+2*A7*F7*K7*I7*H7^2)/(-1*A7^2*J7^2+B7^2*J7^2-1*I7^2*B7^2+A7^2*I7^2)/B7/A7/(G7^2-1*H7^2) ->  | F39: =-1*(-1*G7*C7*I7^2+H7*D7*I7^2+I7*E7*G7^2-1*I7*E7*H7^2-1*H7*D7*J7^2+G7*C7*J7^2-1*J7*F7*G7^2+J7*F7*H7^2)/(-1*A7^2*J7^2+B7^2*J7^2-1*I7^2*B7^2+A7^2*I7^2)/(G7^2-1*H7^2) ->  | G39: =-1*(-1*A7*F7*I7*H7^2-1*A7*E7*J7*G7^2+A7*E7*J7*H7^2+A7*F7*I7*G7^2+C7*B7*H7*I7^2-1*D7*B7*G7*I7^2+D7*B7*G7*J7^2-1*C7*B7*H7*J7^2)/(-1*A7^2*J7^2+B7^2*J7^2-1*I7^2*B7^2+A7^2*I7^2)/B7/A7/(G7^2-1*H7^2) ->  | H39: =(-1*A7*F7*I7*H7^2-1*A7*E7*J7*G7^2+A7*E7*J7*H7^2+A7*F7*I7*G7^2+C7*B7*H7*I7^2-1*D7*B7*G7*I7^2+D7*B7*G7*J7^2-1*C7*B7*H7*J7^2)*A7*B7/(-1*A7^2*J7^2+B7^2*J7^2-1*I7^2*B7^2+A7^2*I7^2)/(G7^2-1*H7^2) ->  | I39: =(-1*B7^2*H7*D7*J7^2+B7^2*H7*D7*I7^2+B7^2*G7*C7*J7^2-1*B7^2*G7*C7*I7^2-1*A7^2*J7*F7*G7^2+A7^2*I7*E7*G7^2-1*A7^2*I7*E7*H7^2+A7^2*J7*F7*H7^2-2*D7*H7*K7*I7^2+2*D7*H7*K7*J7^2+2*C7*K7*G7*I7^2-2*C7*K7*G7*J7^2+2*F7*J7*K7*G7^2-2*F7*J7*K7*H7^2-2*E7*K7*I7*G7^2+2*E7*K7*I7*H7^2)/(-1*A7^2*J7^2+B7^2*J7^2-1*I7^2*B7^2+A7^2*I7^2)/(G7^2-1*H7^2) ->  | J39: =-1*(-1*A7*D7*I7^2*G7-1*A7*C7*H7*J7^2+A7*C7*H7*I7^2+A7*D7*J7^2*G7-1*F7*B7*I7*H7^2+E7*B7*J7*H7^2+F7*B7*I7*G7^2-1*E7*B7*J7*G7^2)/(-1*A7^2*J7^2+B7^2*J7^2-1*I7^2*B7^2+A7^2*I7^2)/(G7^2-1*H7^2) ->  | K39: =-1*(-1*G7*C7*I7^2+H7*D7*I7^2+I7*E7*G7^2-1*I7*E7*H7^2-1*H7*D7*J7^2+G7*C7*J7^2-1*J7*F7*G7^2+J7*F7*H7^2)/(-1*A7^2*J7^2+B7^2*J7^2-1*I7^2*B7^2+A7^2*I7^2)/(G7^2-1*H7^2) ->  | L39: =(-1*G7*C7*I7^2+H7*D7*I7^2+I7*E7*G7^2-1*I7*E7*H7^2-1*H7*D7*J7^2+G7*C7*J7^2-1*J7*F7*G7^2+J7*F7*H7^2)*B7^2*A7^2/(-1*A7^2*J7^2+B7^2*J7^2-1*I7^2*B7^2+A7^2*I7^2)/(G7^2-1*H7^2) ->  | M39: =(-1*C7*A7*H7*B7^2*J7^2+C7*A7*H7*I7^2*B7^2+D7*J7^2*A7*B7^2*G7-1*D7*I7^2*A7*B7^2*G7-1*E7*A7^2*B7*J7*G7^2+F7*B7*A7^2*I7*G7^2+E7*A7^2*B7*J7*H7^2-1*F7*B7*A7^2*I7*H7^2+2*E7*B7*J7*K7*G7^2-2*E7*B7*J7*K7*H7^2-2*F7*B7*K7*I7*G7^2+2*F7*B7*K7*I7*H7^2+2*A7*C7*H7*K7*J7^2-2*A7*D7*K7*G7*J7^2-2*A7*C7*H7*K7*I7^2+2*A7*D7*K7*G7*I7^2)/(-1*A7^2*J7^2+B7^2*J7^2-1*I7^2*B7^2+A7^2*I7^2)/(G7^2-1*H7^2) ->  | N39: =-1*(G7*C7*A7^2*J7^2-1*H7*D7*A7^2*J7^2-1*G7*C7*A7^2*I7^2+H7*D7*A7^2*I7^2+I7*E7*B7^2*G7^2-1*I7*E7*B7^2*H7^2-1*J7*F7*B7^2*G7^2+J7*F7*B7^2*H7^2)/(-1*A7^2*J7^2+B7^2*J7^2-1*I7^2*B7^2+A7^2*I7^2)/(G7^2-1*H7^2) ->  | O39: =-1*(-1*A7*D7*I7^2*G7-1*A7*C7*H7*J7^2+A7*C7*H7*I7^2+A7*D7*J7^2*G7-1*F7*B7*I7*H7^2+E7*B7*J7*H7^2+F7*B7*I7*G7^2-1*E7*B7*J7*G7^2)/(-1*A7^2*J7^2+B7^2*J7^2-1*I7^2*B7^2+A7^2*I7^2)/(G7^2-1*H7^2) ->  | P39: =-1*A7^3*B7^2*G7/(-1*B7^2+A7^2)/(G7^2-1*H7^2)*D7+1*B7^2*A7^3*H7/(-1*B7^2+A7^2)/(G7^2-1*H7^2)*C7+B7^3*A7^2*I7/(-1*A7^2*J7^2+B7^2*J7^2-1*I7^2*B7^2+A7^2*I7^2)*F7-1*B7^3*J7*A7^2/(-1*A7^2*J7^2+B7^2*J7^2-1*I7^2*B7^2+A7^2*I7^2)*E7+2*A7*B7^2*G7/(-1*B7^2+A7^2)/(G7^2-1*H7^2)*K7*D7-2*B7^2*A7*H7/(-1*B7^2+A7^2)/(G7^2-1*H7^2)*K7*C7-2*B7*A7^2*I7/(-1*A7^2*J7^2+B7^2*J7^2-1*I7^2*B7^2+A7^2*I7^2)*K7*F7+2*B7*J7*A7^2/(-1*A7^2*J7^2+B7^2*J7^2-1*I7^2*B7^2+A7^2*I7^2)*K7*E7 ->  | Q39: =(B7^2*G7*C7*A7^2*J7^2-1*B7^2*G7*C7*A7^2*I7^2-1*B7^2*H7*D7*A7^2*J7^2+B7^2*H7*D7*A7^2*I7^2+A7^2*I7*E7*B7^2*G7^2-1*A7^2*I7*E7*B7^2*H7^2-1*J7*A7^2*F7*B7^2*G7^2+J7*A7^2*F7*B7^2*H7^2+2*D7*H7*K7*A7^2*J7^2+2*D7*H7*B7^2*K7*J7^2-2*D7*H7*B7^2*K7*I7^2-2*D7*H7*K7*A7^2*I7^2-2*C7*K7*G7*B7^2*J7^2-2*C7*K7*G7*A7^2*J7^2+2*C7*K7*G7*I7^2*B7^2+2*C7*K7*G7*A7^2*I7^2+2*F7*J7*K7*A7^2*G7^2-2*F7*J7*K7*A7^2*H7^2+2*F7*J7*K7*B7^2*G7^2-2*F7*J7*K7*B7^2*H7^2-2*E7*K7*A7^2*I7*G7^2+2*E7*K7*A7^2*I7*H7^2-2*E7*K7*B7^2*I7*G7^2+2*E7*K7*B7^2*I7*H7^2+4*K7^2*C7*G7*J7^2+4*F7*K7^2*J7*H7^2+4*K7^2*D7*H7*I7^2-4*F7*K7^2*J7*G7^2-4*K7^2*D7*H7*J7^2-4*K7^2*C7*G7*I7^2+4*E7*K7^2*I7*G7^2-4*E7*K7^2*I7*H7^2)/(-1*A7^2*J7^2+B7^2*J7^2-1*I7^2*B7^2+A7^2*I7^2)/(G7^2-1*H7^2) ->  | R39: =-1*(-1*D7*I7^2*A7^3*G7-1*C7*A7^3*H7*J7^2+C7*A7^3*H7*I7^2+D7*J7^2*A7^3*G7+2*A7*C7*H7*K7*J7^2-2*A7*C7*H7*K7*I7^2-2*A7*D7*K7*G7*J7^2+2*A7*D7*K7*G7*I7^2-1*E7*B7^3*J7*G7^2-1*F7*B7^3*I7*H7^2+E7*B7^3*J7*H7^2+F7*B7^3*I7*G7^2+2*E7*B7*J7*K7*G7^2-2*E7*B7*J7*K7*H7^2+2*F7*B7*K7*I7*H7^2-2*F7*B7*K7*I7*G7^2)/(-1*A7^2*J7^2+B7^2*J7^2-1*I7^2*B7^2+A7^2*I7^2)/(G7^2-1*H7^2) ->  | S39: =-1*(G7*C7*A7^2*J7^2-1*H7*D7*A7^2*J7^2-1*G7*C7*A7^2*I7^2+H7*D7*A7^2*I7^2+J7*F7*B7^2*H7^2+2*D7*H7*K7*J7^2-2*C7*K7*G7*J7^2-2*D7*H7*K7*I7^2+I7*E7*B7^2*G7^2-2*E7*K7*I7*G7^2+2*E7*K7*I7*H7^2-1*J7*F7*B7^2*G7^2+2*C7*K7*G7*I7^2+2*F7*J7*K7*G7^2-2*F7*J7*K7*H7^2-1*I7*E7*B7^2*H7^2)/(-1*A7^2*J7^2+B7^2*J7^2-1*I7^2*B7^2+A7^2*I7^2)/(G7^2-1*H7^2) ->  | X39: w04 | Y39: th04
B40: K3calcalong | D40: =(-C6*A6*H6+C6*B6*G6+D6*A6*G6+D6*B6*H6)/(B6*(G6^2+H6^2)) -> 1 | E40: =(-C6*H6+D6*G6)/(B6*(G6^2+H6^2)) -> 0 | F40: 0 | G40: 0 | H40: =-(-H6*A6^2*C6+B6^2*G6*D6-B6^2*H6*C6+A6^2*G6*D6)/(B6*(G6^2+H6^2)) -> 0 | I40: =-(-C6*A6*H6-D6*B6*H6+D6*A6*G6-C6*B6*G6)/(B6*(G6^2+H6^2)) -> 1 | J40: 0 | K40: 0 | L40: =(-A6^3*H6*C6-A6*H6*B6^2*C6-A6^2*H6*B6*D6-B6*G6*A6^2*C6-B6^3*G6*C6+B6^2*G6*A6*D6+A6^3*G6*D6-B6^3*H6*D6)/(B6*(G6^2+H6^2)) -> -364.3751246 | M40: =(-H6*A6^2*C6+B6^2*H6*C6-2*A6*H6*D6*B6+A6^2*G6*D6-B6^2*G6*D6-2*B6*G6*C6*A6)/(B6*(G6^2+H6^2)) -> -28.5228893 | N40: 0 | O40: 0 | P40: =-(-(A6^4)*H6*C6-2*A6*H6*B6^3*D6-2*A6^3*H6*B6*D6-2*B6*G6*A6^3*C6-2*B6^3*G6*A6*C6-B6^4*G6*D6+A6^4*G6*D6+B6^4*H6*C6+2*K6*H6*A6^2*C6-2*K6*B6^2*G6*D6+2*K6*B6^2*H6*C6-2*K6*A6^2*G6*D6)/(B6*(G6^2+H6^2)) -> 10393.03134 | Q40: =-(-A6^3*H6*C6+3*A6*H6*B6^2*C6+B6^3*H6*D6-3*A6^2*H6*B6*D6+A6^3*G6*D6-3*B6^2*G6*A6*D6+B6^3*G6*C6-3*B6*G6*A6^2*C6+2*K6*C6*A6*H6+2*K6*D6*B6*H6-2*K6*D6*A6*G6+2*K6*C6*B6*G6)/(B6*(G6^2+H6^2)) -> 364.3751246 | R40: 0 | S40: 0 | X40: =X31*D41+Y31*E41 ->  | Y40: =X31*H41+Y31*I41 -> 
D41: =(-C7*A7*H7+C7*B7*G7+D7*A7*G7+D7*B7*H7)/(B7*(G7^2+H7^2)) -> 0.0003755497311 | E41: =(-C7*H7+D7*G7)/(B7*(G7^2+H7^2)) -> -6.98170166e-05 | F41: 0 | G41: 0 | H41: =-(-H7*A7^2*C7+B7^2*G7*D7-B7^2*H7*C7+A7^2*G7*D7)/(B7*(G7^2+H7^2)) -> 0.02543958412 | I41: =-(-C7*A7*H7-D7*B7*H7+D7*A7*G7-C7*B7*G7)/(B7*(G7^2+H7^2)) -> 0.002366932767 | J41: 0 | K41: 0 | L41: =(-A7^3*H7*C7-A7*H7*B7^2*C7-A7^2*H7*B7*D7-B7*G7*A7^2*C7-B7^3*G7*C7+B7^2*G7*A7*D7+A7^3*G7*D7-B7^3*H7*D7)/(B7*(G7^2+H7^2)) -> -0.8624514217 | M41: =(-H7*A7^2*C7+B7^2*H7*C7-2*A7*H7*D7*B7+A7^2*G7*D7-B7^2*G7*D7-2*B7*G7*C7*A7)/(B7*(G7^2+H7^2)) -> -0.04207217717 | N41: 0 | O41: 0 | P41: =-(-(A7^4)*H7*C7-2*A7*H7*B7^3*D7-2*A7^3*H7*B7*D7-2*B7*G7*A7^3*C7-2*B7^3*G7*A7*C7-B7^4*G7*D7+A7^4*G7*D7+B7^4*H7*C7+2*K7*H7*A7^2*C7-2*K7*B7^2*G7*D7+2*K7*B7^2*H7*C7-2*K7*A7^2*G7*D7)/(B7*(G7^2+H7^2)) -> 13.17265176 | Q41: =-(-A7^3*H7*C7+3*A7*H7*B7^2*C7+B7^3*H7*D7-3*A7^2*H7*B7*D7+A7^3*G7*D7-3*B7^2*G7*A7*D7+B7^3*G7*C7-3*B7*G7*A7^2*C7+2*K7*C7*A7*H7+2*K7*D7*B7*H7-2*K7*D7*A7*G7+2*K7*C7*B7*G7)/(B7*(G7^2+H7^2)) -> 0.1368409801 | R41: 0 | S41: 0 | X41: =X32*D41+Y32*E41 ->  | Y41: =X32*H41+Y32*I41 -> 
B42: K3calcblong | D42: =(-B6*C6*H6+A6*D6*G6)/(G6*(-B6+A6)*H6) -> 1 | E42: =(-C6*H6+D6*G6)/(G6*(-B6+A6)*H6) -> 0 | F42: 0 | G42: 0 | H42: =-A6*B6*(-C6*H6+D6*G6)/(G6*(-B6+A6)*H6) -> 0 | I42: =-(-A6*C6*H6+B6*D6*G6)/(G6*(-B6+A6)*H6) -> 1 | J42: 0 | K42: 0 | L42: =A6*B6*(-A6*C6*H6+B6*D6*G6)/(G6*(-B6+A6)*H6) -> -180.9497588 | M42: =(-A6^2*C6*H6+B6^2*D6*G6)/(G6*(-B6+A6)*H6) -> 231.5836413 | N42: 0 | O42: 0 | P42: =-A6*B6*(-A6^2*C6*H6+B6^2*D6*G6+2*K6*C6*H6-2*K6*D6*G6)/(G6*(-B6+A6)*H6) -> -41905.00404 | Q42: =-(-A6^3*C6*H6+B6^3*D6*G6+2*K6*A6*C6*H6-2*K6*B6*D6*G6)/(G6*(-B6+A6)*H6) -> 460.5199185 | R42: 0 | S42: 0 | X42: =X33*D43+Y33*E43 ->  | Y42: =X33*H43+Y33*I43 -> 
D43: =(-B7*C7*H7+A7*D7*G7)/(G7*(-B7+A7)*H7) -> 0.02192156748 | E43: =(-C7*H7+D7*G7)/(G7*(-B7+A7)*H7) -> 0.001590697714 | F43: 0 | G43: 0 | H43: =-A7*B7*(-C7*H7+D7*G7)/(G7*(-B7+A7)*H7) -> -0.2878363678 | I43: =-(-A7*C7*H7+B7*D7*G7)/(G7*(-B7+A7)*H7) -> -0.02094691377 | J43: 0 | K43: 0 | L43: =A7*B7*(-A7*C7*H7+B7*D7*G7)/(G7*(-B7+A7)*H7) -> 3.790338996 | M43: =(-A7^2*C7*H7+B7^2*D7*G7)/(G7*(-B7+A7)*H7) -> 0.07913216088 | N43: 0 | O43: 0 | P43: =-A7*B7*(-A7^2*C7*H7+B7^2*D7*G7+2*K7*C7*H7-2*K7*D7*G7)/(G7*(-B7+A7)*H7) -> 10.09100763 | Q43: =-(-A7^3*C7*H7+B7^3*D7*G7+2*K7*A7*C7*H7-2*K7*B7*D7*G7)/(G7*(-B7+A7)*H7) -> -1.889429681 | R43: 0 | S43: 0 | X43: =X34*D43+Y34*E43 ->  | Y43: =X34*H43+Y34*I43 -> 
X44: =IF('Initial Parameter'!K16>'Initial Parameter'!M16,IF('Initial Parameter'!B10=1,'K value'!X40,'K value'!X41),IF('Initial Parameter'!B10=1,'K value'!X42,'K value'!X43)) ->  | Y44: =IF('Initial Parameter'!K16>'Initial Parameter'!M16,IF('Initial Parameter'!B10=1,'K value'!Y40,'K value'!Y41),IF('Initial Parameter'!B10=1,'K value'!Y42,'K value'!Y43)) -> 
B45: K4calca1 | D45: 0 | E45: 0 | F45: =(0.5*J9^2*H9*F9+0.5*G9^3*E9-0.5*J9*H9^2*D9+0.5*H9^3*F9-0.5*G9^2*I9*C9-0.5*G9*H9^2*E9-0.5*H9^2*I9*C9+0.5*J9^2*I9*C9-0.5*J9*G9^2*D9+1*G9*J9*H9*C9+0.5*G9*I9^2*E9+1*H9*G9*I9*D9-0.5*J9^3*D9-0.5*I9^3*C9+0.5*J9*I9^2*D9+0.5*I9^2*H9*F9-0.5*G9^2*H9*F9+0.5*G9*J9^2*E9-1*J9*I9*H9*E9-1*G9*J9*I9*F9)/((H9^4+2*J9^2*H9^2+2*G9^2*J9^2-2*G9^2*H9^2+2*I9^2*H9^2+I9^4+J9^4-8*G9*J9*I9*H9-2*I9^2*J9^2+G9^4+2*G9^2*I9^2)*B9*A9) -> 8.446748389e-05 | G45: =(1*D9*G9*J9*H9*A9+1*C9*I9*G9*J9*B9+1*E9*G9*I9*H9*B9-1*F9*J9*I9*H9*A9+1*F9*G9*J9*H9*B9+0.5*C9*A9*J9*I9^2+0.5*D9*G9*H9^2*B9+0.5*D9*A9*J9^2*I9+0.5*E9*J9^2*H9*A9+0.5*E9*I9^2*J9*B9+0.5*E9*I9^2*H9*A9+0.5*F9*B9*J9^2*I9+0.5*F9*G9*A9*J9^2+0.5*F9*G9*A9*I9^2-1*E9*G9*A9*J9*I9+1*D9*J9*I9*H9*B9+1*C9*H9*G9*I9*A9-0.5*C9*J9*H9^2*A9-0.5*C9*H9*J9^2*B9-0.5*C9*H9*B9*I9^2-0.5*C9*J9*A9*G9^2-0.5*D9*G9^2*I9*A9-0.5*D9*G9*J9^2*B9-0.5*D9*G9*B9*I9^2-0.5*D9*A9*H9^2*I9-0.5*E9*G9^2*J9*B9-0.5*E9*G9^2*H9*A9-0.5*E9*J9*H9^2*B9-0.5*F9*B9*H9^2*I9-0.5*F9*G9*A9*H9^2-0.5*F9*G9^2*I9*B9+0.5*F9*A9*G9^3+0.5*E9*H9^3*A9-0.5*C9*H9^3*B9-0.5*C9*A9*J9^3-0.5*D9*B9*G9^3-0.5*D9*A9*I9^3-0.5*E9*J9^3*B9-0.5*F9*B9*I9^3+0.5*C9*H9*B9*G9^2)/(A9*B9*(A9^2*J9^4+A9^2*H9^4+2*A9^2*J9^2*H9^2+A9^2*I9^4+B9^2*I9^4+B9^2*H9^4+B9^2*J9^4+2*A9^2*I9^2*H9^2+G9^4*B9^2+2*G9^2*A9^2*J9^2-2*G9^2*A9^2*H9^2+2*G9^2*B9^2*I9^2+2*G9^2*B9^2*J9^2-2*G9^2*B9^2*H9^2-8*G9*J9*I9*H9*A9^2-2*A9^2*I9^2*J9^2-8*G9*J9*I9*H9*B9^2+2*B9^2*J9^2*H9^2-2*B9^2*I9^2*J9^2+2*B9^2*I9^2*H9^2+G9^4*A9^2+2*G9^2*A9^2*I9^2)) -> -3.174320324e-05 | H45: 0 | I45: 0 | J45: =(1*D9*G9*J9*H9*A9-1*C9*I9*G9*J9*B9-1*E9*G9*I9*H9*B9-1*F9*J9*I9*H9*A9-1*F9*G9*J9*H9*B9+0.5*C9*A9*J9*I9^2-0.5*D9*G9*H9^2*B9+0.5*D9*A9*J9^2*I9+0.5*E9*J9^2*H9*A9-0.5*E9*I9^2*J9*B9+0.5*E9*I9^2*H9*A9-0.5*F9*B9*J9^2*I9+0.5*F9*G9*A9*J9^2+0.5*F9*G9*A9*I9^2-1*E9*G9*A9*J9*I9-1*D9*J9*I9*H9*B9+1*C9*H9*G9*I9*A9-0.5*C9*J9*H9^2*A9+0.5*C9*H9*J9^2*B9+0.5*C9*H9*B9*I9^2-0.5*C9*J9*A9*G9^2-0.5*D9*G9^2*I9*A9+0.5*D9*G9*J9^2*B9+0.5*D9*G9*B9*I9^2-0.5*D9*A9*H9^2*I9+0.5*E9*G9^2*J9*B9-0.5*E9*G9^2*H9*A9+0.5*E9*J9*H9^2*B9+0.5*F9*B9*H9^2*I9-0.5*F9*G9*A9*H9^2+0.5*F9*G9^2*I9*B9+0.5*F9*A9*G9^3+0.5*E9*H9^3*A9+0.5*C9*H9^3*B9-0.5*C9*A9*J9^3+0.5*D9*B9*G9^3-0.5*D9*A9*I9^3+0.5*E9*J9^3*B9+0.5*F9*B9*I9^3-0.5*C9*H9*B9*G9^2)/((H9^4+2*J9^2*H9^2+2*G9^2*J9^2-2*G9^2*H9^2+2*I9^2*H9^2+I9^4+J9^4-8*G9*J9*I9*H9-2*I9^2*J9^2+G9^4+2*G9^2*I9^2)*B9*A9) -> 0.004468140053 | K45: =(0.5*F9*J9^2*H9+0.5*E9*G9^3-0.5*D9*J9*H9^2+0.5*F9*H9^3-0.5*C9*I9*G9^2-0.5*E9*G9*H9^2-0.5*C9*H9^2*I9+0.5*C9*I9*J9^2-0.5*D9*G9^2*J9+1*C9*H9*G9*J9+0.5*E9*G9*I9^2+1*D9*G9*H9*I9-0.5*D9*J9^3-0.5*C9*I9^3+0.5*D9*J9*I9^2+0.5*F9*I9^2*H9-0.5*F9*G9^2*H9+0.5*E9*G9*J9^2-1*E9*J9*H9*I9-1*F9*G9*J9*I9)/((H9^4+2*J9^2*H9^2+2*G9^2*J9^2-2*G9^2*H9^2+2*I9^2*H9^2+I9^4+J9^4-8*G9*J9*I9*H9-2*I9^2*J9^2+G9^4+2*G9^2*I9^2)*B9*A9) -> 8.446748389e-05 | L45: 0 | M45: 0 | N45: =(-1*A9*J9^2*I9*E9*B9-2*J9*I9*H9*B9*C9*A9+1*J9*I9*H9*B9^2*E9-0.5*H9^3*B9^2*F9-1*G9*A9^2*J9*I9*F9-1*G9*I9*H9*B9^2*D9+0.5*J9^2*H9*A9^2*F9-0.5*I9^2*J9*B9^2*D9+0.5*I9^2*H9*A9^2*F9+0.5*B9^2*H9^2*I9*C9+1*G9^2*I9*A9*E9*B9+1*G9*J9*H9*A9^2*C9-2*G9*J9*H9*A9*E9*B9+1*G9*J9^2*B9*C9*A9-0.5*B9^2*J9^2*I9*C9+0.5*G9*A9^2*J9^2*E9-0.5*G9*A9^2*H9^2*E9+0.5*G9*A9^2*I9^2*E9+0.5*G9^2*I9*B9^2*C9-1*J9*I9*H9*A9^2*E9-1*G9*J9*H9*B9^2*C9-0.5*G9*J9^2*B9^2*E9+0.5*G9*H9^2*B9^2*E9-0.5*G9*B9^2*I9^2*E9-0.5*A9^2*H9^2*I9*C9+1*A9*I9^3*E9*B9+0.5*A9^2*J9^2*I9*C9+0.5*G9^2*J9*B9^2*D9-0.5*G9^2*H9*A9^2*F9+0.5*J9*H9^2*B9^2*D9+1*H9^3*B9*D9*A9-0.5*J9*H9^2*A9^2*D9+0.5*H9*B9^2*G9^2*F9-1*H9*B9*G9^2*D9*A9+1*J9*H9^2*A9*F9*B9+1*H9*G9*I9*A9^2*D9-2*H9*G9*I9*A9*F9*B9-0.5*H9*J9^2*B9^2*F9-1*G9*H9^2*B9*C9*A9+1*G9*B9*I9^2*C9*A9+1*A9*H9^2*I9*E9*B9-0.5*A9^2*I9^3*C9+0.5*H9^3*A9^2*F9+0.5*J9^3*B9^2*D9+0.5*A9^2*G9^3*E9+0.5*B9^2*I9^3*C9+1*H9*J9^2*B9*D9*A9+1*H9*B9*I9^2*D9*A9-0.5*H9*B9^2*I9^2*F9+0.5*A9^2*J9*I9^2*D9+1*A9*J9^3*F9*B9-0.5*J9*A9^2*G9^2*D9+1*B9*G9^3*C9*A9-0.5*G9^2*I9*A9^2*C9-0.5*A9^2*J9^3*D9-0.5*B9^2*G9^3*E9-1*A9*J9*I9^2*F9*B9+1*J9*A9*G9^2*F9*B9-2*I9*G9*J9*B9*D9*A9+1*I9*G9*J9*B9^2*F9)/((H9^4+2*J9^2*H9^2+2*G9^2*J9^2-2*G9^2*H9^2+2*I9^2*H9^2+I9^4+J9^4-8*G9*J9*I9*H9-2*I9^2*J9^2+G9^4+2*G9^2*I9^2)*B9*A9) -> -0.1627251591 | O45: =(0.5*E9*J9^2*H9*A9+0.5*C9*H9*J9^2*B9+0.5*F9*G9^2*I9*B9+0.5*C9*H9*B9*I9^2+0.5*D9*G9*J9^2*B9+0.5*D9*A9*J9^2*I9+1*C9*H9*G9*I9*A9-1*C9*I9*G9*J9*B9+1*D9*G9*J9*H9*A9-1*E9*G9*I9*H9*B9-1*F9*J9*I9*H9*A9+0.5*E9*G9^2*J9*B9-0.5*C9*H9*B9*G9^2-0.5*D9*G9^2*I9*A9-0.5*C9*J9*H9^2*A9+0.5*E9*J9*H9^2*B9-1*F9*G9*J9*H9*B9-0.5*E9*G9^2*H9*A9-0.5*C9*A9*J9^3-0.5*D9*A9*I9^3-0.5*E9*I9^2*J9*B9+0.5*F9*G9*A9*J9^2+0.5*D9*B9*G9^3+0.5*C9*H9^3*B9+0.5*E9*J9^3*B9+0.5*E9*H9^3*A9+0.5*F9*B9*I9^3-0.5*D9*A9*H9^2*I9-0.5*F9*G9*A9*H9^2-0.5*C9*J9*A9*G9^2-0.5*F9*B9*J9^2*I9+0.5*D9*G9*B9*I9^2-0.5*D9*G9*H9^2*B9+0.5*E9*I9^2*H9*A9-1*E9*G9*A9*J9*I9-1*D9*J9*I9*H9*B9+0.5*F9*B9*H9^2*I9+0.5*F9*G9*A9*I9^2+0.5*C9*A9*J9*I9^2+0.5*F9*A9*G9^3)/((H9^4+2*J9^2*H9^2+2*G9^2*J9^2-2*G9^2*H9^2+2*I9^2*H9^2+I9^4+J9^4-8*G9*J9*I9*H9-2*I9^2*J9^2+G9^4+2*G9^2*I9^2)*B9*A9) -> 0.004468086576 | P45: 0 | Q45: 0 | R45: =(-1*G9*J9*I9*A9^3*E9-0.5*G9^3*B9^3*D9-1.5*A9^2*C9*H9*B9*G9^2+1*G9*H9*I9*A9^3*C9-1.5*A9*B9^2*I9^2*H9*E9+1.5*A9*H9^2*I9*B9^2*D9+3*A9*J9*H9*B9^2*I9*F9+1.5*A9*J9*H9^2*B9^2*C9-1.5*A9*B9^2*J9^2*H9*E9-1*J9*H9*I9*A9^3*F9+1.5*A9^2*F9*B9*H9^2*I9+1.5*A9^2*E9*J9*H9^2*B9+1.5*A9^2*C9*H9*J9^2*B9+1*J9*H9*B9^3*I9*D9-1.5*A9^2*E9*I9^2*J9*B9-1.5*A9^2*F9*B9*J9^2*I9+1.5*A9^2*F9*B9*I9^3-0.5*B9^3*I9^3*F9+1*G9*H9*I9*B9^3*E9-1.5*A9*G9*B9^2*I9^2*F9+1.5*A9*G9^2*H9*B9^2*E9+1.5*A9*G9^2*J9*B9^2*C9-3*A9*H9*G9*J9*B9^2*D9+3*A9*G9*J9*I9*B9^2*E9+1.5*A9*I9*G9^2*B9^2*D9-3*A9*G9*H9*I9*B9^2*C9+1.5*A9*G9*H9^2*B9^2*F9-1.5*A9*G9*B9^2*J9^2*F9-3*A9^2*F9*G9*J9*H9*B9+0.5*J9*I9^2*B9^3*E9+0.5*G9^3*A9^3*F9+0.5*A9^3*H9^3*E9-0.5*H9^3*B9^3*C9-0.5*J9^3*B9^3*E9-0.5*A9^3*J9^3*C9-0.5*I9^3*A9^3*D9+1*H9*G9*J9*B9^3*F9+1*G9*J9*I9*B9^3*C9-1.5*A9*I9*B9^2*J9^2*D9-1.5*A9*J9*I9^2*B9^2*C9-0.5*A9^3*J9*H9^2*C9-0.5*I9*G9^2*A9^3*D9+1.5*A9^2*D9*B9*G9^3-1.5*A9*G9^3*B9^2*F9+1.5*A9*B9^2*I9^3*D9-0.5*G9^2*J9*A9^3*C9-0.5*B9^3*J9^2*H9*C9-0.5*G9*B9^3*J9^2*D9+0.5*I9*J9^2*A9^3*D9+0.5*I9^2*H9*A9^3*E9+0.5*I9*B9^3*J9^2*F9+0.5*G9*J9^2*A9^3*F9+0.5*G9*I9^2*A9^3*F9+0.5*G9^2*H9*B9^3*C9+0.5*A9^3*J9*I9^2*C9+0.5*J9^2*H9*A9^3*E9+0.5*G9*H9^2*B9^3*D9+1.5*A9^2*E9*J9^3*B9+1.5*A9*J9^3*B9^2*C9-0.5*G9*B9^3*I9^2*D9-0.5*G9^2*J9*B9^3*E9-0.5*G9^2*H9*A9^3*E9-0.5*H9^2*I9*B9^3*F9-0.5*G9*H9^2*A9^3*F9-0.5*B9^3*I9^2*H9*C9-0.5*H9^2*I9*A9^3*D9-0.5*J9*H9^2*B9^3*E9-0.5*I9*G9^2*B9^3*F9+1.5*A9^2*C9*H9^3*B9-1.5*A9*H9^3*B9^2*E9-3*A9^2*C9*I9*G9*J9*B9+1.5*A9^2*D9*G9*J9^2*B9-3*A9^2*E9*G9*I9*H9*B9+1.5*A9^2*E9*G9^2*J9*B9+1.5*A9^2*F9*G9^2*I9*B9-1.5*A9^2*D9*G9*H9^2*B9+1.5*A9^2*D9*G9*B9*I9^2-3*A9^2*D9*J9*I9*H9*B9+1.5*A9^2*C9*H9*B9*I9^2+1*H9*G9*J9*A9^3*D9)/((H9^4+2*J9^2*H9^2+2*G9^2*J9^2-2*G9^2*H9^2+2*I9^2*H9^2+I9^4+J9^4-8*G9*J9*I9*H9-2*I9^2*J9^2+G9^4+2*G9^2*I9^2)*B9*A9) -> 3.085746499 | S45: =(-1*A9*J9^2*I9*E9*B9-2*J9*I9*H9*B9*C9*A9+1*J9*I9*H9*B9^2*E9-0.5*H9^3*B9^2*F9-1*G9*A9^2*J9*I9*F9-1*G9*I9*H9*B9^2*D9+0.5*J9^2*H9*A9^2*F9-0.5*I9^2*J9*B9^2*D9+0.5*I9^2*H9*A9^2*F9+0.5*B9^2*H9^2*I9*C9+1*G9^2*I9*A9*E9*B9+1*G9*J9*H9*A9^2*C9-2*G9*J9*H9*A9*E9*B9+1*G9*J9^2*B9*C9*A9-0.5*B9^2*J9^2*I9*C9+0.5*G9*A9^2*J9^2*E9-0.5*G9*A9^2*H9^2*E9+0.5*G9*A9^2*I9^2*E9+0.5*G9^2*I9*B9^2*C9-1*J9*I9*H9*A9^2*E9-1*G9*J9*H9*B9^2*C9-0.5*G9*J9^2*B9^2*E9+0.5*G9*H9^2*B9^2*E9-0.5*G9*B9^2*I9^2*E9-0.5*A9^2*H9^2*I9*C9+1*A9*I9^3*E9*B9+0.5*A9^2*J9^2*I9*C9+0.5*G9^2*J9*B9^2*D9-0.5*G9^2*H9*A9^2*F9+0.5*J9*H9^2*B9^2*D9+1*H9^3*B9*D9*A9-0.5*J9*H9^2*A9^2*D9+0.5*H9*B9^2*G9^2*F9-1*H9*B9*G9^2*D9*A9+1*J9*H9^2*A9*F9*B9+1*H9*G9*I9*A9^2*D9-2*H9*G9*I9*A9*F9*B9-0.5*H9*J9^2*B9^2*F9-1*G9*H9^2*B9*C9*A9+1*G9*B9*I9^2*C9*A9+1*A9*H9^2*I9*E9*B9-0.5*A9^2*I9^3*C9+0.5*H9^3*A9^2*F9+0.5*J9^3*B9^2*D9+0.5*A9^2*G9^3*E9+0.5*B9^2*I9^3*C9+1*H9*J9^2*B9*D9*A9+1*H9*B9*I9^2*D9*A9-0.5*H9*B9^2*I9^2*F9+0.5*A9^2*J9*I9^2*D9+1*A9*J9^3*F9*B9-0.5*J9*A9^2*G9^2*D9+1*B9*G9^3*C9*A9-0.5*G9^2*I9*A9^2*C9-0.5*A9^2*J9^3*D9-0.5*B9^2*G9^3*E9-1*A9*J9*I9^2*F9*B9+1*J9*A9*G9^2*F9*B9-2*I9*G9*J9*B9*D9*A9+1*I9*G9*J9*B9^2*F9)/((H9^4+2*J9^2*H9^2+2*G9^2*J9^2-2*G9^2*H9^2+2*I9^2*H9^2+I9^4+J9^4-8*G9*J9*I9*H9-2*I9^2*J9^2+G9^4+2*G9^2*I9^2)*B9*A9) -> -0.1627251591
B46: K4calca2 | D46: =-(0.5*C9*A9*J9^3*SQRT(2*L9*K9)-0.5*C9*H9^2*I9*A9^4+0.5*D9*B9^4*J9*H9^2-0.5*D9*B9^4*I9^2*J9-0.5*D9*A9^4*J9*H9^2+0.5*D9*A9^4*I9^2*J9-1*D9*A9^3*H9^3*B9+0.5*D9*A9*I9^3*SQRT(2*L9*K9)-1*D9*A9*B9^3*H9^3+0.5*D9*G9^3*B9*SQRT(2*L9*K9)-0.5*D9*G9^2*J9*A9^4+0.5*D9*G9^2*B9^4*J9-0.5*E9*H9^3*A9*SQRT(2*L9*K9)-1*E9*A9*B9^3*I9^3-1*E9*A9^3*B9*I9^3-0.5*E9*G9*H9^2*A9^4+0.5*E9*G9*A9^4*I9^2+0.5*E9*G9*A9^4*J9^2-0.5*E9*G9*B9^4*I9^2+0.5*E9*G9*H9^2*B9^4+0.5*E9*J9^3*B9*SQRT(2*L9*K9)-0.5*E9*G9*B9^4*J9^2+0.5*F9*B9*I9^3*SQRT(2*L9*K9)-1*F9*A9^3*B9*J9^3-1*F9*A9*B9^3*J9^3-0.5*F9*G9^3*A9*SQRT(2*L9*K9)-0.5*F9*G9^2*H9*A9^4+0.5*F9*G9^2*H9*B9^4+0.5*F9*A9^4*J9^2*H9-0.5*F9*B9^4*I9^2*H9-0.5*F9*B9^4*J9^2*H9+2*C9*A9^3*B9*H9*I9*J9-1*C9*A9^3*B9*G9*J9^2-1*C9*A9*B9^3*G9*J9^2-1*C9*A9^3*B9*G9*I9^2+1*C9*A9*B9^3*G9*H9^2+0.5*C9*A9*J9*H9^2*SQRT(2*L9*K9)-0.5*C9*H9*G9^2*B9*SQRT(2*L9*K9)-1*C9*A9*B9^3*G9*I9^2+2*C9*A9*B9^3*H9*I9*J9+1*C9*A9^3*B9*G9*H9^2-1*C9*H9*G9*A9*I9*SQRT(2*L9*K9)-1*C9*H9*G9*B9^4*J9+1*C9*H9*G9*J9*A9^4+0.5*C9*H9*B9*I9^2*SQRT(2*L9*K9)+0.5*C9*H9*J9^2*B9*SQRT(2*L9*K9)-0.5*C9*A9*J9*I9^2*SQRT(2*L9*K9)-1*C9*I9*G9*B9*J9*SQRT(2*L9*K9)+0.5*C9*J9*G9^2*A9*SQRT(2*L9*K9)+0.5*D9*J9^3*B9^4-0.5*F9*B9^4*H9^3+0.5*F9*A9^4*H9^3+0.5*E9*G9^3*A9^4-0.5*E9*G9^3*B9^4-0.5*D9*A9^4*J9^3-0.5*C9*A9^4*I9^3+0.5*C9*B9^4*I9^3-1*D9*J9*I9*H9*B9*SQRT(2*L9*K9)-1*D9*A9^3*B9*I9^2*H9-1*D9*A9^3*J9^2*B9*H9-1*D9*A9*B9^3*H9*J9^2-0.5*D9*A9*J9^2*I9*SQRT(2*L9*K9)+1*D9*G9^2*A9*B9^3*H9+1*D9*G9*H9*I9*A9^4+0.5*D9*G9*B9*I9^2*SQRT(2*L9*K9)-1*D9*A9*B9^3*I9^2*H9+0.5*D9*A9*H9^2*I9*SQRT(2*L9*K9)+1*D9*G9^2*A9^3*B9*H9+0.5*D9*G9^2*A9*I9*SQRT(2*L9*K9)+2*D9*G9*A9^3*J9*B9*I9+2*D9*G9*A9*B9^3*J9*I9-1*D9*G9*A9*J9*H9*SQRT(2*L9*K9)+0.5*D9*G9*J9^2*B9*SQRT(2*L9*K9)-1*D9*G9*H9*B9^4*I9-0.5*D9*G9*H9^2*B9*SQRT(2*L9*K9)+0.5*E9*G9^2*B9*J9*SQRT(2*L9*K9)-1*E9*G9^2*A9^3*B9*I9-1*E9*G9*I9*H9*B9*SQRT(2*L9*K9)-1*E9*G9^2*A9*B9^3*I9+0.5*E9*G9^2*H9*A9*SQRT(2*L9*K9)+1*E9*G9*A9*J9*I9*SQRT(2*L9*K9)+2*E9*G9*J9*A9^3*B9*H9+2*E9*G9*J9*A9*B9^3*H9+1*E9*J9^2*A9*B9^3*I9-1*E9*I9*H9^2*A9^3*B9-0.5*E9*J9^2*A9*H9*SQRT(2*L9*K9)-1*E9*J9*H9*I9*A9^4+1*E9*J9^2*A9^3*B9*I9-0.5*E9*I9^2*B9*J9*SQRT(2*L9*K9)-0.5*E9*I9^2*H9*A9*SQRT(2*L9*K9)-1*E9*I9*H9^2*A9*B9^3+1*E9*J9*H9*B9^4*I9+0.5*E9*J9*H9^2*B9*SQRT(2*L9*K9)-0.5*F9*B9*J9^2*I9*SQRT(2*L9*K9)+1*F9*A9^3*B9*I9^2*J9-1*F9*A9*B9^3*J9*H9^2+0.5*F9*B9*H9^2*I9*SQRT(2*L9*K9)-1*F9*A9^3*B9*J9*H9^2-1*F9*G9*J9*I9*A9^4+2*F9*G9*A9^3*B9*H9*I9+2*F9*G9*A9*B9^3*H9*I9+1*F9*A9*B9^3*I9^2*J9+1*F9*A9*J9*I9*H9*SQRT(2*L9*K9)-1*F9*G9^2*A9^3*B9*J9-1*F9*G9^2*A9*B9^3*J9+0.5*F9*G9^2*B9*I9*SQRT(2*L9*K9)+0.5*F9*A9^4*I9^2*H9+0.5*F9*G9*A9*H9^2*SQRT(2*L9*K9)-1*C9*A9*B9^3*G9^3-1*C9*A9^3*B9*G9^3-0.5*C9*I9*G9^2*A9^4+0.5*C9*I9*G9^2*B9^4+0.5*C9*H9^2*B9^4*I9+0.5*C9*H9^3*B9*SQRT(2*L9*K9)-0.5*C9*I9*B9^4*J9^2+0.5*C9*I9*A9^4*J9^2-0.5*F9*G9*A9*I9^2*SQRT(2*L9*K9)-0.5*F9*G9*A9*J9^2*SQRT(2*L9*K9)+1*F9*G9*J9*I9*B9^4-1*F9*G9*B9*J9*H9*SQRT(2*L9*K9))/(A9*B9*(A9^2*I9^4+B9^2*I9^4+G9^4*B9^2+A9^2*H9^4-2*B9^2*I9^2*J9^2+2*G9^2*A9^2*J9^2+2*B9^2*J9^2*H9^2+2*B9^2*I9^2*H9^2-8*G9*A9^2*H9*I9*J9+B9^2*H9^4+2*G9^2*A9^2*I9^2+B9^2*J9^4+G9^4*A9^2-2*G9^2*B9^2*H9^2+2*G9^2*B9^2*J9^2+2*G9^2*B9^2*I9^2+A9^2*J9^4+2*A9^2*J9^2*H9^2+2*A9^2*I9^2*H9^2-2*A9^2*I9^2*J9^2-8*G9*B9^2*H9*I9*J9-2*G9^2*A9^2*H9^2)) -> -1.630200781e-08 | E46: =-0.5*(-2*E9*J9^2*A9*H9*K9-2*F9*G9*K9*A9*I9^2+6*F9*B9^2*H9*A9*I9*J9+3*F9*A9^2*J9^2*B9*I9+4*F9*K9*A9*J9*I9*H9-3*F9*A9^2*H9^2*I9*B9-2*F9*A9^3*J9*I9*H9+2*F9*G9^2*K9*B9*I9-3*F9*G9^2*A9^2*I9*B9+2*F9*K9*B9*H9^2*I9-2*F9*K9*B9*J9^2*I9-2*F9*G9*K9*A9*J9^2+3*F9*G9*B9^2*H9^2*A9+2*F9*G9*K9*A9*H9^2-4*F9*G9*K9*B9*H9*J9-3*F9*G9*B9^2*J9^2*A9-2*F9*G9*B9^3*H9*J9-3*F9*G9*B9^2*A9*I9^2+6*F9*G9*A9^2*J9*B9*H9-3*E9*J9^2*A9*H9*B9^2+C9*H9*B9^3*I9^2-1*C9*A9^3*J9*H9^2-3*C9*A9^2*B9*H9^3+2*C9*B9*H9^3*K9-1*C9*J9*G9^2*A9^3-1*C9*H9*G9^2*B9^3-1*D9*A9^3*I9*H9^2+D9*A9^3*I9*J9^2+2*D9*A9*I9^3*K9+3*D9*A9*B9^2*I9^3-3*D9*G9^3*B9*A9^2-1*D9*G9^2*A9^3*I9+2*D9*G9^3*B9*K9-1*D9*G9*B9^3*H9^2+D9*G9*B9^3*J9^2+D9*G9*B9^3*I9^2-1*E9*I9^2*B9^3*J9+2*E9*J9^3*B9*K9-3*E9*J9^3*A9^2*B9+2*C9*K9*A9*J9^3+3*C9*B9^2*J9^3*A9+C9*I9^2*J9*A9^3+C9*H9*B9^3*J9^2-1*C9*A9^3*J9^3+C9*B9^3*H9^3+D9*G9^3*B9^3-1*D9*A9^3*I9^3+E9*H9^3*A9^3+E9*J9^3*B9^3+F9*G9^3*A9^3+F9*B9^3*I9^3+3*C9*J9*G9^2*B9^2*A9+2*C9*J9*G9^2*K9*A9-2*C9*I9*G9*B9^3*J9-6*C9*H9*G9*A9*B9^2*I9-3*C9*I9^2*J9*B9^2*A9-2*C9*I9^2*J9*K9*A9-2*C9*H9*G9^2*B9*K9-3*C9*H9*A9^2*B9*J9^2+3*C9*H9*G9^2*B9*A9^2+2*C9*H9*G9*A9^3*I9+2*C9*A9*J9*H9^2*K9+3*C9*A9*J9*H9^2*B9^2-3*C9*H9*A9^2*B9*I9^2+2*C9*H9*B9*I9^2*K9+2*C9*H9*B9*K9*J9^2+6*C9*I9*G9*B9*J9*A9^2-4*C9*H9*G9*A9*I9*K9-4*C9*I9*G9*B9*K9*J9-4*D9*G9*A9*J9*H9*K9+3*D9*A9*B9^2*H9^2*I9+2*D9*A9*I9*K9*H9^2-3*D9*A9*B9^2*J9^2*I9-3*D9*G9*A9^2*B9*I9^2+2*D9*G9*A9^3*J9*H9+2*D9*G9^2*A9*I9*K9+3*D9*G9^2*A9*B9^2*I9-3*D9*G9*A9^2*B9*J9^2-4*D9*B9*K9*J9*I9*H9+6*D9*B9*J9*I9*H9*A9^2-2*D9*B9^3*J9*I9*H9-2*D9*A9*I9*K9*J9^2+3*D9*G9*A9^2*B9*H9^2+2*D9*G9*B9*I9^2*K9+2*D9*G9*B9*K9*J9^2-2*D9*G9*B9*H9^2*K9-6*D9*G9*A9*J9*H9*B9^2+E9*J9*B9^3*H9^2+E9*J9^2*A9^3*H9-1*E9*G9^2*H9*A9^3+E9*G9^2*B9^3*J9+E9*I9^2*H9*A9^3-3*E9*H9^3*B9^2*A9-2*E9*H9^3*K9*A9+F9*B9^3*H9^2*I9+2*F9*K9*B9*I9^3-1*F9*B9^3*J9^2*I9-3*F9*G9^3*B9^2*A9-2*F9*G9^3*K9*A9+F9*G9^2*B9^3*I9-1*F9*G9*A9^3*H9^2+F9*G9*A9^3*J9^2+F9*G9*A9^3*I9^2-2*E9*I9^2*B9*K9*J9+3*E9*I9^2*B9*J9*A9^2+6*E9*G9*I9*H9*B9*A9^2+2*E9*G9^2*H9*K9*A9+3*E9*G9^2*H9*B9^2*A9-2*E9*G9*I9*J9*A9^3-3*E9*I9^2*H9*B9^2*A9-3*E9*G9^2*B9*J9*A9^2+2*E9*G9^2*B9*K9*J9-2*E9*G9*I9*H9*B9^3-2*E9*I9^2*H9*K9*A9-3*E9*J9*A9^2*B9*H9^2+2*E9*J9*B9*H9^2*K9+6*E9*G9*I9*J9*B9^2*A9-4*E9*G9*I9*H9*B9*K9+4*E9*G9*I9*J9*K9*A9-3*F9*A9^2*I9^3*B9)/(G9^4*B9^2+G9^4*A9^2-2*G9^2*A9^2*H9^2+2*G9^2*A9^2*I9^2+2*G9^2*B9^2*I9^2+2*G9^2*B9^2*J9^2-2*G9^2*B9^2*H9^2+2*G9^2*A9^2*J9^2-8*G9*B9^2*J9*I9*H9-8*G9*A9^2*J9*I9*H9+A9^2*I9^4+2*B9^2*H9^2*J9^2+J9^4*A9^2+2*A9^2*J9^2*H9^2+B9^2*J9^4+B9^2*I9^4+H9^4*A9^2+B9^2*H9^4+2*I9^2*A9^2*H9^2-2*B9^2*I9^2*J9^2+2*I9^2*B9^2*H9^2-2*A9^2*J9^2*I9^2)/A9/B9 -> -2.997936778e-10 | F46: 0 | G46: 0 | H46: =-(-0.5*B9^3*H9^3*C9-0.5*B9^3*G9^3*D9+0.5*I9^3*SQRT(2*L9*K9)*C9-0.5*B9^3*J9^3*E9+0.5*A9^3*G9^3*F9-0.5*B9^3*I9^3*F9-0.5*H9^3*SQRT(2*L9*K9)*F9+0.5*J9^3*SQRT(2*L9*K9)*D9+0.5*A9^3*H9^3*E9-0.5*A9^3*J9^3*C9-0.5*G9^3*SQRT(2*L9*K9)*E9-0.5*A9^3*I9^3*D9-0.5*B9^3*G9*I9^2*D9+0.5*B9^3*G9*H9^2*D9-0.5*B9^3*G9*J9^2*D9-0.5*I9^2*H9*SQRT(2*L9*K9)*F9-0.5*G9^2*B9^3*I9*F9+0.5*J9*H9^2*SQRT(2*L9*K9)*D9+0.5*G9^2*H9*SQRT(2*L9*K9)*F9+1*B9^3*H9*I9*J9*D9+1*G9*J9*B9^3*H9*F9+1*G9*J9*I9*SQRT(2*L9*K9)*F9-0.5*J9*I9^2*SQRT(2*L9*K9)*D9+0.5*J9*G9^2*SQRT(2*L9*K9)*D9-0.5*B9^3*J9*H9^2*E9+0.5*B9^3*I9^2*J9*E9-0.5*G9^2*B9^3*J9*E9+0.5*J9^2*B9^3*I9*F9+1*G9*B9^3*J9*I9*C9-1*G9*J9*H9*SQRT(2*L9*K9)*C9-1*H9*G9*I9*SQRT(2*L9*K9)*D9-0.5*J9^2*H9*SQRT(2*L9*K9)*F9-0.5*I9*H9^2*B9^3*F9+0.5*G9*H9^2*SQRT(2*L9*K9)*E9-0.5*G9*I9^2*SQRT(2*L9*K9)*E9-0.5*G9*J9^2*SQRT(2*L9*K9)*E9+1*J9*I9*H9*SQRT(2*L9*K9)*E9-0.5*B9^3*H9*J9^2*C9-0.5*J9^2*I9*SQRT(2*L9*K9)*C9-0.5*B9^3*I9^2*H9*C9+0.5*H9^2*I9*SQRT(2*L9*K9)*C9+0.5*G9^2*I9*SQRT(2*L9*K9)*C9+0.5*G9^2*B9^3*H9*C9+0.5*A9^3*G9*J9^2*F9+0.5*A9^3*G9*I9^2*F9-0.5*G9^2*A9^3*I9*D9+1*G9*B9^3*H9*I9*E9-1*A9^3*H9*I9*J9*F9-0.5*A9^3*G9*H9^2*F9+1*G9*J9*A9^3*H9*D9-0.5*G9^2*A9^3*J9*C9+0.5*J9^2*A9^3*I9*D9-0.5*I9*H9^2*A9^3*D9-1*G9*A9^3*J9*I9*E9+0.5*A9^3*I9^2*H9*E9-0.5*A9^3*J9*H9^2*C9+0.5*A9^3*I9^2*J9*C9+0.5*A9^3*J9^2*H9*E9+1*G9*A9^3*H9*I9*C9-0.5*G9^2*A9^3*H9*E9-0.5*A9^2*I9^3*B9*F9+1*A9^2*G9*J9*B9*I9*C9+0.5*A9^2*I9^2*J9*B9*E9-0.5*A9^2*B9*G9*I9^2*D9-0.5*A9^2*H9^2*I9*B9*F9+1*A9^2*B9*H9*I9*J9*D9-0.5*A9^2*J9^2*B9*H9*C9-0.5*A9^2*G9^2*J9*B9*E9+1*A9^2*G9*H9*I9*B9*E9-0.5*A9^2*J9*H9^2*B9*E9-0.5*A9^2*B9*G9*J9^2*D9-0.5*A9^2*B9*G9^3*D9-0.5*A9^2*H9^3*B9*C9-0.5*A9^2*J9^3*B9*E9-0.5*A9*B9^2*I9^3*D9+0.5*A9*H9^3*B9^2*E9+0.5*A9*B9^2*G9^3*F9-0.5*A9*B9^2*J9^3*C9+0.5*A9^2*I9*J9^2*B9*F9+1*A9^2*H9*G9*J9*B9*F9-0.5*A9^2*I9*G9^2*B9*F9+0.5*A9^2*B9*G9*H9^2*D9-0.5*A9^2*B9*I9^2*H9*C9+0.5*A9^2*G9^2*B9*H9*C9+0.5*A9*B9^2*G9*J9^2*F9+0.5*A9*B9^2*G9*I9^2*F9-0.5*A9*G9^2*B9^2*I9*D9-0.5*A9*B9^2*G9*H9^2*F9-1*A9*B9^2*H9*I9*J9*F9+1*A9*G9*J9*B9^2*H9*D9-0.5*A9*G9^2*B9^2*J9*C9+0.5*A9*J9^2*B9^2*I9*D9-1*A9*G9*J9*B9^2*I9*E9-0.5*A9*I9*H9^2*B9^2*D9+0.5*A9*B9^2*I9^2*H9*E9-0.5*A9*B9^2*J9*H9^2*C9+0.5*A9*B9^2*I9^2*J9*C9+0.5*A9*J9^2*B9^2*H9*E9-0.5*A9*G9^2*B9^2*H9*E9+1*A9*G9*B9^2*H9*I9*C9)/((I9^4+H9^4+2*G9^2*J9^2-8*G9*H9*I9*J9+2*G9^2*I9^2+G9^4+J9^4+2*J9^2*H9^2+2*I9^2*H9^2-2*I9^2*J9^2-2*G9^2*H9^2)*B9*A9) -> -2.080522049e+25 | I46: =0.5*(2*A9*I9^3*E9*B9+2*I9*K9*J9^2*C9+2*I9^2*J9*K9*D9-2*I9^3*K9*C9-2*A9*I9^2*J9*F9*B9-2*J9*H9^2*K9*D9-2*I9*K9*H9^2*C9-4*K9*J9*I9*H9*E9-2*A9*I9*J9^2*E9*B9+A9^2*I9^3*C9+2*A9*I9*H9^2*E9*B9+2*A9*J9*H9^2*F9*B9+2*H9^3*K9*F9+2*G9*K9*I9^2*E9+2*G9*K9*J9^2*E9-2*G9*K9*H9^2*E9+2*A9*H9*B9*I9^2*D9+2*A9*B9*H9^3*D9-4*A9*B9*J9*I9*H9*C9+2*A9*H9*B9*J9^2*D9+2*G9^3*K9*E9+4*H9*G9*I9*K9*D9+2*J9^2*H9*K9*F9+2*I9^2*H9*K9*F9-2*G9^2*I9*K9*C9-2*J9*G9^2*K9*D9-4*G9*I9*J9*K9*F9-2*G9^2*H9*K9*F9-4*A9*G9*J9*H9*E9*B9+2*A9*G9^3*B9*C9+2*A9*G9*B9*J9^2*C9-2*A9*H9*G9^2*B9*D9-4*A9*H9*G9*I9*F9*B9+2*A9*G9^2*I9*E9*B9+4*G9*J9*H9*K9*C9+2*A9^2*J9*I9*H9*E9+2*A9*J9*G9^2*F9*B9-2*A9*G9*B9*H9^2*C9-4*A9*I9*G9*B9*J9*D9+2*A9*G9*B9*I9^2*C9-1*G9^2*B9^2*I9*C9+2*G9*I9*J9*A9^2*F9+2*G9*B9^2*H9*J9*C9+2*G9*I9*H9*B9^2*D9-1*G9*A9^2*J9^2*E9+B9^2*J9^2*I9*C9-1*B9^2*H9^2*I9*C9-1*I9^2*J9*A9^2*D9+G9*B9^2*I9^2*E9-2*I9*G9*B9^2*J9*F9-2*H9*G9*A9^2*I9*D9-1*A9^2*I9*J9^2*C9-2*B9^2*J9*I9*H9*E9+G9^2*A9^2*I9*C9-1*G9*B9^2*H9^2*E9+G9*B9^2*J9^2*E9+A9^2*I9*H9^2*C9+G9^2*H9*A9^2*F9+I9^2*B9^2*J9*D9-1*I9^2*H9*A9^2*F9-2*G9*A9^2*J9*H9*C9-1*J9*B9^2*H9^2*D9-1*G9^2*B9^2*J9*D9-1*G9*A9^2*I9^2*E9+G9*A9^2*H9^2*E9+J9*G9^2*A9^2*D9+H9*B9^2*J9^2*F9+H9*B9^2*I9^2*F9+A9^2*J9*H9^2*D9-1*H9*G9^2*B9^2*F9+G9^3*B9^2*E9+A9^2*J9^3*D9+B9^2*H9^3*F9-2*K9*J9^3*D9-1*J9^2*A9^2*H9*F9-1*H9^3*A9^2*F9-1*J9^3*B9^2*D9-1*G9^3*A9^2*E9-1*B9^2*I9^3*C9+2*A9*J9^3*F9*B9)/B9/A9/(I9^4+J9^4-8*H9*I9*J9*G9+G9^4+2*I9^2*G9^2+H9^4+2*J9^2*H9^2+2*H9^2*I9^2-2*H9^2*G9^2+2*J9^2*G9^2-2*J9^2*I9^2) ->  | J46: 0 | K46: 0 | L46: =-(0.5*B9^4*H9^3*F9-0.5*A9^4*J9^3*D9+0.5*G9^3*B9^4*E9-0.5*A9^4*I9^3*C9+0.5*H9^3*A9^4*F9-0.5*J9^3*B9^4*D9+0.5*G9^3*A9^4*E9-0.5*B9^4*I9^3*C9-0.5*J9*G9^2*A9^4*D9-0.5*A9^4*H9^2*J9*D9+0.5*H9*B9^4*J9^2*F9+0.5*H9*B9^4*I9^2*F9+0.5*A9^4*J9*I9^2*D9-0.5*H9*G9^2*B9^4*F9-1*I9*G9*J9*B9^4*F9+1*H9*G9*A9^4*I9*D9+1*G9*A9^4*H9*J9*C9-1*B9^4*H9*I9*J9*E9+0.5*G9*B9^4*J9^2*E9-0.5*G9*B9^4*H9^2*E9+0.5*G9*B9^4*I9^2*E9+0.5*J9^2*A9^4*H9*F9-0.5*J9*B9^4*H9^2*D9+0.5*A9^4*J9^2*I9*C9-0.5*A9^4*H9^2*I9*C9-0.5*G9^2*A9^4*I9*C9-0.5*B9^4*H9^2*I9*C9+0.5*B9^4*J9^2*I9*C9-0.5*G9^2*I9*B9^4*C9+0.5*G9*A9^4*J9^2*E9-0.5*G9*A9^4*H9^2*E9+0.5*G9*A9^4*I9^2*E9+1*G9*I9*H9*B9^4*D9-1*G9*A9^4*J9*I9*F9+0.5*I9^2*H9*A9^4*F9+0.5*I9^2*J9*B9^4*D9-0.5*G9^2*H9*A9^4*F9-0.5*G9^2*J9*B9^4*D9-1*A9^4*J9*I9*H9*E9+1*G9*H9*J9*B9^4*C9+1*G9*J9*H9*SQRT(2*L9*K9)*B9*F9-0.5*G9*B9*I9^2*SQRT(2*L9*K9)*D9-0.5*G9^3*B9*SQRT(2*L9*K9)*D9-0.5*G9*J9^2*B9*SQRT(2*L9*K9)*D9+0.5*H9*G9^2*B9*SQRT(2*L9*K9)*C9+0.5*J9*I9^2*SQRT(2*L9*K9)*B9*E9+0.5*G9*H9^2*B9*SQRT(2*L9*K9)*D9-0.5*G9^2*I9*SQRT(2*L9*K9)*B9*F9-0.5*I9^3*SQRT(2*L9*K9)*B9*F9+1*I9*G9*B9*J9*SQRT(2*L9*K9)*C9-0.5*H9*B9*I9^2*SQRT(2*L9*K9)*C9-0.5*H9*J9^2*B9*SQRT(2*L9*K9)*C9+0.5*J9^2*I9*SQRT(2*L9*K9)*B9*F9-0.5*H9^2*I9*SQRT(2*L9*K9)*B9*F9+1*H9*G9*I9*SQRT(2*L9*K9)*B9*E9-0.5*J9*H9^2*SQRT(2*L9*K9)*B9*E9-0.5*J9^3*SQRT(2*L9*K9)*B9*E9-0.5*H9^3*B9*SQRT(2*L9*K9)*C9-0.5*G9^3*SQRT(2*L9*K9)*A9*F9-0.5*J9*G9^2*SQRT(2*L9*K9)*B9*E9+1*J9*I9*H9*B9*SQRT(2*L9*K9)*D9-0.5*G9*I9^2*SQRT(2*L9*K9)*A9*F9+0.5*G9*H9^2*SQRT(2*L9*K9)*A9*F9+0.5*H9*G9^2*SQRT(2*L9*K9)*A9*E9-0.5*A9*J9*I9^2*SQRT(2*L9*K9)*C9-0.5*H9*J9^2*SQRT(2*L9*K9)*A9*E9+0.5*A9*H9^2*I9*SQRT(2*L9*K9)*D9+0.5*G9^2*A9*I9*SQRT(2*L9*K9)*D9+1*I9*G9*J9*SQRT(2*L9*K9)*A9*E9-0.5*H9*I9^2*SQRT(2*L9*K9)*A9*E9+0.5*A9*I9^3*SQRT(2*L9*K9)*D9+0.5*A9*J9^3*SQRT(2*L9*K9)*C9-0.5*H9^3*SQRT(2*L9*K9)*A9*E9-1*H9*G9*A9*I9*SQRT(2*L9*K9)*C9+0.5*A9*J9*H9^2*SQRT(2*L9*K9)*C9-0.5*A9*J9^2*I9*SQRT(2*L9*K9)*D9+0.5*J9*G9^2*A9*SQRT(2*L9*K9)*C9+1*J9*I9*H9*SQRT(2*L9*K9)*A9*F9-0.5*G9*J9^2*SQRT(2*L9*K9)*A9*F9-1*G9*A9*J9*H9*SQRT(2*L9*K9)*D9+1*A9^2*H9^3*B9^2*F9-1*A9^2*B9^2*J9^3*D9-1*A9^2*B9^2*I9^3*C9+1*G9^3*A9^2*B9^2*E9-1*A9^2*B9^2*H9^2*J9*D9-1*H9*G9^2*A9^2*B9^2*F9+1*H9*A9^2*B9^2*J9^2*F9+2*H9*G9*A9^2*B9^2*I9*D9+1*H9*A9^2*I9^2*B9^2*F9-1*J9*G9^2*A9^2*B9^2*D9+1*A9^2*J9*I9^2*B9^2*D9-2*I9*G9*J9*B9^2*A9^2*F9-1*G9^2*A9^2*B9^2*I9*C9-2*J9*I9*H9*B9^2*A9^2*E9+2*G9*A9^2*B9^2*H9*J9*C9+1*A9^2*J9^2*B9^2*I9*C9-1*A9^2*H9^2*I9*B9^2*C9-1*G9*A9^2*H9^2*B9^2*E9+1*G9*A9^2*I9^2*B9^2*E9+1*G9*A9^2*B9^2*J9^2*E9)/((I9^4+H9^4+2*G9^2*J9^2-8*G9*H9*I9*J9+2*G9^2*I9^2+G9^4+J9^4+2*J9^2*H9^2+2*I9^2*H9^2-2*I9^2*J9^2-2*G9^2*H9^2)*B9*A9) -> -3.758526111e+25 | M46: =-0.5*(-1*J9*B9^3*H9^2*E9-1*G9^2*A9*I9*B9^2*D9-1*G9^2*A9^2*I9*F9*B9-1*G9*B9*I9^2*A9^2*D9-1*G9^3*B9^3*D9+2*A9*K9*J9^3*C9+2*I9^2*J9*K9*E9*B9-2*I9^3*K9*F9*B9+2*I9*K9*J9^2*F9*B9-2*K9*J9^3*E9*B9-2*G9*B9*K9*J9^2*D9+2*G9*B9*H9^2*K9*D9-2*G9^3*B9*K9*D9-2*A9*G9^3*K9*F9+4*H9*G9*I9*K9*E9*B9+4*I9*G9*B9*K9*J9*C9-2*J9*G9^2*K9*E9*B9+2*H9*G9^2*B9*K9*C9+4*A9*K9*J9*I9*H9*F9-2*A9*J9^2*H9*K9*E9-2*A9*I9^2*H9*K9*E9+2*A9*I9*K9*H9^2*D9+2*A9*J9*H9^2*K9*C9-2*A9*H9^3*K9*E9+4*G9*J9*H9*K9*F9*B9+4*B9*K9*J9*I9*H9*D9-2*H9*B9*K9*J9^2*C9-2*J9*H9^2*K9*E9*B9-2*H9*B9*I9^2*K9*C9-2*I9*K9*H9^2*F9*B9-2*B9*H9^3*K9*C9-2*A9*I9*K9*J9^2*D9-2*A9*I9^2*J9*K9*C9+2*A9*I9^3*K9*D9-4*A9*G9*J9*H9*K9*D9+2*A9*G9^2*I9*K9*D9+2*A9*G9*K9*H9^2*F9-2*A9*G9*K9*J9^2*F9+4*A9*G9*I9*J9*K9*E9-2*A9*G9*K9*I9^2*F9+2*A9*G9^2*H9*K9*E9-4*A9*H9*G9*I9*K9*C9+2*A9*J9*G9^2*K9*C9-2*G9^2*I9*K9*F9*B9-2*G9*B9*I9^2*K9*D9+2*H9*G9*A9^2*I9*E9*B9+2*I9*G9*B9*J9*A9^2*C9+A9^3*I9*J9^2*D9-1*J9*G9^2*A9^3*C9-1*A9*J9^3*B9^2*C9-1*A9^2*J9^3*E9*B9+2*H9*G9*A9*I9*B9^2*C9-1*J9*G9^2*A9^2*E9*B9+A9^2*I9*J9^2*F9*B9-1*A9^3*I9*H9^2*D9+2*H9*G9*A9^3*I9*C9-1*A9^2*I9*H9^2*F9*B9+2*G9*A9^2*J9*H9*F9*B9+A9*I9*J9^2*B9^2*D9-1*A9^3*I9^3*D9-1*A9^3*J9*H9^2*C9-1*A9*I9*H9^2*B9^2*D9-1*B9*H9^3*A9^2*C9+B9^2*H9^3*A9*E9-1*J9*G9^2*A9*B9^2*C9+2*G9*B9^3*H9*J9*F9+G9*A9^3*J9^2*F9-2*A9^3*J9*I9*H9*F9+B9^3*J9^2*I9*F9-1*G9*A9^3*H9^2*F9+G9^3*B9^2*A9*F9-1*G9^2*A9^3*I9*D9-1*G9^3*B9*A9^2*D9+2*G9*A9^3*J9*H9*D9-1*G9^2*B9^3*I9*F9-2*B9^2*J9*I9*H9*A9*F9-1*G9*B9*J9^2*A9^2*D9-1*G9*B9^3*J9^2*D9+G9*B9^2*J9^2*A9*F9+2*B9*J9*I9*H9*A9^2*D9-1*G9*B9^3*I9^2*D9+2*G9*A9*J9*H9*B9^2*D9+G9^3*A9^3*F9-2*G9*I9*J9*A9^3*E9+G9*A9^3*I9^2*F9+I9^2*B9^3*J9*E9+J9^2*A9^3*H9*E9-1*B9^3*H9^2*I9*F9-1*G9^2*H9*A9^3*E9+I9^2*H9*A9^3*E9+2*G9*I9*H9*B9^3*E9-1*G9^2*B9^3*J9*E9-1*A9*I9^3*B9^2*D9+H9*G9^2*B9^3*C9-1*A9^2*J9*H9^2*E9*B9-1*H9*B9*I9^2*A9^2*C9+H9*B9^2*I9^2*A9*E9-1*A9*J9*H9^2*B9^2*C9+H9*B9^2*J9^2*A9*E9+H9*G9^2*B9*A9^2*C9+2*B9^3*J9*I9*H9*D9+G9*B9*H9^2*A9^2*D9+G9*B9^3*H9^2*D9-1*G9*B9^2*H9^2*A9*F9+G9*B9^2*I9^2*A9*F9-1*A9^2*I9^3*F9*B9-1*A9^3*J9^3*C9+2*I9*G9*B9^3*J9*C9-2*I9*G9*B9^2*J9*A9*E9+I9^2*J9*A9*B9^2*C9-1*J9^3*B9^3*E9-1*B9^3*I9^3*F9-1*B9^3*H9^3*C9+H9^3*A9^3*E9+I9^2*J9*A9^2*E9*B9-1*H9*G9^2*B9^2*A9*E9-1*H9*B9*J9^2*A9^2*C9-1*H9*B9^3*J9^2*C9-1*H9*B9^3*I9^2*C9+I9^2*J9*A9^3*C9)/B9/A9/(I9^4+J9^4-8*H9*I9*J9*G9+G9^4+2*I9^2*G9^2+H9^4+2*J9^2*H9^2+2*H9^2*I9^2-2*H9^2*G9^2+2*J9^2*G9^2-2*J9^2*I9^2) ->  | N46: 0 | O46: 0 | P46: =T46/((I9^4+H9^4+2*G9^2*J9^2-8*G9*H9*I9*J9+2*G9^2*I9^2+G9^4+J9^4+2*J9^2*H9^2+2*I9^2*H9^2-2*I9^2*J9^2-2*G9^2*H9^2)*B9*A9) -> 1.112989826e+28 | Q46: =0.5*(-1*G9*J9^2*B9^4*E9+J9^3*B9^4*D9-1*J9*B9^4*I9^2*D9-1*I9*B9^4*J9^2*C9+2*A9^2*J9^3*B9^2*D9+A9^4*J9^3*D9+2*A9^2*B9^2*I9^3*C9-2*A9^2*B9^2*J9^2*I9*C9-2*A9^2*I9^2*B9^2*J9*D9+A9^4*I9^3*C9-1*A9^4*I9*J9^2*C9-1*A9^4*J9*I9^2*D9+2*H9*B9^4*J9*I9*E9-1*B9^4*H9*I9^2*F9+B9^4*H9^2*I9*C9-1*B9^4*H9*J9^2*F9-1*B9^4*H9^3*F9+J9*B9^4*H9^2*D9-1*A9^4*J9^2*H9*F9-1*A9^4*H9^3*F9+A9^4*J9*H9^2*D9-2*A9^2*B9^2*H9^3*F9+4*A9^2*B9^2*J9*I9*H9*E9+2*A9^2*J9*B9^2*H9^2*D9-2*A9^2*H9*B9^2*J9^2*F9+2*A9^2*B9^2*H9^2*I9*C9-2*A9^2*H9*B9^2*I9^2*F9-1*A9^4*I9^2*H9*F9+2*G9*B9^4*J9*I9*F9+G9^2*J9*B9^4*D9+G9^2*B9^4*H9*F9-1*B9^4*G9^3*E9+2*A9^4*J9*I9*H9*E9+A9^4*H9^2*I9*C9-1*A9^4*G9^3*E9-2*H9*G9*J9*B9^4*C9-2*G9*B9^4*H9*I9*D9+G9*B9^4*H9^2*E9+2*A9^2*H9*G9^2*B9^2*F9-2*A9^2*G9*B9^2*J9^2*E9+4*A9^2*I9*G9*B9^2*J9*F9+2*A9^2*G9^2*B9^2*J9*D9-2*A9^2*G9*B9^2*I9^2*E9+2*A9^2*G9*B9^2*H9^2*E9-4*A9^2*G9*B9^2*H9*J9*C9-4*A9^2*G9*I9*H9*B9^2*D9+2*A9^2*G9^2*B9^2*I9*C9-2*A9^2*G9^3*B9^2*E9-2*A9^4*H9*G9*J9*C9+2*A9^4*G9*J9*I9*F9+A9^4*G9^2*H9*F9+A9^4*I9*G9^2*C9-1*A9^4*G9*I9^2*E9+A9^4*G9*H9^2*E9+A9^4*G9^2*J9*D9-2*A9^4*G9*H9*I9*D9-1*A9^4*G9*J9^2*E9-4*G9^2*A9^2*I9*K9*C9-4*G9*B9^2*I9^2*K9*E9+4*G9*B9^2*H9^2*K9*E9-4*A9^2*I9^3*K9*C9-4*G9^3*B9^2*K9*E9+4*H9^3*K9*A9^2*F9+4*J9^3*B9^2*K9*D9-4*J9*G9^2*K9*A9^2*D9+B9^4*I9^3*C9+4*G9^2*K9*B9^2*I9*C9-4*G9*K9*A9^2*H9^2*E9-8*G9*K9*B9^2*H9*J9*C9+4*K9*B9^2*H9^2*I9*C9-4*K9*B9^2*J9^2*I9*C9+4*G9*K9*A9^2*J9^2*E9+4*G9*K9*A9^2*I9^2*E9+4*J9*B9^2*H9^2*K9*D9-8*G9*I9*H9*B9^2*K9*D9-8*G9*I9*J9*K9*A9^2*F9-4*G9^2*H9*K9*A9^2*F9+4*G9^2*B9^2*K9*J9*D9+4*I9^2*H9*K9*A9^2*F9+4*J9^2*A9^2*H9*K9*F9-4*I9^2*B9^2*K9*J9*D9-8*K9*A9^2*J9*I9*H9*E9+4*K9*B9^2*I9^3*C9+4*G9^3*K9*A9^2*E9-4*G9*B9^2*K9*J9^2*E9+8*B9^2*K9*J9*I9*H9*E9+8*G9*A9^2*J9*H9*K9*C9+4*A9^2*I9*K9*J9^2*C9-4*A9^2*I9*K9*H9^2*C9+8*H9*G9*A9^2*I9*K9*D9+8*I9*G9*B9^2*K9*J9*F9+4*I9^2*J9*K9*A9^2*D9+4*H9*G9^2*B9^2*K9*F9-4*H9*B9^2*I9^2*K9*F9-4*H9*B9^2*K9*J9^2*F9-4*A9^2*J9*H9^2*K9*D9+I9*G9^2*B9^4*C9-1*G9*B9^4*I9^2*E9-4*K9*A9^2*J9^3*D9-4*B9^2*H9^3*K9*F9+4*K9^2*J9^3*D9+4*I9*K9^2*H9^2*C9+4*J9*H9^2*K9^2*D9-4*I9^2*H9*K9^2*F9-4*J9^2*H9*K9^2*F9-4*H9^3*K9^2*F9-4*I9*K9^2*J9^2*C9-4*I9^2*J9*K9^2*D9+4*I9^3*K9^2*C9+8*K9^2*J9*I9*H9*E9+8*G9*I9*J9*K9^2*F9-4*G9^3*K9^2*E9-8*G9*J9*H9*K9^2*C9-8*H9*G9*I9*K9^2*D9+4*G9^2*I9*K9^2*C9+4*J9*G9^2*K9^2*D9+4*G9*K9^2*H9^2*E9-4*G9*K9^2*J9^2*E9-4*G9*K9^2*I9^2*E9+4*G9^2*H9*K9^2*F9)/B9/A9/(I9^4+J9^4-8*H9*I9*J9*G9+G9^4+2*I9^2*G9^2+H9^4+2*J9^2*H9^2+2*H9^2*I9^2-2*H9^2*G9^2+2*J9^2*G9^2-2*J9^2*I9^2) ->  | R46: 0 | S46: 0 | T46: =-(-1*I9*G9*B9^2*J9*SQRT(2*L9*K9)*F9+0.5*J9*G9^2*A9^2*SQRT(2*L9*K9)*D9-1*J9*G9^2*A9*SQRT(2*L9*K9)*B9*F9-1*H9*G9*A9^2*I9*SQRT(2*L9*K9)*D9+2*H9*G9*A9*I9*SQRT(2*L9*K9)*B9*F9+1*H9*G9*B9^4*J9*A9*D9-1*H9*G9*B9^5*J9*F9-1*H9*B9*I9^2*SQRT(2*L9*K9)*A9*D9+0.5*H9*B9^2*I9^2*SQRT(2*L9*K9)*F9-1*H9*J9^2*B9*SQRT(2*L9*K9)*A9*D9+0.5*H9*J9^2*B9^2*SQRT(2*L9*K9)*F9-0.5*A9^2*J9*I9^2*SQRT(2*L9*K9)*D9+1*A9*J9*I9^2*SQRT(2*L9*K9)*B9*F9-0.5*H9^2*I9*A9^5*D9+0.5*H9^2*B9^5*I9*F9+0.5*H9^3*B9^2*SQRT(2*L9*K9)*F9+0.5*I9*A9^5*J9^2*D9-0.5*I9*B9^5*J9^2*F9+0.5*A9^2*J9^3*SQRT(2*L9*K9)*D9+0.5*I9*G9^2*B9^5*F9+1*A9^2*B9^3*G9^3*D9+0.5*A9*B9^4*G9^3*F9+0.5*A9^4*B9*G9^3*D9+1*A9^3*B9^2*G9^3*F9+0.5*A9^4*I9^3*B9*F9-0.5*I9*G9^2*A9^5*D9+0.5*A9^4*J9*H9^2*B9*E9+0.5*B9^4*I9^2*J9*A9*C9-0.5*A9^4*I9^2*J9*B9*E9-0.5*B9^4*J9*H9^2*A9*C9-1*A9*I9^3*SQRT(2*L9*K9)*B9*E9-1*G9^3*B9*SQRT(2*L9*K9)*A9*C9+0.5*G9^2*J9*A9^4*B9*E9-0.5*G9^2*B9^4*J9*A9*C9+0.5*G9^2*B9^5*J9*E9-1*K9*B9^3*G9*H9^2*D9-1*K9*J9*H9^2*SQRT(2*L9*K9)*D9-0.5*A9^5*J9^3*C9+0.5*J9^3*B9^5*E9+1*K9*B9^3*G9*J9^2*D9-1*K9*J9*G9^2*SQRT(2*L9*K9)*D9+2*K9*H9*G9*I9*SQRT(2*L9*K9)*D9+1*K9*J9*I9^2*SQRT(2*L9*K9)*D9-1*K9*J9^3*SQRT(2*L9*K9)*D9+1*K9*B9^3*G9^3*D9+1*K9*B9^3*J9^3*E9+1*K9*G9^3*SQRT(2*L9*K9)*E9-2*K9*J9*I9*H9*SQRT(2*L9*K9)*E9+1*K9*B9^3*J9*H9^2*E9-1*K9*B9^3*I9^2*J9*E9+1*K9*B9^3*G9*I9^2*D9-2*K9*B9^3*H9*I9*J9*D9-2*K9*G9*B9^3*H9*I9*E9+1*K9*G9^2*B9^3*J9*E9-1*K9*G9*H9^2*SQRT(2*L9*K9)*E9+1*K9*G9*I9^2*SQRT(2*L9*K9)*E9+1*K9*G9*J9^2*SQRT(2*L9*K9)*E9+0.5*G9^3*A9^5*F9-0.5*G9^2*A9*B9^4*H9*E9+1*G9*H9*I9*A9^5*C9-1*G9*H9*I9*A9^4*B9*E9+0.5*A9^2*H9^2*I9*SQRT(2*L9*K9)*C9-1*A9*H9^2*I9*SQRT(2*L9*K9)*B9*E9-0.5*G9^2*A9^4*B9*H9*C9-1*G9^2*A9^3*B9^2*H9*E9+0.5*G9^2*A9^2*I9*SQRT(2*L9*K9)*C9-1*G9^2*A9*I9*SQRT(2*L9*K9)*B9*E9+1*G9*H9*B9^4*I9*A9*C9-1*G9*H9*B9^5*I9*E9+1*G9*H9^2*B9*SQRT(2*L9*K9)*A9*C9-0.5*G9*H9^2*B9^2*SQRT(2*L9*K9)*E9-1*G9*J9^2*B9*SQRT(2*L9*K9)*A9*C9+0.5*G9*J9^2*B9^2*SQRT(2*L9*K9)*E9-2*G9*A9^2*B9^3*J9*I9*C9-1*G9*A9*B9^4*J9*I9*E9-1*G9*A9^2*J9*H9*SQRT(2*L9*K9)*C9+2*G9*A9*J9*H9*SQRT(2*L9*K9)*B9*E9-1*G9*B9*I9^2*SQRT(2*L9*K9)*A9*C9+0.5*G9*B9^2*I9^2*SQRT(2*L9*K9)*E9-1*G9*A9^4*J9*B9*I9*C9-2*G9*A9^3*J9*B9^2*I9*E9+2*J9*I9*H9*B9*SQRT(2*L9*K9)*A9*C9-1*J9*I9*H9*B9^2*SQRT(2*L9*K9)*E9+0.5*A9^4*J9^2*B9*H9*C9+1*A9^3*J9^2*B9^2*H9*E9+1*A9^2*B9^3*I9^2*H9*C9+0.5*A9*B9^4*I9^2*H9*E9+0.5*A9^4*B9*I9^2*H9*C9+1*A9^3*B9^2*I9^2*H9*E9+1*A9^2*B9^3*H9*J9^2*C9+0.5*A9*B9^4*H9*J9^2*E9-0.5*A9^2*J9^2*I9*SQRT(2*L9*K9)*C9+1*A9*J9^2*I9*SQRT(2*L9*K9)*B9*E9-1*G9^2*A9^2*B9^3*H9*C9+1*K9*G9^2*A9^3*H9*E9-1*K9*A9^3*H9^3*E9+1*K9*A9^3*I9^3*D9-1*A9^4*B9*H9*I9*J9*D9-2*A9^3*B9^2*H9*I9*J9*F9+0.5*A9^4*B9*G9*J9^2*D9+1*A9^3*B9^2*G9*J9^2*F9+0.5*A9^4*B9*G9*I9^2*D9+1*A9^3*B9^2*G9*I9^2*F9-1*A9^2*B9^3*G9*H9^2*D9-0.5*A9*B9^4*G9*H9^2*F9+0.5*A9^2*J9*H9^2*SQRT(2*L9*K9)*D9-1*A9*J9*H9^2*SQRT(2*L9*K9)*B9*F9+1*H9*G9^2*B9*SQRT(2*L9*K9)*A9*D9-0.5*H9*G9^2*B9^2*SQRT(2*L9*K9)*F9+1*H9*G9*J9*A9^5*D9-1*H9*G9*J9*A9^4*B9*F9+1*A9^2*B9^3*G9*J9^2*D9+0.5*A9*B9^4*G9*J9^2*F9+1*A9^2*B9^3*G9*I9^2*D9+0.5*A9*B9^4*G9*I9^2*F9-2*A9^2*B9^3*H9*I9*J9*D9-1*A9*B9^4*H9*I9*J9*F9-0.5*A9^4*B9*G9*H9^2*D9-1*A9^3*B9^2*G9*H9^2*F9+2*I9*G9*B9*J9*SQRT(2*L9*K9)*A9*D9+0.5*I9*G9^2*A9^4*B9*F9-0.5*A9^5*I9^3*D9+0.5*H9^2*I9*A9^4*B9*F9-0.5*H9^2*B9^4*I9*A9*D9-1*H9^3*B9*SQRT(2*L9*K9)*A9*D9-0.5*I9*A9^4*J9^2*B9*F9+0.5*I9*B9^4*J9^2*A9*D9-1*A9*J9^3*SQRT(2*L9*K9)*B9*F9-0.5*I9*G9^2*B9^4*A9*D9-0.5*B9^4*I9^3*A9*D9-0.5*A9^5*J9*H9^2*C9-0.5*B9^5*I9^2*J9*E9+0.5*A9^5*I9^2*J9*C9+0.5*B9^5*J9*H9^2*E9+0.5*A9^4*H9^3*B9*C9+1*A9^3*H9^3*B9^2*E9+0.5*A9^2*I9^3*SQRT(2*L9*K9)*C9+1*A9^2*B9^3*H9^3*C9+0.5*A9*B9^4*H9^3*E9+0.5*G9^3*B9^2*SQRT(2*L9*K9)*E9-0.5*G9^2*J9*A9^5*C9+0.5*A9^4*J9^3*B9*E9-0.5*J9^3*B9^4*A9*C9-0.5*G9*H9^2*B9^5*D9-0.5*J9^3*B9^2*SQRT(2*L9*K9)*D9-0.5*H9^3*A9^2*SQRT(2*L9*K9)*F9-1*A9^3*B9^2*I9^3*D9+1*A9^2*B9^3*I9^3*F9+0.5*G9*B9^5*J9^2*D9-0.5*G9*H9^2*A9^5*F9+0.5*G9*A9^5*I9^2*F9+0.5*G9*A9^5*J9^2*F9+0.5*G9*B9^5*I9^2*D9+0.5*B9^5*I9^3*F9-2*K9*G9*B9^3*J9*I9*C9+2*K9*G9*J9*H9*SQRT(2*L9*K9)*C9+1*K9*B9^3*I9^2*H9*C9+1*K9*B9^3*H9*J9^2*C9-1*K9*A9^3*G9^3*F9+1*K9*A9^3*J9^3*C9+1*A9^3*B9^2*I9^2*J9*C9-1*G9^2*A9^3*B9^2*J9*C9+1*A9^2*B9^3*J9*H9^2*E9-1*A9^2*B9^3*I9^2*J9*E9+2*G9*A9^3*B9^2*H9*I9*C9-2*G9*A9^2*B9^3*H9*I9*E9+1*G9^2*A9^2*B9^3*J9*E9-0.5*G9^2*B9^2*I9*SQRT(2*L9*K9)*C9-1*G9*J9*I9*A9^5*E9+1*G9*B9^2*J9*H9*SQRT(2*L9*K9)*C9+0.5*G9*A9^2*H9^2*SQRT(2*L9*K9)*E9-0.5*G9*A9^2*I9^2*SQRT(2*L9*K9)*E9-0.5*G9*A9^2*J9^2*SQRT(2*L9*K9)*E9+2*K9*A9^3*H9*I9*J9*F9-1*K9*A9^3*G9*J9^2*F9-1*K9*A9^3*G9*I9^2*F9+2*K9*G9*A9^3*J9*I9*E9-1*K9*A9^3*J9^2*H9*E9-1*K9*A9^3*I9^2*H9*E9-1*K9*J9^2*A9^3*I9*D9+1*K9*I9*H9^2*A9^3*D9+1*K9*G9^2*A9^3*I9*D9-2*K9*G9*J9*A9^3*H9*D9-1*K9*H9^2*I9*SQRT(2*L9*K9)*C9-1*K9*G9^2*I9*SQRT(2*L9*K9)*C9+1*K9*J9^2*I9*SQRT(2*L9*K9)*C9-1*K9*G9^2*B9^3*H9*C9-1*K9*I9^3*SQRT(2*L9*K9)*C9+1*K9*B9^3*H9^3*C9+1*K9*H9^3*SQRT(2*L9*K9)*F9+1*K9*B9^3*I9^3*F9+0.5*G9^3*B9^5*D9-1*J9^2*A9^2*B9^3*I9*F9-0.5*J9^2*A9^2*H9*SQRT(2*L9*K9)*F9-1*J9*H9*I9*A9^5*F9-2*G9*J9*A9^2*B9^3*H9*F9+1*J9^2*A9^3*B9^2*I9*D9-1*I9*H9^2*A9^3*B9^2*D9+0.5*I9^2*B9^2*J9*SQRT(2*L9*K9)*D9+1*I9*H9^2*A9^2*B9^3*F9-1*J9*H9*B9^5*I9*D9-0.5*J9*H9^2*B9^2*SQRT(2*L9*K9)*D9-1*G9^2*A9^3*B9^2*I9*D9+1*G9^2*A9^2*B9^3*I9*F9-0.5*I9^2*H9*A9^2*SQRT(2*L9*K9)*F9+0.5*B9^5*I9^2*H9*C9+0.5*B9^5*J9^2*H9*C9-0.5*B9^2*I9^3*SQRT(2*L9*K9)*C9+0.5*A9^5*I9^2*H9*E9-1*A9^3*B9^2*J9^3*C9+1*A9^2*B9^3*J9^3*E9-0.5*G9^3*A9^2*SQRT(2*L9*K9)*E9-0.5*G9^2*H9*A9^5*E9-0.5*G9^2*H9*B9^5*C9+0.5*A9^5*J9^2*H9*E9+1*K9*A9^3*G9*H9^2*F9+1*K9*A9^3*J9*H9^2*C9-1*K9*A9^3*I9^2*J9*C9+1*K9*G9^2*A9^3*J9*C9-2*K9*G9*A9^3*H9*I9*C9-0.5*G9^2*B9^2*J9*SQRT(2*L9*K9)*D9+2*G9*J9*A9^3*B9^2*H9*D9+0.5*G9^2*H9*A9^2*SQRT(2*L9*K9)*F9+1*G9*I9*H9*B9^2*SQRT(2*L9*K9)*D9+1*G9*A9^2*J9*I9*SQRT(2*L9*K9)*F9+0.5*B9^5*H9^3*C9+0.5*A9^5*H9^3*E9+1*K9*I9*H9^2*B9^3*F9+1*K9*G9^2*B9^3*I9*F9+1*K9*I9^2*H9*SQRT(2*L9*K9)*F9-1*K9*G9^2*H9*SQRT(2*L9*K9)*F9-2*K9*G9*J9*I9*SQRT(2*L9*K9)*F9-1*K9*J9^2*B9^3*I9*F9+1*K9*J9^2*H9*SQRT(2*L9*K9)*F9-2*K9*G9*J9*B9^3*H9*F9+0.5*B9^2*J9^2*I9*SQRT(2*L9*K9)*C9-0.5*B9^2*H9^2*I9*SQRT(2*L9*K9)*C9+1*A9^2*J9*I9*H9*SQRT(2*L9*K9)*E9-1*A9^3*B9^2*J9*H9^2*C9-1*G9*J9*I9*B9^5*C9+1*A9^2*K9*B9*G9^3*D9+1*A9^2*K9*I9^3*B9*F9-2*A9^2*K9*B9*H9*I9*J9*D9+1*A9^2*K9*B9*G9*J9^2*D9+1*A9^2*K9*B9*G9*I9^2*D9-2*A9^2*K9*H9*G9*J9*B9*F9-1*A9^2*K9*I9*J9^2*B9*F9-1*A9^2*K9*B9*G9*H9^2*D9+1*A9^2*K9*I9*G9^2*B9*F9+1*A9^2*K9*H9^2*I9*B9*F9-2*A9^2*K9*G9*J9*B9*I9*C9+1*A9^2*K9*J9^2*B9*H9*C9+1*A9^2*K9*B9*I9^2*H9*C9+1*A9^2*K9*J9*H9^2*B9*E9-1*A9^2*K9*I9^2*J9*B9*E9+1*A9^2*K9*G9^2*J9*B9*E9-2*A9^2*K9*G9*H9*I9*B9*E9-1*A9^2*K9*G9^2*B9*H9*C9+1*A9^2*K9*H9^3*B9*C9+1*A9^2*K9*J9^3*B9*E9-1*A9*K9*B9^2*G9*I9^2*F9-1*A9*K9*B9^2*G9^3*F9+2*A9*K9*B9^2*H9*I9*J9*F9-1*A9*K9*B9^2*G9*J9^2*F9+1*A9*K9*B9^2*J9^3*C9+1*A9*K9*B9^2*J9*H9^2*C9-1*A9*K9*B9^2*I9^2*J9*C9+1*A9*K9*G9^2*B9^2*J9*C9-2*A9*K9*G9*B9^2*H9*I9*C9+1*A9*K9*B9^2*G9*H9^2*F9+2*A9*K9*G9*J9*B9^2*I9*E9-1*A9*K9*J9^2*B9^2*H9*E9-1*A9*K9*B9^2*I9^2*H9*E9+1*A9*K9*G9^2*B9^2*H9*E9-1*A9*K9*H9^3*B9^2*E9+1*A9*K9*B9^2*I9^3*D9-1*A9*K9*J9^2*B9^2*I9*D9+1*A9*K9*I9*H9^2*B9^2*D9+1*A9*K9*G9^2*B9^2*I9*D9-2*A9*K9*G9*J9*B9^2*H9*D9) -> -3507.21875
B47: K4calcb1 | D47: 0 | E47: 0 | F47: =-1*(G9*C9*J9^2-1*H9*D9*J9^2+I9*E9*G9^2-1*I9*E9*H9^2+H9*D9*I9^2-1*G9*C9*I9^2-1*J9*F9*G9^2+J9*F9*H9^2)/(A9^2*I9^2+B9^2*J9^2-1*I9^2*B9^2-1*A9^2*J9^2)/(G9^2-1*H9^2) -> -7.369691594e-05 | G47: =-1*(-1*A9*J9*E9*G9^2+A9*J9*E9*H9^2+A9*I9*F9*G9^2-1*A9*I9*F9*H9^2-1*H9*C9*B9*J9^2+G9*D9*B9*J9^2-1*G9*D9*B9*I9^2+H9*C9*B9*I9^2)/(A9^2*I9^2+B9^2*J9^2-1*I9^2*B9^2-1*A9^2*J9^2)/B9/A9/(G9^2-1*H9^2) -> 0.0003006870748 | H47: 0 | I47: 0 | J47: =-1*(-1*A9*H9*C9*J9^2+A9*G9*D9*J9^2-1*A9*G9*D9*I9^2+A9*H9*C9*I9^2-1*B9*I9*F9*H9^2+B9*J9*E9*H9^2+B9*I9*F9*G9^2-1*B9*J9*E9*G9^2)/(A9^2*I9^2+B9^2*J9^2-1*I9^2*B9^2-1*A9^2*J9^2)/(G9^2-1*H9^2) -> 0.06454324263 | K47: =-1*(G9*C9*J9^2-1*H9*D9*J9^2+I9*E9*G9^2-1*I9*E9*H9^2+H9*D9*I9^2-1*G9*C9*I9^2-1*J9*F9*G9^2+J9*F9*H9^2)/(A9^2*I9^2+B9^2*J9^2-1*I9^2*B9^2-1*A9^2*J9^2)/(G9^2-1*H9^2) -> -7.369691594e-05 | L47: 0 | M47: 0 | N47: =-1*(G9*C9*A9^2*J9^2+H9*D9*A9^2*I9^2-1*G9*C9*A9^2*I9^2-1*H9*D9*A9^2*J9^2-1*I9*E9*B9^2*H9^2+J9*F9*B9^2*H9^2+I9*E9*B9^2*G9^2-1*J9*F9*B9^2*G9^2)/(A9^2*I9^2+B9^2*J9^2-1*I9^2*B9^2-1*A9^2*J9^2)/(G9^2-1*H9^2) -> -0.01580212088 | O47: =-1*(-1*A9*H9*C9*J9^2+A9*G9*D9*J9^2-1*A9*G9*D9*I9^2+A9*H9*C9*I9^2-1*B9*I9*F9*H9^2+B9*J9*E9*H9^2+B9*I9*F9*G9^2-1*B9*J9*E9*G9^2)/(A9^2*I9^2+B9^2*J9^2-1*I9^2*B9^2-1*A9^2*J9^2)/(G9^2-1*H9^2) -> 0.06454324263 | P47: 0 | Q47: 0 | R47: =-1*(-1*A9^3*H9*C9*J9^2+A9^3*G9*D9*J9^2-1*A9^3*G9*D9*I9^2+A9^3*H9*C9*I9^2+B9^3*J9*E9*H9^2-1*B9^3*I9*F9*H9^2+B9^3*I9*F9*G9^2-1*B9^3*J9*E9*G9^2)/(A9^2*I9^2+B9^2*J9^2-1*I9^2*B9^2-1*A9^2*J9^2)/(G9^2-1*H9^2) -> 13.85299236 | S47: =-1*(G9*C9*A9^2*J9^2+H9*D9*A9^2*I9^2-1*G9*C9*A9^2*I9^2-1*H9*D9*A9^2*J9^2-1*I9*E9*B9^2*H9^2+J9*F9*B9^2*H9^2+I9*E9*B9^2*G9^2-1*J9*F9*B9^2*G9^2)/(A9^2*I9^2+B9^2*J9^2-1*I9^2*B9^2-1*A9^2*J9^2)/(G9^2-1*H9^2) -> -0.01580212088
B48: K4calcb2 | D48: =(A9^3*E9*B9*I9*G9^2-1*A9^3*E9*B9*I9*H9^2-1*A9^3*F9*B9*J9*G9^2+A9^3*F9*B9*J9*H9^2-1*A9*D9*B9^3*H9*J9^2+A9*D9*B9^3*H9*I9^2+A9*F9*I9*SQRT(2*L9*K9)*H9^2+A9*E9*J9*SQRT(2*L9*K9)*G9^2-1*A9*E9*J9*SQRT(2*L9*K9)*H9^2-1*A9*F9*I9*SQRT(2*L9*K9)*G9^2+A9*C9*B9^3*G9*J9^2-1*A9*C9*B9^3*G9*I9^2-1*D9*B9*SQRT(2*L9*K9)*G9*J9^2+D9*B9*SQRT(2*L9*K9)*G9*I9^2-1*C9*B9*H9*SQRT(2*L9*K9)*I9^2+C9*B9*H9*SQRT(2*L9*K9)*J9^2)/(B9*(A9^2*I9^2-1*I9^2*B9^2+B9^2*J9^2-1*A9^2*J9^2)*(G9^2-1*H9^2)*A9) -> 1.173999932 | E48: =-1*(2*J9^2*D9*B9*G9*K9+J9^2*H9*C9*B9^3-1*J9^2*D9*B9^3*G9-2*J9^2*H9*C9*B9*K9+2*J9*A9*H9^2*E9*K9+J9*A9^3*E9*G9^2-1*J9*H9^2*A9^3*E9-2*J9*A9*E9*K9*G9^2-1*A9^3*F9*I9*G9^2+H9^2*A9^3*F9*I9-1*H9*C9*B9^3*I9^2-2*D9*B9*G9*K9*I9^2+D9*B9^3*G9*I9^2-2*A9*H9^2*F9*I9*K9+2*A9*F9*I9*K9*G9^2+2*H9*C9*B9*K9*I9^2)/(J9^2*A9^2-1*B9^2*J9^2-1*I9^2*A9^2+B9^2*I9^2)/B9/(H9^2-1*G9^2)/A9 -> -0.01693695255 | F48: 0 | G48: 0 | H48: =(-1*A9^2*E9*B9*J9*H9^2+A9^2*E9*B9*J9*G9^2-1*A9^2*F9*B9*I9*G9^2+A9^2*F9*B9*I9*H9^2-1*A9*C9*B9^2*H9*I9^2-1*A9*D9*B9^2*G9*J9^2+A9*C9*B9^2*H9*J9^2+A9*D9*B9^2*G9*I9^2-1*E9*I9*SQRT(2*L9*K9)*H9^2-1*C9*SQRT(2*L9*K9)*G9*I9^2-1*D9*H9*SQRT(2*L9*K9)*J9^2-1*F9*J9*SQRT(2*L9*K9)*G9^2+C9*SQRT(2*L9*K9)*G9*J9^2+D9*H9*SQRT(2*L9*K9)*I9^2+E9*I9*SQRT(2*L9*K9)*G9^2+F9*J9*SQRT(2*L9*K9)*H9^2)/((A9^2*I9^2-1*I9^2*B9^2+B9^2*J9^2-1*A9^2*J9^2)*(-1*G9^2+H9^2)) -> -10.7272398 | I48: =(-2*J9^2*G9*C9*K9-1*J9^2*H9*D9*B9^2+J9^2*G9*C9*B9^2+2*J9^2*H9*D9*K9+J9*H9^2*A9^2*F9+2*J9*F9*K9*G9^2-2*J9*H9^2*F9*K9-1*J9*A9^2*F9*G9^2-2*I9*E9*K9*G9^2+2*G9*C9*K9*I9^2+2*H9^2*I9*E9*K9-2*H9*D9*K9*I9^2+H9*D9*B9^2*I9^2-1*G9*C9*B9^2*I9^2-1*H9^2*A9^2*I9*E9+A9^2*I9*E9*G9^2)/(H9^2-1*G9^2)/(J9^2*A9^2-1*B9^2*J9^2-1*I9^2*A9^2+B9^2*I9^2) -> 0.00417269167 | J48: 0 | K48: 0 | L48: =(-1*A9^2*D9*B9^2*H9*I9^2-1*A9^2*C9*B9^2*G9*J9^2+A9^2*B9^2*F9*J9*G9^2-1*A9^2*B9^2*F9*J9*H9^2+A9^2*C9*B9^2*G9*I9^2+A9^2*D9*B9^2*H9*J9^2-1*A9^2*B9^2*E9*I9*G9^2+A9^2*B9^2*E9*I9*H9^2-1*A9*C9*H9*SQRT(2*L9*K9)*J9^2+A9*C9*H9*SQRT(2*L9*K9)*I9^2-1*A9*D9*SQRT(2*L9*K9)*G9*I9^2+A9*D9*SQRT(2*L9*K9)*G9*J9^2-1*B9*F9*I9*SQRT(2*L9*K9)*H9^2+B9*E9*J9*SQRT(2*L9*K9)*H9^2-1*B9*E9*J9*SQRT(2*L9*K9)*G9^2+B9*F9*I9*SQRT(2*L9*K9)*G9^2)/((A9^2*I9^2-1*I9^2*B9^2+B9^2*J9^2-1*A9^2*J9^2)*(-1*G9^2+H9^2)) -> 252.0666001 | M48: =-1*(-1*J9^2*A9*D9*B9^2*G9+2*J9^2*A9*G9*D9*K9-2*J9^2*A9*H9*C9*K9+J9^2*A9*H9*C9*B9^2+2*J9*H9^2*B9*E9*K9-2*J9*B9*E9*K9*G9^2-1*J9*A9^2*H9^2*E9*B9+J9*A9^2*E9*B9*G9^2-1*A9*H9*C9*B9^2*I9^2-1*A9^2*F9*B9*I9*G9^2-2*A9*G9*D9*K9*I9^2-2*H9^2*I9*B9*F9*K9+A9*D9*B9^2*G9*I9^2+2*I9*B9*F9*K9*G9^2+A9^2*H9^2*F9*B9*I9+2*A9*H9*C9*K9*I9^2)/(H9^2-1*G9^2)/(J9^2*A9^2-1*B9^2*J9^2-1*I9^2*A9^2+B9^2*I9^2) -> -3.63507487 | N48: 0 | O48: 0 | P48: =-(1*D9*A9^3*B9^2*G9*I9^2-1*D9*A9^3*B9^2*G9*J9^2+1*D9*H9*SQRT(2*L9*K9)*A9^2*I9^2-1*D9*H9*SQRT(2*L9*K9)*A9^2*J9^2-1*C9*SQRT(2*L9*K9)*G9*A9^2*I9^2+1*C9*B9^2*A9^3*H9*J9^2+1*C9*SQRT(2*L9*K9)*G9*A9^2*J9^2-1*C9*B9^2*A9^3*H9*I9^2-1*F9*A9^2*B9^3*I9*G9^2+1*F9*A9^2*B9^3*I9*H9^2+1*E9*I9*SQRT(2*L9*K9)*B9^2*G9^2-1*E9*I9*SQRT(2*L9*K9)*B9^2*H9^2-1*F9*J9*SQRT(2*L9*K9)*B9^2*G9^2+1*F9*J9*SQRT(2*L9*K9)*B9^2*H9^2+1*E9*B9^3*J9*A9^2*G9^2-1*E9*B9^3*J9*A9^2*H9^2-2*K9*D9*H9*SQRT(2*L9*K9)*I9^2+2*K9*D9*H9*SQRT(2*L9*K9)*J9^2+2*K9*C9*SQRT(2*L9*K9)*G9*I9^2+2*K9*F9*J9*SQRT(2*L9*K9)*G9^2-2*K9*F9*J9*SQRT(2*L9*K9)*H9^2-2*K9*C9*SQRT(2*L9*K9)*G9*J9^2-2*K9*E9*I9*SQRT(2*L9*K9)*G9^2+2*K9*E9*I9*SQRT(2*L9*K9)*H9^2-2*A9^2*K9*E9*B9*J9*G9^2+2*A9^2*K9*E9*B9*J9*H9^2+2*A9^2*K9*F9*B9*I9*G9^2-2*A9^2*K9*F9*B9*I9*H9^2+2*A9*K9*C9*B9^2*H9*I9^2-2*A9*K9*C9*B9^2*H9*J9^2+2*A9*K9*D9*B9^2*G9*J9^2-2*A9*K9*D9*B9^2*G9*I9^2)/((A9^2*I9^2-1*I9^2*B9^2+B9^2*J9^2-1*A9^2*J9^2)*(G9^2-1*H9^2)) -> -1170.080862 | Q48: =(A9^2*H9*D9*B9^2*I9^2+4*J9*H9^2*K9^2*F9+4*I9*K9^2*E9*G9^2-4*H9^2*I9*K9^2*E9+4*H9*K9^2*D9*I9^2-4*G9*K9^2*C9*I9^2+2*K9*C9*G9*B9^2*I9^2+2*H9^2*K9*E9*I9*B9^2+2*H9^2*K9*E9*I9*A9^2-2*H9*K9*D9*B9^2*I9^2-2*H9*K9*D9*A9^2*I9^2-1*A9^2*H9^2*B9^2*E9*I9-2*K9*E9*I9*B9^2*G9^2+2*K9*C9*G9*A9^2*I9^2-2*K9*E9*I9*A9^2*G9^2+A9^2*B9^2*E9*I9*G9^2-1*A9^2*C9*G9*B9^2*I9^2-2*J9*H9^2*K9*F9*B9^2-1*J9*A9^2*B9^2*F9*G9^2-2*J9*H9^2*K9*F9*A9^2-4*J9*K9^2*F9*G9^2+2*J9*K9*F9*A9^2*G9^2+2*J9*K9*F9*G9^2*B9^2+J9*A9^2*H9^2*B9^2*F9-2*J9^2*K9*C9*G9*B9^2+4*J9^2*G9*K9^2*C9-2*J9^2*K9*C9*G9*A9^2+2*J9^2*H9*K9*D9*B9^2+J9^2*A9^2*C9*G9*B9^2-4*J9^2*H9*K9^2*D9-1*J9^2*A9^2*H9*D9*B9^2+2*J9^2*H9*K9*D9*A9^2)/(J9^2*A9^2-1*B9^2*J9^2-1*I9^2*A9^2+B9^2*I9^2)/(H9^2-1*G9^2) -> 0.4572549605 | R48: 0 | S48: 0
B49: K4calcalong | D49: =(-C8*A8*H8+C8*B8*G8+D8*A8*G8+D8*B8*H8)/(B8*(G8^2+H8^2)) -> 1 | E49: =(-C8*H8+D8*G8)/(B8*(G8^2+H8^2)) -> 0 | F49: 0 | G49: 0 | H49: =-(-H8*A8^2*C8+B8^2*G8*D8-B8^2*H8*C8+A8^2*G8*D8)/(B8*(G8^2+H8^2)) -> 0 | I49: =-(-C8*A8*H8-D8*B8*H8+D8*A8*G8-C8*B8*G8)/(B8*(G8^2+H8^2)) -> 1 | J49: 0 | K49: 0 | L49: =(-A8^3*H8*C8-A8*H8*B8^2*C8-A8^2*H8*B8*D8-B8*G8*A8^2*C8-B8^3*G8*C8+B8^2*G8*A8*D8+A8^3*G8*D8-B8^3*H8*D8)/(B8*(G8^2+H8^2)) -> -376.5473591 | M49: =(-H8*A8^2*C8+B8^2*H8*C8-2*A8*H8*D8*B8+A8^2*G8*D8-B8^2*G8*D8-2*B8*G8*C8*A8)/(B8*(G8^2+H8^2)) -> -29.30238532 | N49: 0 | O49: 0 | P49: =-(-(A8^4)*H8*C8-2*A8*H8*B8^3*D8-2*A8^3*H8*B8*D8-2*B8*G8*A8^3*C8-2*B8^3*G8*A8*C8-B8^4*G8*D8+A8^4*G8*D8+B8^4*H8*C8+2*K8*H8*A8^2*C8-2*K8*B8^2*G8*D8+2*K8*B8^2*H8*C8-2*K8*A8^2*G8*D8)/(B8*(G8^2+H8^2)) -> 11033.73581 | Q49: =-(-A8^3*H8*C8+3*A8*H8*B8^2*C8+B8^3*H8*D8-3*A8^2*H8*B8*D8+A8^3*G8*D8-3*B8^2*G8*A8*D8+B8^3*G8*C8-3*B8*G8*A8^2*C8+2*K8*C8*A8*H8+2*K8*D8*B8*H8-2*K8*D8*A8*G8+2*K8*C8*B8*G8)/(B8*(G8^2+H8^2)) -> 376.5473591 | R49: 0 | S49: 0
B50: K4calcblong | D50: =(-B8*C8*H8+A8*D8*G8)/(G8*(-B8+A8)*H8) -> 1 | E50: =(-C8*H8+D8*G8)/(G8*(-B8+A8)*H8) -> 0 | F50: 0 | G50: 0 | H50: =-A8*B8*(-C8*H8+D8*G8)/(G8*(-B8+A8)*H8) -> 0 | I50: =-(-A8*C8*H8+B8*D8*G8)/(G8*(-B8+A8)*H8) -> 1 | J50: 0 | K50: 0 | L50: =A8*B8*(-A8*C8*H8+B8*D8*G8)/(G8*(-B8+A8)*H8) -> -186.4158664 | M50: =(-A8^2*C8*H8+B8^2*D8*G8)/(G8*(-B8+A8)*H8) -> 195.345583 | N50: 0 | O50: 0 | P50: =-A8*B8*(-A8^2*C8*H8+B8^2*D8*G8+2*K8*C8*H8-2*K8*D8*G8)/(G8*(-B8+A8)*H8) -> -36415.51611 | Q50: =-(-A8^3*C8*H8+B8^3*D8*G8+2*K8*A8*C8*H8-2*K8*B8*D8*G8)/(G8*(-B8+A8)*H8) -> 457.4281581 | R50: 0 | S50: 0
D52: Kww | E52: Kwq | F52: KwM | G52: KwS | H52: Kqw | I52: Kqq | J52: KqM | K52: KqS | L52: KMw | M52: KMq | N52: KMM | O52: KMS | P52: KSw | Q52: KSq | R52: KSM | S52: KSS

Sheet Matrix (hidden)
A1: =IF('Initial Parameter'!$R$17<>1,IF('Initial Parameter'!K17>'Initial Parameter'!M17,IF('Initial Parameter'!$B$10=1,'K value'!D18,'K value'!D19),IF('Initial Parameter'!$B$10=1,'K value'!D20,'K value'!D21)),0) -> -20.67337492 | B1: =IF('Initial Parameter'!$R$17<>1,IF('Initial Parameter'!K17>'Initial Parameter'!M17,IF('Initial Parameter'!$B$10=1,'K value'!F18,'K value'!E19),IF('Initial Parameter'!$B$10=1,'K value'!F20,'K value'!E21)),0) -> -1.123629597 | C1: =IF(OR('Initial Parameter'!$R$18=0,'Initial Parameter'!$R$18=3,'Initial Parameter'!$R$18=4),IF('Initial Parameter'!K18>'Initial Parameter'!M18,-'K value'!D27,-'K value'!D29),IF(OR('Initial Parameter'!$R$18=2),-1,0)) -> -1 | D1: =IF(OR('Initial Parameter'!$R$18=0,'Initial Parameter'!$R$18=3,'Initial Parameter'!$R$18=4),IF('Initial Parameter'!K18>'Initial Parameter'!M18,-'K value'!E27,-'K value'!E29),IF(OR('Initial Parameter'!$R$18=2),0,0)) -> 0 | E1: =IF(OR('Initial Parameter'!$R$18=0,'Initial Parameter'!$R$18=3,'Initial Parameter'!$R$18=4),IF('Initial Parameter'!K18>'Initial Parameter'!M18,-'K value'!F27,-'K value'!F29),IF(OR('Initial Parameter'!$R$18=2),0,0)) -> 0 | F1: =IF(OR('Initial Parameter'!$R$18=0,'Initial Parameter'!$R$18=3,'Initial Parameter'!$R$18=4),IF('Initial Parameter'!K18>'Initial Parameter'!M18,-'K value'!G27,-'K value'!G29),IF(OR('Initial Parameter'!$R$18=2),0,0)) -> 0 | G1: 0 | H1: 0 | I1: 0 | J1: 0 | K1: 0 | L1: 0 | P1: =IF('Initial Parameter'!$R$17<>1,IF('Initial Parameter'!K17>'Initial Parameter'!M17,IF('Initial Parameter'!$B$10=1,-'K value'!$M$3*'K value'!G18,-'K value'!$M$3*'K value'!G19-'K value'!$N$3*'K value'!F19),IF('Initial Parameter'!$B$10=1,-'K value'!$M$3*'K value'!G20,-'K value'!$M$3*'K value'!G21-'K value'!$N$3*'K value'!F21)),0) -> -0.002423705149
A2: =IF('Initial Parameter'!$R$17<>1,IF('Initial Parameter'!K17>'Initial Parameter'!M17,IF('Initial Parameter'!$B$10=1,'K value'!H18,'K value'!H19),IF('Initial Parameter'!$B$10=1,'K value'!H20,'K value'!H21)),0) -> -162.9448955 | B2: =IF('Initial Parameter'!$R$17<>1,IF('Initial Parameter'!K17>'Initial Parameter'!M17,IF('Initial Parameter'!$B$10=1,'K value'!J18,'K value'!I19),IF('Initial Parameter'!$B$10=1,'K value'!J20,'K value'!I21)),0) -> -21.96283248 | C2: =IF(OR('Initial Parameter'!$R$18=0,'Initial Parameter'!$R$18=3,'Initial Parameter'!$R$18=4),IF('Initial Parameter'!K18>'Initial Parameter'!M18,-'K value'!H27,-'K value'!H29),IF(OR('Initial Parameter'!$R$18=2),0,0)) -> 0 | D2: =IF(OR('Initial Parameter'!$R$18=0,'Initial Parameter'!$R$18=3,'Initial Parameter'!$R$18=4),IF('Initial Parameter'!K18>'Initial Parameter'!M18,-'K value'!I27,-'K value'!I29),IF(OR('Initial Parameter'!$R$18=2),-1,0)) -> -1 | E2: =IF(OR('Initial Parameter'!$R$18=0,'Initial Parameter'!$R$18=3,'Initial Parameter'!$R$18=4),IF('Initial Parameter'!K18>'Initial Parameter'!M18,-'K value'!J27,-'K value'!J29),IF(OR('Initial Parameter'!$R$18=2),0,0)) -> 0 | F2: =IF(OR('Initial Parameter'!$R$18=0,'Initial Parameter'!$R$18=3,'Initial Parameter'!$R$18=4),IF('Initial Parameter'!K18>'Initial Parameter'!M18,-'K value'!K27,-'K value'!K29),IF(OR('Initial Parameter'!$R$18=2),0,0)) -> 0 | G2: 0 | H2: 0 | I2: 0 | J2: 0 | K2: 0 | L2: 0 | P2: =IF('Initial Parameter'!$R$17<>1,IF('Initial Parameter'!K17>'Initial Parameter'!M17,IF('Initial Parameter'!$B$10=1,-'K value'!$M$3*'K value'!K18,-'K value'!$M$3*'K value'!K19-'K value'!$N$3*'K value'!J19),IF('Initial Parameter'!$B$10=1,-'K value'!$M$3*'K value'!K20,-'K value'!$M$3*'K value'!K21-'K value'!$N$3*'K value'!J21)),0) -> 0.06414694556
A3: =IF('Initial Parameter'!$R$17<>1,IF('Initial Parameter'!K17>'Initial Parameter'!M17,IF('Initial Parameter'!$B$10=1,'K value'!L18,'K value'!L19),IF('Initial Parameter'!$B$10=1,'K value'!L20,'K value'!L21)),0) -> 1889.896562 | B3: =IF('Initial Parameter'!$R$17<>1,IF('Initial Parameter'!K17>'Initial Parameter'!M17,IF('Initial Parameter'!$B$10=1,'K value'!N18,'K value'!M19),IF('Initial Parameter'!$B$10=1,'K value'!N20,'K value'!M21)),0) -> -227.995771 | C3: =IF(OR('Initial Parameter'!$R$18=0,'Initial Parameter'!$R$18=3,'Initial Parameter'!$R$18=4),IF('Initial Parameter'!K18>'Initial Parameter'!M18,-'K value'!L27,-'K value'!L29),IF(OR('Initial Parameter'!$R$18=2),IF('Initial Parameter'!K18>'Initial Parameter'!M18,-'K value'!L31,-'K value'!L33),0)) -> 338.7233038 | D3: =IF(OR('Initial Parameter'!$R$18=0,'Initial Parameter'!$R$18=3,'Initial Parameter'!$R$18=4),IF('Initial Parameter'!K18>'Initial Parameter'!M18,-'K value'!M27,-'K value'!M29),IF(OR('Initial Parameter'!$R$18=2),IF('Initial Parameter'!K18>'Initial Parameter'!M18,-'K value'!M31,-'K value'!M33),0)) -> 27.33185264 | E3: =IF(OR('Initial Parameter'!$R$18=0,'Initial Parameter'!$R$18=3,'Initial Parameter'!$R$18=4),IF('Initial Parameter'!K18>'Initial Parameter'!M18,-'K value'!N27,-'K value'!N29),IF(OR('Initial Parameter'!$R$18=2),0,0)) -> 0 | F3: =IF(OR('Initial Parameter'!$R$18=0,'Initial Parameter'!$R$18=3,'Initial Parameter'!$R$18=4),IF('Initial Parameter'!K18>'Initial Parameter'!M18,-'K value'!O27,-'K value'!O29),IF(OR('Initial Parameter'!$R$18=2),0,0)) -> 0 | G3: 0 | H3: 0 | I3: 0 | J3: 0 | K3: 0 | L3: 0 | P3: =IF('Initial Parameter'!$R$17<>1,IF('Initial Parameter'!K17>'Initial Parameter'!M17,IF('Initial Parameter'!$B$10=1,-'K value'!$M$3*'K value'!O18,-'K value'!$M$3*'K value'!O19-'K value'!$N$3*'K value'!N19),IF('Initial Parameter'!$B$10=1,-'K value'!$M$3*'K value'!O20,-'K value'!$M$3*'K value'!O21-'K value'!$N$3*'K value'!N21)),0) -> 2.330683904
A4: =IF('Initial Parameter'!$R$17<>1,IF('Initial Parameter'!K17>'Initial Parameter'!M17,IF('Initial Parameter'!$B$10=1,'K value'!P18,'K value'!P19),IF('Initial Parameter'!$B$10=1,'K value'!P20,'K value'!P21)),0) -> 104775.4253 | B4: =IF('Initial Parameter'!$R$17<>1,IF('Initial Parameter'!K17>'Initial Parameter'!M17,IF('Initial Parameter'!$B$10=1,'K value'!R18,'K value'!Q19),IF('Initial Parameter'!$B$10=1,'K value'!R20,'K value'!Q21)),0) -> 1889.896562 | C4: =IF(OR('Initial Parameter'!$R$18=0,'Initial Parameter'!$R$18=3,'Initial Parameter'!$R$18=4),IF('Initial Parameter'!K18>'Initial Parameter'!M18,-'K value'!P27,-'K value'!P29),IF(OR('Initial Parameter'!$R$18=2),IF('Initial Parameter'!K18>'Initial Parameter'!M18,-'K value'!P31,-'K value'!P33),0)) -> -9257.935425 | D4: =IF(OR('Initial Parameter'!$R$18=0,'Initial Parameter'!$R$18=3,'Initial Parameter'!$R$18=4),IF('Initial Parameter'!K18>'Initial Parameter'!M18,-'K value'!Q27,-'K value'!Q29),IF(OR('Initial Parameter'!$R$18=2),IF('Initial Parameter'!K18>'Initial Parameter'!M18,-'K value'!Q31,-'K value'!Q33),0)) -> -338.7233038 | E4: =IF(OR('Initial Parameter'!$R$18=0,'Initial Parameter'!$R$18=3,'Initial Parameter'!$R$18=4),IF('Initial Parameter'!K18>'Initial Parameter'!M18,-'K value'!R27,-'K value'!R29),IF(OR('Initial Parameter'!$R$18=2),0,0)) -> 0 | F4: =IF(OR('Initial Parameter'!$R$18=0,'Initial Parameter'!$R$18=3,'Initial Parameter'!$R$18=4),IF('Initial Parameter'!K18>'Initial Parameter'!M18,-'K value'!S27,-'K value'!S29),IF(OR('Initial Parameter'!$R$18=2),0,0)) -> 0 | G4: 0 | H4: 0 | I4: 0 | J4: 0 | K4: 0 | L4: 0 | P4: =IF('Initial Parameter'!$R$17<>1,IF('Initial Parameter'!K17>'Initial Parameter'!M17,IF('Initial Parameter'!$B$10=1,-'K value'!$M$3*'K value'!S18,-'K value'!$M$3*'K value'!S19-'K value'!$N$3*'K value'!R19),IF('Initial Parameter'!$B$10=1,-'K value'!$M$3*'K value'!S20,-'K value'!$M$3*'K value'!S21-'K value'!$N$3*'K value'!R21)),0) -> 36.5936106
A5: 0 | B5: 0 | C5: =IF(OR('Initial Parameter'!$R$18=0,'Initial Parameter'!$R$18=3,'Initial Parameter'!$R$18=4),IF('Initial Parameter'!K18>'Initial Parameter'!M18,'K value'!D28,'K value'!D30),IF(OR('Initial Parameter'!$R$18=2),IF('Initial Parameter'!K18>'Initial Parameter'!M18,'K value'!D32,'K value'!D34),0)) -> -0.0117969892 | D5: =IF(OR('Initial Parameter'!$R$18=0,'Initial Parameter'!$R$18=3,'Initial Parameter'!$R$18=4),IF('Initial Parameter'!K18>'Initial Parameter'!M18,'K value'!E28,'K value'!E30),IF(OR('Initial Parameter'!$R$18=2),IF('Initial Parameter'!K18>'Initial Parameter'!M18,'K value'!E32,'K value'!E34),0)) -> -0.0006259767438 | E5: =IF(OR('Initial Parameter'!$R$18=0,'Initial Parameter'!$R$18=3,'Initial Parameter'!$R$18=4),IF('Initial Parameter'!K18>'Initial Parameter'!M18,'K value'!F28,'K value'!F30),IF(OR('Initial Parameter'!$R$18=2),-1,0)) -> -1 | F5: =IF(OR('Initial Parameter'!$R$18=0,'Initial Parameter'!$R$18=3,'Initial Parameter'!$R$18=4),IF('Initial Parameter'!K18>'Initial Parameter'!M18,'K value'!G28,'K value'!G30),IF(OR('Initial Parameter'!$R$18=2),0,0)) -> 0 | G5: =IF(OR('Initial Parameter'!$R$20=0,'Initial Parameter'!$R$20=4),IF('Initial Parameter'!K20>'Initial Parameter'!M20,-'K value'!D36,-'K value'!D38),IF(OR('Initial Parameter'!$R$20=3),IF('Initial Parameter'!K20>'Initial Parameter'!M20,-1,-1),0)) -> 0 | H5: =IF(OR('Initial Parameter'!$R$20=0,'Initial Parameter'!$R$20=4),IF('Initial Parameter'!K20>'Initial Parameter'!M20,-'K value'!E36,-'K value'!E38),IF(OR('Initial Parameter'!$R$20=3),IF('Initial Parameter'!K20>'Initial Parameter'!M20,0,0),0)) -> 0 | I5: =IF(OR('Initial Parameter'!$R$20=0,'Initial Parameter'!$R$20=4),IF('Initial Parameter'!K20>'Initial Parameter'!M20,-'K value'!F36,-'K value'!F38),IF(OR('Initial Parameter'!$R$20=3),IF('Initial Parameter'!K20>'Initial Parameter'!M20,0,0),0)) -> 0 | J5: =IF(OR('Initial Parameter'!$R$20=0,'Initial Parameter'!$R$20=4),IF('Initial Parameter'!K20>'Initial Parameter'!M20,-'K value'!G36,-'K value'!G38),IF(OR('Initial Parameter'!$R$20=3),IF('Initial Parameter'!K20>'Initial Parameter'!M20,0,0),0)) -> 0 | K5: 0 | L5: 0 | P5: 0
A6: 0 | B6: 0 | C6: =IF(OR('Initial Parameter'!$R$18=0,'Initial Parameter'!$R$18=3,'Initial Parameter'!$R$18=4),IF('Initial Parameter'!K18>'Initial Parameter'!M18,'K value'!H28,'K value'!H30),IF(OR('Initial Parameter'!$R$18=2),IF('Initial Parameter'!K18>'Initial Parameter'!M18,'K value'!H32,'K value'!H34),0)) -> 0.2120329108 | D6: =IF(OR('Initial Parameter'!$R$18=0,'Initial Parameter'!$R$18=3,'Initial Parameter'!$R$18=4),IF('Initial Parameter'!K18>'Initial Parameter'!M18,'K value'!I28,'K value'!I30),IF(OR('Initial Parameter'!$R$18=2),IF('Initial Parameter'!K18>'Initial Parameter'!M18,'K value'!I32,'K value'!I34),0)) -> 0.005312114913 | E6: =IF(OR('Initial Parameter'!$R$18=0,'Initial Parameter'!$R$18=3,'Initial Parameter'!$R$18=4),IF('Initial Parameter'!K18>'Initial Parameter'!M18,'K value'!J28,'K value'!J30),IF(OR('Initial Parameter'!$R$18=2),0,0)) -> 0 | F6: =IF(OR('Initial Parameter'!$R$18=0,'Initial Parameter'!$R$18=3,'Initial Parameter'!$R$18=4),IF('Initial Parameter'!K18>'Initial Parameter'!M18,'K value'!K28,'K value'!K30),IF(OR('Initial Parameter'!$R$18=2),-1,0)) -> -1 | G6: =IF(OR('Initial Parameter'!$R$20=0,'Initial Parameter'!$R$20=4),IF('Initial Parameter'!K20>'Initial Parameter'!M20,-'K value'!H36,-'K value'!H38),IF(OR('Initial Parameter'!$R$20=3),IF('Initial Parameter'!K20>'Initial Parameter'!M20,0,0),0)) -> 0 | H6: =IF(OR('Initial Parameter'!$R$20=0,'Initial Parameter'!$R$20=4),IF('Initial Parameter'!K20>'Initial Parameter'!M20,-'K value'!I36,-'K value'!I38),IF(OR('Initial Parameter'!$R$20=3),IF('Initial Parameter'!K20>'Initial Parameter'!M20,-1,-1),0)) -> 0 | I6: =IF(OR('Initial Parameter'!$R$20=0,'Initial Parameter'!$R$20=4),IF('Initial Parameter'!K20>'Initial Parameter'!M20,-'K value'!J36,-'K value'!J38),IF(OR('Initial Parameter'!$R$20=3),IF('Initial Parameter'!K20>'Initial Parameter'!M20,0,0),0)) -> 0 | J6: =IF(OR('Initial Parameter'!$R$20=0,'Initial Parameter'!$R$20=4),IF('Initial Parameter'!K20>'Initial Parameter'!M20,-'K value'!K36,-'K value'!K38),IF(OR('Initial Parameter'!$R$20=3),IF('Initial Parameter'!K20>'Initial Parameter'!M20,0,0),0)) -> 0 | K6: 0 | L6: 0 | P6: 0
A7: 0 | B7: 0 | C7: =IF(OR('Initial Parameter'!$R$18=0,'Initial Parameter'!$R$18=3,'Initial Parameter'!$R$18=4),IF('Initial Parameter'!K18>'Initial Parameter'!M18,'K value'!L28,'K value'!L30),IF(OR('Initial Parameter'!$R$18=2),0,0)) -> 0 | D7: =IF(OR('Initial Parameter'!$R$18=0,'Initial Parameter'!$R$18=3,'Initial Parameter'!$R$18=4),IF('Initial Parameter'!K18>'Initial Parameter'!M18,'K value'!M28,'K value'!M30),IF(OR('Initial Parameter'!$R$18=2),0,0)) -> 0 | E7: =IF(OR('Initial Parameter'!$R$18=0,'Initial Parameter'!$R$18=3,'Initial Parameter'!$R$18=4),IF('Initial Parameter'!K18>'Initial Parameter'!M18,'K value'!N28,'K value'!N30),IF(OR('Initial Parameter'!$R$20=2),IF('Initial Parameter'!K20>'Initial Parameter'!M20,'K value'!D41,'K value'!D43),0)) -> 0.0003755497311 | F7: =IF(OR('Initial Parameter'!$R$18=0,'Initial Parameter'!$R$18=3,'Initial Parameter'!$R$18=4),IF('Initial Parameter'!K18>'Initial Parameter'!M18,'K value'!O28,'K value'!O30),IF(OR('Initial Parameter'!$R$20=2),IF('Initial Parameter'!K20>'Initial Parameter'!M20,'K value'!E41,'K value'!E43),0)) -> -6.98170166e-05 | G7: =IF(OR('Initial Parameter'!$R$20=0,'Initial Parameter'!$R$20=4),IF('Initial Parameter'!K20>'Initial Parameter'!M20,-'K value'!L36,-'K value'!L38),IF(OR('Initial Parameter'!$R$20=3),IF('Initial Parameter'!K20>'Initial Parameter'!M20,-'K value'!L40,-'K value'!L42),IF(OR('Initial Parameter'!$R$20=2),-1,0))) -> -1 | H7: =IF(OR('Initial Parameter'!$R$20=0,'Initial Parameter'!$R$20=4),IF('Initial Parameter'!K20>'Initial Parameter'!M20,-'K value'!M36,-'K value'!M38),IF(OR('Initial Parameter'!$R$20=3),IF('Initial Parameter'!K20>'Initial Parameter'!M20,-'K value'!M40,-'K value'!M42),0)) -> 0 | I7: =IF(OR('Initial Parameter'!$R$20=0,'Initial Parameter'!$R$20=4),IF('Initial Parameter'!K20>'Initial Parameter'!M20,-'K value'!N36,-'K value'!N38),IF(OR('Initial Parameter'!$R$20=3),IF('Initial Parameter'!K20>'Initial Parameter'!M20,0,0),0)) -> 0 | J7: =IF(OR('Initial Parameter'!$R$20=0,'Initial Parameter'!$R$20=4),IF('Initial Parameter'!K20>'Initial Parameter'!M20,-'K value'!O36,-'K value'!O38),IF(OR('Initial Parameter'!$R$20=3),IF('Initial Parameter'!K20>'Initial Parameter'!M20,0,0),0)) -> 0 | K7: 0 | L7: 0 | P7: 0
A8: 0 | B8: 0 | C8: =IF(OR('Initial Parameter'!$R$18=0,'Initial Parameter'!$R$18=3,'Initial Parameter'!$R$18=4),IF('Initial Parameter'!K18>'Initial Parameter'!M18,'K value'!P28,'K value'!P30),IF(OR('Initial Parameter'!$R$18=2),0,0)) -> 0 | D8: =IF(OR('Initial Parameter'!$R$18=0,'Initial Parameter'!$R$18=3,'Initial Parameter'!$R$18=4),IF('Initial Parameter'!K18>'Initial Parameter'!M18,'K value'!Q28,'K value'!Q30),IF(OR('Initial Parameter'!$R$18=2),0,0)) -> 0 | E8: =IF(OR('Initial Parameter'!$R$18=0,'Initial Parameter'!$R$18=3,'Initial Parameter'!$R$18=4),IF('Initial Parameter'!K18>'Initial Parameter'!M18,'K value'!R28,'K value'!R30),IF(OR('Initial Parameter'!$R$18=2),IF('Initial Parameter'!K18>'Initial Parameter'!M18,'K value'!H41,'K value'!H43),0)) -> 0.02543958412 | F8: =IF(OR('Initial Parameter'!$R$18=0,'Initial Parameter'!$R$18=3,'Initial Parameter'!$R$18=4),IF('Initial Parameter'!K18>'Initial Parameter'!M18,'K value'!S28,'K value'!S30),IF(OR('Initial Parameter'!$R$18=2),IF('Initial Parameter'!K18>'Initial Parameter'!M18,'K value'!I41,'K value'!I43),0)) -> 0.002366932767 | G8: =IF(OR('Initial Parameter'!$R$20=0,'Initial Parameter'!$R$20=4),IF('Initial Parameter'!K20>'Initial Parameter'!M20,-'K value'!P36,-'K value'!P38),IF(OR('Initial Parameter'!$R$20=3),IF('Initial Parameter'!K20>'Initial Parameter'!M20,-'K value'!P40,-'K value'!P42),0)) -> 0 | H8: =IF(OR('Initial Parameter'!$R$20=0,'Initial Parameter'!$R$20=4),IF('Initial Parameter'!K20>'Initial Parameter'!M20,-'K value'!Q36,-'K value'!Q38),IF(OR('Initial Parameter'!$R$20=3),IF('Initial Parameter'!K20>'Initial Parameter'!M20,-'K value'!Q40,-'K value'!Q42),IF(OR('Initial Parameter'!$R$20=2),-1,0))) -> -1 | I8: =IF(OR('Initial Parameter'!$R$20=0,'Initial Parameter'!$R$20=4),IF('Initial Parameter'!K20>'Initial Parameter'!M20,-'K value'!R36,-'K value'!R38),IF(OR('Initial Parameter'!$R$20=3),IF('Initial Parameter'!K20>'Initial Parameter'!M20,0,0),0)) -> 0 | J8: =IF(OR('Initial Parameter'!$R$20=0,'Initial Parameter'!$R$20=4),IF('Initial Parameter'!K20>'Initial Parameter'!M20,-'K value'!S36,-'K value'!S38),IF(OR('Initial Parameter'!$R$20=3),IF('Initial Parameter'!K20>'Initial Parameter'!M20,0,0),0)) -> 0 | K8: 0 | L8: 0 | P8: 0
A9: 0 | B9: 0 | C9: 0 | D9: 0 | E9: 0 | F9: 0 | G9: =IF(OR('Initial Parameter'!$R$20=0,'Initial Parameter'!$R$20=4),IF('Initial Parameter'!K20>'Initial Parameter'!M20,'K value'!D37,'K value'!D39),IF(OR('Initial Parameter'!$R$20=3),IF('Initial Parameter'!K20>'Initial Parameter'!M20,'K value'!D41,'K value'!D43),0)) -> 0 | H9: =IF(OR('Initial Parameter'!$R$20=0,'Initial Parameter'!$R$20=4),IF('Initial Parameter'!K20>'Initial Parameter'!M20,'K value'!E37,'K value'!E39),IF(OR('Initial Parameter'!$R$20=3),IF('Initial Parameter'!K20>'Initial Parameter'!M20,'K value'!E41,'K value'!E43),0)) -> 0 | I9: =IF(OR('Initial Parameter'!$R$20=0,'Initial Parameter'!$R$20=4),IF('Initial Parameter'!K20>'Initial Parameter'!M20,'K value'!F37,'K value'!F39),IF(OR('Initial Parameter'!$R$20=3),IF('Initial Parameter'!K20>'Initial Parameter'!M20,-1,-1),0)) -> 0 | J9: =IF(OR('Initial Parameter'!$R$20=0,'Initial Parameter'!$R$20=4),IF('Initial Parameter'!K20>'Initial Parameter'!M20,'K value'!G37,'K value'!G39),IF(OR('Initial Parameter'!$R$20=3),IF('Initial Parameter'!K20>'Initial Parameter'!M20,0,0),0)) -> 0 | K9: =IF('Initial Parameter'!R22=0,IF('Initial Parameter'!$B$11=1,IF('Initial Parameter'!K22>'Initial Parameter'!M22,-'K value'!F45,-'K value'!F47),IF('Initial Parameter'!K22>'Initial Parameter'!M22,-'K value'!D46,-'K value'!D48)),IF('Initial Parameter'!R22=4,-1,0)) -> 0 | L9: =IF('Initial Parameter'!R22=0,IF('Initial Parameter'!$B$11=1,IF('Initial Parameter'!K22>'Initial Parameter'!M22,-'K value'!G45,-'K value'!G47),IF('Initial Parameter'!K22>'Initial Parameter'!M22,-'K value'!E46,-'K value'!E48)),IF('Initial Parameter'!R22=4,0,0)) -> 0 | P9: 0
A10: 0 | B10: 0 | C10: 0 | D10: 0 | E10: 0 | F10: 0 | G10: =IF(OR('Initial Parameter'!$R$20=0,'Initial Parameter'!$R$20=4),IF('Initial Parameter'!K20>'Initial Parameter'!M20,'K value'!H37,'K value'!H39),IF(OR('Initial Parameter'!$R$20=3),IF('Initial Parameter'!K20>'Initial Parameter'!M20,'K value'!H41,'K value'!H43),0)) -> 0 | H10: =IF(OR('Initial Parameter'!$R$20=0,'Initial Parameter'!$R$20=4),IF('Initial Parameter'!K20>'Initial Parameter'!M20,'K value'!I37,'K value'!I39),IF(OR('Initial Parameter'!$R$20=3),IF('Initial Parameter'!K20>'Initial Parameter'!M20,'K value'!I41,'K value'!I43),0)) -> 0 | I10: =IF(OR('Initial Parameter'!$R$20=0,'Initial Parameter'!$R$20=4),IF('Initial Parameter'!K20>'Initial Parameter'!M20,'K value'!J37,'K value'!J39),IF(OR('Initial Parameter'!$R$20=3),IF('Initial Parameter'!K20>'Initial Parameter'!M20,0,0),0)) -> 0 | J10: =IF(OR('Initial Parameter'!$R$20=0,'Initial Parameter'!$R$20=4),IF('Initial Parameter'!K20>'Initial Parameter'!M20,'K value'!K37,'K value'!K39),IF(OR('Initial Parameter'!$R$20=3),IF('Initial Parameter'!K20>'Initial Parameter'!M20,-1,-1),0)) -> 0 | K10: =IF('Initial Parameter'!R22=0,IF('Initial Parameter'!$B$11=1,IF('Initial Parameter'!K22>'Initial Parameter'!M22,-'K value'!J45,-'K value'!J47),IF('Initial Parameter'!K22>'Initial Parameter'!M22,-'K value'!H46,-'K value'!H48)),IF('Initial Parameter'!R22=4,0,0)) -> 0 | L10: =IF('Initial Parameter'!R22=0,IF('Initial Parameter'!$B$11=1,IF('Initial Parameter'!K22>'Initial Parameter'!M22,-'K value'!K45,-'K value'!K47),IF('Initial Parameter'!K22>'Initial Parameter'!M22,-'K value'!I46,-'K value'!I48)),IF('Initial Parameter'!R22=4,-1,0)) -> 0 | P10: 0
A11: 0 | B11: 0 | C11: 0 | D11: 0 | E11: 0 | F11: 0 | G11: =IF(OR('Initial Parameter'!$R$20=0,'Initial Parameter'!$R$20=4),IF('Initial Parameter'!K20>'Initial Parameter'!M20,'K value'!L37,'K value'!L39),IF(OR('Initial Parameter'!$R$20=3),IF('Initial Parameter'!K20>'Initial Parameter'!M20,0,0),0)) -> 0 | H11: =IF(OR('Initial Parameter'!$R$20=0,'Initial Parameter'!$R$20=4),IF('Initial Parameter'!K20>'Initial Parameter'!M20,'K value'!M37,'K value'!M39),IF(OR('Initial Parameter'!$R$20=3),IF('Initial Parameter'!K20>'Initial Parameter'!M20,0,0),0)) -> 0 | I11: =IF(OR('Initial Parameter'!$R$20=0,'Initial Parameter'!$R$20=4),IF('Initial Parameter'!K20>'Initial Parameter'!M20,'K value'!N37,'K value'!N39),IF(OR('Initial Parameter'!$R$20=3),IF('Initial Parameter'!K20>'Initial Parameter'!M20,0,0),0)) -> 0 | J11: =IF(OR('Initial Parameter'!$R$20=0,'Initial Parameter'!$R$20=4),IF('Initial Parameter'!K20>'Initial Parameter'!M20,'K value'!O37,'K value'!O39),IF(OR('Initial Parameter'!$R$20=3),IF('Initial Parameter'!K20>'Initial Parameter'!M20,0,0),0)) -> 0 | K11: =IF('Initial Parameter'!R22=0,IF('Initial Parameter'!$B$11=1,IF('Initial Parameter'!K22>'Initial Parameter'!M22,-'K value'!N45,-'K value'!N47),IF('Initial Parameter'!K22>'Initial Parameter'!M22,-'K value'!L46,-'K value'!L48)),IF('Initial Parameter'!R22=4,IF('Initial Parameter'!K22>'Initial Parameter'!M22,-'K value'!L49,-'K value'!L50),0)) -> 0 | L11: =IF('Initial Parameter'!R22=0,IF('Initial Parameter'!$B$11=1,IF('Initial Parameter'!K22>'Initial Parameter'!M22,-'K value'!O45,-'K value'!O47),IF('Initial Parameter'!K22>'Initial Parameter'!M22,-'K value'!M46,-'K value'!M48)),IF('Initial Parameter'!R22=4,IF('Initial Parameter'!K22>'Initial Parameter'!M22,-'K value'!M49,-'K value'!M50),0)) -> 0 | P11: 0
A12: 0 | B12: 0 | C12: 0 | D12: 0 | E12: 0 | F12: 0 | G12: =IF(OR('Initial Parameter'!$R$20=0,'Initial Parameter'!$R$20=4),IF('Initial Parameter'!K20>'Initial Parameter'!M20,'K value'!P37,'K value'!P39),IF(OR('Initial Parameter'!$R$20=3),IF('Initial Parameter'!K20>'Initial Parameter'!M20,0,0),0)) -> 0 | H12: =IF(OR('Initial Parameter'!$R$20=0,'Initial Parameter'!$R$20=4),IF('Initial Parameter'!K20>'Initial Parameter'!M20,'K value'!Q37,'K value'!Q39),IF(OR('Initial Parameter'!$R$20=3),IF('Initial Parameter'!K20>'Initial Parameter'!M20,0,0),0)) -> 0 | I12: =IF(OR('Initial Parameter'!$R$20=0,'Initial Parameter'!$R$20=4),IF('Initial Parameter'!K20>'Initial Parameter'!M20,'K value'!R37,'K value'!R39),IF(OR('Initial Parameter'!$R$20=3),IF('Initial Parameter'!K20>'Initial Parameter'!M20,0,0),0)) -> 0 | J12: =IF(OR('Initial Parameter'!$R$20=0,'Initial Parameter'!$R$20=4),IF('Initial Parameter'!K20>'Initial Parameter'!M20,'K value'!S37,'K value'!S39),IF(OR('Initial Parameter'!$R$20=3),IF('Initial Parameter'!K20>'Initial Parameter'!M20,0,0),0)) -> 0 | K12: =IF('Initial Parameter'!R22=0,IF('Initial Parameter'!$B$11=1,IF('Initial Parameter'!K22>'Initial Parameter'!M22,-'K value'!R45,-'K value'!R47),IF('Initial Parameter'!K22>'Initial Parameter'!M22,-'K value'!P46,-'K value'!P48)),IF('Initial Parameter'!R22=4,IF('Initial Parameter'!K22>'Initial Parameter'!M22,-'K value'!P49,-'K value'!P50),0)) -> 0 | L12: =IF('Initial Parameter'!R22=0,IF('Initial Parameter'!$B$11=1,IF('Initial Parameter'!K22>'Initial Parameter'!M22,-'K value'!S45,-'K value'!S47),IF('Initial Parameter'!K22>'Initial Parameter'!M22,-'K value'!Q46,-'K value'!Q48)),IF('Initial Parameter'!R22=4,IF('Initial Parameter'!K22>'Initial Parameter'!M22,-'K value'!Q49,-'K value'!Q50),0)) -> 0 | P12: 0
R13: w1 | S13: th1 | T13: w2 | U13: th2 | V13: w3 | W13: th3 | X13: w4 | Y13: th4 | Z13: M01 | AA13: M02 | AB13: M03 | AC13: M04 | AD13: N01 | AE13: N02 | AF13: N03 | AG13: N04
R14: =IF(OR('Initial Parameter'!$R$16=0,'Initial Parameter'!$R$16=4),P35,IF('Initial Parameter'!$R$16=3,P25,IF('Initial Parameter'!$R$16=2,P15,0))) -> 0.0004639078058 | S14: =IF(OR('Initial Parameter'!$R$16=0,'Initial Parameter'!$R$16=4),IF('Initial Parameter'!B10=1,0,Matrix!P36),IF('Initial Parameter'!$R$16=3,IF('Initial Parameter'!B10=1,0,Matrix!P26),IF('Initial Parameter'!$R$16=2,IF('Initial Parameter'!B10=1,0,Matrix!P16),0))) -> -0.006370216188 | T14: =IF(OR('Initial Parameter'!$R$16=0,'Initial Parameter'!$R$16=4),P37,IF('Initial Parameter'!$R$16=3,P27,IF('Initial Parameter'!$R$16=2,P17,0))) -> -9.071402499e-06 | U14: =IF(OR('Initial Parameter'!$R$16=0,'Initial Parameter'!$R$16=4),P38,IF('Initial Parameter'!$R$16=3,P28,IF('Initial Parameter'!$R$16=2,P18,0))) -> 0.000169636519 | V14: =IF(OR('Initial Parameter'!$R$16=0,'Initial Parameter'!$R$16=4),IF('Initial Parameter'!R17=2,Matrix!P39,Matrix!P41),IF('Initial Parameter'!$R$16=3,IF('Initial Parameter'!R17=2,Matrix!P29,Matrix!P31),IF('Initial Parameter'!$R$16=2,IF('Initial Parameter'!R17=2,Matrix!P19,Matrix!P21),0))) -> 8.267215639e-10 | W14: =IF(OR('Initial Parameter'!$R$16=0,'Initial Parameter'!$R$16=4),IF('Initial Parameter'!R17=2,Matrix!P40,Matrix!P42),IF('Initial Parameter'!$R$16=3,IF('Initial Parameter'!R17=2,Matrix!P30,Matrix!P32),IF('Initial Parameter'!$R$16=2,IF('Initial Parameter'!R17=2,Matrix!P20,Matrix!P22),0))) -> -1.022307195e-06 | X14: =IF('Initial Parameter'!R17=2,Matrix!P21,IF('Initial Parameter'!R17=3,Matrix!P33,IF('Initial Parameter'!R17=4,P45,IF('Initial Parameter'!R17=0,IF('Initial Parameter'!B11=1,0,Matrix!P45))))) -> 7.168491344e-11 | Y14: =IF('Initial Parameter'!R17=2,Matrix!P22,IF('Initial Parameter'!R17=3,Matrix!P34,IF('Initial Parameter'!R17=4,P46,IF('Initial Parameter'!R17=0,IF('Initial Parameter'!B11=1,0,Matrix!P46))))) -> -2.398700944e-09 | Z14: =IF(OR('Initial Parameter'!$R$16=0,'Initial Parameter'!$R$16=4),IF('Initial Parameter'!B10=2,0,Matrix!P36),IF('Initial Parameter'!$R$16=3,IF('Initial Parameter'!B10=2,0,Matrix!P26),IF('Initial Parameter'!$R$16=2,IF('Initial Parameter'!B10=2,0,Matrix!P16),0))) -> 0 | AA14: =IF(OR('Initial Parameter'!$R$16=0,'Initial Parameter'!$R$16=4),IF('Initial Parameter'!R17=2,0,P39),IF('Initial Parameter'!$R$16=3,IF('Initial Parameter'!R17=2,0,P29),IF('Initial Parameter'!$R$16=2,IF('Initial Parameter'!R17=2,0,P19),0))) -> 0 | AB14: =IF(OR('Initial Parameter'!R17=2,'Initial Parameter'!R17=3),0,P43) -> 0 | AC14: =IF('Initial Parameter'!R17=0,IF('Initial Parameter'!B11=1,P45,0),0) -> 0 | AE14: =IF(OR('Initial Parameter'!$R$16=0,'Initial Parameter'!$R$16=4),IF('Initial Parameter'!R17=2,0,P40),IF('Initial Parameter'!$R$16=3,IF('Initial Parameter'!R17=2,0,P30),IF('Initial Parameter'!$R$16=2,IF('Initial Parameter'!R17=2,0,P20),0))) -> 0 | AF14: =IF(OR('Initial Parameter'!R17=2,'Initial Parameter'!R17=3),0,P44) -> 0 | AG14: =IF('Initial Parameter'!R17=0,IF('Initial Parameter'!B11=1,P46,0),0) -> 0
A15: =MINVERSE(A1:H8) -> -0.01910266975 | B15: 0.0005501302891 | C15: 8.361052114e-05 | D15: 5.122470565e-06 | E15: 0 | F15: 0 | G15: 0 | H15: 0 | O15: 1 | P15: =MMULT(A15:H22,P1:P8) -> 0.0004639078058 | Q15: w1
A16: -0.1290305853 | B16: -0.02696258299 | C16: -0.001488847757 | D16: -4.053569492e-05 | E16: 0 | F16: 0 | G16: 0 | H16: 0 | O16: 2 | P16: -0.006370216188 | Q16: th1
A17: -0.4601007617 | B17: 0.01892290653 | C17: -5.559824604e-05 | D17: -6.035164798e-05 | E17: 0 | F17: 0 | G17: 0 | H17: 0 | O17: 3 | P17: -9.071402499e-06 | Q17: w2
A18: 5.946559657 | B18: -0.4974662289 | C18: 0.01907540625 | D18: 5.559824604e-05 | E18: 0 | F18: 0 | G18: 0 | H18: 0 | O18: 4 | P18: 0.000169636519 | Q18: th2
A19: 0.001705395668 | B19: 8.816896608e-05 | C19: -1.128486879e-05 | D19: 6.771645307e-07 | E19: -1 | F19: 0 | G19: 0 | H19: 0 | O19: 5 | P19: 8.267215639e-10 | Q19: w3
A20: -0.06596769554 | B20: 0.001369681179 | C20: 8.954209209e-05 | D20: -1.250119132e-05 | E20: 0 | F20: -1 | G20: 0 | H20: 0 | O20: 6 | P20: -1.022307195e-06 | Q20: th3
A21: 5.246128579e-06 | B21: -6.251522211e-08 | C21: -1.048959117e-08 | D21: 1.127104839e-09 | E21: -0.0003755497311 | F21: 6.98170166e-05 | G21: -1 | H21: 0 | O21: 7 | P21: 7.168491344e-11 | Q21: w4
A22: -0.0001127565436 | B22: 5.484925092e-06 | C22: -7.514225698e-08 | D22: -1.236269532e-08 | E22: -0.02543958412 | F22: -0.002366932767 | G22: 0 | H22: -1 | O22: 8 | P22: -2.398700944e-09 | Q22: th4
A25: =MINVERSE(A1:J10) ->  | O25: 1 | P25: =MMULT(A25:J34,P1:P10) -> 
O26: 2
O27: 3
O28: 4
O29: 5
O30: 6
O31: 7
O32: 8
O33: 9
O34: 10
A35: =MINVERSE(A1:L12) ->  | O35: 1 | P35: =MMULT(A35:L46,P1:P12) -> 
O36: 2
O37: 3
O38: 4
O39: 5
O40: 6
O41: 7
O42: 8
O43: 9
O44: 10
O45: 11
O46: 12

Sheet Depth_z (hidden)
A2: Layer | B2: z (m) | C2: Es | D2: usi | E2: g | F2: BESSELK0 | G2: BESSELK1 | H2: h | I2: x | J2: ki | K2: ti | L2: ti2 | M2: a | N2: b | P2: z (m) | Q2: F1 | R2: F2 | S2: F3 | T2: F4 | U2: f1 | V2: f2 | W2: f3 | X2: f4
A3: =IF($B3<'Initial Parameter'!$C$17,1,IF($B3<'Initial Parameter'!$C$19,2,IF($B3<'Initial Parameter'!$C$21,3,4))) -> 1 | B3: 0 | C3: =IF($B3<'Initial Parameter'!$C$17,'Initial Parameter'!$D$17,IF($B3<'Initial Parameter'!$C$19,'Initial Parameter'!$D$19,IF($B3<'Initial Parameter'!$C$21,'Initial Parameter'!$D$21,'Initial Parameter'!$D$22))) -> 2.00E+04 | D3: =IF($B3<'Initial Parameter'!$C$17,'Initial Parameter'!$E$17,IF($B3<'Initial Parameter'!$C$19,'Initial Parameter'!$E$19,IF($B3<'Initial Parameter'!$C$21,'Initial Parameter'!$E$21,'Initial Parameter'!$E$22))) -> 0.25 | E3: ='Initial Parameter'!$M$2 -> 0.1850600368 | F3: =BESSELK($E$3,0) -> 1.827065879 | G3: =BESSELK($E$3,1) -> 5.189343272 | H3: =0.5*((((BESSELK($E$3,1)+$E$3*BESSELK($E$3,0))^2)-(E3^2+1)*((BESSELK($E$3,1))^2))/((BESSELK($E$3,0))^2)) -> 0.4046048164 | I3: =0.5*(((BESSELK($E$3,1))^2-(BESSELK($E$3,0))^2)/((BESSELK($E$3,0))^2)) -> 3.533540203 | J3: =(2*H3)*(3-4*D3)*C3*('Initial Parameter'!$B$8^4)/('Initial Parameter'!$B$3*(1+D3)*(1-2*D3)) -> 84851.780001 | K3: =(2*I3)*C3*('Initial Parameter'!$B$8^2)/('Initial Parameter'!$B$3*(1+D3)) -> 28.95 | L3: =K3^2 -> 837.91 | M3: =IF(J3>L3,((J3^0.5+K3)/2)^0.5,SQRT(K3+SQRT(K3^2-J3))) -> 12.65385416 | N3: =IF(J3>L3,((J3^0.5-K3)/2)^0.5,SQRT(K3-SQRT(K3^2-J3))) -> 11.4530897 | O3: ='Initial Parameter'!$R$17 -> 2 | P3: 0 | Q3: =IF(O3=0,(IF(J3>L3,SINH(M3*P3)*COS(N3*P3),SINH(M3*P3))),IF(A3=1,IF(OR(O3=4,O3=3,O3=2),(IF(J3>L3,SINH(M3*P3)*COS(N3*P3),SINH(M3*P3))),(IF(J3>L3,EXP(-M3*P3)*COS(N3*P3),EXP(-M3*P3)))),IF(A3=2,IF(OR(O3=4,O3=3),(IF(J3>L3,SINH(M3*P3)*COS(N3*P3),SINH(M3*P3))),(IF(J3>L3,EXP(-M3*P3)*COS(N3*P3),EXP(-M3*P3)))),IF(A3=3,IF(O3=4,(IF(J3>L3,SINH(M3*P3)*COS(N3*P3),SINH(M3*P3))),(IF(J3>L3,EXP(-M3*P3)*COS(N3*P3),EXP(-M3*P3)))),IF(J3>L3,EXP(-M3*P3)*COS(N3*P3),EXP(-M3*P3)))))) -> 0 | R3: =IF(O3=0,IF(J3>L3,COSH(M3*P3)*COS(N3*P3),COSH(M3*P3)),IF(A3=1,IF(OR(O3=4,O3=3,O3=2),IF(J3>L3,COSH(M3*P3)*COS(N3*P3),COSH(M3*P3)),(IF(J3>L3,EXP(-M3*P3)*SIN(N3*P3),EXP(-N3*P3)))),IF(A3=2,IF(OR(O3=4,O3=3),IF(J3>L3,COSH(M3*P3)*COS(N3*P3),COSH(M3*P3)),(IF(J3>L3,EXP(-M3*P3)*SIN(N3*P3),EXP(-N3*P3)))),IF(A3=3,IF(O3=4,IF(J3>L3,COSH(M3*P3)*COS(N3*P3),COSH(M3*P3)),(IF(J3>L3,EXP(-M3*P3)*SIN(N3*P3),EXP(-N3*P3)))),IF(J3>L3,EXP(-M3*P3)*SIN(N3*P3),EXP(-N3*P3)))))) -> 1 | S3: =IF(O3=0,(IF(J3>L3,COSH(M3*P3)*SIN(N3*P3),SINH(N3*P3))),IF(A3=1,IF(OR(O3=4,O3=3,O3=2),(IF(J3>L3,COSH(M3*P3)*SIN(N3*P3),SINH(N3*P3))),0),IF(A3=2,IF(OR(O3=4,O3=3),(IF(J3>L3,COSH(M3*P3)*SIN(N3*P3),SINH(N3*P3))),0),IF(A3=3,IF(O3=4,(IF(J3>L3,COSH(M3*P3)*SIN(N3*P3),SINH(N3*P3))),0),0)))) -> 0 | T3: =IF(O3=0,IF(J3>L3,SINH(M3*P3)*SIN(N3*P3),COSH(N3*P3)),IF(A3=1,IF(OR(O3=4,O3=3,O3=2),IF(J3>L3,SINH(M3*P3)*SIN(N3*P3),COSH(N3*P3)),0),IF(A3=2,IF(OR(O3=4,O3=3),IF(J3>L3,SINH(M3*P3)*SIN(N3*P3),COSH(N3*P3)),0),IF(A3=3,IF(O3=4,IF(J3>L3,SINH(M3*P3)*SIN(N3*P3),COSH(N3*P3)),0),0)))) -> 0 | U3: =IF($B3<'Initial Parameter'!$C$17,'Initial Parameter'!T$17,IF($B3<'Initial Parameter'!$C$19,'Initial Parameter'!T$19,IF($B3<'Initial Parameter'!$C$21,'Initial Parameter'!T$21,IF('Initial Parameter'!$R$22=0,'Initial Parameter'!T$23,'Initial Parameter'!T$22)))) -> 0.000000E+00 | V3: =IF($B3<'Initial Parameter'!$C$17,'Initial Parameter'!U$17,IF($B3<'Initial Parameter'!$C$19,'Initial Parameter'!U$19,IF($B3<'Initial Parameter'!$C$21,'Initial Parameter'!U$21,IF('Initial Parameter'!$R$22=0,'Initial Parameter'!U$23,'Initial Parameter'!U$22)))) -> 1.000000E+00 | W3: =IF($B3<'Initial Parameter'!$C$17,'Initial Parameter'!V$17,IF($B3<'Initial Parameter'!$C$19,'Initial Parameter'!V$19,IF($B3<'Initial Parameter'!$C$21,'Initial Parameter'!V$21,IF('Initial Parameter'!$R$22=0,'Initial Parameter'!V$23,'Initial Parameter'!V$22)))) -> 0.000000E+00 | X3: =IF($B3<'Initial Parameter'!$C$17,'Initial Parameter'!W$17,IF($B3<'Initial Parameter'!$C$19,'Initial Parameter'!W$19,IF($B3<'Initial Parameter'!$C$21,'Initial Parameter'!W$21,IF('Initial Parameter'!$R$22=0,'Initial Parameter'!W$23,'Initial Parameter'!W$22)))) -> 0.000000E+00
A4: =IF($B4<'Initial Parameter'!$C$17,1,IF($B4<'Initial Parameter'!$C$19,2,IF($B4<'Initial Parameter'!$C$21,3,4))) -> 1 | B4: 0.001 | C4: =IF($B4<'Initial Parameter'!$C$17,'Initial Parameter'!$D$17,IF($B4<'Initial Parameter'!$C$19,'Initial Parameter'!$D$19,IF($B4<'Initial Parameter'!$C$21,'Initial Parameter'!$D$21,'Initial Parameter'!$D$22))) -> 2.00E+04 | D4: =IF($B4<'Initial Parameter'!$C$17,'Initial Parameter'!$E$17,IF($B4<'Initial Parameter'!$C$19,'Initial Parameter'!$E$19,IF($B4<'Initial Parameter'!$C$21,'Initial Parameter'!$E$21,'Initial Parameter'!$E$22))) -> 0.25 | E4: ='Initial Parameter'!$M$2 -> 0.1850600368 | F4: 1.827065879 | G4: 5.189343272 | H4: =0.5*((((BESSELK($E$3,1)+$E$3*BESSELK($E$3,0))^2)-(E4^2+1)*((BESSELK($E$3,1))^2))/((BESSELK($E$3,0))^2)) -> 0.4046048164 | I4: 3.533540203 | J4: =(2*H4)*(3-4*D4)*C4*('Initial Parameter'!$B$8^4)/('Initial Parameter'!$B$3*(1+D4)*(1-2*D4)) -> 84851.780001 | K4: =(2*I4)*C4*('Initial Parameter'!$B$8^2)/('Initial Parameter'!$B$3*(1+D4)) -> 28.95 | L4: =K4^2 -> 837.91 | M4: =IF(J4>L4,((J4^0.5+K4)/2)^0.5,SQRT(K4+SQRT(K4^2-J4))) -> 12.65385416 | N4: =IF(J4>L4,((J4^0.5-K4)/2)^0.5,SQRT(K4-SQRT(K4^2-J4))) -> 11.4530897 | O4: ='Initial Parameter'!$R$17 -> 2 | P4: 0.001 | Q4: =IF(O4=0,(IF(J4>L4,SINH(M4*P4)*COS(N4*P4),SINH(M4*P4))),IF(A4=1,IF(OR(O4=4,O4=3,O4=2),(IF(J4>L4,SINH(M4*P4)*COS(N4*P4),SINH(M4*P4))),(IF(J4>L4,EXP(-M4*P4)*COS(N4*P4),EXP(-M4*P4)))),IF(A4=2,IF(OR(O4=4,O4=3),(IF(J4>L4,SINH(M4*P4)*COS(N4*P4),SINH(M4*P4))),(IF(J4>L4,EXP(-M4*P4)*COS(N4*P4),EXP(-M4*P4)))),IF(A4=3,IF(O4=4,(IF(J4>L4,SINH(M4*P4)*COS(N4*P4),SINH(M4*P4))),(IF(J4>L4,EXP(-M4*P4)*COS(N4*P4),EXP(-M4*P4)))),IF(J4>L4,EXP(-M4*P4)*COS(N4*P4),EXP(-M4*P4)))))) -> 0.01265336191 | R4: =IF(O4=0,IF(J4>L4,COSH(M4*P4)*COS(N4*P4),COSH(M4*P4)),IF(A4=1,IF(OR(O4=4,O4=3,O4=2),IF(J4>L4,COSH(M4*P4)*COS(N4*P4),COSH(M4*P4)),(IF(J4>L4,EXP(-M4*P4)*SIN(N4*P4),EXP(-N4*P4)))),IF(A4=2,IF(OR(O4=4,O4=3),IF(J4>L4,COSH(M4*P4)*COS(N4*P4),COSH(M4*P4)),(IF(J4>L4,EXP(-M4*P4)*SIN(N4*P4),EXP(-N4*P4)))),IF(A4=3,IF(O4=4,IF(J4>L4,COSH(M4*P4)*COS(N4*P4),COSH(M4*P4)),(IF(J4>L4,EXP(-M4*P4)*SIN(N4*P4),EXP(-N4*P4)))),IF(J4>L4,EXP(-M4*P4)*SIN(N4*P4),EXP(-N4*P4)))))) -> 1.00001447 | S4: =IF(O4=0,(IF(J4>L4,COSH(M4*P4)*SIN(N4*P4),SINH(N4*P4))),IF(A4=1,IF(OR(O4=4,O4=3,O4=2),(IF(J4>L4,COSH(M4*P4)*SIN(N4*P4),SINH(N4*P4))),0),IF(A4=2,IF(OR(O4=4,O4=3),(IF(J4>L4,COSH(M4*P4)*SIN(N4*P4),SINH(N4*P4))),0),IF(A4=3,IF(O4=4,(IF(J4>L4,COSH(M4*P4)*SIN(N4*P4),SINH(N4*P4))),0),0)))) -> 0.01145375624 | T4: =IF(O4=0,IF(J4>L4,SINH(M4*P4)*SIN(N4*P4),COSH(N4*P4)),IF(A4=1,IF(OR(O4=4,O4=3,O4=2),IF(J4>L4,SINH(M4*P4)*SIN(N4*P4),COSH(N4*P4)),0),IF(A4=2,IF(OR(O4=4,O4=3),IF(J4>L4,SINH(M4*P4)*SIN(N4*P4),COSH(N4*P4)),0),IF(A4=3,IF(O4=4,IF(J4>L4,SINH(M4*P4)*SIN(N4*P4),COSH(N4*P4)),0),0)))) -> 0.0001449264258 | U4: =IF($B4<'Initial Parameter'!$C$17,'Initial Parameter'!T$17,IF($B4<'Initial Parameter'!$C$19,'Initial Parameter'!T$19,IF($B4<'Initial Parameter'!$C$21,'Initial Parameter'!T$21,IF('Initial Parameter'!$R$22=0,'Initial Parameter'!T$23,'Initial Parameter'!T$22)))) -> 0.000000E+00 | V4: =IF($B4<'Initial Parameter'!$C$17,'Initial Parameter'!U$17,IF($B4<'Initial Parameter'!$C$19,'Initial Parameter'!U$19,IF($B4<'Initial Parameter'!$C$21,'Initial Parameter'!U$21,IF('Initial Parameter'!$R$22=0,'Initial Parameter'!U$23,'Initial Parameter'!U$22)))) -> 1.000000E+00 | W4: =IF($B4<'Initial Parameter'!$C$17,'Initial Parameter'!V$17,IF($B4<'Initial Parameter'!$C$19,'Initial Parameter'!V$19,IF($B4<'Initial Parameter'!$C$21,'Initial Parameter'!V$21,IF('Initial Parameter'!$R$22=0,'Initial Parameter'!V$23,'Initial Parameter'!V$22)))) -> 0.000000E+00 | X4: =IF($B4<'Initial Parameter'!$C$17,'Initial Parameter'!W$17,IF($B4<'Initial Parameter'!$C$19,'Initial Parameter'!W$19,IF($B4<'Initial Parameter'!$C$21,'Initial Parameter'!W$21,IF('Initial Parameter'!$R$22=0,'Initial Parameter'!W$23,'Initial Parameter'!W$22)))) -> 0.000000E+00
A5: =IF($B5<'Initial Parameter'!$C$17,1,IF($B5<'Initial Parameter'!$C$19,2,IF($B5<'Initial Parameter'!$C$21,3,4))) -> 1 | B5: 0.002 | C5: =IF($B5<'Initial Parameter'!$C$17,'Initial Parameter'!$D$17,IF($B5<'Initial Parameter'!$C$19,'Initial Parameter'!$D$19,IF($B5<'Initial Parameter'!$C$21,'Initial Parameter'!$D$21,'Initial Parameter'!$D$22))) -> 2.00E+04 | D5: =IF($B5<'Initial Parameter'!$C$17,'Initial Parameter'!$E$17,IF($B5<'Initial Parameter'!$C$19,'Initial Parameter'!$E$19,IF($B5<'Initial Parameter'!$C$21,'Initial Parameter'!$E$21,'Initial Parameter'!$E$22))) -> 0.25 | E5: ='Initial Parameter'!$M$2 -> 0.1850600368 | F5: 1.827065879 | G5: 5.189343272 | H5: 0.4046048164 | I5: 3.533540203 | J5: =(2*H5)*(3-4*D5)*C5*('Initial Parameter'!$B$8^4)/('Initial Parameter'!$B$3*(1+D5)*(1-2*D5)) -> 84851.780001 | K5: =(2*I5)*C5*('Initial Parameter'!$B$8^2)/('Initial Parameter'!$B$3*(1+D5)) -> 28.95 | L5: 837.91 | M5: 12.65385416 | N5: 11.4530897 | O5: ='Initial Parameter'!$R$17 -> 2 | P5: 0.002 | Q5: =IF(O5=0,(IF(J5>L5,SINH(M5*P5)*COS(N5*P5),SINH(M5*P5))),IF(A5=1,IF(OR(O5=4,O5=3,O5=2),(IF(J5>L5,SINH(M5*P5)*COS(N5*P5),SINH(M5*P5))),(IF(J5>L5,EXP(-M5*P5)*COS(N5*P5),EXP(-M5*P5)))),IF(A5=2,IF(OR(O5=4,O5=3),(IF(J5>L5,SINH(M5*P5)*COS(N5*P5),SINH(M5*P5))),(IF(J5>L5,EXP(-M5*P5)*COS(N5*P5),EXP(-M5*P5)))),IF(A5=3,IF(O5=4,(IF(J5>L5,SINH(M5*P5)*COS(N5*P5),SINH(M5*P5))),(IF(J5>L5,EXP(-M5*P5)*COS(N5*P5),EXP(-M5*P5)))),IF(J5>L5,EXP(-M5*P5)*COS(N5*P5),EXP(-M5*P5)))))) -> 0.0253037701 | R5: =IF(O5=0,IF(J5>L5,COSH(M5*P5)*COS(N5*P5),COSH(M5*P5)),IF(A5=1,IF(OR(O5=4,O5=3,O5=2),IF(J5>L5,COSH(M5*P5)*COS(N5*P5),COSH(M5*P5)),(IF(J5>L5,EXP(-M5*P5)*SIN(N5*P5),EXP(-N5*P5)))),IF(A5=2,IF(OR(O5=4,O5=3),IF(J5>L5,COSH(M5*P5)*COS(N5*P5),COSH(M5*P5)),(IF(J5>L5,EXP(-M5*P5)*SIN(N5*P5),EXP(-N5*P5)))),IF(A5=3,IF(O5=4,IF(J5>L5,COSH(M5*P5)*COS(N5*P5),COSH(M5*P5)),(IF(J5>L5,EXP(-M5*P5)*SIN(N5*P5),EXP(-N5*P5)))),IF(J5>L5,EXP(-M5*P5)*SIN(N5*P5),EXP(-N5*P5)))))) -> 1.000057838 | S5: =IF(O5=0,(IF(J5>L5,COSH(M5*P5)*SIN(N5*P5),SINH(N5*P5))),IF(A5=1,IF(OR(O5=4,O5=3,O5=2),(IF(J5>L5,COSH(M5*P5)*SIN(N5*P5),SINH(N5*P5))),0),IF(A5=2,IF(OR(O5=4,O5=3),(IF(J5>L5,COSH(M5*P5)*SIN(N5*P5),SINH(N5*P5))),0),IF(A5=3,IF(O5=4,(IF(J5>L5,COSH(M5*P5)*SIN(N5*P5),SINH(N5*P5))),0),0)))) -> 0.02291151156 | T5: =IF(O5=0,IF(J5>L5,SINH(M5*P5)*SIN(N5*P5),COSH(N5*P5)),IF(A5=1,IF(OR(O5=4,O5=3,O5=2),IF(J5>L5,SINH(M5*P5)*SIN(N5*P5),COSH(N5*P5)),0),IF(A5=2,IF(OR(O5=4,O5=3),IF(J5>L5,SINH(M5*P5)*SIN(N5*P5),COSH(N5*P5)),0),IF(A5=3,IF(O5=4,IF(J5>L5,SINH(M5*P5)*SIN(N5*P5),COSH(N5*P5)),0),0)))) -> 0.0005797140916 | U5: =IF($B5<'Initial Parameter'!$C$17,'Initial Parameter'!T$17,IF($B5<'Initial Parameter'!$C$19,'Initial Parameter'!T$19,IF($B5<'Initial Parameter'!$C$21,'Initial Parameter'!T$21,IF('Initial Parameter'!$R$22=0,'Initial Parameter'!T$23,'Initial Parameter'!T$22)))) -> 0.000000E+00 | V5: =IF($B5<'Initial Parameter'!$C$17,'Initial Parameter'!U$17,IF($B5<'Initial Parameter'!$C$19,'Initial Parameter'!U$19,IF($B5<'Initial Parameter'!$C$21,'Initial Parameter'!U$21,IF('Initial Parameter'!$R$22=0,'Initial Parameter'!U$23,'Initial Parameter'!U$22)))) -> 1.000000E+00 | W5: =IF($B5<'Initial Parameter'!$C$17,'Initial Parameter'!V$17,IF($B5<'Initial Parameter'!$C$19,'Initial Parameter'!V$19,IF($B5<'Initial Parameter'!$C$21,'Initial Parameter'!V$21,IF('Initial Parameter'!$R$22=0,'Initial Parameter'!V$23,'Initial Parameter'!V$22)))) -> 0.000000E+00 | X5: =IF($B5<'Initial Parameter'!$C$17,'Initial Parameter'!W$17,IF($B5<'Initial Parameter'!$C$19,'Initial Parameter'!W$19,IF($B5<'Initial Parameter'!$C$21,'Initial Parameter'!W$21,IF('Initial Parameter'!$R$22=0,'Initial Parameter'!W$23,'Initial Parameter'!W$22)))) -> 0.000000E+00
A6: =IF($B6<'Initial Parameter'!$C$17,1,IF($B6<'Initial Parameter'!$C$19,2,IF($B6<'Initial Parameter'!$C$21,3,4))) -> 1 | B6: 0.003 | C6: =IF($B6<'Initial Parameter'!$C$17,'Initial Parameter'!$D$17,IF($B6<'Initial Parameter'!$C$19,'Initial Parameter'!$D$19,IF($B6<'Initial Parameter'!$C$21,'Initial Parameter'!$D$21,'Initial Parameter'!$D$22))) -> 2.00E+04 | D6: =IF($B6<'Initial Parameter'!$C$17,'Initial Parameter'!$E$17,IF($B6<'Initial Parameter'!$C$19,'Initial Parameter'!$E$19,IF($B6<'Initial Parameter'!$C$21,'Initial Parameter'!$E$21,'Initial Parameter'!$E$22))) -> 0.25 | E6: ='Initial Parameter'!$M$2 -> 0.1850600368 | F6: 1.827065879 | G6: 5.189343272 | H6: 0.4046048164 | I6: 3.533540203 | J6: =(2*H6)*(3-4*D6)*C6*('Initial Parameter'!$B$8^4)/('Initial Parameter'!$B$3*(1+D6)*(1-2*D6)) -> 84851.780001 | K6: =(2*I6)*C6*('Initial Parameter'!$B$8^2)/('Initial Parameter'!$B$3*(1+D6)) -> 28.95 | L6: 837.91 | M6: 12.65385416 | N6: 11.4530897 | O6: ='Initial Parameter'!$R$17 -> 2 | P6: 0.003 | Q6: 0.03794826962 | R6: 1.00012998 | S6: 0.0343772643 | T6: 0.00130438815 | U6: =IF($B6<'Initial Parameter'!$C$17,'Initial Parameter'!T$17,IF($B6<'Initial Parameter'!$C$19,'Initial Parameter'!T$19,IF($B6<'Initial Parameter'!$C$21,'Initial Parameter'!T$21,IF('Initial Parameter'!$R$22=0,'Initial Parameter'!T$23,'Initial Parameter'!T$22)))) -> 0.000000E+00 | V6: =IF($B6<'Initial Parameter'!$C$17,'Initial Parameter'!U$17,IF($B6<'Initial Parameter'!$C$19,'Initial Parameter'!U$19,IF($B6<'Initial Parameter'!$C$21,'Initial Parameter'!U$21,IF('Initial Parameter'!$R$22=0,'Initial Parameter'!U$23,'Initial Parameter'!U$22)))) -> 1.000000E+00 | W6: =IF($B6<'Initial Parameter'!$C$17,'Initial Parameter'!V$17,IF($B6<'Initial Parameter'!$C$19,'Initial Parameter'!V$19,IF($B6<'Initial Parameter'!$C$21,'Initial Parameter'!V$21,IF('Initial Parameter'!$R$22=0,'Initial Parameter'!V$23,'Initial Parameter'!V$22)))) -> 0.000000E+00 | X6: =IF($B6<'Initial Parameter'!$C$17,'Initial Parameter'!W$17,IF($B6<'Initial Parameter'!$C$19,'Initial Parameter'!W$19,IF($B6<'Initial Parameter'!$C$21,'Initial Parameter'!W$21,IF('Initial Parameter'!$R$22=0,'Initial Parameter'!W$23,'Initial Parameter'!W$22)))) -> 0.000000E+00
A7: =IF($B7<'Initial Parameter'!$C$17,1,IF($B7<'Initial Parameter'!$C$19,2,IF($B7<'Initial Parameter'!$C$21,3,4))) -> 1 | B7: 0.004 | C7: =IF($B7<'Initial Parameter'!$C$17,'Initial Parameter'!$D$17,IF($B7<'Initial Parameter'!$C$19,'Initial Parameter'!$D$19,IF($B7<'Initial Parameter'!$C$21,'Initial Parameter'!$D$21,'Initial Parameter'!$D$22))) -> 2.00E+04 | D7: =IF($B7<'Initial Parameter'!$C$17,'Initial Parameter'!$E$17,IF($B7<'Initial Parameter'!$C$19,'Initial Parameter'!$E$19,IF($B7<'Initial Parameter'!$C$21,'Initial Parameter'!$E$21,'Initial Parameter'!$E$22))) -> 0.25 | E7: ='Initial Parameter'!$M$2 -> 0.1850600368 | F7: 1.827065879 | G7: 5.189343272 | H7: 0.4046048164 | I7: 3.533540203 | J7: =(2*H7)*(3-4*D7)*C7*('Initial Parameter'!$B$8^4)/('Initial Parameter'!$B$3*(1+D7)*(1-2*D7)) -> 84851.780001 | K7: =(2*I7)*C7*('Initial Parameter'!$B$8^2)/('Initial Parameter'!$B$3*(1+D7)) -> 28.95 | L7: 837.91 | M7: 12.65385416 | N7: 11.4530897 | O7: ='Initial Parameter'!$R$17 -> 2 | P7: 0.004 | Q7: 0.050583903 | R7: 1.000230687 | S7: 0.04585501133 | T7: 0.002318990485 | U7: =IF($B7<'Initial Parameter'!$C$17,'Initial Parameter'!T$17,IF($B7<'Initial Parameter'!$C$19,'Initial Parameter'!T$19,IF($B7<'Initial Parameter'!$C$21,'Initial Parameter'!T$21,IF('Initial Parameter'!$R$22=0,'Initial Parameter'!T$23,'Initial Parameter'!T$22)))) -> 0.000000E+00 | V7: =IF($B7<'Initial Parameter'!$C$17,'Initial Parameter'!U$17,IF($B7<'Initial Parameter'!$C$19,'Initial Parameter'!U$19,IF($B7<'Initial Parameter'!$C$21,'Initial Parameter'!U$21,IF('Initial Parameter'!$R$22=0,'Initial Parameter'!U$23,'Initial Parameter'!U$22)))) -> 1.000000E+00 | W7: =IF($B7<'Initial Parameter'!$C$17,'Initial Parameter'!V$17,IF($B7<'Initial Parameter'!$C$19,'Initial Parameter'!V$19,IF($B7<'Initial Parameter'!$C$21,'Initial Parameter'!V$21,IF('Initial Parameter'!$R$22=0,'Initial Parameter'!V$23,'Initial Parameter'!V$22)))) -> 0.000000E+00 | X7: =IF($B7<'Initial Parameter'!$C$17,'Initial Parameter'!W$17,IF($B7<'Initial Parameter'!$C$19,'Initial Parameter'!W$19,IF($B7<'Initial Parameter'!$C$21,'Initial Parameter'!W$21,IF('Initial Parameter'!$R$22=0,'Initial Parameter'!W$23,'Initial Parameter'!W$22)))) -> 0.000000E+00
A8: =IF($B8<'Initial Parameter'!$C$17,1,IF($B8<'Initial Parameter'!$C$19,2,IF($B8<'Initial Parameter'!$C$21,3,4))) -> 1 | B8: 0.005 | C8: =IF($B8<'Initial Parameter'!$C$17,'Initial Parameter'!$D$17,IF($B8<'Initial Parameter'!$C$19,'Initial Parameter'!$D$19,IF($B8<'Initial Parameter'!$C$21,'Initial Parameter'!$D$21,'Initial Parameter'!$D$22))) -> 2.00E+04 | D8: =IF($B8<'Initial Parameter'!$C$17,'Initial Parameter'!$E$17,IF($B8<'Initial Parameter'!$C$19,'Initial Parameter'!$E$19,IF($B8<'Initial Parameter'!$C$21,'Initial Parameter'!$E$21,'Initial Parameter'!$E$22))) -> 0.25 | E8: ='Initial Parameter'!$M$2 -> 0.1850600368 | F8: 1.827065879 | G8: 5.189343272 | H8: 0.4046048164 | I8: 3.533540203 | J8: =(2*H8)*(3-4*D8)*C8*('Initial Parameter'!$B$8^4)/('Initial Parameter'!$B$3*(1+D8)*(1-2*D8)) -> 84851.780001 | K8: =(2*I8)*C8*('Initial Parameter'!$B$8^2)/('Initial Parameter'!$B$3*(1+D8)) -> 28.95 | L8: 837.91 | M8: 12.65385416 | N8: 11.4530897 | O8: ='Initial Parameter'!$R$17 -> 2 | P8: 0.005 | Q8: 0.06320770906 | R8: 1.000359668 | S8: 0.05734874729 | T8: 0.003623579647 | U8: =IF($B8<'Initial Parameter'!$C$17,'Initial Parameter'!T$17,IF($B8<'Initial Parameter'!$C$19,'Initial Parameter'!T$19,IF($B8<'Initial Parameter'!$C$21,'Initial Parameter'!T$21,IF('Initial Parameter'!$R$22=0,'Initial Parameter'!T$23,'Initial Parameter'!T$22)))) -> 0.000000E+00 | V8: =IF($B8<'Initial Parameter'!$C$17,'Initial Parameter'!U$17,IF($B8<'Initial Parameter'!$C$19,'Initial Parameter'!U$19,IF($B8<'Initial Parameter'!$C$21,'Initial Parameter'!U$21,IF('Initial Parameter'!$R$22=0,'Initial Parameter'!U$23,'Initial Parameter'!U$22)))) -> 1.000000E+00 | W8: =IF($B8<'Initial Parameter'!$C$17,'Initial Parameter'!V$17,IF($B8<'Initial Parameter'!$C$19,'Initial Parameter'!V$19,IF($B8<'Initial Parameter'!$C$21,'Initial Parameter'!V$21,IF('Initial Parameter'!$R$22=0,'Initial Parameter'!V$23,'Initial Parameter'!V$22)))) -> 0.000000E+00 | X8: =IF($B8<'Initial Parameter'!$C$17,'Initial Parameter'!W$17,IF($B8<'Initial Parameter'!$C$19,'Initial Parameter'!W$19,IF($B8<'Initial Parameter'!$C$21,'Initial Parameter'!W$21,IF('Initial Parameter'!$R$22=0,'Initial Parameter'!W$23,'Initial Parameter'!W$22)))) -> 0.000000E+00
A9: =IF($B9<'Initial Parameter'!$C$17,1,IF($B9<'Initial Parameter'!$C$19,2,IF($B9<'Initial Parameter'!$C$21,3,4))) -> 1 | B9: 0.006 | C9: =IF($B9<'Initial Parameter'!$C$17,'Initial Parameter'!$D$17,IF($B9<'Initial Parameter'!$C$19,'Initial Parameter'!$D$19,IF($B9<'Initial Parameter'!$C$21,'Initial Parameter'!$D$21,'Initial Parameter'!$D$22))) -> 2.00E+04 | D9: =IF($B9<'Initial Parameter'!$C$17,'Initial Parameter'!$E$17,IF($B9<'Initial Parameter'!$C$19,'Initial Parameter'!$E$19,IF($B9<'Initial Parameter'!$C$21,'Initial Parameter'!$E$21,'Initial Parameter'!$E$22))) -> 0.25 | E9: ='Initial Parameter'!$M$2 -> 0.1850600368 | F9: 1.827065879 | G9: 5.189343272 | H9: 0.4046048164 | I9: 3.533540203 | J9: =(2*H9)*(3-4*D9)*C9*('Initial Parameter'!$B$8^4)/('Initial Parameter'!$B$3*(1+D9)*(1-2*D9)) -> 84851.780001 | K9: =(2*I9)*C9*('Initial Parameter'!$B$8^2)/('Initial Parameter'!$B$3*(1+D9)) -> 28.95 | L9: 837.91 | M9: 12.65385416 | N9: 11.4530897 | O9: ='Initial Parameter'!$R$17 -> 2 | P9: 0.006 | Q9: 0.07581672165 | R9: 1.00051655 | S9: 0.06886246384 | T9: 0.005218230778 | U9: =IF($B9<'Initial Parameter'!$C$17,'Initial Parameter'!T$17,IF($B9<'Initial Parameter'!$C$19,'Initial Parameter'!T$19,IF($B9<'Initial Parameter'!$C$21,'Initial Parameter'!T$21,IF('Initial Parameter'!$R$22=0,'Initial Parameter'!T$23,'Initial Parameter'!T$22)))) -> 0.000000E+00 | V9: =IF($B9<'Initial Parameter'!$C$17,'Initial Parameter'!U$17,IF($B9<'Initial Parameter'!$C$19,'Initial Parameter'!U$19,IF($B9<'Initial Parameter'!$C$21,'Initial Parameter'!U$21,IF('Initial Parameter'!$R$22=0,'Initial Parameter'!U$23,'Initial Parameter'!U$22)))) -> 1.000000E+00 | W9: =IF($B9<'Initial Parameter'!$C$17,'Initial Parameter'!V$17,IF($B9<'Initial Parameter'!$C$19,'Initial Parameter'!V$19,IF($B9<'Initial Parameter'!$C$21,'Initial Parameter'!V$21,IF('Initial Parameter'!$R$22=0,'Initial Parameter'!V$23,'Initial Parameter'!V$22)))) -> 0.000000E+00 | X9: =IF($B9<'Initial Parameter'!$C$17,'Initial Parameter'!W$17,IF($B9<'Initial Parameter'!$C$19,'Initial Parameter'!W$19,IF($B9<'Initial Parameter'!$C$21,'Initial Parameter'!W$21,IF('Initial Parameter'!$R$22=0,'Initial Parameter'!W$23,'Initial Parameter'!W$22)))) -> 0.000000E+00
A10: =IF($B10<'Initial Parameter'!$C$17,1,IF($B10<'Initial Parameter'!$C$19,2,IF($B10<'Initial Parameter'!$C$21,3,4))) -> 1 | B10: 0.007 | C10: =IF($B10<'Initial Parameter'!$C$17,'Initial Parameter'!$D$17,IF($B10<'Initial Parameter'!$C$19,'Initial Parameter'!$D$19,IF($B10<'Initial Parameter'!$C$21,'Initial Parameter'!$D$21,'Initial Parameter'!$D$22))) -> 2.00E+04 | D10: =IF($B10<'Initial Parameter'!$C$17,'Initial Parameter'!$E$17,IF($B10<'Initial Parameter'!$C$19,'Initial Parameter'!$E$19,IF($B10<'Initial Parameter'!$C$21,'Initial Parameter'!$E$21,'Initial Parameter'!$E$22))) -> 0.25 | E10: ='Initial Parameter'!$M$2 -> 0.1850600368 | F10: 1.827065879 | G10: 5.189343272 | H10: 0.4046048164 | I10: 3.533540203 | J10: =(2*H10)*(3-4*D10)*C10*('Initial Parameter'!$B$8^4)/('Initial Parameter'!$B$3*(1+D10)*(1-2*D10)) -> 84851.780001 | K10: =(2*I10)*C10*('Initial Parameter'!$B$8^2)/('Initial Parameter'!$B$3*(1+D10)) -> 28.95 | L10: 837.91 | M10: 12.65385416 | N10: 11.4530897 | O10: ='Initial Parameter'!$R$17 -> 2 | P10: 0.007 | Q10: 0.08840796838 | R10: 1.000700873 | S10: 0.08040014896 | T10: 0.007103035498 | U10: =IF($B10<'Initial Parameter'!$C$17,'Initial Parameter'!T$17,IF($B10<'Initial Parameter'!$C$19,'Initial Parameter'!T$19,IF($B10<'Initial Parameter'!$C$21,'Initial Parameter'!T$21,IF('Initial Parameter'!$R$22=0,'Initial Parameter'!T$23,'Initial Parameter'!T$22)))) -> 0.000000E+00 | V10: =IF($B10<'Initial Parameter'!$C$17,'Initial Parameter'!U$17,IF($B10<'Initial Parameter'!$C$19,'Initial Parameter'!U$19,IF($B10<'Initial Parameter'!$C$21,'Initial Parameter'!U$21,IF('Initial Parameter'!$R$22=0,'Initial Parameter'!U$23,'Initial Parameter'!U$22)))) -> 1.000000E+00 | W10: =IF($B10<'Initial Parameter'!$C$17,'Initial Parameter'!V$17,IF($B10<'Initial Parameter'!$C$19,'Initial Parameter'!V$19,IF($B10<'Initial Parameter'!$C$21,'Initial Parameter'!V$21,IF('Initial Parameter'!$R$22=0,'Initial Parameter'!V$23,'Initial Parameter'!V$22)))) -> 0.000000E+00 | X10: =IF($B10<'Initial Parameter'!$C$17,'Initial Parameter'!W$17,IF($B10<'Initial Parameter'!$C$19,'Initial Parameter'!W$19,IF($B10<'Initial Parameter'!$C$21,'Initial Parameter'!W$21,IF('Initial Parameter'!$R$22=0,'Initial Parameter'!W$23,'Initial Parameter'!W$22)))) -> 0.000000E+00
A11: =IF($B11<'Initial Parameter'!$C$17,1,IF($B11<'Initial Parameter'!$C$19,2,IF($B11<'Initial Parameter'!$C$21,3,4))) -> 1 | B11: 0.008 | C11: =IF($B11<'Initial Parameter'!$C$17,'Initial Parameter'!$D$17,IF($B11<'Initial Parameter'!$C$19,'Initial Parameter'!$D$19,IF($B11<'Initial Parameter'!$C$21,'Initial Parameter'!$D$21,'Initial Parameter'!$D$22))) -> 2.00E+04 | D11: =IF($B11<'Initial Parameter'!$C$17,'Initial Parameter'!$E$17,IF($B11<'Initial Parameter'!$C$19,'Initial Parameter'!$E$19,IF($B11<'Initial Parameter'!$C$21,'Initial Parameter'!$E$21,'Initial Parameter'!$E$22))) -> 0.25 | E11: ='Initial Parameter'!$M$2 -> 0.1850600368 | F11: 1.827065879 | G11: 5.189343272 | H11: 0.4046048164 | I11: 3.533540203 | J11: =(2*H11)*(3-4*D11)*C11*('Initial Parameter'!$B$8^4)/('Initial Parameter'!$B$3*(1+D11)*(1-2*D11)) -> 84851.780001 | K11: =(2*I11)*C11*('Initial Parameter'!$B$8^2)/('Initial Parameter'!$B$3*(1+D11)) -> 28.95 | L11: 837.91 | M11: 12.65385416 | N11: 11.4530897 | O11: ='Initial Parameter'!$R$17 -> 2 | P11: 0.008 | Q11: 0.1009784694 | R11: 1.000912098 | S11: 0.09196578614 | T11: 0.009278101781 | U11: =IF($B11<'Initial Parameter'!$C$17,'Initial Parameter'!T$17,IF($B11<'Initial Parameter'!$C$19,'Initial Parameter'!T$19,IF($B11<'Initial Parameter'!$C$21,'Initial Parameter'!T$21,IF('Initial Parameter'!$R$22=0,'Initial Parameter'!T$23,'Initial Parameter'!T$22)))) -> 0.000000E+00 | V11: =IF($B11<'Initial Parameter'!$C$17,'Initial Parameter'!U$17,IF($B11<'Initial Parameter'!$C$19,'Initial Parameter'!U$19,IF($B11<'Initial Parameter'!$C$21,'Initial Parameter'!U$21,IF('Initial Parameter'!$R$22=0,'Initial Parameter'!U$23,'Initial Parameter'!U$22)))) -> 1.000000E+00 | W11: =IF($B11<'Initial Parameter'!$C$17,'Initial Parameter'!V$17,IF($B11<'Initial Parameter'!$C$19,'Initial Parameter'!V$19,IF($B11<'Initial Parameter'!$C$21,'Initial Parameter'!V$21,IF('Initial Parameter'!$R$22=0,'Initial Parameter'!V$23,'Initial Parameter'!V$22)))) -> 0.000000E+00 | X11: =IF($B11<'Initial Parameter'!$C$17,'Initial Parameter'!W$17,IF($B11<'Initial Parameter'!$C$19,'Initial Parameter'!W$19,IF($B11<'Initial Parameter'!$C$21,'Initial Parameter'!W$21,IF('Initial Parameter'!$R$22=0,'Initial Parameter'!W$23,'Initial Parameter'!W$22)))) -> 0.000000E+00
A12: =IF($B12<'Initial Parameter'!$C$17,1,IF($B12<'Initial Parameter'!$C$19,2,IF($B12<'Initial Parameter'!$C$21,3,4))) -> 1 | B12: 0.009 | C12: =IF($B12<'Initial Parameter'!$C$17,'Initial Parameter'!$D$17,IF($B12<'Initial Parameter'!$C$19,'Initial Parameter'!$D$19,IF($B12<'Initial Parameter'!$C$21,'Initial Parameter'!$D$21,'Initial Parameter'!$D$22))) -> 2.00E+04 | D12: =IF($B12<'Initial Parameter'!$C$17,'Initial Parameter'!$E$17,IF($B12<'Initial Parameter'!$C$19,'Initial Parameter'!$E$19,IF($B12<'Initial Parameter'!$C$21,'Initial Parameter'!$E$21,'Initial Parameter'!$E$22))) -> 0.25 | E12: ='Initial Parameter'!$M$2 -> 0.1850600368 | F12: 1.827065879 | G12: 5.189343272 | H12: 0.4046048164 | I12: 3.533540203 | J12: =(2*H12)*(3-4*D12)*C12*('Initial Parameter'!$B$8^4)/('Initial Parameter'!$B$3*(1+D12)*(1-2*D12)) -> 84851.780001 | K12: =(2*I12)*C12*('Initial Parameter'!$B$8^2)/('Initial Parameter'!$B$3*(1+D12)) -> 28.95 | L12: 837.91 | M12: 12.65385416 | N12: 11.4530897 | O12: ='Initial Parameter'!$R$17 -> 2 | P12: 0.009 | Q12: 0.1135252362 | R12: 1.0011496 | S12: 0.1035633537 | T12: 0.0117435538 | U12: =IF($B12<'Initial Parameter'!$C$17,'Initial Parameter'!T$17,IF($B12<'Initial Parameter'!$C$19,'Initial Parameter'!T$19,IF($B12<'Initial Parameter'!$C$21,'Initial Parameter'!T$21,IF('Initial Parameter'!$R$22=0,'Initial Parameter'!T$23,'Initial Parameter'!T$22)))) -> 0.000000E+00 | V12: =IF($B12<'Initial Parameter'!$C$17,'Initial Parameter'!U$17,IF($B12<'Initial Parameter'!$C$19,'Initial Parameter'!U$19,IF($B12<'Initial Parameter'!$C$21,'Initial Parameter'!U$21,IF('Initial Parameter'!$R$22=0,'Initial Parameter'!U$23,'Initial Parameter'!U$22)))) -> 1.000000E+00 | W12: =IF($B12<'Initial Parameter'!$C$17,'Initial Parameter'!V$17,IF($B12<'Initial Parameter'!$C$19,'Initial Parameter'!V$19,IF($B12<'Initial Parameter'!$C$21,'Initial Parameter'!V$21,IF('Initial Parameter'!$R$22=0,'Initial Parameter'!V$23,'Initial Parameter'!V$22)))) -> 0.000000E+00 | X12: =IF($B12<'Initial Parameter'!$C$17,'Initial Parameter'!W$17,IF($B12<'Initial Parameter'!$C$19,'Initial Parameter'!W$19,IF($B12<'Initial Parameter'!$C$21,'Initial Parameter'!W$21,IF('Initial Parameter'!$R$22=0,'Initial Parameter'!W$23,'Initial Parameter'!W$22)))) -> 0.000000E+00
A13: =IF($B13<'Initial Parameter'!$C$17,1,IF($B13<'Initial Parameter'!$C$19,2,IF($B13<'Initial Parameter'!$C$21,3,4))) -> 1 | B13: 0.01 | C13: =IF($B13<'Initial Parameter'!$C$17,'Initial Parameter'!$D$17,IF($B13<'Initial Parameter'!$C$19,'Initial Parameter'!$D$19,IF($B13<'Initial Parameter'!$C$21,'Initial Parameter'!$D$21,'Initial Parameter'!$D$22))) -> 2.00E+04 | D13: =IF($B13<'Initial Parameter'!$C$17,'Initial Parameter'!$E$17,IF($B13<'Initial Parameter'!$C$19,'Initial Parameter'!$E$19,IF($B13<'Initial Parameter'!$C$21,'Initial Parameter'!$E$21,'Initial Parameter'!$E$22))) -> 0.25 | E13: ='Initial Parameter'!$M$2 -> 0.1850600368 | F13: 1.827065879 | G13: 5.189343272 | H13: 0.4046048164 | I13: 3.533540203 | J13: =(2*H13)*(3-4*D13)*C13*('Initial Parameter'!$B$8^4)/('Initial Parameter'!$B$3*(1+D13)*(1-2*D13)) -> 84851.780001 | K13: =(2*I13)*C13*('Initial Parameter'!$B$8^2)/('Initial Parameter'!$B$3*(1+D13)) -> 28.95 | L13: 837.91 | M13: 12.65385416 | N13: 11.4530897 | O13: ='Initial Parameter'!$R$17 -> 2 | P13: 0.01 | Q13: 0.1260452702 | R13: 1.001412671 | S13: 0.115196824 | T13: 0.01449953173 | U13: =IF($B13<'Initial Parameter'!$C$17,'Initial Parameter'!T$17,IF($B13<'Initial Parameter'!$C$19,'Initial Parameter'!T$19,IF($B13<'Initial Parameter'!$C$21,'Initial Parameter'!T$21,IF('Initial Parameter'!$R$22=0,'Initial Parameter'!T$23,'Initial Parameter'!T$22)))) -> 0.000000E+00 | V13: =IF($B13<'Initial Parameter'!$C$17,'Initial Parameter'!U$17,IF($B13<'Initial Parameter'!$C$19,'Initial Parameter'!U$19,IF($B13<'Initial Parameter'!$C$21,'Initial Parameter'!U$21,IF('Initial Parameter'!$R$22=0,'Initial Parameter'!U$23,'Initial Parameter'!U$22)))) -> 1.000000E+00 | W13: =IF($B13<'Initial Parameter'!$C$17,'Initial Parameter'!V$17,IF($B13<'Initial Parameter'!$C$19,'Initial Parameter'!V$19,IF($B13<'Initial Parameter'!$C$21,'Initial Parameter'!V$21,IF('Initial Parameter'!$R$22=0,'Initial Parameter'!V$23,'Initial Parameter'!V$22)))) -> 0.000000E+00 | X13: =IF($B13<'Initial Parameter'!$C$17,'Initial Parameter'!W$17,IF($B13<'Initial Parameter'!$C$19,'Initial Parameter'!W$19,IF($B13<'Initial Parameter'!$C$21,'Initial Parameter'!W$21,IF('Initial Parameter'!$R$22=0,'Initial Parameter'!W$23,'Initial Parameter'!W$22)))) -> 0.000000E+00
A14: =IF($B14<'Initial Parameter'!$C$17,1,IF($B14<'Initial Parameter'!$C$19,2,IF($B14<'Initial Parameter'!$C$21,3,4))) -> 1 | B14: 0.011 | C14: =IF($B14<'Initial Parameter'!$C$17,'Initial Parameter'!$D$17,IF($B14<'Initial Parameter'!$C$19,'Initial Parameter'!$D$19,IF($B14<'Initial Parameter'!$C$21,'Initial Parameter'!$D$21,'Initial Parameter'!$D$22))) -> 2.00E+04 | D14: =IF($B14<'Initial Parameter'!$C$17,'Initial Parameter'!$E$17,IF($B14<'Initial Parameter'!$C$19,'Initial Parameter'!$E$19,IF($B14<'Initial Parameter'!$C$21,'Initial Parameter'!$E$21,'Initial Parameter'!$E$22))) -> 0.25 | E14: ='Initial Parameter'!$M$2 -> 0.1850600368 | F14: 1.827065879 | G14: 5.189343272 | H14: 0.4046048164 | I14: 3.533540203 | J14: =(2*H14)*(3-4*D14)*C14*('Initial Parameter'!$B$8^4)/('Initial Parameter'!$B$3*(1+D14)*(1-2*D14)) -> 84851.780001 | K14: =(2*I14)*C14*('Initial Parameter'!$B$8^2)/('Initial Parameter'!$B$3*(1+D14)) -> 28.95 | L14: 837.91 | M14: 12.65385416 | N14: 11.4530897 | O14: ='Initial Parameter'!$R$17 -> 2 | P14: 0.011 | Q14: 0.1385355619 | R14: 1.00170052 | S14: 0.1268701626 | T14: 0.01754619161 | U14: =IF($B14<'Initial Parameter'!$C$17,'Initial Parameter'!T$17,IF($B14<'Initial Parameter'!$C$19,'Initial Parameter'!T$19,IF($B14<'Initial Parameter'!$C$21,'Initial Parameter'!T$21,IF('Initial Parameter'!$R$22=0,'Initial Parameter'!T$23,'Initial Parameter'!T$22)))) -> 0.000000E+00 | V14: =IF($B14<'Initial Parameter'!$C$17,'Initial Parameter'!U$17,IF($B14<'Initial Parameter'!$C$19,'Initial Parameter'!U$19,IF($B14<'Initial Parameter'!$C$21,'Initial Parameter'!U$21,IF('Initial Parameter'!$R$22=0,'Initial Parameter'!U$23,'Initial Parameter'!U$22)))) -> 1.000000E+00 | W14: =IF($B14<'Initial Parameter'!$C$17,'Initial Parameter'!V$17,IF($B14<'Initial Parameter'!$C$19,'Initial Parameter'!V$19,IF($B14<'Initial Parameter'!$C$21,'Initial Parameter'!V$21,IF('Initial Parameter'!$R$22=0,'Initial Parameter'!V$23,'Initial Parameter'!V$22)))) -> 0.000000E+00 | X14: =IF($B14<'Initial Parameter'!$C$17,'Initial Parameter'!W$17,IF($B14<'Initial Parameter'!$C$19,'Initial Parameter'!W$19,IF($B14<'Initial Parameter'!$C$21,'Initial Parameter'!W$21,IF('Initial Parameter'!$R$22=0,'Initial Parameter'!W$23,'Initial Parameter'!W$22)))) -> 0.000000E+00
A15: =IF($B15<'Initial Parameter'!$C$17,1,IF($B15<'Initial Parameter'!$C$19,2,IF($B15<'Initial Parameter'!$C$21,3,4))) -> 1 | B15: 0.012 | C15: =IF($B15<'Initial Parameter'!$C$17,'Initial Parameter'!$D$17,IF($B15<'Initial Parameter'!$C$19,'Initial Parameter'!$D$19,IF($B15<'Initial Parameter'!$C$21,'Initial Parameter'!$D$21,'Initial Parameter'!$D$22))) -> 2.00E+04 | D15: =IF($B15<'Initial Parameter'!$C$17,'Initial Parameter'!$E$17,IF($B15<'Initial Parameter'!$C$19,'Initial Parameter'!$E$19,IF($B15<'Initial Parameter'!$C$21,'Initial Parameter'!$E$21,'Initial Parameter'!$E$22))) -> 0.25 | E15: ='Initial Parameter'!$M$2 -> 0.1850600368 | F15: 1.827065879 | G15: 5.189343272 | H15: 0.4046048164 | I15: 3.533540203 | J15: =(2*H15)*(3-4*D15)*C15*('Initial Parameter'!$B$8^4)/('Initial Parameter'!$B$3*(1+D15)*(1-2*D15)) -> 84851.780001 | K15: =(2*I15)*C15*('Initial Parameter'!$B$8^2)/('Initial Parameter'!$B$3*(1+D15)) -> 28.95 | L15: 837.91 | M15: 12.65385416 | N15: 11.4530897 | O15: ='Initial Parameter'!$R$17 -> 2 | P15: 0.012 | Q15: 0.1509930891 | R15: 1.002012273 | S15: 0.1385873278 | T15: 0.02088370501 | U15: =IF($B15<'Initial Parameter'!$C$17,'Initial Parameter'!T$17,IF($B15<'Initial Parameter'!$C$19,'Initial Parameter'!T$19,IF($B15<'Initial Parameter'!$C$21,'Initial Parameter'!T$21,IF('Initial Parameter'!$R$22=0,'Initial Parameter'!T$23,'Initial Parameter'!T$22)))) -> 0.000000E+00 | V15: =IF($B15<'Initial Parameter'!$C$17,'Initial Parameter'!U$17,IF($B15<'Initial Parameter'!$C$19,'Initial Parameter'!U$19,IF($B15<'Initial Parameter'!$C$21,'Initial Parameter'!U$21,IF('Initial Parameter'!$R$22=0,'Initial Parameter'!U$23,'Initial Parameter'!U$22)))) -> 1.000000E+00 | W15: =IF($B15<'Initial Parameter'!$C$17,'Initial Parameter'!V$17,IF($B15<'Initial Parameter'!$C$19,'Initial Parameter'!V$19,IF($B15<'Initial Parameter'!$C$21,'Initial Parameter'!V$21,IF('Initial Parameter'!$R$22=0,'Initial Parameter'!V$23,'Initial Parameter'!V$22)))) -> 0.000000E+00 | X15: =IF($B15<'Initial Parameter'!$C$17,'Initial Parameter'!W$17,IF($B15<'Initial Parameter'!$C$19,'Initial Parameter'!W$19,IF($B15<'Initial Parameter'!$C$21,'Initial Parameter'!W$21,IF('Initial Parameter'!$R$22=0,'Initial Parameter'!W$23,'Initial Parameter'!W$22)))) -> 0.000000E+00
A16: =IF($B16<'Initial Parameter'!$C$17,1,IF($B16<'Initial Parameter'!$C$19,2,IF($B16<'Initial Parameter'!$C$21,3,4))) -> 1 | B16: 0.013 | C16: =IF($B16<'Initial Parameter'!$C$17,'Initial Parameter'!$D$17,IF($B16<'Initial Parameter'!$C$19,'Initial Parameter'!$D$19,IF($B16<'Initial Parameter'!$C$21,'Initial Parameter'!$D$21,'Initial Parameter'!$D$22))) -> 2.00E+04 | D16: =IF($B16<'Initial Parameter'!$C$17,'Initial Parameter'!$E$17,IF($B16<'Initial Parameter'!$C$19,'Initial Parameter'!$E$19,IF($B16<'Initial Parameter'!$C$21,'Initial Parameter'!$E$21,'Initial Parameter'!$E$22))) -> 0.25 | E16: ='Initial Parameter'!$M$2 -> 0.1850600368 | F16: 1.827065879 | G16: 5.189343272 | H16: 0.4046048164 | I16: 3.533540203 | J16: =(2*H16)*(3-4*D16)*C16*('Initial Parameter'!$B$8^4)/('Initial Parameter'!$B$3*(1+D16)*(1-2*D16)) -> 84851.780001 | K16: =(2*I16)*C16*('Initial Parameter'!$B$8^2)/('Initial Parameter'!$B$3*(1+D16)) -> 28.95 | L16: 837.91 | M16: 12.65385416 | N16: 11.4530897 | O16: ='Initial Parameter'!$R$17 -> 2 | P16: 0.013 | Q16: 0.163414816 | R16: 1.00234697 | S16: 0.1503522694 | T16: 0.02451225891 | U16: =IF($B16<'Initial Parameter'!$C$17,'Initial Parameter'!T$17,IF($B16<'Initial Parameter'!$C$19,'Initial Parameter'!T$19,IF($B16<'Initial Parameter'!$C$21,'Initial Parameter'!T$21,IF('Initial Parameter'!$R$22=0,'Initial Parameter'!T$23,'Initial Parameter'!T$22)))) -> 0.000000E+00 | V16: =IF($B16<'Initial Parameter'!$C$17,'Initial Parameter'!U$17,IF($B16<'Initial Parameter'!$C$19,'Initial Parameter'!U$19,IF($B16<'Initial Parameter'!$C$21,'Initial Parameter'!U$21,IF('Initial Parameter'!$R$22=0,'Initial Parameter'!U$23,'Initial Parameter'!U$22)))) -> 1.000000E+00 | W16: =IF($B16<'Initial Parameter'!$C$17,'Initial Parameter'!V$17,IF($B16<'Initial Parameter'!$C$19,'Initial Parameter'!V$19,IF($B16<'Initial Parameter'!$C$21,'Initial Parameter'!V$21,IF('Initial Parameter'!$R$22=0,'Initial Parameter'!V$23,'Initial Parameter'!V$22)))) -> 0.000000E+00 | X16: =IF($B16<'Initial Parameter'!$C$17,'Initial Parameter'!W$17,IF($B16<'Initial Parameter'!$C$19,'Initial Parameter'!W$19,IF($B16<'Initial Parameter'!$C$21,'Initial Parameter'!W$21,IF('Initial Parameter'!$R$22=0,'Initial Parameter'!W$23,'Initial Parameter'!W$22)))) -> 0.000000E+00
A17: =IF($B17<'Initial Parameter'!$C$17,1,IF($B17<'Initial Parameter'!$C$19,2,IF($B17<'Initial Parameter'!$C$21,3,4))) -> 1 | B17: 0.014 | C17: =IF($B17<'Initial Parameter'!$C$17,'Initial Parameter'!$D$17,IF($B17<'Initial Parameter'!$C$19,'Initial Parameter'!$D$19,IF($B17<'Initial Parameter'!$C$21,'Initial Parameter'!$D$21,'Initial Parameter'!$D$22))) -> 2.00E+04 | D17: =IF($B17<'Initial Parameter'!$C$17,'Initial Parameter'!$E$17,IF($B17<'Initial Parameter'!$C$19,'Initial Parameter'!$E$19,IF($B17<'Initial Parameter'!$C$21,'Initial Parameter'!$E$21,'Initial Parameter'!$E$22))) -> 0.25 | E17: ='Initial Parameter'!$M$2 -> 0.1850600368 | F17: 1.827065879 | G17: 5.189343272 | H17: 0.4046048164 | I17: 3.533540203 | J17: =(2*H17)*(3-4*D17)*C17*('Initial Parameter'!$B$8^4)/('Initial Parameter'!$B$3*(1+D17)*(1-2*D17)) -> 84851.780001 | K17: =(2*I17)*C17*('Initial Parameter'!$B$8^2)/('Initial Parameter'!$B$3*(1+D17)) -> 28.95 | L17: 837.91 | M17: 12.65385416 | N17: 11.4530897 | O17: ='Initial Parameter'!$R$17 -> 2 | P17: 0.014 | Q17: 0.1757976921 | R17: 1.00270357 | S17: 0.1621689284 | T17: 0.02843205531 | U17: =IF($B17<'Initial Parameter'!$C$17,'Initial Parameter'!T$17,IF($B17<'Initial Parameter'!$C$19,'Initial Parameter'!T$19,IF($B17<'Initial Parameter'!$C$21,'Initial Parameter'!T$21,IF('Initial Parameter'!$R$22=0,'Initial Parameter'!T$23,'Initial Parameter'!T$22)))) -> 0.000000E+00 | V17: =IF($B17<'Initial Parameter'!$C$17,'Initial Parameter'!U$17,IF($B17<'Initial Parameter'!$C$19,'Initial Parameter'!U$19,IF($B17<'Initial Parameter'!$C$21,'Initial Parameter'!U$21,IF('Initial Parameter'!$R$22=0,'Initial Parameter'!U$23,'Initial Parameter'!U$22)))) -> 1.000000E+00 | W17: =IF($B17<'Initial Parameter'!$C$17,'Initial Parameter'!V$17,IF($B17<'Initial Parameter'!$C$19,'Initial Parameter'!V$19,IF($B17<'Initial Parameter'!$C$21,'Initial Parameter'!V$21,IF('Initial Parameter'!$R$22=0,'Initial Parameter'!V$23,'Initial Parameter'!V$22)))) -> 0.000000E+00 | X17: =IF($B17<'Initial Parameter'!$C$17,'Initial Parameter'!W$17,IF($B17<'Initial Parameter'!$C$19,'Initial Parameter'!W$19,IF($B17<'Initial Parameter'!$C$21,'Initial Parameter'!W$21,IF('Initial Parameter'!$R$22=0,'Initial Parameter'!W$23,'Initial Parameter'!W$22)))) -> 0.000000E+00
A18: =IF($B18<'Initial Parameter'!$C$17,1,IF($B18<'Initial Parameter'!$C$19,2,IF($B18<'Initial Parameter'!$C$21,3,4))) -> 1 | B18: 0.015 | C18: =IF($B18<'Initial Parameter'!$C$17,'Initial Parameter'!$D$17,IF($B18<'Initial Parameter'!$C$19,'Initial Parameter'!$D$19,IF($B18<'Initial Parameter'!$C$21,'Initial Parameter'!$D$21,'Initial Parameter'!$D$22))) -> 2.00E+04 | D18: =IF($B18<'Initial Parameter'!$C$17,'Initial Parameter'!$E$17,IF($B18<'Initial Parameter'!$C$19,'Initial Parameter'!$E$19,IF($B18<'Initial Parameter'!$C$21,'Initial Parameter'!$E$21,'Initial Parameter'!$E$22))) -> 0.25 | E18: ='Initial Parameter'!$M$2 -> 0.1850600368 | F18: 1.827065879 | G18: 5.189343272 | H18: 0.4046048164 | I18: 3.533540203 | J18: =(2*H18)*(3-4*D18)*C18*('Initial Parameter'!$B$8^4)/('Initial Parameter'!$B$3*(1+D18)*(1-2*D18)) -> 84851.780001 | K18: =(2*I18)*C18*('Initial Parameter'!$B$8^2)/('Initial Parameter'!$B$3*(1+D18)) -> 28.95 | L18: 837.91 | M18: 12.65385416 | N18: 11.4530897 | O18: ='Initial Parameter'!$R$17 -> 2 | P18: 0.015 | Q18: 0.1881386507 | R18: 1.003080947 | S18: 0.1740412361 | T18: 0.03264331102 | U18: =IF($B18<'Initial Parameter'!$C$17,'Initial Parameter'!T$17,IF($B18<'Initial Parameter'!$C$19,'Initial Parameter'!T$19,IF($B18<'Initial Parameter'!$C$21,'Initial Parameter'!T$21,IF('Initial Parameter'!$R$22=0,'Initial Parameter'!T$23,'Initial Parameter'!T$22)))) -> 0.000000E+00 | V18: =IF($B18<'Initial Parameter'!$C$17,'Initial Parameter'!U$17,IF($B18<'Initial Parameter'!$C$19,'Initial Parameter'!U$19,IF($B18<'Initial Parameter'!$C$21,'Initial Parameter'!U$21,IF('Initial Parameter'!$R$22=0,'Initial Parameter'!U$23,'Initial Parameter'!U$22)))) -> 1.000000E+00 | W18: =IF($B18<'Initial Parameter'!$C$17,'Initial Parameter'!V$17,IF($B18<'Initial Parameter'!$C$19,'Initial Parameter'!V$19,IF($B18<'Initial Parameter'!$C$21,'Initial Parameter'!V$21,IF('Initial Parameter'!$R$22=0,'Initial Parameter'!V$23,'Initial Parameter'!V$22)))) -> 0.000000E+00 | X18: =IF($B18<'Initial Parameter'!$C$17,'Initial Parameter'!W$17,IF($B18<'Initial Parameter'!$C$19,'Initial Parameter'!W$19,IF($B18<'Initial Parameter'!$C$21,'Initial Parameter'!W$21,IF('Initial Parameter'!$R$22=0,'Initial Parameter'!W$23,'Initial Parameter'!W$22)))) -> 0.000000E+00
A19: =IF($B19<'Initial Parameter'!$C$17,1,IF($B19<'Initial Parameter'!$C$19,2,IF($B19<'Initial Parameter'!$C$21,3,4))) -> 1 | B19: 0.016 | C19: =IF($B19<'Initial Parameter'!$C$17,'Initial Parameter'!$D$17,IF($B19<'Initial Parameter'!$C$19,'Initial Parameter'!$D$19,IF($B19<'Initial Parameter'!$C$21,'Initial Parameter'!$D$21,'Initial Parameter'!$D$22))) -> 2.00E+04 | D19: =IF($B19<'Initial Parameter'!$C$17,'Initial Parameter'!$E$17,IF($B19<'Initial Parameter'!$C$19,'Initial Parameter'!$E$19,IF($B19<'Initial Parameter'!$C$21,'Initial Parameter'!$E$21,'Initial Parameter'!$E$22))) -> 0.25 | E19: ='Initial Parameter'!$M$2 -> 0.1850600368 | F19: 1.827065879 | G19: 5.189343272 | H19: 0.4046048164 | I19: 3.533540203 | J19: =(2*H19)*(3-4*D19)*C19*('Initial Parameter'!$B$8^4)/('Initial Parameter'!$B$3*(1+D19)*(1-2*D19)) -> 84851.780001 | K19: =(2*I19)*C19*('Initial Parameter'!$B$8^2)/('Initial Parameter'!$B$3*(1+D19)) -> 28.95 | L19: 837.91 | M19: 12.65385416 | N19: 11.4530897 | O19: ='Initial Parameter'!$R$17 -> 2 | P19: 0.016 | Q19: 0.2004346076 | R19: 1.003477891 | S19: 0.185973113 | T19: 0.03714625729 | U19: =IF($B19<'Initial Parameter'!$C$17,'Initial Parameter'!T$17,IF($B19<'Initial Parameter'!$C$19,'Initial Parameter'!T$19,IF($B19<'Initial Parameter'!$C$21,'Initial Parameter'!T$21,IF('Initial Parameter'!$R$22=0,'Initial Parameter'!T$23,'Initial Parameter'!T$22)))) -> 0.000000E+00 | V19: =IF($B19<'Initial Parameter'!$C$17,'Initial Parameter'!U$17,IF($B19<'Initial Parameter'!$C$19,'Initial Parameter'!U$19,IF($B19<'Initial Parameter'!$C$21,'Initial Parameter'!U$21,IF('Initial Parameter'!$R$22=0,'Initial Parameter'!U$23,'Initial Parameter'!U$22)))) -> 1.000000E+00 | W19: =IF($B19<'Initial Parameter'!$C$17,'Initial Parameter'!V$17,IF($B19<'Initial Parameter'!$C$19,'Initial Parameter'!V$19,IF($B19<'Initial Parameter'!$C$21,'Initial Parameter'!V$21,IF('Initial Parameter'!$R$22=0,'Initial Parameter'!V$23,'Initial Parameter'!V$22)))) -> 0.000000E+00 | X19: =IF($B19<'Initial Parameter'!$C$17,'Initial Parameter'!W$17,IF($B19<'Initial Parameter'!$C$19,'Initial Parameter'!W$19,IF($B19<'Initial Parameter'!$C$21,'Initial Parameter'!W$21,IF('Initial Parameter'!$R$22=0,'Initial Parameter'!W$23,'Initial Parameter'!W$22)))) -> 0.000000E+00
A20: =IF($B20<'Initial Parameter'!$C$17,1,IF($B20<'Initial Parameter'!$C$19,2,IF($B20<'Initial Parameter'!$C$21,3,4))) -> 1 | B20: 0.017 | C20: =IF($B20<'Initial Parameter'!$C$17,'Initial Parameter'!$D$17,IF($B20<'Initial Parameter'!$C$19,'Initial Parameter'!$D$19,IF($B20<'Initial Parameter'!$C$21,'Initial Parameter'!$D$21,'Initial Parameter'!$D$22))) -> 2.00E+04 | D20: =IF($B20<'Initial Parameter'!$C$17,'Initial Parameter'!$E$17,IF($B20<'Initial Parameter'!$C$19,'Initial Parameter'!$E$19,IF($B20<'Initial Parameter'!$C$21,'Initial Parameter'!$E$21,'Initial Parameter'!$E$22))) -> 0.25 | E20: ='Initial Parameter'!$M$2 -> 0.1850600368 | F20: 1.827065879 | G20: 5.189343272 | H20: 0.4046048164 | I20: 3.533540203 | J20: =(2*H20)*(3-4*D20)*C20*('Initial Parameter'!$B$8^4)/('Initial Parameter'!$B$3*(1+D20)*(1-2*D20)) -> 84851.780001 | K20: =(2*I20)*C20*('Initial Parameter'!$B$8^2)/('Initial Parameter'!$B$3*(1+D20)) -> 28.95 | L20: 837.91 | M20: 12.65385416 | N20: 11.4530897 | O20: ='Initial Parameter'!$R$17 -> 2 | P20: 0.017 | Q20: 0.2126824602 | R20: 1.003893109 | S20: 0.1979684685 | T20: 0.0419411395 | U20: =IF($B20<'Initial Parameter'!$C$17,'Initial Parameter'!T$17,IF($B20<'Initial Parameter'!$C$19,'Initial Parameter'!T$19,IF($B20<'Initial Parameter'!$C$21,'Initial Parameter'!T$21,IF('Initial Parameter'!$R$22=0,'Initial Parameter'!T$23,'Initial Parameter'!T$22)))) -> 0.000000E+00 | V20: =IF($B20<'Initial Parameter'!$C$17,'Initial Parameter'!U$17,IF($B20<'Initial Parameter'!$C$19,'Initial Parameter'!U$19,IF($B20<'Initial Parameter'!$C$21,'Initial Parameter'!U$21,IF('Initial Parameter'!$R$22=0,'Initial Parameter'!U$23,'Initial Parameter'!U$22)))) -> 1.000000E+00 | W20: =IF($B20<'Initial Parameter'!$C$17,'Initial Parameter'!V$17,IF($B20<'Initial Parameter'!$C$19,'Initial Parameter'!V$19,IF($B20<'Initial Parameter'!$C$21,'Initial Parameter'!V$21,IF('Initial Parameter'!$R$22=0,'Initial Parameter'!V$23,'Initial Parameter'!V$22)))) -> 0.000000E+00 | X20: =IF($B20<'Initial Parameter'!$C$17,'Initial Parameter'!W$17,IF($B20<'Initial Parameter'!$C$19,'Initial Parameter'!W$19,IF($B20<'Initial Parameter'!$C$21,'Initial Parameter'!W$21,IF('Initial Parameter'!$R$22=0,'Initial Parameter'!W$23,'Initial Parameter'!W$22)))) -> 0.000000E+00
A21: =IF($B21<'Initial Parameter'!$C$17,1,IF($B21<'Initial Parameter'!$C$19,2,IF($B21<'Initial Parameter'!$C$21,3,4))) -> 1 | B21: 0.018 | C21: =IF($B21<'Initial Parameter'!$C$17,'Initial Parameter'!$D$17,IF($B21<'Initial Parameter'!$C$19,'Initial Parameter'!$D$19,IF($B21<'Initial Parameter'!$C$21,'Initial Parameter'!$D$21,'Initial Parameter'!$D$22))) -> 2.00E+04 | D21: =IF($B21<'Initial Parameter'!$C$17,'Initial Parameter'!$E$17,IF($B21<'Initial Parameter'!$C$19,'Initial Parameter'!$E$19,IF($B21<'Initial Parameter'!$C$21,'Initial Parameter'!$E$21,'Initial Parameter'!$E$22))) -> 0.25 | E21: ='Initial Parameter'!$M$2 -> 0.1850600368 | F21: 1.827065879 | G21: 5.189343272 | H21: 0.4046048164 | I21: 3.533540203 | J21: =(2*H21)*(3-4*D21)*C21*('Initial Parameter'!$B$8^4)/('Initial Parameter'!$B$3*(1+D21)*(1-2*D21)) -> 84851.780001 | K21: =(2*I21)*C21*('Initial Parameter'!$B$8^2)/('Initial Parameter'!$B$3*(1+D21)) -> 28.95 | L21: 837.91 | M21: 12.65385416 | N21: 11.4530897 | O21: ='Initial Parameter'!$R$17 -> 2 | P21: 0.018 | Q21: 0.224879086 | R21: 1.004325222 | S21: 0.2100311997 | T21: 0.04702821676 | U21: =IF($B21<'Initial Parameter'!$C$17,'Initial Parameter'!T$17,IF($B21<'Initial Parameter'!$C$19,'Initial Parameter'!T$19,IF($B21<'Initial Parameter'!$C$21,'Initial Parameter'!T$21,IF('Initial Parameter'!$R$22=0,'Initial Parameter'!T$23,'Initial Parameter'!T$22)))) -> 0.000000E+00 | V21: =IF($B21<'Initial Parameter'!$C$17,'Initial Parameter'!U$17,IF($B21<'Initial Parameter'!$C$19,'Initial Parameter'!U$19,IF($B21<'Initial Parameter'!$C$21,'Initial Parameter'!U$21,IF('Initial Parameter'!$R$22=0,'Initial Parameter'!U$23,'Initial Parameter'!U$22)))) -> 1.000000E+00 | W21: =IF($B21<'Initial Parameter'!$C$17,'Initial Parameter'!V$17,IF($B21<'Initial Parameter'!$C$19,'Initial Parameter'!V$19,IF($B21<'Initial Parameter'!$C$21,'Initial Parameter'!V$21,IF('Initial Parameter'!$R$22=0,'Initial Parameter'!V$23,'Initial Parameter'!V$22)))) -> 0.000000E+00 | X21: =IF($B21<'Initial Parameter'!$C$17,'Initial Parameter'!W$17,IF($B21<'Initial Parameter'!$C$19,'Initial Parameter'!W$19,IF($B21<'Initial Parameter'!$C$21,'Initial Parameter'!W$21,IF('Initial Parameter'!$R$22=0,'Initial Parameter'!W$23,'Initial Parameter'!W$22)))) -> 0.000000E+00
A22: =IF($B22<'Initial Parameter'!$C$17,1,IF($B22<'Initial Parameter'!$C$19,2,IF($B22<'Initial Parameter'!$C$21,3,4))) -> 1 | B22: 0.019 | C22: =IF($B22<'Initial Parameter'!$C$17,'Initial Parameter'!$D$17,IF($B22<'Initial Parameter'!$C$19,'Initial Parameter'!$D$19,IF($B22<'Initial Parameter'!$C$21,'Initial Parameter'!$D$21,'Initial Parameter'!$D$22))) -> 2.00E+04 | D22: =IF($B22<'Initial Parameter'!$C$17,'Initial Parameter'!$E$17,IF($B22<'Initial Parameter'!$C$19,'Initial Parameter'!$E$19,IF($B22<'Initial Parameter'!$C$21,'Initial Parameter'!$E$21,'Initial Parameter'!$E$22))) -> 0.25 | E22: ='Initial Parameter'!$M$2 -> 0.1850600368 | F22: 1.827065879 | G22: 5.189343272 | H22: 0.4046048164 | I22: 3.533540203 | J22: =(2*H22)*(3-4*D22)*C22*('Initial Parameter'!$B$8^4)/('Initial Parameter'!$B$3*(1+D22)*(1-2*D22)) -> 84851.780001 | K22: =(2*I22)*C22*('Initial Parameter'!$B$8^2)/('Initial Parameter'!$B$3*(1+D22)) -> 28.95 | L22: 837.91 | M22: 12.65385416 | N22: 11.4530897 | O22: ='Initial Parameter'!$R$17 -> 2 | P22: 0.019 | Q22: 0.2370213417 | R22: 1.004772769 | S22: 0.2221651911 | T22: 0.05240776153 | U22: =IF($B22<'Initial Parameter'!$C$17,'Initial Parameter'!T$17,IF($B22<'Initial Parameter'!$C$19,'Initial Parameter'!T$19,IF($B22<'Initial Parameter'!$C$21,'Initial Parameter'!T$21,IF('Initial Parameter'!$R$22=0,'Initial Parameter'!T$23,'Initial Parameter'!T$22)))) -> 0.000000E+00 | V22: =IF($B22<'Initial Parameter'!$C$17,'Initial Parameter'!U$17,IF($B22<'Initial Parameter'!$C$19,'Initial Parameter'!U$19,IF($B22<'Initial Parameter'!$C$21,'Initial Parameter'!U$21,IF('Initial Parameter'!$R$22=0,'Initial Parameter'!U$23,'Initial Parameter'!U$22)))) -> 1.000000E+00 | W22: =IF($B22<'Initial Parameter'!$C$17,'Initial Parameter'!V$17,IF($B22<'Initial Parameter'!$C$19,'Initial Parameter'!V$19,IF($B22<'Initial Parameter'!$C$21,'Initial Parameter'!V$21,IF('Initial Parameter'!$R$22=0,'Initial Parameter'!V$23,'Initial Parameter'!V$22)))) -> 0.000000E+00 | X22: =IF($B22<'Initial Parameter'!$C$17,'Initial Parameter'!W$17,IF($B22<'Initial Parameter'!$C$19,'Initial Parameter'!W$19,IF($B22<'Initial Parameter'!$C$21,'Initial Parameter'!W$21,IF('Initial Parameter'!$R$22=0,'Initial Parameter'!W$23,'Initial Parameter'!W$22)))) -> 0.000000E+00
A23: =IF($B23<'Initial Parameter'!$C$17,1,IF($B23<'Initial Parameter'!$C$19,2,IF($B23<'Initial Parameter'!$C$21,3,4))) -> 1 | B23: 0.02 | C23: =IF($B23<'Initial Parameter'!$C$17,'Initial Parameter'!$D$17,IF($B23<'Initial Parameter'!$C$19,'Initial Parameter'!$D$19,IF($B23<'Initial Parameter'!$C$21,'Initial Parameter'!$D$21,'Initial Parameter'!$D$22))) -> 2.00E+04 | D23: =IF($B23<'Initial Parameter'!$C$17,'Initial Parameter'!$E$17,IF($B23<'Initial Parameter'!$C$19,'Initial Parameter'!$E$19,IF($B23<'Initial Parameter'!$C$21,'Initial Parameter'!$E$21,'Initial Parameter'!$E$22))) -> 0.25 | E23: ='Initial Parameter'!$M$2 -> 0.1850600368 | F23: 1.827065879 | G23: 5.189343272 | H23: 0.4046048164 | I23: 3.533540203 | J23: =(2*H23)*(3-4*D23)*C23*('Initial Parameter'!$B$8^4)/('Initial Parameter'!$B$3*(1+D23)*(1-2*D23)) -> 84851.780001 | K23: =(2*I23)*C23*('Initial Parameter'!$B$8^2)/('Initial Parameter'!$B$3*(1+D23)) -> 28.95 | L23: 837.91 | M23: 12.65385416 | N23: 11.4530897 | O23: ='Initial Parameter'!$R$17 -> 2 | P23: 0.02 | Q23: 0.2491060615 | R23: 1.005234204 | S23: 0.2343743132 | T23: 0.05808005923 | U23: =IF($B23<'Initial Parameter'!$C$17,'Initial Parameter'!T$17,IF($B23<'Initial Parameter'!$C$19,'Initial Parameter'!T$19,IF($B23<'Initial Parameter'!$C$21,'Initial Parameter'!T$21,IF('Initial Parameter'!$R$22=0,'Initial Parameter'!T$23,'Initial Parameter'!T$22)))) -> 0.000000E+00 | V23: =IF($B23<'Initial Parameter'!$C$17,'Initial Parameter'!U$17,IF($B23<'Initial Parameter'!$C$19,'Initial Parameter'!U$19,IF($B23<'Initial Parameter'!$C$21,'Initial Parameter'!U$21,IF('Initial Parameter'!$R$22=0,'Initial Parameter'!U$23,'Initial Parameter'!U$22)))) -> 1.000000E+00 | W23: =IF($B23<'Initial Parameter'!$C$17,'Initial Parameter'!V$17,IF($B23<'Initial Parameter'!$C$19,'Initial Parameter'!V$19,IF($B23<'Initial Parameter'!$C$21,'Initial Parameter'!V$21,IF('Initial Parameter'!$R$22=0,'Initial Parameter'!V$23,'Initial Parameter'!V$22)))) -> 0.000000E+00 | X23: =IF($B23<'Initial Parameter'!$C$17,'Initial Parameter'!W$17,IF($B23<'Initial Parameter'!$C$19,'Initial Parameter'!W$19,IF($B23<'Initial Parameter'!$C$21,'Initial Parameter'!W$21,IF('Initial Parameter'!$R$22=0,'Initial Parameter'!W$23,'Initial Parameter'!W$22)))) -> 0.000000E+00
A24: =IF($B24<'Initial Parameter'!$C$17,1,IF($B24<'Initial Parameter'!$C$19,2,IF($B24<'Initial Parameter'!$C$21,3,4))) -> 1 | B24: 0.021 | C24: =IF($B24<'Initial Parameter'!$C$17,'Initial Parameter'!$D$17,IF($B24<'Initial Parameter'!$C$19,'Initial Parameter'!$D$19,IF($B24<'Initial Parameter'!$C$21,'Initial Parameter'!$D$21,'Initial Parameter'!$D$22))) -> 2.00E+04 | D24: =IF($B24<'Initial Parameter'!$C$17,'Initial Parameter'!$E$17,IF($B24<'Initial Parameter'!$C$19,'Initial Parameter'!$E$19,IF($B24<'Initial Parameter'!$C$21,'Initial Parameter'!$E$21,'Initial Parameter'!$E$22))) -> 0.25 | E24: ='Initial Parameter'!$M$2 -> 0.1850600368 | F24: 1.827065879 | G24: 5.189343272 | H24: 0.4046048164 | I24: 3.533540203 | J24: =(2*H24)*(3-4*D24)*C24*('Initial Parameter'!$B$8^4)/('Initial Parameter'!$B$3*(1+D24)*(1-2*D24)) -> 84851.780001 | K24: =(2*I24)*C24*('Initial Parameter'!$B$8^2)/('Initial Parameter'!$B$3*(1+D24)) -> 28.95 | L24: 837.91 | M24: 12.65385416 | N24: 11.4530897 | O24: ='Initial Parameter'!$R$17 -> 2 | P24: 0.021 | Q24: 0.2611300564 | R24: 1.005707895 | S24: 0.2466624222 | T24: 0.06404540776 | U24: =IF($B24<'Initial Parameter'!$C$17,'Initial Parameter'!T$17,IF($B24<'Initial Parameter'!$C$19,'Initial Parameter'!T$19,IF($B24<'Initial Parameter'!$C$21,'Initial Parameter'!T$21,IF('Initial Parameter'!$R$22=0,'Initial Parameter'!T$23,'Initial Parameter'!T$22)))) -> 0.000000E+00 | V24: =IF($B24<'Initial Parameter'!$C$17,'Initial Parameter'!U$17,IF($B24<'Initial Parameter'!$C$19,'Initial Parameter'!U$19,IF($B24<'Initial Parameter'!$C$21,'Initial Parameter'!U$21,IF('Initial Parameter'!$R$22=0,'Initial Parameter'!U$23,'Initial Parameter'!U$22)))) -> 1.000000E+00 | W24: =IF($B24<'Initial Parameter'!$C$17,'Initial Parameter'!V$17,IF($B24<'Initial Parameter'!$C$19,'Initial Parameter'!V$19,IF($B24<'Initial Parameter'!$C$21,'Initial Parameter'!V$21,IF('Initial Parameter'!$R$22=0,'Initial Parameter'!V$23,'Initial Parameter'!V$22)))) -> 0.000000E+00 | X24: =IF($B24<'Initial Parameter'!$C$17,'Initial Parameter'!W$17,IF($B24<'Initial Parameter'!$C$19,'Initial Parameter'!W$19,IF($B24<'Initial Parameter'!$C$21,'Initial Parameter'!W$21,IF('Initial Parameter'!$R$22=0,'Initial Parameter'!W$23,'Initial Parameter'!W$22)))) -> 0.000000E+00
A25: =IF($B25<'Initial Parameter'!$C$17,1,IF($B25<'Initial Parameter'!$C$19,2,IF($B25<'Initial Parameter'!$C$21,3,4))) -> 1 | B25: 0.022 | C25: =IF($B25<'Initial Parameter'!$C$17,'Initial Parameter'!$D$17,IF($B25<'Initial Parameter'!$C$19,'Initial Parameter'!$D$19,IF($B25<'Initial Parameter'!$C$21,'Initial Parameter'!$D$21,'Initial Parameter'!$D$22))) -> 2.00E+04 | D25: =IF($B25<'Initial Parameter'!$C$17,'Initial Parameter'!$E$17,IF($B25<'Initial Parameter'!$C$19,'Initial Parameter'!$E$19,IF($B25<'Initial Parameter'!$C$21,'Initial Parameter'!$E$21,'Initial Parameter'!$E$22))) -> 0.25 | E25: ='Initial Parameter'!$M$2 -> 0.1850600368 | F25: 1.827065879 | G25: 5.189343272 | H25: 0.4046048164 | I25: 3.533540203 | J25: =(2*H25)*(3-4*D25)*C25*('Initial Parameter'!$B$8^4)/('Initial Parameter'!$B$3*(1+D25)*(1-2*D25)) -> 84851.780001 | K25: =(2*I25)*C25*('Initial Parameter'!$B$8^2)/('Initial Parameter'!$B$3*(1+D25)) -> 28.95 | L25: 837.91 | M25: 12.65385416 | N25: 11.4530897 | O25: ='Initial Parameter'!$R$17 -> 2 | P25: 0.022 | Q25: 0.2730901125 | R25: 1.006192127 | S25: 0.2590333588 | T25: 0.07030411705 | U25: =IF($B25<'Initial Parameter'!$C$17,'Initial Parameter'!T$17,IF($B25<'Initial Parameter'!$C$19,'Initial Parameter'!T$19,IF($B25<'Initial Parameter'!$C$21,'Initial Parameter'!T$21,IF('Initial Parameter'!$R$22=0,'Initial Parameter'!T$23,'Initial Parameter'!T$22)))) -> 0.000000E+00 | V25: =IF($B25<'Initial Parameter'!$C$17,'Initial Parameter'!U$17,IF($B25<'Initial Parameter'!$C$19,'Initial Parameter'!U$19,IF($B25<'Initial Parameter'!$C$21,'Initial Parameter'!U$21,IF('Initial Parameter'!$R$22=0,'Initial Parameter'!U$23,'Initial Parameter'!U$22)))) -> 1.000000E+00 | W25: =IF($B25<'Initial Parameter'!$C$17,'Initial Parameter'!V$17,IF($B25<'Initial Parameter'!$C$19,'Initial Parameter'!V$19,IF($B25<'Initial Parameter'!$C$21,'Initial Parameter'!V$21,IF('Initial Parameter'!$R$22=0,'Initial Parameter'!V$23,'Initial Parameter'!V$22)))) -> 0.000000E+00 | X25: =IF($B25<'Initial Parameter'!$C$17,'Initial Parameter'!W$17,IF($B25<'Initial Parameter'!$C$19,'Initial Parameter'!W$19,IF($B25<'Initial Parameter'!$C$21,'Initial Parameter'!W$21,IF('Initial Parameter'!$R$22=0,'Initial Parameter'!W$23,'Initial Parameter'!W$22)))) -> 0.000000E+00
A26: =IF($B26<'Initial Parameter'!$C$17,1,IF($B26<'Initial Parameter'!$C$19,2,IF($B26<'Initial Parameter'!$C$21,3,4))) -> 1 | B26: 0.023 | C26: =IF($B26<'Initial Parameter'!$C$17,'Initial Parameter'!$D$17,IF($B26<'Initial Parameter'!$C$19,'Initial Parameter'!$D$19,IF($B26<'Initial Parameter'!$C$21,'Initial Parameter'!$D$21,'Initial Parameter'!$D$22))) -> 2.00E+04 | D26: =IF($B26<'Initial Parameter'!$C$17,'Initial Parameter'!$E$17,IF($B26<'Initial Parameter'!$C$19,'Initial Parameter'!$E$19,IF($B26<'Initial Parameter'!$C$21,'Initial Parameter'!$E$21,'Initial Parameter'!$E$22))) -> 0.25 | E26: ='Initial Parameter'!$M$2 -> 0.1850600368 | F26: 1.827065879 | G26: 5.189343272 | H26: 0.4046048164 | I26: 3.533540203 | J26: =(2*H26)*(3-4*D26)*C26*('Initial Parameter'!$B$8^4)/('Initial Parameter'!$B$3*(1+D26)*(1-2*D26)) -> 84851.780001 | K26: =(2*I26)*C26*('Initial Parameter'!$B$8^2)/('Initial Parameter'!$B$3*(1+D26)) -> 28.95 | L26: 837.91 | M26: 12.65385416 | N26: 11.4530897 | O26: ='Initial Parameter'!$R$17 -> 2 | P26: 0.023 | Q26: 0.2849829902 | R26: 1.006685101 | S26: 0.2714909478 | T26: 0.07685650859 | U26: =IF($B26<'Initial Parameter'!$C$17,'Initial Parameter'!T$17,IF($B26<'Initial Parameter'!$C$19,'Initial Parameter'!T$19,IF($B26<'Initial Parameter'!$C$21,'Initial Parameter'!T$21,IF('Initial Parameter'!$R$22=0,'Initial Parameter'!T$23,'Initial Parameter'!T$22)))) -> 0.000000E+00 | V26: =IF($B26<'Initial Parameter'!$C$17,'Initial Parameter'!U$17,IF($B26<'Initial Parameter'!$C$19,'Initial Parameter'!U$19,IF($B26<'Initial Parameter'!$C$21,'Initial Parameter'!U$21,IF('Initial Parameter'!$R$22=0,'Initial Parameter'!U$23,'Initial Parameter'!U$22)))) -> 1.000000E+00 | W26: =IF($B26<'Initial Parameter'!$C$17,'Initial Parameter'!V$17,IF($B26<'Initial Parameter'!$C$19,'Initial Parameter'!V$19,IF($B26<'Initial Parameter'!$C$21,'Initial Parameter'!V$21,IF('Initial Parameter'!$R$22=0,'Initial Parameter'!V$23,'Initial Parameter'!V$22)))) -> 0.000000E+00 | X26: =IF($B26<'Initial Parameter'!$C$17,'Initial Parameter'!W$17,IF($B26<'Initial Parameter'!$C$19,'Initial Parameter'!W$19,IF($B26<'Initial Parameter'!$C$21,'Initial Parameter'!W$21,IF('Initial Parameter'!$R$22=0,'Initial Parameter'!W$23,'Initial Parameter'!W$22)))) -> 0.000000E+00
A27: =IF($B27<'Initial Parameter'!$C$17,1,IF($B27<'Initial Parameter'!$C$19,2,IF($B27<'Initial Parameter'!$C$21,3,4))) -> 1 | B27: 0.024 | C27: =IF($B27<'Initial Parameter'!$C$17,'Initial Parameter'!$D$17,IF($B27<'Initial Parameter'!$C$19,'Initial Parameter'!$D$19,IF($B27<'Initial Parameter'!$C$21,'Initial Parameter'!$D$21,'Initial Parameter'!$D$22))) -> 2.00E+04 | D27: =IF($B27<'Initial Parameter'!$C$17,'Initial Parameter'!$E$17,IF($B27<'Initial Parameter'!$C$19,'Initial Parameter'!$E$19,IF($B27<'Initial Parameter'!$C$21,'Initial Parameter'!$E$21,'Initial Parameter'!$E$22))) -> 0.25 | E27: ='Initial Parameter'!$M$2 -> 0.1850600368 | F27: 1.827065879 | G27: 5.189343272 | H27: 0.4046048164 | I27: 3.533540203 | J27: =(2*H27)*(3-4*D27)*C27*('Initial Parameter'!$B$8^4)/('Initial Parameter'!$B$3*(1+D27)*(1-2*D27)) -> 84851.780001 | K27: =(2*I27)*C27*('Initial Parameter'!$B$8^2)/('Initial Parameter'!$B$3*(1+D27)) -> 28.95 | L27: 837.91 | M27: 12.65385416 | N27: 11.4530897 | O27: ='Initial Parameter'!$R$17 -> 2 | P27: 0.024 | Q27: 0.2968054229 | R27: 1.007184931 | S27: 0.2840389968 | T27: 0.08370291489 | U27: =IF($B27<'Initial Parameter'!$C$17,'Initial Parameter'!T$17,IF($B27<'Initial Parameter'!$C$19,'Initial Parameter'!T$19,IF($B27<'Initial Parameter'!$C$21,'Initial Parameter'!T$21,IF('Initial Parameter'!$R$22=0,'Initial Parameter'!T$23,'Initial Parameter'!T$22)))) -> 0.000000E+00 | V27: =IF($B27<'Initial Parameter'!$C$17,'Initial Parameter'!U$17,IF($B27<'Initial Parameter'!$C$19,'Initial Parameter'!U$19,IF($B27<'Initial Parameter'!$C$21,'Initial Parameter'!U$21,IF('Initial Parameter'!$R$22=0,'Initial Parameter'!U$23,'Initial Parameter'!U$22)))) -> 1.000000E+00 | W27: =IF($B27<'Initial Parameter'!$C$17,'Initial Parameter'!V$17,IF($B27<'Initial Parameter'!$C$19,'Initial Parameter'!V$19,IF($B27<'Initial Parameter'!$C$21,'Initial Parameter'!V$21,IF('Initial Parameter'!$R$22=0,'Initial Parameter'!V$23,'Initial Parameter'!V$22)))) -> 0.000000E+00 | X27: =IF($B27<'Initial Parameter'!$C$17,'Initial Parameter'!W$17,IF($B27<'Initial Parameter'!$C$19,'Initial Parameter'!W$19,IF($B27<'Initial Parameter'!$C$21,'Initial Parameter'!W$21,IF('Initial Parameter'!$R$22=0,'Initial Parameter'!W$23,'Initial Parameter'!W$22)))) -> 0.000000E+00
A28: =IF($B28<'Initial Parameter'!$C$17,1,IF($B28<'Initial Parameter'!$C$19,2,IF($B28<'Initial Parameter'!$C$21,3,4))) -> 1 | B28: 0.025 | C28: =IF($B28<'Initial Parameter'!$C$17,'Initial Parameter'!$D$17,IF($B28<'Initial Parameter'!$C$19,'Initial Parameter'!$D$19,IF($B28<'Initial Parameter'!$C$21,'Initial Parameter'!$D$21,'Initial Parameter'!$D$22))) -> 2.00E+04 | D28: =IF($B28<'Initial Parameter'!$C$17,'Initial Parameter'!$E$17,IF($B28<'Initial Parameter'!$C$19,'Initial Parameter'!$E$19,IF($B28<'Initial Parameter'!$C$21,'Initial Parameter'!$E$21,'Initial Parameter'!$E$22))) -> 0.25 | E28: ='Initial Parameter'!$M$2 -> 0.1850600368 | F28: 1.827065879 | G28: 5.189343272 | H28: =0.5*((((BESSELK($E$3,1)+$E$3*BESSELK($E$3,0))^2)-(E28^2+1)*((BESSELK($E$3,1))^2))/((BESSELK($E$3,0))^2)) -> 0.4046048164 | I28: 3.533540203 | J28: =(2*H28)*(3-4*D28)*C28*('Initial Parameter'!$B$8^4)/('Initial Parameter'!$B$3*(1+D28)*(1-2*D28)) -> 84851.780001 | K28: =(2*I28)*C28*('Initial Parameter'!$B$8^2)/('Initial Parameter'!$B$3*(1+D28)) -> 28.95 | L28: 837.91 | M28: 12.65385416 | N28: 11.4530897 | O28: ='Initial Parameter'!$R$17 -> 2 | P28: 0.025 | Q28: 0.3085541156 | R28: 1.007689647 | S28: 0.2966812957 | T28: 0.09084367896 | U28: =IF($B28<'Initial Parameter'!$C$17,'Initial Parameter'!T$17,IF($B28<'Initial Parameter'!$C$19,'Initial Parameter'!T$19,IF($B28<'Initial Parameter'!$C$21,'Initial Parameter'!T$21,IF('Initial Parameter'!$R$22=0,'Initial Parameter'!T$23,'Initial Parameter'!T$22)))) -> 0.000000E+00 | V28: =IF($B28<'Initial Parameter'!$C$17,'Initial Parameter'!U$17,IF($B28<'Initial Parameter'!$C$19,'Initial Parameter'!U$19,IF($B28<'Initial Parameter'!$C$21,'Initial Parameter'!U$21,IF('Initial Parameter'!$R$22=0,'Initial Parameter'!U$23,'Initial Parameter'!U$22)))) -> 1.000000E+00 | W28: =IF($B28<'Initial Parameter'!$C$17,'Initial Parameter'!V$17,IF($B28<'Initial Parameter'!$C$19,'Initial Parameter'!V$19,IF($B28<'Initial Parameter'!$C$21,'Initial Parameter'!V$21,IF('Initial Parameter'!$R$22=0,'Initial Parameter'!V$23,'Initial Parameter'!V$22)))) -> 0.000000E+00 | X28: =IF($B28<'Initial Parameter'!$C$17,'Initial Parameter'!W$17,IF($B28<'Initial Parameter'!$C$19,'Initial Parameter'!W$19,IF($B28<'Initial Parameter'!$C$21,'Initial Parameter'!W$21,IF('Initial Parameter'!$R$22=0,'Initial Parameter'!W$23,'Initial Parameter'!W$22)))) -> 0.000000E+00
A29: =IF($B29<'Initial Parameter'!$C$17,1,IF($B29<'Initial Parameter'!$C$19,2,IF($B29<'Initial Parameter'!$C$21,3,4))) -> 1 | B29: 0.026 | C29: =IF($B29<'Initial Parameter'!$C$17,'Initial Parameter'!$D$17,IF($B29<'Initial Parameter'!$C$19,'Initial Parameter'!$D$19,IF($B29<'Initial Parameter'!$C$21,'Initial Parameter'!$D$21,'Initial Parameter'!$D$22))) -> 2.00E+04 | D29: =IF($B29<'Initial Parameter'!$C$17,'Initial Parameter'!$E$17,IF($B29<'Initial Parameter'!$C$19,'Initial Parameter'!$E$19,IF($B29<'Initial Parameter'!$C$21,'Initial Parameter'!$E$21,'Initial Parameter'!$E$22))) -> 0.25 | E29: ='Initial Parameter'!$M$2 -> 0.1850600368 | F29: 1.827065879 | G29: 5.189343272 | H29: 0.4046048164 | I29: 3.533540203 | J29: =(2*H29)*(3-4*D29)*C29*('Initial Parameter'!$B$8^4)/('Initial Parameter'!$B$3*(1+D29)*(1-2*D29)) -> 84851.780001 | K29: =(2*I29)*C29*('Initial Parameter'!$B$8^2)/('Initial Parameter'!$B$3*(1+D29)) -> 28.95 | L29: 837.91 | M29: 12.65385416 | N29: 11.4530897 | O29: ='Initial Parameter'!$R$17 -> 2 | P29: 0.026 | Q29: 0.3202257438 | R29: 1.008197194 | S29: 0.3094216158 | T29: 0.09827915376 | U29: =IF($B29<'Initial Parameter'!$C$17,'Initial Parameter'!T$17,IF($B29<'Initial Parameter'!$C$19,'Initial Parameter'!T$19,IF($B29<'Initial Parameter'!$C$21,'Initial Parameter'!T$21,IF('Initial Parameter'!$R$22=0,'Initial Parameter'!T$23,'Initial Parameter'!T$22)))) -> 0.000000E+00 | V29: =IF($B29<'Initial Parameter'!$C$17,'Initial Parameter'!U$17,IF($B29<'Initial Parameter'!$C$19,'Initial Parameter'!U$19,IF($B29<'Initial Parameter'!$C$21,'Initial Parameter'!U$21,IF('Initial Parameter'!$R$22=0,'Initial Parameter'!U$23,'Initial Parameter'!U$22)))) -> 1.000000E+00 | W29: =IF($B29<'Initial Parameter'!$C$17,'Initial Parameter'!V$17,IF($B29<'Initial Parameter'!$C$19,'Initial Parameter'!V$19,IF($B29<'Initial Parameter'!$C$21,'Initial Parameter'!V$21,IF('Initial Parameter'!$R$22=0,'Initial Parameter'!V$23,'Initial Parameter'!V$22)))) -> 0.000000E+00 | X29: =IF($B29<'Initial Parameter'!$C$17,'Initial Parameter'!W$17,IF($B29<'Initial Parameter'!$C$19,'Initial Parameter'!W$19,IF($B29<'Initial Parameter'!$C$21,'Initial Parameter'!W$21,IF('Initial Parameter'!$R$22=0,'Initial Parameter'!W$23,'Initial Parameter'!W$22)))) -> 0.000000E+00
A30: =IF($B30<'Initial Parameter'!$C$17,1,IF($B30<'Initial Parameter'!$C$19,2,IF($B30<'Initial Parameter'!$C$21,3,4))) -> 1 | B30: 0.027 | C30: =IF($B30<'Initial Parameter'!$C$17,'Initial Parameter'!$D$17,IF($B30<'Initial Parameter'!$C$19,'Initial Parameter'!$D$19,IF($B30<'Initial Parameter'!$C$21,'Initial Parameter'!$D$21,'Initial Parameter'!$D$22))) -> 2.00E+04 | D30: =IF($B30<'Initial Parameter'!$C$17,'Initial Parameter'!$E$17,IF($B30<'Initial Parameter'!$C$19,'Initial Parameter'!$E$19,IF($B30<'Initial Parameter'!$C$21,'Initial Parameter'!$E$21,'Initial Parameter'!$E$22))) -> 0.25 | E30: ='Initial Parameter'!$M$2 -> 0.1850600368 | F30: 1.827065879 | G30: 5.189343272 | H30: 0.4046048164 | I30: 3.533540203 | J30: =(2*H30)*(3-4*D30)*C30*('Initial Parameter'!$B$8^4)/('Initial Parameter'!$B$3*(1+D30)*(1-2*D30)) -> 84851.780001 | K30: =(2*I30)*C30*('Initial Parameter'!$B$8^2)/('Initial Parameter'!$B$3*(1+D30)) -> 28.95 | L30: 837.91 | M30: 12.65385416 | N30: 11.4530897 | O30: ='Initial Parameter'!$R$17 -> 2 | P30: 0.027 | Q30: 0.3318169526 | R30: 1.008705432 | S30: 0.3222637089 | T30: 0.1060097016 | U30: =IF($B30<'Initial Parameter'!$C$17,'Initial Parameter'!T$17,IF($B30<'Initial Parameter'!$C$19,'Initial Parameter'!T$19,IF($B30<'Initial Parameter'!$C$21,'Initial Parameter'!T$21,IF('Initial Parameter'!$R$22=0,'Initial Parameter'!T$23,'Initial Parameter'!T$22)))) -> 0.000000E+00 | V30: =IF($B30<'Initial Parameter'!$C$17,'Initial Parameter'!U$17,IF($B30<'Initial Parameter'!$C$19,'Initial Parameter'!U$19,IF($B30<'Initial Parameter'!$C$21,'Initial Parameter'!U$21,IF('Initial Parameter'!$R$22=0,'Initial Parameter'!U$23,'Initial Parameter'!U$22)))) -> 1.000000E+00 | W30: =IF($B30<'Initial Parameter'!$C$17,'Initial Parameter'!V$17,IF($B30<'Initial Parameter'!$C$19,'Initial Parameter'!V$19,IF($B30<'Initial Parameter'!$C$21,'Initial Parameter'!V$21,IF('Initial Parameter'!$R$22=0,'Initial Parameter'!V$23,'Initial Parameter'!V$22)))) -> 0.000000E+00 | X30: =IF($B30<'Initial Parameter'!$C$17,'Initial Parameter'!W$17,IF($B30<'Initial Parameter'!$C$19,'Initial Parameter'!W$19,IF($B30<'Initial Parameter'!$C$21,'Initial Parameter'!W$21,IF('Initial Parameter'!$R$22=0,'Initial Parameter'!W$23,'Initial Parameter'!W$22)))) -> 0.000000E+00
A31: =IF($B31<'Initial Parameter'!$C$17,1,IF($B31<'Initial Parameter'!$C$19,2,IF($B31<'Initial Parameter'!$C$21,3,4))) -> 1 | B31: 0.028 | C31: =IF($B31<'Initial Parameter'!$C$17,'Initial Parameter'!$D$17,IF($B31<'Initial Parameter'!$C$19,'Initial Parameter'!$D$19,IF($B31<'Initial Parameter'!$C$21,'Initial Parameter'!$D$21,'Initial Parameter'!$D$22))) -> 2.00E+04 | D31: =IF($B31<'Initial Parameter'!$C$17,'Initial Parameter'!$E$17,IF($B31<'Initial Parameter'!$C$19,'Initial Parameter'!$E$19,IF($B31<'Initial Parameter'!$C$21,'Initial Parameter'!$E$21,'Initial Parameter'!$E$22))) -> 0.25 | E31: ='Initial Parameter'!$M$2 -> 0.1850600368 | F31: 1.827065879 | G31: 5.189343272 | H31: 0.4046048164 | I31: 3.533540203 | J31: =(2*H31)*(3-4*D31)*C31*('Initial Parameter'!$B$8^4)/('Initial Parameter'!$B$3*(1+D31)*(1-2*D31)) -> 84851.780001 | K31: =(2*I31)*C31*('Initial Parameter'!$B$8^2)/('Initial Parameter'!$B$3*(1+D31)) -> 28.95 | L31: 837.91 | M31: 12.65385416 | N31: 11.4530897 | O31: ='Initial Parameter'!$R$17 -> 2 | P31: 0.028 | Q31: 0.343324355 | R31: 1.009212134 | S31: 0.3352113063 | T31: 0.1140356934 | U31: =IF($B31<'Initial Parameter'!$C$17,'Initial Parameter'!T$17,IF($B31<'Initial Parameter'!$C$19,'Initial Parameter'!T$19,IF($B31<'Initial Parameter'!$C$21,'Initial Parameter'!T$21,IF('Initial Parameter'!$R$22=0,'Initial Parameter'!T$23,'Initial Parameter'!T$22)))) -> 0.000000E+00 | V31: =IF($B31<'Initial Parameter'!$C$17,'Initial Parameter'!U$17,IF($B31<'Initial Parameter'!$C$19,'Initial Parameter'!U$19,IF($B31<'Initial Parameter'!$C$21,'Initial Parameter'!U$21,IF('Initial Parameter'!$R$22=0,'Initial Parameter'!U$23,'Initial Parameter'!U$22)))) -> 1.000000E+00 | W31: =IF($B31<'Initial Parameter'!$C$17,'Initial Parameter'!V$17,IF($B31<'Initial Parameter'!$C$19,'Initial Parameter'!V$19,IF($B31<'Initial Parameter'!$C$21,'Initial Parameter'!V$21,IF('Initial Parameter'!$R$22=0,'Initial Parameter'!V$23,'Initial Parameter'!V$22)))) -> 0.000000E+00 | X31: =IF($B31<'Initial Parameter'!$C$17,'Initial Parameter'!W$17,IF($B31<'Initial Parameter'!$C$19,'Initial Parameter'!W$19,IF($B31<'Initial Parameter'!$C$21,'Initial Parameter'!W$21,IF('Initial Parameter'!$R$22=0,'Initial Parameter'!W$23,'Initial Parameter'!W$22)))) -> 0.000000E+00
A32: =IF($B32<'Initial Parameter'!$C$17,1,IF($B32<'Initial Parameter'!$C$19,2,IF($B32<'Initial Parameter'!$C$21,3,4))) -> 1 | B32: 0.029 | C32: =IF($B32<'Initial Parameter'!$C$17,'Initial Parameter'!$D$17,IF($B32<'Initial Parameter'!$C$19,'Initial Parameter'!$D$19,IF($B32<'Initial Parameter'!$C$21,'Initial Parameter'!$D$21,'Initial Parameter'!$D$22))) -> 2.00E+04 | D32: =IF($B32<'Initial Parameter'!$C$17,'Initial Parameter'!$E$17,IF($B32<'Initial Parameter'!$C$19,'Initial Parameter'!$E$19,IF($B32<'Initial Parameter'!$C$21,'Initial Parameter'!$E$21,'Initial Parameter'!$E$22))) -> 0.25 | E32: ='Initial Parameter'!$M$2 -> 0.1850600368 | F32: 1.827065879 | G32: 5.189343272 | H32: 0.4046048164 | I32: 3.533540203 | J32: =(2*H32)*(3-4*D32)*C32*('Initial Parameter'!$B$8^4)/('Initial Parameter'!$B$3*(1+D32)*(1-2*D32)) -> 84851.780001 | K32: =(2*I32)*C32*('Initial Parameter'!$B$8^2)/('Initial Parameter'!$B$3*(1+D32)) -> 28.95 | L32: 837.91 | M32: 12.65385416 | N32: 11.4530897 | O32: ='Initial Parameter'!$R$17 -> 2 | P32: 0.029 | Q32: 0.3547445313 | R32: 1.00971499 | S32: 0.3482681183 | T32: 0.1223575085 | U32: =IF($B32<'Initial Parameter'!$C$17,'Initial Parameter'!T$17,IF($B32<'Initial Parameter'!$C$19,'Initial Parameter'!T$19,IF($B32<'Initial Parameter'!$C$21,'Initial Parameter'!T$21,IF('Initial Parameter'!$R$22=0,'Initial Parameter'!T$23,'Initial Parameter'!T$22)))) -> 0.000000E+00 | V32: =IF($B32<'Initial Parameter'!$C$17,'Initial Parameter'!U$17,IF($B32<'Initial Parameter'!$C$19,'Initial Parameter'!U$19,IF($B32<'Initial Parameter'!$C$21,'Initial Parameter'!U$21,IF('Initial Parameter'!$R$22=0,'Initial Parameter'!U$23,'Initial Parameter'!U$22)))) -> 1.000000E+00 | W32: =IF($B32<'Initial Parameter'!$C$17,'Initial Parameter'!V$17,IF($B32<'Initial Parameter'!$C$19,'Initial Parameter'!V$19,IF($B32<'Initial Parameter'!$C$21,'Initial Parameter'!V$21,IF('Initial Parameter'!$R$22=0,'Initial Parameter'!V$23,'Initial Parameter'!V$22)))) -> 0.000000E+00 | X32: =IF($B32<'Initial Parameter'!$C$17,'Initial Parameter'!W$17,IF($B32<'Initial Parameter'!$C$19,'Initial Parameter'!W$19,IF($B32<'Initial Parameter'!$C$21,'Initial Parameter'!W$21,IF('Initial Parameter'!$R$22=0,'Initial Parameter'!W$23,'Initial Parameter'!W$22)))) -> 0.000000E+00
